Workbook

Sheet 出典情報
A1: 項目名 | C1: 出典 | D1: 注記
A2: 一人当たり急性期医療密度指数 | C2: その地域の住民が、どの程度の急性期医療を利用できるかの目安を示す指標。 指標の意味は、1.0が全国平均。0.8を下回ると少ない、0.6を下回ると非常に少ない、1.2以上充実、1.5以上非常に充実。 2015年 日本創成会議・首都圏問題検討分科会 提言「東京圏高齢化危機回避戦略」 資料3「全国各地の医療・介護の余力を評価する」 p5-p9 (備考）http://www.policycouncil.jp/pdf/prop04/prop04_3_150702.pdf
A3: 一人当たり慢性期医療密度指数 | C3: その地域の住民が、どの程度の医療療養病床を利用できるかの目安を示す指標。 指標の意味は、1.0が全国平均。0.8を下回ると少ない、0.6を下回ると非常に少ない、1.2以上充実、1.5以上非常に充実。 2015年 日本創成会議・首都圏問題検討分科会 提言「東京圏高齢化危機回避戦略」 資料3「全国各地の医療・介護の余力を評価する」 p5-p9 (備考）http://www.policycouncil.jp/pdf/prop04/prop04_3_150702.pdf
A4: 2015年介護ベット準備率 | C4: 2015年の介護ベッドの各地域の余力を示す指標。 各地域の2015年の75歳以上1000人に対する介護付き施設のベッド数が、2015年の全国平均（81床）と比べ何%程度多いか少ないかを示す。 2015年 日本創成会議・首都圏問題検討分科会 提言「東京圏高齢化危機回避戦略」 資料3「全国各地の医療・介護の余力を評価する」 p10 (備考）http://www.policycouncil.jp/pdf/prop04/prop04_3_150702.pdf
A5: 2040年介護ベット準備率 | C5: 2040年の推計75歳以上高齢者数からみて、現在の介護ベッドの各地域の余力を示す指標。 各地域の2015年の75歳以上1000人に対する介護付き施設のベッド数が、2040年の75歳以上推計高齢者に対して現在の全国平均（81床）のベッドを供給するために必要なベッド数と比べ、現在のベッド数は何%程度多いか少ないかを示す。 2015年 日本創成会議・首都圏問題検討分科会 提言「東京圏高齢化危機回避戦略」 資料3「全国各地の医療・介護の余力を評価する」 p10
A6: 一人当たり医師数指数 | C6: 各地域の人口当たりの総医師数（＝病院勤務医数＋診療所勤務の医師数）を、全国平均と比較した指標。
A7: 一人当たり看護師数指数 | C7: 各地域の人口当たりの総看護師数（＝病院勤務看護師数＋診療所勤務の看護師数）を、全国平均と比較した指標。
A8: 医療施設総従事者数 総医師数 | C8: 病院従事者数(病院勤務医数)+診療所従事者数(診療所医師数)
A9: 医療施設総従事者数 総看護師数 | C9: 病院従事者数(総看護師数)+診療所従事者数(総看護師数)
A10: 医療施設総従事者数 総療法士数 | C10: 病院従事者数(理学療法士)+病院従事者数(作業療法士)+病院従事者数(言語聴覚士)
A11: 救急・集中治療室病床数 ER | C11: 令和3年度病床機能報告 救命救急入院料1～4
A12: 救急・集中治療室病床数 ICU | C12: 令和3年度病床機能報告 特定集中治療室管理料1～4
A13: 救急・集中治療室病床数 HCU | C13: 令和3年度病床機能報告 ハイケアユニット入院医療管理料1～2
A14: 救急・集中治療室病床数 SCU | C14: 令和3年度病床機能報告 脳卒中ケアユニット入院医療管理料
A15: 救急・集中治療室病床数 NICU | C15: 令和3年度病床機能報告 新生児特定集中治療室管理料1～2
A16: 救急・集中治療室病床数 GCU | C16: 令和3年度病床機能報告 新生児治療回復室入院医療管理料
A17: 救急・集中治療室病床数 MFICU | C17: 令和3年度病床機能報告 総合周産期特定集中治療室管理料
A18: 救急・集中治療室病床数 PICU | C18: 令和3年度病床機能報告 小児特定集中治療室管理料
A19: 感染症指定医療機関 施設数 | C19: 厚生労働省「感染症指定医療機関の指定状況」 令和3年10月1日
A20: 感染症指定医療機関 病床数 感染症 | C20: 厚生労働省「感染症指定医療機関の指定状況」 令和3年10月1日 特定感染症指定病床＋第一種感染症指定病床＋第二種感染症指定医療機関の感染症病床
A21: 感染症指定医療機関 病床数 結核 | C21: 厚生労働省「感染症指定医療機関の指定状況」 令和3年10月1日 第二種感染症指定医療機関の結核病床
A22: 病床機能報告制度による2021年の機能別病床数 | C22: 令和3年度病床機能報告
A23: 2025年病床機能別必要病床数(推計) | C23: 各都道府県ホームページ：平成28年6月時点
A24: 介護付き入所系施設合計・定員合計 | C24: 介護療養(療養医療施設)+老人保健施設+特別養護老人ホーム+介護医療院+軽費老人ホーム+介護付老人ホーム+サービス付き高齢者向け住宅(介護保険適用のみ)+グループホーム
A25: 介護施設・在宅職員数 看護師 | C25: 介護従事者数(介護施設看護師数)+(在宅看護師数)
A26: 介護施設・在宅職員数 介護職員 | C26: 介護従事者数(介護施設介護職員)+(在宅介護職員)
A27: 医療費 | C27: 令和元年度医療費の地域差分析 厚生労働省
A28: 介護費 | C28: 令和元年度介護保険事業状況報告（年報） 令和元年度累計（平成31年3月サービス分から令和元年2月サービス分まで） 算出方法：「介護給付費総額」÷「第一被保険者数」 | D28: ※愛知県、福岡県、沖縄県の一部市町村は二次医療圏をまたぐ広域連合を構成しているため、二次医療圏値の算定には構成市町村の75歳以上人口による按分を用いて算出しています。
A29: 病院数 | C29: 令和2年10月1日医療施設静態調査 総務省統計局「政府統計の窓口（e-Stat）」
A30: DPC対象病院数 | C30: 令和4年厚生労働省告示第七十八号 令和4年3月18日
A31: DPC大学病院本院群 | C31: 令和4年厚生労働省告示第七十八号 令和4年3月18日 | D31: 旧Ⅰ群数
A32: DPC特定病院群 | C32: 令和4年厚生労働省告示第七十八号 令和4年3月18日 | D32: 旧Ⅱ群数
A33: DPC標準病院群 | C33: 令和4年厚生労働省告示第七十八号 令和4年3月18日 | D33: 旧Ⅲ群数
A34: 算定病床数 | C34: 令和2年度DPC退院患者調査 令和2年4月～令和3年3月 | D34: 準備病院・出来高病院を含む
A35: 大学病院 | C35: 令和4年4月地方厚生局
A36: 救急救命センター | C36: 令和3年12月救急医学会
A37: 地域医療支援病院 | C37: 各都道府県ホームページ（令和4年7月時点公表されているデータ）
A38: がん診療拠点病院 | C38: 令和3年12月独立行政法人国立がん研究センターがん対策情報センター
A39: 周産期母子医療センター | C39: 令和4年4月厚生労働省
A40: 総合入院加算 | C40: 令和4年4月地方厚生局
A41: 病床数 | C41: 令和2年10月1日医療施設静態調査 総務省統計局「政府統計の窓口（e-Stat）」
A42: 一般病床数 | C42: 令和2年10月1日医療施設静態調査 総務省統計局「政府統計の窓口（e-Stat）」
A43: 療養病床数 | C43: 令和2年10月1日医療施設静態調査 総務省統計局「政府統計の窓口（e-Stat）」
A44: 精神病床数 | C44: 令和2年10月1日医療施設静態調査 総務省統計局「政府統計の窓口（e-Stat）」
A45: 結核病床数 | C45: 令和2年10月1日医療施設静態調査 総務省統計局「政府統計の窓口（e-Stat）」
A46: 回復期リハビリ病棟病床数 | C46: 令和4年4月地方厚生局
A47: 感染症病床数 | C47: 令和2年10月1日医療施設静態調査 総務省統計局「政府統計の窓口（e-Stat）」
A48: 地域包括ケア病床数 | C48: 令和4年4月地方厚生局
A49: 病院勤務医数 | C49: 令和2年10月1日医療施設静態調査 総務省統計局「政府統計の窓口（e-Stat）」
A50: 病院勤務医数（常勤） | C50: 令和2年10月1日医療施設静態調査 総務省統計局「政府統計の窓口（e-Stat）」
A51: 病院勤務医数（非常勤） | C51: 令和2年10月1日医療施設静態調査 総務省統計局「政府統計の窓口（e-Stat）」
A52: 総看護師数（病院） | C52: 令和2年10月1日医療施設静態調査 総務省統計局「政府統計の窓口（e-Stat）」
A53: 正看護師数（病院） | C53: 令和2年10月1日医療施設静態調査 総務省統計局「政府統計の窓口（e-Stat）」
A54: 准看護師数（病院） | C54: 令和2年10月1日医療施設静態調査 総務省統計局「政府統計の窓口（e-Stat）」
A55: 理学療法士 | C55: 令和2年10月1日医療施設静態調査 総務省統計局「政府統計の窓口（e-Stat）」
A56: 作業療法士 | C56: 令和2年10月1日医療施設静態調査 総務省統計局「政府統計の窓口（e-Stat）」
A57: 言語聴覚士 | C57: 令和2年10月1日医療施設静態調査 総務省統計局「政府統計の窓口（e-Stat）」
A58: 全身麻酔 | C58: 令和3年度病床機能報告 | D58: 令和2年4月～令和3年3月
A59: 分娩総数 | C59: 令和2年10月1日医療施設静態調査 総務省統計局「政府統計の窓口（e-Stat）」 | D59: 令和2年9月の月間件数×12
A60: 分娩（病院） | C60: 令和2年10月1日医療施設静態調査 総務省統計局「政府統計の窓口（e-Stat）」 | D60: 令和2年9月の月間件数×12
A61: 分娩（診療所） | C61: 令和2年10月1日医療施設静態調査 総務省統計局「政府統計の窓口（e-Stat）」 | D61: 令和2年9月の月間件数×12
A62: 標準化死亡比 | C62: 平成25～29年人口動態保健所・市区町村別統計
A63: 流入・流出 | C63: 令和2年10月患者調査 総務省統計局「政府統計の窓口（e-Stat）」
A64: 診療所施設数 | C64: 令和2年10月1日医療施設静態調査 総務省統計局「政府統計の窓口（e-Stat）」
A65: 有床診療所施設数 | C65: 令和2年10月1日医療施設静態調査 総務省統計局「政府統計の窓口（e-Stat）」
A66: 無床診療所施設数 | C66: 令和2年10月1日医療施設静態調査 総務省統計局「政府統計の窓口（e-Stat）」
A67: 診療所病床総数 | C67: 令和2年10月1日医療施設静態調査 総務省統計局「政府統計の窓口（e-Stat）」
A68: 診療所一般病床数 | C68: 令和2年10月1日医療施設静態調査 総務省統計局「政府統計の窓口（e-Stat）」
A69: 診療所療養病床数 | C69: 令和2年10月1日医療施設静態調査 総務省統計局「政府統計の窓口（e-Stat）」
A70: 診療所医師数 | C70: 令和2年10月1日医療施設静態調査 総務省統計局「政府統計の窓口（e-Stat）」
A71: 診療所勤務医数（常勤） | C71: 令和2年10月1日医療施設静態調査 総務省統計局「政府統計の窓口（e-Stat）」
A72: 診療所勤務医数（非常勤） | C72: 令和2年10月1日医療施設静態調査 総務省統計局「政府統計の窓口（e-Stat）」
A73: 総看護師数（診療所） | C73: 令和2年10月1日医療施設静態調査 総務省統計局「政府統計の窓口（e-Stat）」
A74: 正看護師数（診療所） | C74: 令和2年10月1日医療施設静態調査 総務省統計局「政府統計の窓口（e-Stat）」
A75: 准看護師数（診療所） | C75: 令和2年10月1日医療施設静態調査 総務省統計局「政府統計の窓口（e-Stat）」
A76: 薬剤師数 | C76: 令和2年医師・歯科医師・薬剤師統計
A77: 専門医数 | C77: 令和2年医師・歯科医師・薬剤師統計
A78: 在宅療養支援診療所 | C78: 令和4年4月地方厚生局
A79: 在宅療養支援病院 | C79: 令和4年4月地方厚生局
A80: 訪問診療施設数 | C80: 令和2年10月1日医療施設静態調査 総務省統計局「政府統計の窓口（e-Stat）」
A81: 訪問診療実施件数 | C81: 令和2年10月1日医療施設静態調査 総務省統計局「政府統計の窓口（e-Stat）」 | D81: 令和2年9月1日～30日の月間件数
A82: 在宅看取り施設数 | C82: 令和2年10月1日医療施設静態調査 総務省統計局「政府統計の窓口（e-Stat）」
A83: 在宅看取り実施件数 | C83: 令和2年10月1日医療施設静態調査 総務省統計局「政府統計の窓口（e-Stat）」 | D83: 令和2年9月1日～30日の月間件数
A84: 介護療養(療養医療施設) 施設数・定員合計 | C84: 令和4年5月厚生労働省 介護サービス情報公表システム
A85: 老人保健施設 施設数・定員合計 | C85: 令和4年5月厚生労働省 介護サービス情報公表システム
A86: 特別養護老人ホーム（地域密着型含む） 施設数・定員合計 | C86: 令和4年5月厚生労働省 介護サービス情報公表システム
A87: 介護医療院 施設数・定員合計 | C87: 令和4年5月厚生労働省 介護サービス情報公表システム
A88: 軽費老人ホーム 施設数・定員合計 | C88: 令和4年5月厚生労働省 介護サービス情報公表システム
A89: 介護付老人ホーム 施設数・定員合計 | C89: 令和4年5月厚生労働省 介護サービス情報公表システム
A90: サービス付き高齢者向け住宅(介護保険適用のみ) 施設数・定員合計 | C90: 令和4年4月国土交通省・厚生労働省サービス付き高齢者向け住宅 情報提供システム
A91: グループホーム 施設数・定員合計 | C91: 令和4年5月厚生労働省 介護サービス情報公表システム
A92: サービス付き高齢者向け住宅(介護保険適用を除く) 登録件数・住宅戸数 | C92: 令和4年4月国土交通省・厚生労働省サービス付き高齢者向け住宅 情報提供システム
A93: サービス付き高齢者向け住宅 登録件数・住宅戸数 | C93: 令和4年4月国土交通省・厚生労働省サービス付き高齢者向け住宅 情報提供システム
A94: 訪問看護ステーション(介護保険適用) | C94: 令和4年5月厚生労働省 介護サービス情報公表システム
A95: 利用者 訪問看護 | C95: 令和4年5月厚生労働省 介護サービス情報公表システム
A96: 利用者 訪問介護 | C96: 令和4年5月厚生労働省 介護サービス情報公表システム
A97: 介護従事者数 介護施設看護師数 | C97: 令和4年5月厚生労働省 介護サービス情報公表システム [対象介護サービス] 特定施設入居者生活介護（有料老人ホーム）、介護老人福祉施設、介護老人保健施設、認知症対応型共同生活介護、特定施設入居者生活介護（軽費老人ホーム）、特定施設入居者生活介護（サービス付き高齢者向け住宅）、特定施設入居者生活介護（有料老人ホーム・外部サービス利用型）、特定施設入居者生活介護（軽費老人ホーム・外部サービス利用型）、特定施設入居者生活介護（サービス付き高齢者向け住宅・外部サービス利用型）、地域密着型特定施設入居者生活介護（有料老人ホーム）、地域密着型特定施設入居者生活介護（軽費老人ホーム）、地域密着型特定施設入居者生活介護（サービス付き高齢者向け住宅）、介護療養型医療施設、地域密着型介護老人福祉施設入所者生活介護、短期入所療養介護（介護療養型医療施設）、介護医療院、短期入所療養介護（介護医療院）
A98: 介護従事者数 在宅看護師数(訪問系サービス) | C98: 令和4年5月厚生労働省 介護サービス情報公表システム [対象介護サービス] 訪問看護
A99: 介護従事者数 介護施設介護職員 | C99: 令和4年5月厚生労働省 介護サービス情報公表システム [対象介護サービス] 居宅介護支援、訪問入浴介護、訪問看護、訪問リハビリテーション、福祉用具貸与、特定福祉用具販売、通所介護、通所リハビリテーション、短期入所生活介護、短期入所療養介護（介護老人保健施設）、夜間対応型訪問介護、認知症対応型通所介護、小規模多機能型居宅介護、定期巡回・随時対応型訪問介護看護、複合型サービス、特定施設入居者生活介護（有料老人ホーム）、介護老人福祉施設、介護老人保健施設、認知症対応型共同生活介護、特定施設入居者生活介護（軽費老人ホーム）、特定施設入居者生活介護（サービス付き高齢者向け住宅）、特定施設入居者生活介護（有料老人ホーム・外部サービス利用型）、特定施設入居者生活介護（軽費老人ホーム・外部サービス利用型）、特定施設入居者生活介護（サービス付き高齢者向け住宅・外部サービス利用型）、地域密着型特定施設入居者生活介護（有料老人ホーム）、地域密着型特定施設入居者生活介護（軽費老人ホーム）、地域密着型特定施設入居者生活介護（サービス付き高齢者向け住宅）、介護療養型医療施設、療養通所介護、地域密着型介護老人福祉施設入所者生活介護、短期入所療養介護（介護療養型医療施設）、地域密着型通所介護、介護医療院、短期入所療養介護（介護医療院）
A100: 介護従事者数 在宅介護職員(訪問系サービス) | C100: 令和4年5月厚生労働省 介護サービス情報公表システム [対象介護サービス] 訪問介護
A101: 人口 | C101: 令和2年国勢調査 人口等基本集計
A102: 人口密度 | C102: 令和2年国勢調査 人口等基本集計
A103: 面積 | C103: 令和2年国勢調査 人口等基本集計
A104: 2020年 (総人口) | C104: 令和2年国勢調査 人口等基本集計
A105: 2025年 (総人口) | C105: 国立社会保障・人口問題研究所 市区町村別将来推計人口 平成30年3月推計
A106: 2030年 (総人口) | C106: 国立社会保障・人口問題研究所 市区町村別将来推計人口 平成30年3月推計
A107: 2035年 (総人口) | C107: 国立社会保障・人口問題研究所 市区町村別将来推計人口 平成30年3月推計
A108: 2040年 (総人口) | C108: 国立社会保障・人口問題研究所 市区町村別将来推計人口 平成30年3月推計
A109: 2045年(総人口) | C109: 国立社会保障・人口問題研究所 市区町村別将来推計人口 平成30年3月推計
A110: 2020年(～14歳人口) | C110: 令和2年国勢調査 不詳補完結果(参考表）
A111: 2025年(～14歳人口) | C111: 国立社会保障・人口問題研究所 市区町村別将来推計人口 平成30年3月推計
A112: 2030年(～14歳人口) | C112: 国立社会保障・人口問題研究所 市区町村別将来推計人口 平成30年3月推計
A113: 2035年(～14歳人口) | C113: 国立社会保障・人口問題研究所 市区町村別将来推計人口 平成30年3月推計
A114: 2040年(～14歳人口) | C114: 国立社会保障・人口問題研究所 市区町村別将来推計人口 平成30年3月推計
A115: 2045年(～14歳人口) | C115: 国立社会保障・人口問題研究所 市区町村別将来推計人口 平成30年3月推計
A116: 2020年(15～64歳人口) | C116: 令和2年国勢調査 不詳補完結果(参考表）
A117: 2025年(15～64歳人口) | C117: 国立社会保障・人口問題研究所 市区町村別将来推計人口 平成30年3月推計
A118: 2030年(15～64歳人口) | C118: 国立社会保障・人口問題研究所 市区町村別将来推計人口 平成30年3月推計
A119: 2035年(15～64歳人口) | C119: 国立社会保障・人口問題研究所 市区町村別将来推計人口 平成30年3月推計
A120: 2040年15(～64歳人口) | C120: 国立社会保障・人口問題研究所 市区町村別将来推計人口 平成30年3月推計
A121: 2045年15(～64歳人口) | C121: 国立社会保障・人口問題研究所 市区町村別将来推計人口 平成30年3月推計
A122: 2020年(65歳以上人口) | C122: 令和2年国勢調査 不詳補完結果(参考表）
A123: 2025年(65歳以上人口) | C123: 国立社会保障・人口問題研究所 市区町村別将来推計人口 平成30年3月推計
A124: 2030年(65歳以上人口) | C124: 国立社会保障・人口問題研究所 市区町村別将来推計人口 平成30年3月推計
A125: 2035年(65歳以上人口) | C125: 国立社会保障・人口問題研究所 市区町村別将来推計人口 平成30年3月推計
A126: 2040年(65歳以上人口) | C126: 国立社会保障・人口問題研究所 市区町村別将来推計人口 平成30年3月推計
A127: 2045年(65歳以上人口) | C127: 国立社会保障・人口問題研究所 市区町村別将来推計人口 平成30年3月推計
A128: 2020年(65～74歳人口) | C128: 令和2年国勢調査 不詳補完結果(参考表）
A129: 2025年(65～74歳人口) | C129: 国立社会保障・人口問題研究所 市区町村別将来推計人口 平成30年3月推計
A130: 2030年(65～74歳人口) | C130: 国立社会保障・人口問題研究所 市区町村別将来推計人口 平成30年3月推計
A131: 2035年(65～74歳人口) | C131: 国立社会保障・人口問題研究所 市区町村別将来推計人口 平成30年3月推計
A132: 2040年(65～74歳人口) | C132: 国立社会保障・人口問題研究所 市区町村別将来推計人口 平成30年3月推計
A133: 2045年(65～74歳人口) | C133: 国立社会保障・人口問題研究所 市区町村別将来推計人口 平成30年3月推計
A134: 2020年(75～84歳人口) | C134: 令和2年国勢調査 不詳補完結果(参考表）
A135: 2025年(75～84歳人口) | C135: 国立社会保障・人口問題研究所 市区町村別将来推計人口 平成30年3月推計
A136: 2030年(75～84歳人口) | C136: 国立社会保障・人口問題研究所 市区町村別将来推計人口 平成30年3月推計
A137: 2035年(75～84歳人口) | C137: 国立社会保障・人口問題研究所 市区町村別将来推計人口 平成30年3月推計
A138: 2040年(75～84歳人口) | C138: 国立社会保障・人口問題研究所 市区町村別将来推計人口 平成30年3月推計
A139: 2045年(75～84歳人口) | C139: 国立社会保障・人口問題研究所 市区町村別将来推計人口 平成30年3月推計
A140: 2020年(85歳以上人口) | C140: 令和2年国勢調査 不詳補完結果(参考表）
A141: 2025年(85歳以上人口) | C141: 国立社会保障・人口問題研究所 市区町村別将来推計人口 平成30年3月推計
A142: 2030年(85歳以上人口) | C142: 国立社会保障・人口問題研究所 市区町村別将来推計人口 平成30年3月推計
A143: 2035年(85歳以上人口) | C143: 国立社会保障・人口問題研究所 市区町村別将来推計人口 平成30年3月推計
A144: 2040年(85歳以上人口) | C144: 国立社会保障・人口問題研究所 市区町村別将来推計人口 平成30年3月推計
A145: 2045年(85歳以上人口) | C145: 国立社会保障・人口問題研究所 市区町村別将来推計人口 平成30年3月推計
A146: 年間全身麻酔件数別基幹病院 | C146: ［基礎データ］ 厚生労働省「令和2年度DPC導入の影響評価に係る調査「退院患者調査」の結果報告について」資料：手術化学療法放射線療法全身麻酔についてより抜粋 令和4年03月公表 [医療機関群] 令和4年度中央社会保険医療協議会 総会（第462回） 資料：機能評価係数Ⅱの内訳（医療機関別） 令和4年6月公表 ［救命区分］ 日本救急医学会 全国救命救急センター設置状況 令和3年12月現在
A148: ※福島県の市区町村別将来人口推計は現在取得できないため空欄としています。
A149: 将来人口推計の全国値は福島県全体に対する推計値を含んでいるため、二次医療圏別の合計と一致しません。
A150: ※地域区分項目の判定基準は以下のとおりです。
A151: ・大都市型二次医療圏・・・人口が１００万人以上であるか、または人口密度が2,000人/㎢以上である二次医療圏
A152: ・地方都市型二次医療圏・・・大都市型二次医療圏の条件以外で、人口が２０万人以上であるか、または人口が１０万人以上で、かつ人口密度が200人/㎢以上である
A153: 二次医療圏
A154: ・過疎地域型二次医療圏・・・大都市型二次医療圏、地方都市型二次医療圏の条件以外の二次医療圏
A172: ※年間全身麻酔件数別基幹病院の基礎データは令和2年度調査（令和4年公表）を用いていますが、施設名については令和4年4月1日時点公表分を採用しました。
A175: 【 システム名 】２次医療圏データベースVer.12（巧見さん）プロ版
A176: 【 総 監 修 】高橋泰（国際医療福祉大学大学院 教授）
A177: 【システム開発】渡部鉄兵（株式会社ウェルネス）
A178: 【 著 作 】株式会社ウェルネス
A181: 【更新履歴】
A182: 2017.08.22：Ver 8.0.1 リリース
A183: 2017.08.24：Ver 8.0.2 リリース
A184: ・地図機能の一部不具合を修正しました。
A185: 2017.08.28：Ver 8.0.3 リリース
A186: ・2025年介護ベット準備率および2040年介護ベット準備率の全国値を修正しました。
A187: ・一人当たり医師数指数および一人当たり看護師数指数を更新しました。
A188: 2017.09.04：Ver 8.0.4 リリース
A189: ・医療費データを「平成27年度医療費の地域差分析」を基に更新しました。
A190: 2018.05.14：Ver 8.0.5 リリース
A191: ・病床機能報告制度による2016年の機能別病床数に富山県・福井県・三重県・高知県・宮崎県・沖縄県を追加しました。
A192: ・病床機能報告制度による2016年の機能別病床数の秋田県、愛知県データを修正しました。
A193: ・病床機能報告制度による2015年の機能別病床数の栃木県、愛知県データを修正しました。
A194: 2019.01.23：Ver 9.0.1 リリース
A195: 2019.01.30：Ver 9.0.2 リリース
A196: ・不要な作業用シートを除去しました。
A197: ・病床機能報告制度による2017年の機能別病床数の「休床・無回答」の値を修正しました（合計や他の値は影響ありません）。
A198: 2019.04.25：Ver 9.1.1 リリース
A199: ・出典情報に現状の医療圏との差異に関する情報を記載しました。
A200: ・年間全身麻酔件数別基幹病院データの更新を行い、基礎データと施設名の結びつきの不具合を修正しました。
A201: 2019.05.27：Ver 9.2.1 リリース
A202: ・全身麻酔件数の値を修正しました。
A203: 2020.03.03：Ver 10.0.1 リリース
A204: 2020.04.23：Ver 10.0.2 リリース
A205: ・病院数（DPC対象病院～総合入院加算）の不具合を修正しました。
A206: 2020.08.01：Ver 10.1.1 リリース
A207: ・データおよび地図機能を最新の二次医療圏（335医療圏版）に対応しました。
A208: 2020.06.28：Ver 11.0.1 リリース
A209: ・救急・集中治療室病床数データ、感染症指定医療機関データを収録しました。
A210: ・介護医療院関連データを収録しました。
A211: 2021.08.05：Ver 11.0.2 リリース
A212: ・地域区分の不具合を修正しました。
A213: 2022.07.29：Ver 12.0.1 リリース
A214: 2022.09.01：Ver 12.0.2 リリース
A215: ・地図塗分けの不具合を修正しました。

Sheet 巧見くん
A1: 巧見（タクミ）さん バージョン12 ２次医療圏色塗りツール | H1: プロ版 .
AW2: 2025年病床機能別医療需要ベッド数（ガイドライン） 医療機関所在地ベース | BS2: 2025年病床機能別医療需要ベッド数（ガイドライン） 患者所在地ベース | EK2: ※回復期病床数・地域包括ケア病床数には一般病床、療養病床の一部を含んでいます。
B3: 二次医療圏 | C3: 地域区分 | E3: 色指定 | H3: 二次医療圏略称 | I3: 二次医療圏 フリガナ | J3: 市町村概要 | K3: 一人当たり急性期医療密度指数 | L3: 一人当たり慢性期医療密度指数 | M3: 2015年介護ベット準備率 | N3: 2040年介護ベット準備率 | O3: 一人当たり 医師数指数 | P3: 一人当たり 看護師数指数 | Q3: 75歳以上 2015介護 余力ド指数 | R3: 75歳以上 2025介護 余力ド指数 | S3: 75歳以上 2040介護 余力ド指数 | W3: 医療施設総従事者数 | AA3: 救急・集中治療室病床数 | AJ3: 感染症指定医療機関 | AP3: 病床機能報告制度による2021年の機能別病床数 | AW3: 慢性期バターンA | BB3: 慢性期バターンB | BG3: 慢性期バターンC | BL3: 慢性期バターンなし | BS3: 慢性期バターンA | BX3: 慢性期バターンB | CC3: 慢性期バターンC | CH3: 慢性期バターンなし | CO3: 介護付き入所系施設合計 | CQ3: 81.38218538 | CU3: 介護施設・在宅職員数 | CX3: 医療・介護費 | DT3: 病院数 | EF3: 病院病床数 | EN3: 病院従事者数 | EW3: 全身麻酔 | EX3: 分娩総数 | EY3: 分娩件数 （病院） | EZ3: 分娩件数 （診療所） | FA3: 標準化死亡比 | GK3: 全体 | GN3: 一般病床 | GQ3: 療養病床 | GT3: 医療療養 | GV3: 介護療養 | GX3: 精神病床 | HA3: 診療所 | HG3: 診療所従事者数 | HN3: 薬剤師数 | HP3: 専門医数 | JU3: 在宅医療 | KB3: 介護療養 | KD3: 老健 | KF3: 特養 | KH3: 介護医療院 | KJ3: 軽費ホーム | KL3: 有料ホーム | KN3: サ高住(特定施設） | KP3: グループホーム | KR3: サ高住(非特定施設） | KT3: サ高住(全施設） | KW3: 訪問看護ステーション数(介護保険適用) | KY3: 利用者数 | LB3: 介護従事者数 ※常勤換算 | LG3: 人口 | LH3: 人口密度 | LI3: 面積 | LJ3: (総人口) | LP3: （～14歳人口） | LV3: （15～64歳人口） | MB3: (65歳以上人口) | MH3: （65～74歳人口） | MN3: （75～84歳人口） | MT3: （85歳以上人口） | MZ3: 所属市町村 | NA3: 年間全身麻酔数2000件以上の基幹病院 | NB3: 年間全身麻酔数1000件以上の基幹病院 | NC3: 年間全身麻酔数500件以上の基幹病院
D4: 構成市区町村 | F4: 都道府県 | G4: 地図区分 | T4: 十万人当 医師数 | U4: 十万人当 看護師数 | W4: 総医師数 | X4: 総看護師数 | Y4: 総療法士数 | AA4: ER | AB4: ICU | AC4: HCU | AD4: SCU | AE4: NICU | AF4: GCU | AG4: MFICU | AH4: PICU | AJ4: 施設数 特定 | AK4: 施設数 第一種 | AL4: 施設数 第二種 | AM4: 病床数 感染症 | AN4: 病床数 結核 | AP4: 合計 病床数 | AQ4: 高度急性期病床数 | AR4: 急性期 病床数 | AS4: 回復期 病床数 | AT4: 慢性期 病床数 | AU4: 休床・無回答 | AW4: 全体 | AX4: 高度急性期 | AY4: 急性期 | AZ4: 回復期 | BA4: 慢性期A | BB4: 全体 | BC4: 高度急性期 | BD4: 急性期 | BE4: 回復期 | BF4: 慢性期B | BG4: 全体 | BH4: 高度急性期 | BI4: 急性期 | BJ4: 回復期 | BK4: 慢性期C | BL4: 全体 | BM4: 高度急性期 | BN4: 急性期 | BO4: 回復期 | BP4: 慢性期 | BQ4: 無回答 | BS4: 全体 | BT4: 高度急性期 | BU4: 急性期 | BV4: 回復期 | BW4: 慢性期A | BX4: 全体 | BY4: 高度急性期 | BZ4: 急性期 | CA4: 回復期 | CB4: 慢性期B | CC4: 全体 | CD4: 高度急性期 | CE4: 急性期 | CF4: 回復期 | CG4: 慢性期C | CH4: 全体 | CI4: 高度急性期 | CJ4: 急性期 | CK4: 回復期 | CL4: 慢性期 | CM4: 無回答 | CO4: 施設数 | CP4: 定員合計 | CQ4: 75歳1000人当2015定員 | CR4: 75歳1000人当2025目標 | CS4: 75歳1000人当2040目標 | CU4: 看護師 | CV4: 介護職員 | CX4: １人当たり国保医療費（計） | CY4: １人当たり国保医療費（入院） | CZ4: １人当たり国保医療費（入院外+調剤） | DA4: １人当たり国保医療費（歯科） | DB4: 地域差指数（計） | DC4: 地域差指数（入院） | DD4: 地域差指数（入院外+調剤） | DE4: 地域差指数（歯科） | DF4: 地域差指数寄与度（入院） | DG4: 地域差指数寄与度（入院外+調剤） | DH4: 地域差指数寄与度（歯科） | DI4: １人当たり 介護費 | DJ4: 保険給付支払額 | DK4: 第１号被保険者数 | DT4: 総病院数 | DU4: DPC対象 病院 | DV4: DPC大学 病院本院群 | DW4: DPC特定 病院群 | DX4: DPC標準 病院群 | DY4: DPC算定病床数 | DZ4: 大学病院 | EA4: 救急救命センター | EB4: 地域医療支援病院 | EC4: がん診療拠点病院 | ED4: 周産期母子医療センター | EE4: 総合入院加算 | EF4: 病床数 | EG4: 一般病床数 | EH4: 療養病床数 | EI4: 精神病床数 | EJ4: 結核病床数 | EK4: 回復期病床数 | EL4: 感染病床数 | EM4: 地域包括ケア病床数 | EN4: 医師数 | EO4: 医師数 （常勤） | EP4: 医師数 （非常勤） | EQ4: 総看護師数 | ER4: 正看護師 | ES4: 准看護師 | ET4: 理学療法士 | EU4: 作業療法士 | EV4: 言語聴覚士 | FA4: 総数 男性 | FB4: 総数 女性 | FC4: がん 総数 男性 | FD4: がん 総数 女性 | FE4: がん 胃 男性 | FF4: がん 胃 女性 | FG4: がん 大腸 男性 | FH4: がん 大腸 女性 | FI4: がん 肝及び肝内胆管 男性 | FJ4: がん 肝及び肝内胆管 女性 | FK4: がん 気管、気管支及び肺 男性 | FL4: がん 気管、気管支及び肺 女性 | FM4: 心疾患 総数 男性 | FN4: 心疾患 総数 女性 | FO4: 急性心筋梗塞 男性 | FP4: 急性心筋梗塞 女性 | FQ4: 心不全 男性 | FR4: 心不全 女性 | FS4: 脳血管疾患 総数 男性 | FT4: 脳血管疾患 総数 女性 | FU4: 脳内出血 男性 | FV4: 脳内出血 女性 | FW4: 脳梗塞 男性 | FX4: 脳梗塞 女性 | FY4: 肺炎 男性 | FZ4: 肺炎 女性 | GA4: 肝疾患 男性 | GB4: 肝疾患 女性 | GC4: 腎不全 男性 | GD4: 腎不全 女性 | GE4: 老衰 男性 | GF4: 老衰 女性 | GG4: 不慮の事故 男性 | GH4: 不慮の事故 女性 | GI4: 自殺 男性 | GJ4: 自殺 女性 | GK4: 流入 | GL4: 流出 | GM4: 流入-流出 | GN4: 流入 | GO4: 流出 | GP4: 流入-流出 | GQ4: 流入 | GR4: 流出 | GS4: 流入-流出 | GT4: 流入 | GU4: 流出 | GV4: 流入 | GW4: 流出 | GX4: 流入 | GY4: 流出 | HA4: 診療所 施設数 | HB4: 有床診療所施設数 | HC4: 無床診療所施設数 | HD4: 診療所 総病床数 | HE4: 診療所 一般病床数 | HF4: 診療所 療養病床数 | HG4: 診療所 医師数 | HH4: 医師数 （常勤） | HI4: 医師数 （非常勤） | HJ4: 総看護師数 | HK4: 正看護師数 | HL4: 准看護師数 | HP4: 総合内科 専門医数 | HQ4: 呼吸器 専門医数 | HR4: 循環器 専門医数 | HS4: 消化器病 専門医数 | HT4: 腎臓 専門医数 | HU4: 肝臓 専門医数 | HV4: 神経内科 専門医数 | HW4: 糖尿病 専門医数 | HX4: 内分泌代謝科専門医数 | HY4: 血液 専門医数 | HZ4: 皮膚科 専門医数 | IA4: アレルギー 専門医数 | IB4: リウマチ 専門医数 | IC4: 感染症 専門医数 | ID4: 小児科 専門医数 | IE4: 心療内科 専門医数 | IF4: 精神科 専門医数 | IG4: 外科 専門医数 | IH4: 呼吸器外科 専門医数 | II4: 心臓血管外科専門医数 | IJ4: 乳腺 専門医数 | IK4: 気管食道科 専門医数 | IL4: 消化器外科 専門医数 | IM4: 泌尿器科 専門医数 | IN4: 脳神経外科 専門医数 | IO4: 整形外科 専門医数 | IP4: 形成外科 専門医数 | IQ4: 眼科 専門医数 | IR4: 耳鼻咽喉科 専門医数 | IS4: 小児外科 専門医数 | IT4: 産婦人科 専門医数 | IU4: リハビリテーション科 専門医数 | IV4: 放射線科 専門医数 | IW4: 麻酔科 専門医数 | IX4: 病理 専門医数 | IY4: 救急科 専門医数 | IZ4: 超音波 専門医数 | JA4: 細胞診 専門医数 | JB4: 透析 専門医数 | JC4: 老年病 専門医数 | JD4: 消化器内視鏡専門医数 | JE4: 臨床遺伝 専門医数 | JF4: 漢方 専門医数 | JG4: レーザー 専門医数 | JH4: 気管支鏡 専門医数 | JI4: 核医学 専門医数 | JJ4: 大腸肛門病 専門医数 | JK4: 婦人科腫瘍 専門医数 | JL4: ペインクリニック専門医数 | JM4: 熱傷 専門医数 | JN4: 脳血管内治療専門医数 | JO4: がん薬物療法専門医数 | JP4: 周産期（新生児）専門医数 | JQ4: 生殖医療 専門医数 | JR4: 小児神経 専門医数 | JS4: 一般病院連携精神医学専門医数 | JU4: 在宅療養 支援診療所 | JV4: 在宅療養 支援病院 | JW4: 訪問診療 施設数 | JX4: 訪問診療 実施件数 | JY4: 在宅看取り施設数 | JZ4: 在宅看取り実施件数 | KB4: 施設数 | KC4: 定員合計 | KD4: 施設数 | KE4: 定員合計 | KF4: 施設数 | KG4: 定員合計 | KH4: 施設数 | KI4: 定員合計 | KJ4: 施設数 | KK4: 定員合計 | KL4: 施設数 | KM4: 定員合計 | KN4: 施設数 | KO4: 定員合計 | KP4: 施設数 | KQ4: 定員合計 | KR4: 登録件数 | KS4: 戸数 | KT4: 登録件数 | KU4: 戸数 | KY4: 訪問看護 | KZ4: 訪問介護 | LB4: 介護施設看護師数 | LC4: 在宅看護師数 | LD4: 介護施設介護職員 | LE4: 在宅介護職員 | LJ4: 2020年 | LK4: 2025年 | LL4: 2030年 | LM4: 2035年 | LN4: 2040年 | LO4: 2045年 | LP4: 2020年 | LQ4: 2025年 | LR4: 2030年 | LS4: 2035年 | LT4: 2040年 | LU4: 2045年 | LV4: 2020年 | LW4: 2025年 | LX4: 2030年 | LY4: 2035年 | LZ4: 2040年 | MA4: 2045年 | MB4: 2020年 | MC4: 2025年 | MD4: 2030年 | ME4: 2035年 | MF4: 2040年 | MG4: 2045年 | MH4: 2020年 | MI4: 2025年 | MJ4: 2030年 | MK4: 2035年 | ML4: 2040年 | MM4: 2045年 | MN4: 2020年 | MO4: 2025年 | MP4: 2030年 | MQ4: 2035年 | MR4: 2040年 | MS4: 2045年 | MT4: 2020年 | MU4: 2025年 | MV4: 2030年 | MW4: 2035年 | MX4: 2040年 | MY4: 2045年
A5: 0 | B5: 全国 | K5: 1 | L5: 1 | M5: 0 | N5: 0 | O5: 1 | P5: 1 | Q5: 0.04216536644 | R5: -0.2671693403 | S5: -0.272390249 | T5: 259.2973322 | U5: 844.8218597 | W5: =SUM(W6:W340) -> 384331.6 | X5: =SUM(X6:X340) -> 1164670.5 | Y5: =SUM(Y6:Y340) -> 149112.2 | AA5: =SUM(AA6:AA340) -> 6410 | AB5: =SUM(AB6:AB340) -> 5972 | AC5: 7990 | AD5: 1518 | AE5: 1653 | AF5: 2801 | AG5: 2549 | AH5: 122 | AJ5: 4 | AK5: =SUM(AK6:AK340) -> 56 | AL5: =SUM(AL6:AL340) -> 531 | AM5: =SUM(AM6:AM340) -> 1888 | AN5: =SUM(AN6:AN340) -> 3017 | AP5: =SUM(AP6:AP340) -> 1239118 | AQ5: 155243 | AR5: 549279 | AS5: 192956 | AT5: 312079 | AU5: 29561 | AW5: =SUM(AW6:AW340) -> 477509.5 | AX5: 54198.4 | AY5: 166965.3 | AZ5: 155373.8 | BA5: 100972 | BB5: 902845.2 | BC5: 101111.8 | BD5: 308406.9 | BE5: 287190.8 | BF5: 206135.7 | BG5: 183906.9 | BH5: 16668.6 | BI5: 57769.5 | BJ5: 58638.2 | BK5: 50830.6 | BL5: 13827 | BM5: 615 | BN5: 2248 | BO5: 769 | BP5: 2671 | BQ5: 7524 | BS5: =SUM(BS6:BS340) -> 461991.1 | BT5: 53353.4 | BU5: 162257.6 | BV5: 148806 | BW5: 97574.1 | BX5: 671046.6 | BY5: 76059.4 | BZ5: 229325.9 | CA5: 211830.5 | CB5: 153830.8 | CC5: 164073.5 | CD5: 15502.8 | CE5: 51581.7 | CF5: 52950.7 | CG5: 44038.3 | CH5: 0 | CI5: 0 | CJ5: 0 | CK5: 0 | CL5: 0 | CM5: 0 | CO5: =SUM(CO6:CO340) -> 34122 | CP5: =SUM(CP6:CP340) -> 1565369 | CQ5: 1339503 | CR5: 1772098.307 | CS5: 1779399.592 | CU5: =SUM(CU6:CU340) -> 188635.358 | CV5: =SUM(CV6:CV340) -> 1556621.829 | CX5: 371863.9276 | CY5: 146521.1989 | CZ5: 199446.6882 | DA5: 25896.04045 | DB5: 1 | DC5: 1 | DD5: 1 | DE5: 1 | DF5: 0 | DG5: 0 | DH5: 0 | DI5: 263094.0251 | DJ5: 8484852857 | DK5: 33922327 | DT5: =SUM(DT6:DT340) -> 8238 | DU5: 1764 | DV5: 82 | DW5: 181 | DX5: 1501 | DY5: 616088 | DZ5: 178 | EA5: 290 | EB5: 684 | EC5: 451 | ED5: 411 | EE5: 312 | EF5: 1507526 | EG5: 887920 | EH5: 289114 | EI5: 324481 | EJ5: 4107 | EK5: 87589 | EL5: 1904 | EM5: 74859 | EN5: 243064 | EO5: 188338 | EP5: 54726 | EQ5: 918226.1 | ER5: 827451.2 | ES5: 90774.9 | ET5: 84459.3 | EU5: 47853.9 | EV5: 16799 | EW5: 2315172 | EX5: 839196 | EY5: 457032 | EZ5: 382164 | FA5: 100 | FB5: 100 | FC5: 100 | FD5: 100 | FE5: 100 | FF5: 100 | FG5: 100 | FH5: 100 | FI5: 100 | FJ5: 100 | FK5: 100 | FL5: 100 | FM5: 100 | FN5: 100 | FO5: 100 | FP5: 100 | FQ5: 100 | FR5: 100 | FS5: 100 | FT5: 100 | FU5: 100 | FV5: 100 | FW5: 100 | FX5: 100 | FY5: 100 | FZ5: 100 | GA5: 100 | GB5: 100 | GC5: 100 | GD5: 100 | GE5: 100 | GF5: 100 | GG5: 100 | GH5: 100 | GI5: 100 | GJ5: 100 | GK5: 20.8 | GL5: 20.8 | GM5: 0 | GN5: 19.9 | GO5: 19.9 | GP5: 0 | GQ5: 17.4 | GR5: 17.4 | GS5: 0 | GT5: 17.4 | GU5: 17.4 | GV5: 16.6 | GW5: 16.6 | GX5: 25.8 | GY5: 25.8 | HA5: =SUM(HA6:HA340) -> 102612 | HB5: 6303 | HC5: 96309 | HD5: 86046 | HE5: 79110 | HF5: 6936 | HG5: 141267.6 | HH5: 104731 | HI5: 36536.6 | HJ5: 246444.4 | HK5: 161161.4 | HL5: 85283 | HN5: =SUM(HN6:HN340) -> 321982 | HP5: =SUM(HP6:HP340) -> 33119 | HQ5: 6281 | HR5: 13452 | HS5: 19811 | HT5: 4995 | HU5: 6323 | HV5: 5050 | HW5: 5512 | HX5: 2600 | HY5: 3489 | HZ5: 5948 | IA5: 3716 | IB5: 4772 | IC5: 1350 | ID5: 14168 | IE5: 317 | IF5: 9934 | IG5: 22312 | IH5: 1560 | II5: 2223 | IJ5: 1590 | IK5: 997 | IL5: 7532 | IM5: 6279 | IN5: 7149 | IO5: 17476 | IP5: 2377 | IQ5: 9835 | IR5: 7558 | IS5: 656 | IT5: 11602 | IU5: 2868 | IV5: =SUM(IV6:IV340) -> 6391 | IW5: 7997 | IX5: 1820 | IY5: 4704 | IZ5: 1883 | JA5: 2020 | JB5: 4834 | JC5: 1246 | JD5: 15289 | JE5: 1094 | JF5: 1685 | JG5: 245 | JH5: 2110 | JI5: 896 | JJ5: 1642 | JK5: 855 | JL5: 1357 | JM5: 297 | JN5: 1256 | JO5: 1279 | JP5: 1571 | JQ5: 725 | JR5: 981 | JS5: 345 | JU5: =SUM(JU6:JU340) -> 15280 | JV5: 1698 | JW5: 23160 | JX5: 1477229 | JY5: 6043 | JZ5: 15285 | KB5: =SUM(KB6:KB340) -> 524 | KC5: 25266 | KD5: 4160 | KE5: 365083 | KF5: 9499 | KG5: 605983 | KH5: =SUM(KH6:KH340) -> 657 | KI5: 39703 | KJ5: 555 | KK5: 24123 | KL5: 4223 | KM5: 258955 | KN5: 650 | KO5: 33108 | KP5: 13854 | KQ5: 213148 | KR5: 7405 | KS5: 241594 | KT5: 8055 | KU5: 274702 | KW5: =SUM(KW6:KW340) -> 14163 | KY5: =SUM(KY6:KY340) -> 677400 | KZ5: =SUM(KZ6:KZ340) -> 1147886 | LB5: =SUM(LB6:LB340) -> 119762.417 | LC5: =SUM(LC6:LC340) -> 68872.941 | LD5: =SUM(LD6:LD340) -> 1327531.452 | LE5: =SUM(LE6:LE340) -> 229090.3768 | LG5: =SUM(LG6:LG340) -> 126146099 | LH5: =LG5/LI5 -> 338.2302554 | LI5: =SUM(LI6:LI340) -> 372959.24 | LJ5: 126146099 | LK5: 122544102 | LL5: 119125137 | LM5: 115215698 | LN5: 110918554 | LO5: 106421184 | LP5: 15031602 | LQ5: 14072740 | LR5: 13211913 | LS5: 12457214 | LT5: 11935951 | LU5: 11384190 | LV5: 75087865 | LW5: 71700512 | LX5: 68753639 | LY5: 64941882 | LZ5: 59776889 | MA5: 55844718 | MB5: 36026632 | MC5: 36770849 | MD5: 37159585 | ME5: 37816602 | MF5: 39205714 | MG5: 39192276 | MH5: 17424824 | MI5: 14971125 | MJ5: 14275254 | MK5: 15219341 | ML5: 16813908 | MM5: 16425634 | MN5: 12468410 | MO5: 14597119 | MP5: 14578072 | MQ5: 12579288 | MR5: 12155132 | MS5: 13068177 | MT5: 6133398 | MU5: 7202605 | MV5: 8306260 | MW5: 10017973 | MX5: 10236673 | MY5: 9698464
A6: 1 | B6: 南渡島 | C6: =IF(OR($LG6>=1000000,$LH6>=2000),"大都市型",IF(OR($LG6>=200000,AND($LG6>=100000,$LH6>=200)),"地方都市型","過疎地域型")) -> 地方都市型 | D6: 松前郡松前町,松前郡福島町,上磯郡知内町,上磯郡木古内町,亀田郡七飯町,茅部郡鹿部町,茅部郡森町,函館市,北斗市 | F6: 北海道 | G6: 北海道 | H6: 函館（北海道） | I6: ミナミオシマ | J6: 函館市、北斗市及び周辺部 | K6: 1.771781394 | L6: 1.289874603 | M6: 0.1598448442 | N6: 0.09574520788 | O6: 0.9198217274 | P6: 1.449013084 | Q6: 0.1827742772 | R6: 0.02854659378 | S6: 0.1204240419 | T6: 242.2288316 | U6: 1280.762246 | W6: 1006.7 | X6: 4805.8 | Y6: 569.6 | AA6: 28 | AB6: 40 | AC6: 12 | AD6: 9 | AE6: 9 | AF6: 18 | AG6: 0 | AH6: 0 | AJ6: 0 | AK6: 0 | AL6: 2 | AM6: 6 | AN6: 10 | AP6: 5813 | AQ6: 836 | AR6: 2582 | AS6: 703 | AT6: 1556 | AU6: 136 | AW6: 4816 | AX6: 585 | AY6: 1759 | AZ6: 1691 | BA6: 781 | BB6: 4882 | BC6: 585 | BD6: 1759 | BE6: 1691 | BF6: 847 | BG6: 0 | BL6: 0 | BS6: 4661 | BT6: 547 | BU6: 1679 | BV6: 1609 | BW6: 826 | BX6: 4730 | BY6: 547 | BZ6: 1679 | CA6: 1609 | CB6: 895 | CC6: 0 | CH6: 0 | CO6: 145 | CP6: 5953 | CQ6: 4923.78498 | CR6: 5853.006772 | CS6: 5299.445148 | CU6: 580.45 | CV6: 5866.96 | CX6: 428043.5391 | CY6: 180204.6915 | CZ6: 222855.6664 | DA6: 24983.18109 | DB6: 1.093060736 | DC6: 1.164787629 | DD6: 1.060922295 | DE6: 0.9310927684 | DF6: 0.06510289446 | DG6: 0.03267929704 | DH6: -0.004721455842 | DI6: 271802.2911 | DJ6: 29784639.16 | DK6: 118087 | DT6: 33 | DU6: 7 | DV6: 0 | DW6: 0 | DX6: 7 | DY6: 2934 | DZ6: 0 | EA6: 1 | EB6: 2 | EC6: 2 | ED6: 2 | EE6: 3 | EF6: 7076 | EG6: 4225 | EH6: 1156 | EI6: 1674 | EJ6: 15 | EK6: 322 | EL6: 6 | EM6: 539 | EN6: 666.9 | EO6: 559 | EP6: 107.9 | EQ6: 3984.4 | ER6: 3456.5 | ES6: 527.9 | ET6: 313.3 | EU6: 190.7 | EV6: 65.6 | EW6: 9491 | EX6: 2148 | EY6: 1416 | EZ6: 732 | FA6: 115.0485173 | FB6: 107.4598009 | FC6: 119.1657508 | FD6: 116.8193529 | FE6: 110.4141205 | FF6: 110.6687408 | FG6: 124.9686478 | FH6: 130.4543256 | FI6: 100.7596422 | FJ6: 96.14809275 | FK6: 122.1022216 | FL6: 121.9635442 | FM6: 93.47796987 | FN6: 97.18344576 | FO6: 73.95074708 | FP6: 77.91710971 | FQ6: 119.4142704 | FR6: 112.1082788 | FS6: 106.5516628 | FT6: 87.77564915 | FU6: 109.4275482 | FV6: 89.6269385 | FW6: 104.9207957 | FX6: 86.52642007 | FY6: 131.538076 | FZ6: 123.8776983 | GA6: 111.9427002 | GB6: 108.1770374 | GC6: 164.5785432 | GD6: 159.2965867 | GE6: 82.2868399 | GF6: 88.50259632 | GG6: 96.87404026 | GH6: 93.36808331 | GI6: 120.3026399 | GJ6: 108.2896634 | GK6: 7.9 | GL6: 2.8 | GM6: 5.1 | GN6: 8.6 | GO6: 3.4 | GP6: 5.2 | GQ6: 5.9 | GR6: 1.3 | GS6: 4.6 | GT6: 6.1 | GU6: 1.5 | GV6: 4.7 | GW6: 0 | GX6: 7.8 | GY6: 2.5 | HA6: 273 | HB6: 26 | HC6: 247 | HD6: 346 | HE6: 346 | HF6: 0 | HG6: 339.8 | HH6: 270 | HI6: 69.8 | HJ6: 821.4 | HK6: 368.3 | HL6: 453.1 | HN6: 783 | HP6: 62 | HQ6: 12 | HR6: 40 | HS6: 56 | HT6: 4 | HU6: 15 | HV6: 6 | HW6: 9 | HX6: 3 | HY6: 4 | HZ6: 14 | IA6: 3 | IB6: 10 | IC6: 1 | ID6: 29 | IE6: 0 | IF6: 27 | IG6: 60 | IH6: 4 | II6: 7 | IJ6: 4 | IK6: 0 | IL6: 18 | IM6: 19 | IN6: 26 | IO6: 52 | IP6: 6 | IQ6: 16 | IR6: 14 | IS6: 0 | IT6: 26 | IU6: 8 | IV6: 9 | IW6: 28 | IX6: 6 | IY6: 14 | IZ6: 3 | JA6: 6 | JB6: 4 | JC6: 3 | JD6: 42 | JE6: 4 | JF6: 6 | JG6: 0 | JH6: 5 | JI6: 1 | JJ6: 6 | JK6: 1 | JL6: 3 | JM6: 2 | JN6: 5 | JO6: 0 | JP6: 3 | JQ6: 0 | JR6: 3 | JS6: 0 | JU6: 25 | JV6: 3 | JW6: 58 | JX6: 4728 | JY6: 13 | JZ6: 24 | KB6: 2 | KC6: 88 | KD6: 12 | KE6: 1256 | KF6: 33 | KG6: 1993 | KH6: 4 | KI6: 302 | KJ6: 5 | KK6: 280 | KL6: 17 | KM6: 756 | KN6: 2 | KO6: 75 | KP6: 70 | KQ6: 1203 | KR6: 51 | KS6: 1689 | KT6: 53 | KU6: 1764 | KW6: 39 | KY6: 1944 | KZ6: 3922 | LB6: 370.6 | LC6: 209.85 | LD6: 5204.84 | LE6: 662.12 | LG6: 359223 | LH6: 134.5102224 | LI6: 2670.6 | LJ6: 359223 | LK6: 331212 | LL6: 305086 | LM6: 278889 | LN6: 252822 | LO6: 227660 | LP6: 35205 | LQ6: 31390 | LR6: 27419 | LS6: 23925 | LT6: 21175 | LU6: 18650 | LV6: 194764 | LW6: 175852 | LX6: 158806 | LY6: 140930 | LZ6: 120292 | MA6: 103666 | MB6: 129254 | MC6: 123970 | MD6: 118861 | ME6: 114034 | MF6: 111355 | MG6: 105344 | MH6: 62958 | MI6: 51340 | MJ6: 44191 | MK6: 43288 | ML6: 45318 | MM6: 42781 | MN6: 43489 | MO6: 48576 | MP6: 49042 | MQ6: 40655 | MR6: 35537 | MS6: 35132 | MT6: 22807 | MU6: 24054 | MV6: 25628 | MW6: 30091 | MX6: 30500 | MY6: 27431 | MZ6: 函館市、北斗市、松前郡松前町、松前郡福島町、上磯郡知内町、上磯郡木古内町、亀田郡七飯町、茅部郡鹿部町、茅部郡森町 | NA6: 函館中央病院（標準群）、函館五稜郭病院（標準群） | NB6: 市立函館病院（標準群・救命）
A7: 2 | B7: 南檜山 | C7: =IF(OR($LG7>=1000000,$LH7>=2000),"大都市型",IF(OR($LG7>=200000,AND($LG7>=100000,$LH7>=200)),"地方都市型","過疎地域型")) -> 過疎地域型 | D7: 檜山郡江差町,爾志郡乙部町,檜山郡厚沢部町,奥尻郡奥尻町,檜山郡上ノ国町 | F7: 北海道 | G7: 北海道 | H7: 江差（北海道） | I7: ミナミヒヤマ | J7: 江差町、上ノ国町及び周辺部 | K7: 0.9767843862 | L7: 1.886518711 | M7: 0.1382321842 | N7: 0.2571571953 | O7: 0.6956027753 | P7: 0.9069003657 | Q7: 0.2310948524 | R7: 0.1927513227 | S7: 0.3372047018 | T7: 153.8006507 | U7: 820.5518232 | W7: 44.8 | X7: 177 | Y7: 4 | AA7: 0 | AB7: 0 | AC7: 0 | AD7: 0 | AE7: 0 | AF7: 0 | AG7: 0 | AH7: 0 | AJ7: 0 | AK7: 0 | AL7: 1 | AM7: 4 | AN7: 0 | AP7: 457 | AQ7: 0 | AR7: 224 | AS7: 0 | AT7: 172 | AU7: 61 | AW7: 158 | AY7: 56 | AZ7: 72 | BA7: 30 | BB7: 177 | BD7: 56 | BE7: 72 | BF7: 49 | BG7: 0 | BL7: 0 | BS7: 302 | BT7: 30 | BU7: 105 | BV7: 119 | BW7: 48 | BX7: 324 | BY7: 30 | BZ7: 105 | CA7: 119 | CB7: 70 | CC7: 0 | CH7: 0 | CO7: 16 | CP7: 509 | CQ7: 399.8306768 | CR7: 419.7693122 | CS7: 344.6535551 | CU7: 32.45 | CV7: 480.68 | CX7: 424542.2825 | CY7: 189926.4786 | CZ7: 207660.4816 | DA7: 26955.32234 | DB7: 1.058614812 | DC7: 1.195533193 | DD7: 0.9660820671 | DE7: 0.9902376917 | DF7: 0.07745712721 | DG7: -0.01817967978 | DH7: -0.0006626353668 | DI7: 273248.4009 | DJ7: 2406851.035 | DK7: 8948 | DT7: 5 | DU7: 0 | DV7: 0 | DW7: 0 | DX7: 0 | DY7: 118 | DZ7: 0 | EA7: 0 | EB7: 0 | EC7: 0 | ED7: 1 | EE7: 0 | EF7: 443 | EG7: 271 | EH7: 120 | EI7: 48 | EJ7: 0 | EK7: 0 | EL7: 4 | EM7: 16 | EN7: 38.4 | EO7: 18 | EP7: 20.4 | EQ7: 147.1 | ER7: 116.5 | ES7: 30.6 | ET7: 3 | EU7: 1 | EV7: 0 | EW7: 43 | EX7: 0 | EY7: 0 | EZ7: 0 | FA7: 108.0503827 | FB7: 102.0699137 | FC7: 113.3238106 | FD7: 112.6039252 | FE7: 99.5814222 | FF7: 109.0417898 | FG7: 112.6414564 | FH7: 120.9340199 | FI7: 98.64663735 | FJ7: 96.859 | FK7: 127.0439919 | FL7: 122.709815 | FM7: 109.8248857 | FN7: 115.4939085 | FO7: 119.4913417 | FP7: 85.542 | FQ7: 157.984637 | FR7: 160.7321287 | FS7: 101.5550486 | FT7: 92.93360086 | FU7: 100.2875655 | FV7: 80.212 | FW7: 108.1645397 | FX7: 99.16765455 | FY7: 104.781412 | FZ7: 91.92968772 | GA7: 0 | GB7: 0 | GC7: 162.201 | GD7: 145.7308489 | GE7: 104.073 | GF7: 74.76745438 | GG7: 94.90652563 | GH7: 86.73316748 | GI7: 151.922 | GJ7: 0 | GK7: 0 | GL7: 68.9 | GM7: -68.9 | GN7: 0 | GO7: 63.7 | GP7: -63.7 | GQ7: 0 | GR7: 61.5 | GS7: -61.5 | GT7: 0 | GU7: 59.4 | GV7: 0 | GW7: 100 | GX7: 0 | GY7: 89.6 | HA7: 12 | HB7: 3 | HC7: 9 | HD7: 42 | HE7: 42 | HF7: 0 | HG7: 6.4 | HH7: 4 | HI7: 2.4 | HJ7: 29.9 | HK7: 13.2 | HL7: 16.7 | HN7: 24 | HP7: 0 | HQ7: 0 | HR7: 0 | HS7: 0 | HT7: 0 | HU7: 0 | HV7: 0 | HW7: 0 | HX7: 0 | HY7: 0 | HZ7: 0 | IA7: 0 | IB7: 0 | IC7: 1 | ID7: 1 | IE7: 0 | IF7: 1 | IG7: 0 | IH7: 0 | II7: 0 | IJ7: 0 | IK7: 0 | IL7: 0 | IM7: 1 | IN7: 0 | IO7: 1 | IP7: 0 | IQ7: 0 | IR7: 0 | IS7: 0 | IT7: 0 | IU7: 0 | IV7: 0 | IW7: 0 | IX7: 0 | IY7: 1 | IZ7: 0 | JA7: 0 | JB7: 0 | JC7: 0 | JD7: 0 | JE7: 0 | JF7: 0 | JG7: 0 | JH7: 0 | JI7: 0 | JJ7: 0 | JK7: 0 | JL7: 0 | JM7: 0 | JN7: 0 | JO7: 0 | JP7: 0 | JQ7: 0 | JR7: 0 | JS7: 0 | JU7: 0 | JV7: 0 | JW7: 3 | JX7: 67 | JY7: 0 | JZ7: 0 | KB7: 0 | KC7: 0 | KD7: 1 | KE7: 80 | KF7: 5 | KG7: 290 | KH7: 0 | KI7: 0 | KJ7: 1 | KK7: 20 | KL7: 1 | KM7: 20 | KN7: 0 | KO7: 0 | KP7: 8 | KQ7: 99 | KR7: 0 | KS7: 0 | KT7: 0 | KU7: 0 | KW7: 2 | KY7: 72 | KZ7: 260 | LB7: 24.7 | LC7: 7.75 | LD7: 438.05 | LE7: 42.63 | LG7: 21139 | LH7: 14.85158253 | LI7: 1423.35 | LJ7: 21139 | LK7: 18314 | LL7: 15855 | LM7: 13572 | LN7: 11477 | LO7: 9595 | LP7: 1764 | LQ7: 1544 | LR7: 1249 | LS7: 994 | LT7: 809 | LU7: 658 | LV7: 10567 | LW7: 8647 | LX7: 7239 | LY7: 6034 | LZ7: 4788 | MA7: 3765 | MB7: 8808 | MC7: 8123 | MD7: 7367 | ME7: 6544 | MF7: 5880 | MG7: 5172 | MH7: 3994 | MI7: 3242 | MJ7: 2576 | MK7: 2185 | ML7: 2054 | MM7: 1897 | MN7: 3071 | MO7: 3152 | MP7: 3128 | MQ7: 2544 | MR7: 2047 | MS7: 1751 | MT7: 1743 | MU7: 1729 | MV7: 1663 | MW7: 1815 | MX7: 1779 | MY7: 1524 | MZ7: 檜山郡江差町、檜山郡上ノ国町、檜山郡厚沢部町、爾志郡乙部町、奥尻郡奥尻町
A8: 3 | B8: 北渡島檜山 | C8: =IF(OR($LG8>=1000000,$LH8>=2000),"大都市型",IF(OR($LG8>=200000,AND($LG8>=100000,$LH8>=200)),"地方都市型","過疎地域型")) -> 過疎地域型 | D8: 二海郡八雲町,山越郡長万部町,久遠郡せたな町,瀬棚郡今金町 | F8: 北海道 | G8: 北海道 | H8: 長万部（北海道） | I8: キタオシマヒヤマ | J8: 八雲町、長万部町及び周辺部 | K8: 1.433194168 | L8: 2.451652466 | M8: 0.146338289 | N8: 0.2109230328 | O8: 0.8508914245 | P8: 1.25349072 | Q8: 0.20449979 | R8: 0.1714782227 | S8: 0.2646842596 | T8: 190.491267 | U8: 1327.370587 | W8: 86.6 | X8: 386.6 | Y8: 50 | AA8: 0 | AB8: 0 | AC8: 0 | AD8: 0 | AE8: 0 | AF8: 0 | AG8: 0 | AH8: 0 | AJ8: 0 | AK8: 0 | AL8: 1 | AM8: 4 | AN8: 0 | AP8: 703 | AQ8: 0 | AR8: 108 | AS8: 321 | AT8: 220 | AU8: 54 | AW8: 464 | AX8: 18 | AY8: 103 | AZ8: 128 | BA8: 215 | BB8: 530 | BC8: 18 | BD8: 103 | BE8: 128 | BF8: 281 | BG8: 0 | BL8: 0 | BS8: 596 | BT8: 54 | BU8: 182 | BV8: 195 | BW8: 165 | BX8: 659 | BY8: 54 | BZ8: 182 | CA8: 195 | CB8: 228 | CC8: 0 | CH8: 0 | CO8: 19 | CP8: 726 | CQ8: 607.7621604 | CR8: 632.9906379 | CS8: 561.7812257 | CU8: 56.82 | CV8: 563.135 | CX8: 444274.4877 | CY8: 234042.9476 | CZ8: 186377.9217 | DA8: 23853.6185 | DB8: 1.18303041 | DC8: 1.579649999 | DD8: 0.9257717997 | DE8: 0.9154600017 | DF8: 0.2286888869 | DG8: -0.03979275256 | DH8: -0.005865724532 | DI8: 250319.4033 | DJ8: 3210097.533 | DK8: 13146 | DT8: 6 | DU8: 0 | DV8: 0 | DW8: 0 | DX8: 0 | DY8: 172 | DZ8: 0 | EA8: 0 | EB8: 0 | EC8: 0 | ED8: 1 | EE8: 0 | EF8: 747 | EG8: 459 | EH8: 184 | EI8: 100 | EJ8: 0 | EK8: 93 | EL8: 4 | EM8: 73 | EN8: 79.3 | EO8: 34 | EP8: 45.3 | EQ8: 349.4 | ER8: 272.8 | ES8: 76.6 | ET8: 31 | EU8: 15 | EV8: 4 | EW8: 323 | EX8: 0 | EY8: 0 | EZ8: 0 | FA8: 104.5516828 | FB8: 99.3476846 | FC8: 113.9888104 | FD8: 108.0891189 | FE8: 105.8763667 | FF8: 100.9253802 | FG8: 107.4391584 | FH8: 123.7037361 | FI8: 97.37237657 | FJ8: 101.797 | FK8: 125.8103316 | FL8: 111.8980081 | FM8: 101.8272693 | FN8: 107.2703745 | FO8: 100.1141244 | FP8: 82.48431076 | FQ8: 121.2433942 | FR8: 126.592847 | FS8: 105.8490246 | FT8: 98.97142896 | FU8: 110.3027359 | FV8: 93.33132213 | FW8: 99.70752466 | FX8: 98.36349206 | FY8: 96.62476337 | FZ8: 100.9659796 | GA8: 100.692 | GB8: 115.7979659 | GC8: 122.9871037 | GD8: 122.440955 | GE8: 103.8860119 | GF8: 88.46736599 | GG8: 110.0026988 | GH8: 93.43947798 | GI8: 102.5006387 | GJ8: 108.302 | GK8: 8.6 | GL8: 33.9 | GM8: -25.3 | GN8: 6.9 | GO8: 38.1 | GP8: -31.2 | GQ8: 9.1 | GR8: 27.8 | GS8: -18.7 | GT8: 9.1 | GU8: 26.2 | GV8: 0 | GW8: 100 | GX8: 12.8 | GY8: 28.1 | HA8: 16 | HB8: 0 | HC8: 16 | HD8: 0 | HE8: 0 | HF8: 0 | HG8: 7.3 | HH8: 5 | HI8: 2.3 | HJ8: 37.2 | HK8: 15.7 | HL8: 21.5 | HN8: 52 | HP8: 3 | HQ8: 0 | HR8: 1 | HS8: 1 | HT8: 0 | HU8: 1 | HV8: 0 | HW8: 0 | HX8: 0 | HY8: 0 | HZ8: 0 | IA8: 0 | IB8: 1 | IC8: 0 | ID8: 1 | IE8: 0 | IF8: 2 | IG8: 5 | IH8: 1 | II8: 0 | IJ8: 0 | IK8: 0 | IL8: 1 | IM8: 0 | IN8: 0 | IO8: 3 | IP8: 0 | IQ8: 0 | IR8: 0 | IS8: 0 | IT8: 1 | IU8: 1 | IV8: 0 | IW8: 1 | IX8: 0 | IY8: 0 | IZ8: 0 | JA8: 0 | JB8: 0 | JC8: 0 | JD8: 2 | JE8: 0 | JF8: 0 | JG8: 0 | JH8: 0 | JI8: 0 | JJ8: 0 | JK8: 0 | JL8: 0 | JM8: 0 | JN8: 0 | JO8: 0 | JP8: 0 | JQ8: 0 | JR8: 0 | JS8: 1 | JU8: 0 | JV8: 0 | JW8: 10 | JX8: 271 | JY8: 0 | JZ8: 0 | KB8: 0 | KC8: 0 | KD8: 2 | KE8: 170 | KF8: 7 | KG8: 363 | KH8: 0 | KI8: 0 | KJ8: 2 | KK8: 58 | KL8: 0 | KM8: 0 | KN8: 0 | KO8: 0 | KP8: 8 | KQ8: 135 | KR8: 2 | KS8: 33 | KT8: 2 | KU8: 33 | KW8: 4 | KY8: 85 | KZ8: 154 | LB8: 50.32 | LC8: 6.5 | LD8: 533.535 | LE8: 29.6 | LG8: 33405 | LH8: 13.50368062 | LI8: 2473.77 | LJ8: 33405 | LK8: 29650 | LL8: 26256 | LM8: 23074 | LN8: 20065 | LO8: 17264 | LP8: 3075 | LQ8: 2627 | LR8: 2189 | LS8: 1802 | LT8: 1495 | LU8: 1241 | LV8: 17065 | LW8: 14535 | LX8: 12479 | LY8: 10764 | LZ8: 8848 | MA8: 7285 | MB8: 13265 | MC8: 12488 | MD8: 11588 | ME8: 10508 | MF8: 9722 | MG8: 8738 | MH8: 6121 | MI8: 5039 | MJ8: 4050 | MK8: 3457 | ML8: 3302 | MM8: 3140 | MN8: 4311 | MO8: 4537 | MP8: 4671 | MQ8: 3908 | MR8: 3186 | MS8: 2740 | MT8: 2833 | MU8: 2912 | MV8: 2867 | MW8: 3143 | MX8: 3234 | MY8: 2858 | MZ8: 二海郡八雲町、山越郡長万部町、瀬棚郡今金町、久遠郡せたな町
A9: 4 | B9: 札幌 | C9: 大都市型 | D9: 札幌市中央区,札幌市手稲区,江別市,札幌市清田区,札幌市豊平区,札幌市南区,札幌市白石区,札幌市西区,石狩郡新篠津村,札幌市北区,北広島市,千歳市,札幌市厚別区,恵庭市,石狩市,石狩郡当別町,札幌市東区 | F9: 北海道 | G9: 北海道 | H9: 札幌（北海道） | I9: サッポロ | J9: 札幌市、江別市及び周辺部 | K9: 1.363171943 | L9: 1.62963899 | M9: 0.03913978462 | N9: -0.6514466471 | O9: 1.115216939 | P9: 1.304160518 | Q9: 0.08129225245 | R9: -0.365211552 | S9: -0.5789984902 | T9: 289.6569747 | U9: 1101.925079 | W9: 8143.5 | X9: 28858.9 | Y9: 3968.6 | AA9: 153 | AB9: 110 | AC9: 154 | AD9: 80 | AE9: 53 | AF9: 22 | AG9: 54 | AH9: 0 | AJ9: 0 | AK9: 1 | AL9: 3 | AM9: 8 | AN9: 40 | AP9: 33813 | AQ9: 2448 | AR9: 16243 | AS9: 3223 | AT9: 11212 | AU9: 687 | AW9: 35488 | AX9: 3913 | AY9: 10951 | AZ9: 9792 | BA9: 10832 | BB9: 37399 | BC9: 3913 | BD9: 10951 | BE9: 9792 | BF9: 12743 | BG9: 0 | BL9: 0 | BS9: 32250 | BT9: 3422 | BU9: 9780 | BV9: 8863 | BW9: 10185 | BX9: 34064 | BY9: 3422 | BZ9: 9780 | CA9: 8863 | CB9: 11999 | CC9: 0 | CH9: 0 | CO9: 634 | CP9: 28063 | CQ9: 23555.66665 | CR9: 35004.02419 | CS9: 40485.52129 | CU9: 3220.5 | CV9: 26125.64 | CX9: 410857.374 | CY9: 178917.6866 | CZ9: 203200.071 | DA9: 28739.61643 | DB9: 1.078149943 | DC9: 1.190541904 | DD9: 0.9939808805 | DE9: 1.090143091 | DF9: 0.0751427641 | DG9: -0.00322899125 | DH9: 0.006236170558 | DI9: 232069.7888 | DJ9: 124338847.1 | DK9: 547548 | DT9: 232 | DU9: 44 | DV9: 2 | DW9: 4 | DX9: 38 | DY9: 15916 | DZ9: 4 | EA9: 4 | EB9: 8 | EC9: 8 | ED9: 7 | EE9: 4 | EF9: 41126 | EG9: 24412 | EH9: 8310 | EI9: 8300 | EJ9: 96 | EK9: 1740 | EL9: 8 | EM9: 1431 | EN9: 5709.8 | EO9: 4185 | EP9: 1524.8 | EQ9: 24139.8 | ER9: 22099.8 | ES9: 2040 | ET9: 2070.1 | EU9: 1386.8 | EV9: 511.7 | EW9: 75856 | EX9: 20028 | EY9: 13872 | EZ9: 6156 | FA9: 97.50896658 | FB9: 95.07781327 | FC9: 107.0710999 | FD9: 111.1178304 | FE9: 92.52139098 | FF9: 92.82102173 | FG9: 102.3336224 | FH9: 111.3254132 | FI9: 98.10282927 | FJ9: 92.93334351 | FK9: 117.8779388 | FL9: 131.8613586 | FM9: 84.1336439 | FN9: 88.33765258 | FO9: 67.89003791 | FP9: 71.98505869 | FQ9: 106.4897118 | FR9: 102.8779275 | FS9: 89.78153912 | FT9: 84.32197997 | FU9: 91.9473243 | FV9: 86.66322469 | FW9: 89.29639309 | FX9: 83.52883991 | FY9: 100.7098027 | FZ9: 93.01773407 | GA9: 87.20389 | GB9: 106.9351899 | GC9: 117.4942238 | GD9: 122.2927338 | GE9: 63.20266005 | GF9: 63.82730324 | GG9: 76.88205936 | GH9: 74.74970119 | GI9: 95.60123412 | GJ9: 98.85056674 | GK9: 11.5 | GL9: 1.5 | GM9: 10 | GN9: 14.2 | GO9: 1 | GP9: 13.2 | GQ9: 8.7 | GR9: 0.7 | GS9: 8 | GT9: 8.7 | GU9: 0.7 | GV9: 6 | GW9: 0 | GX9: 8.1 | GY9: 3.3 | HA9: 1613 | HB9: 164 | HC9: 1449 | HD9: 2285 | HE9: 2191 | HF9: 94 | HG9: 2433.7 | HH9: 1823 | HI9: 610.7 | HJ9: 4719.1 | HK9: 3615.7 | HL9: 1103.4 | HN9: 6445 | HP9: 693 | HQ9: 140 | HR9: 324 | HS9: 615 | HT9: 80 | HU9: 148 | HV9: 117 | HW9: 115 | HX9: 40 | HY9: 121 | HZ9: 167 | IA9: 65 | IB9: 95 | IC9: 22 | ID9: 282 | IE9: 14 | IF9: 255 | IG9: 475 | IH9: 30 | II9: 74 | IJ9: 46 | IK9: 14 | IL9: 176 | IM9: 160 | IN9: 218 | IO9: 417 | IP9: 62 | IQ9: 214 | IR9: 183 | IS9: 9 | IT9: 245 | IU9: 65 | IV9: 117 | IW9: 290 | IX9: 40 | IY9: 98 | IZ9: 29 | JA9: 77 | JB9: 93 | JC9: 45 | JD9: 408 | JE9: 35 | JF9: 31 | JG9: 3 | JH9: 45 | JI9: 22 | JJ9: 40 | JK9: 21 | JL9: 38 | JM9: 6 | JN9: 30 | JO9: 45 | JP9: 32 | JQ9: 18 | JR9: 19 | JS9: 13 | JU9: 186 | JV9: 30 | JW9: 253 | JX9: 31384 | JY9: 71 | JZ9: 218 | KB9: 13 | KC9: 1004 | KD9: 60 | KE9: 5563 | KF9: 113 | KG9: 8274 | KH9: 12 | KI9: 810 | KJ9: 12 | KK9: 750 | KL9: 76 | KM9: 5532 | KN9: 8 | KO9: 415 | KP9: 340 | KQ9: 5715 | KR9: 297 | KS9: 14240 | KT9: 305 | KU9: 14655 | KW9: 267 | KY9: 16478 | KZ9: 17061 | LB9: 1774.58 | LC9: 1445.92 | LD9: 21946.88 | LE9: 4178.76 | LG9: 2396732 | LH9: 677.0123384 | LI9: 3540.16 | LJ9: 2396732 | LK9: 2377341 | LL9: 2345027 | LM9: 2292356 | LN9: 2218734 | LO9: 2131251 | LP9: 265212 | LQ9: 250902 | LR9: 235569 | LS9: 221128 | LT9: 210195 | LU9: 198658 | LV9: 1457365 | LW9: 1396741 | LX9: 1340563 | LY9: 1267623 | LZ9: 1164094 | MA9: 1078104 | MB9: 674155 | MC9: 729698 | MD9: 768895 | ME9: 803605 | MF9: 844445 | MG9: 854489 | MH9: 344518 | MI9: 306700 | MJ9: 293389 | MK9: 312366 | ML9: 343790 | MM9: 342986 | MN9: 217586 | MO9: 281308 | MP9: 304767 | MQ9: 270873 | MR9: 261862 | MS9: 280728 | MT9: 112051 | MU9: 141690 | MV9: 170739 | MW9: 220366 | MX9: 238793 | MY9: 230775 | MZ9: 札幌市中央区、札幌市北区、札幌市東区、札幌市白石区、札幌市豊平区、札幌市南区、札幌市西区、札幌市厚別区、札幌市手稲区、札幌市清田区、江別市、千歳市、恵庭市、北広島市、石狩市、石狩郡当別町、石狩郡新篠津村 | NA9: えにわ病院（標準群）、斗南病院（標準群）、北海道整形外科記念病院（標準群）、恵佑会札幌病院（標準群）、手稲渓仁会病院（特定群・救命）、市立札幌病院（特定群・救命）、北海道大学病院（大学本院群）、札幌医科大学附属病院（大学本院群・救命） | NB9: NHO北海道がんセンター（標準群）、札幌徳洲会病院（標準群）、北海道大野記念病院（標準群）、KKR札幌医療センター（標準群）、勤医協中央病院（標準群）、天使病院（標準群）、札幌厚生病院（標準群）、JR札幌病院（標準群）、NTT東日本札幌病院（標準群）、NHO北海道医療センター（特定群・救命）、札幌東徳洲会病院（特定群） | NC9: 恵み野病院（標準群）、市立千歳市民病院（標準群）、江別市立病院（標準群）、札幌禎心会病院（標準群）、札幌真駒内病院（標準群）、坂泌尿器科病院（標準群）、イムス札幌消化器中央総合病院（標準群）、JCHO札幌北辰病院（標準群）、札幌整形循環器病院（標準群）、JCHO北海道病院（標準群）、時計台記念病院（標準群）
A10: 5 | B10: 後志 | C10: 過疎地域型 | D10: 虻田郡留寿都村,虻田郡真狩村,小樽市,磯谷郡蘭越町,寿都郡寿都町,虻田郡喜茂別町,虻田郡倶知安町,積丹郡積丹町,虻田郡ニセコ町,島牧郡島牧村,虻田郡京極町,古宇郡神恵内村,古平郡古平町,余市郡仁木町,余市郡余市町,余市郡赤井川村,寿都郡黒松内町,岩内郡共和町,岩内郡岩内町,古宇郡泊村 | F10: 北海道 | G10: 北海道 | H10: 小樽（北海道） | I10: シリベシ | J10: 小樽市及び周辺部 | K10: 0.8838350413 | L10: 1.889707168 | M10: 0.1909439532 | N10: 0.2505127598 | O10: 0.9411579647 | P10: 1.347129039 | Q10: 0.2353823837 | R10: 0.1444724335 | S10: 0.2916792979 | T10: 216.1921832 | U10: 1104.627198 | W10: 570.3 | X10: 2473.7 | Y10: 363.4 | AA10: 0 | AB10: 0 | AC10: 29 | AD10: 6 | AE10: 0 | AF10: 0 | AG10: 0 | AH10: 0 | AJ10: 0 | AK10: 0 | AL10: 2 | AM10: 4 | AN10: 4 | AP10: 2795 | AQ10: 102 | AR10: 1306 | AS10: 383 | AT10: 890 | AU10: 114 | AW10: 2120 | AX10: 164 | AY10: 638 | AZ10: 646 | BA10: 672 | BB10: 2384 | BC10: 164 | BD10: 638 | BE10: 646 | BF10: 936 | BG10: 0 | BL10: 0 | BS10: 2898 | BT10: 277 | BU10: 895 | BV10: 852 | BW10: 874 | BX10: 3288 | BY10: 277 | BZ10: 895 | CA10: 852 | CB10: 1264 | CC10: 0 | CH10: 0 | CO10: 104 | CP10: 4114 | CQ10: 3219.804782 | CR10: 3602.626582 | CS10: 2982.738476 | CU10: 350.72 | CV10: 3493.08 | CX10: 458853.8638 | CY10: 219895.1086 | CZ10: 210214.4447 | DA10: 28744.31053 | DB10: 1.159172042 | DC10: 1.406128013 | DD10: 0.9896262631 | DE10: 1.062841366 | DF10: 0.1604453592 | DG10: -0.005566728961 | DH10: 0.004293412018 | DI10: 268846.125 | DJ10: 20471304.38 | DK10: 74955 | DT10: 21 | DU10: 6 | DV10: 0 | DW10: 0 | DX10: 6 | DY10: 1107 | DZ10: 0 | EA10: 0 | EB10: 0 | EC10: 1 | ED10: 1 | EE10: 0 | EF10: 3785 | EG10: 1766 | EH10: 719 | EI10: 1292 | EJ10: 4 | EK10: 174 | EL10: 4 | EM10: 303 | EN10: 388.3 | EO10: 246 | EP10: 142.3 | EQ10: 1969.2 | ER10: 1660.6 | ES10: 308.6 | ET10: 193.1 | EU10: 127.5 | EV10: 42.8 | EW10: 3545 | EX10: 660 | EY10: 396 | EZ10: 264 | FA10: 111.7689507 | FB10: 104.705876 | FC10: 120.8785679 | FD10: 112.8789723 | FE10: 109.2800441 | FF10: 106.3045989 | FG10: 112.7257927 | FH10: 110.0943023 | FI10: 109.7380944 | FJ10: 105.9893794 | FK10: 132.760848 | FL10: 131.9853492 | FM10: 121.152518 | FN10: 129.0358529 | FO10: 96.62287994 | FP10: 94.77903026 | FQ10: 143.2766848 | FR10: 162.5382192 | FS10: 99.46160361 | FT10: 97.86382758 | FU10: 99.30417207 | FV10: 89.53233257 | FW10: 100.3253993 | FX10: 100.8215499 | FY10: 99.1214966 | FZ10: 89.44014159 | GA10: 96.98471453 | GB10: 112.3686742 | GC10: 157.6369626 | GD10: 140.5431575 | GE10: 76.86895713 | GF10: 78.51504779 | GG10: 90.95341319 | GH10: 81.65513457 | GI10: 104.4850481 | GJ10: 80.46852118 | GK10: 4.6 | GL10: 26.8 | GM10: -22.2 | GN10: 1.1 | GO10: 28.3 | GP10: -27.2 | GQ10: 2.2 | GR10: 40.5 | GS10: -38.3 | GT10: 2.4 | GU10: 42 | GV10: 0 | GW10: 23 | GX10: 10.5 | GY10: 14.7 | HA10: 154 | HB10: 26 | HC10: 128 | HD10: 402 | HE10: 348 | HF10: 54 | HG10: 182 | HH10: 149 | HI10: 33 | HJ10: 504.5 | HK10: 301.3 | HL10: 203.2 | HN10: 449 | HP10: 27 | HQ10: 4 | HR10: 10 | HS10: 37 | HT10: 1 | HU10: 4 | HV10: 9 | HW10: 3 | HX10: 2 | HY10: 2 | HZ10: 6 | IA10: 3 | IB10: 3 | IC10: 1 | ID10: 12 | IE10: 0 | IF10: 20 | IG10: 31 | IH10: 2 | II10: 2 | IJ10: 1 | IK10: 0 | IL10: 6 | IM10: 8 | IN10: 18 | IO10: 25 | IP10: 3 | IQ10: 11 | IR10: 7 | IS10: 0 | IT10: 9 | IU10: 3 | IV10: 5 | IW10: 13 | IX10: 3 | IY10: 3 | IZ10: 1 | JA10: 3 | JB10: 3 | JC10: 0 | JD10: 25 | JE10: 0 | JF10: 5 | JG10: 0 | JH10: 3 | JI10: 1 | JJ10: 1 | JK10: 2 | JL10: 1 | JM10: 0 | JN10: 0 | JO10: 0 | JP10: 1 | JQ10: 0 | JR10: 0 | JS10: 0 | JU10: 21 | JV10: 1 | JW10: 39 | JX10: 1959 | JY10: 11 | JZ10: 24 | KB10: 2 | KC10: 89 | KD10: 11 | KE10: 954 | KF10: 23 | KG10: 1515 | KH10: 4 | KI10: 142 | KJ10: 0 | KK10: 0 | KL10: 4 | KM10: 248 | KN10: 4 | KO10: 224 | KP10: 56 | KQ10: 942 | KR10: 11 | KS10: 328 | KT10: 15 | KU10: 552 | KW10: 24 | KY10: 1234 | KZ10: 3715 | LB10: 263.6 | LC10: 87.12 | LD10: 3091.25 | LE10: 401.83 | LG10: 198888 | LH10: 46.19007585 | LI10: 4305.86 | LJ10: 198888 | LK10: 178117 | LL10: 160119 | LM10: 142895 | LN10: 126583 | LO10: 111437 | LP10: 18330 | LQ10: 15765 | LR10: 13317 | LS10: 11231 | LT10: 9673 | LU10: 8336 | LV10: 103544 | LW10: 90696 | LX10: 80088 | LY10: 69455 | LZ10: 57844 | MA10: 48653 | MB10: 77014 | MC10: 71656 | MD10: 66714 | ME10: 62209 | MF10: 59066 | MG10: 54448 | MH10: 36034 | MI10: 28165 | MJ10: 23541 | MK10: 22877 | ML10: 23436 | MM10: 21664 | MN10: 26398 | MO10: 28683 | MP10: 27929 | MQ10: 21957 | MR10: 18640 | MS10: 18258 | MT10: 14582 | MU10: 14808 | MV10: 15244 | MW10: 17375 | MX10: 16990 | MY10: 14526 | MZ10: 小樽市、島牧郡島牧村、寿都郡寿都町、寿都郡黒松内町、磯谷郡蘭越町、虻田郡ニセコ町、虻田郡真狩村、虻田郡留寿都村、虻田郡喜茂別町、虻田郡京極町、虻田郡倶知安町、岩内郡共和町、岩内郡岩内町、古宇郡泊村、古宇郡神恵内村、積丹郡積丹町、古平郡古平町、余市郡仁木町、余市郡余市町、余市郡赤井川村 | NB10: 小樽市立病院（標準群） | NC10: 北海道済生会小樽病院（標準群）
A11: 6 | B11: 南空知 | C11: 過疎地域型 | D11: 美唄市,夕張郡長沼町,三笠市,夕張市,岩見沢市,空知郡南幌町,夕張郡栗山町,樺戸郡月形町,夕張郡由仁町 | F11: 北海道 | G11: 北海道 | H11: 夕張（北海道） | I11: ミナミソラチ | J11: 夕張市、岩見沢市及び周辺部 | K11: 0.7965185543 | L11: 1.301060429 | M11: 0.1687990854 | N11: 0.1587479767 | O11: 0.6059212139 | P11: 1.10920183 | Q11: 0.2007496215 | R11: 0.09812975868 | S11: 0.1910848675 | T11: 187.849673 | U11: 1028.835485 | W11: 281.5 | X11: 1561.6 | Y11: 134.9 | AA11: 0 | AB11: 0 | AC11: 0 | AD11: 0 | AE11: 0 | AF11: 0 | AG11: 0 | AH11: 0 | AJ11: 0 | AK11: 0 | AL11: 1 | AM11: 4 | AN11: 0 | AP11: 2102 | AQ11: 0 | AR11: 1246 | AS11: 139 | AT11: 679 | AU11: 38 | AW11: 1439 | AX11: 98 | AY11: 474 | AZ11: 541 | BA11: 326 | BB11: 1592 | BC11: 98 | BD11: 474 | BE11: 541 | BF11: 479 | BG11: 0 | BL11: 0 | BS11: 2034 | BT11: 188 | BU11: 684 | BV11: 706 | BW11: 456 | BX11: 2223 | BY11: 188 | BZ11: 684 | CA11: 706 | CB11: 645 | CC11: 0 | CH11: 0 | CO11: 90 | CP11: 3644 | CQ11: 2624.738243 | CR11: 2961.741873 | CS11: 2656.477295 | CU11: 323.915 | CV11: 2895.39 | CX11: 437954.7296 | CY11: 193200.8333 | CZ11: 217438.4668 | DA11: 27315.42944 | DB11: 1.110911702 | DC11: 1.240854854 | DD11: 1.02780897 | DE11: 1.012624199 | DF11: 0.09512479511 | DG11: 0.01492310506 | DH11: 0.0008638013345 | DI11: 255824.857 | DJ11: 14009839.53 | DK11: 57642 | DT11: 17 | DU11: 2 | DV11: 0 | DW11: 0 | DX11: 2 | DY11: 810 | DZ11: 0 | EA11: 0 | EB11: 0 | EC11: 1 | ED11: 1 | EE11: 1 | EF11: 2594 | EG11: 1256 | EH11: 560 | EI11: 774 | EJ11: 0 | EK11: 44 | EL11: 4 | EM11: 138 | EN11: 168.4 | EO11: 131 | EP11: 37.4 | EQ11: 1234.3 | ER11: 1012.8 | ES11: 221.5 | ET11: 72 | EU11: 55.9 | EV11: 7 | EW11: 1851 | EX11: 420 | EY11: 180 | EZ11: 240 | FA11: 105.9886936 | FB11: 100.9279301 | FC11: 110.7723329 | FD11: 108.8515253 | FE11: 94.66955926 | FF11: 96.45617754 | FG11: 124.1453527 | FH11: 112.4501165 | FI11: 95.57936003 | FJ11: 95.26989795 | FK11: 118.6592333 | FL11: 113.349017 | FM11: 108.4255229 | FN11: 109.8822263 | FO11: 95.98790207 | FP11: 111.8871254 | FQ11: 166.0190135 | FR11: 142.8007584 | FS11: 93.99671312 | FT11: 99.14450527 | FU11: 96.60455798 | FV11: 92.83141803 | FW11: 91.95844943 | FX11: 100.5934906 | FY11: 98.32648716 | FZ11: 89.68614669 | GA11: 83.01086663 | GB11: 107.3653386 | GC11: 141.7641682 | GD11: 141.4132162 | GE11: 98.7779734 | GF11: 87.71353492 | GG11: 92.55833932 | GH11: 85.40803747 | GI11: 116.4292539 | GJ11: 95.33568236 | GK11: 6.8 | GL11: 30.1 | GM11: -23.3 | GN11: 8.7 | GO11: 36.1 | GP11: -27.4 | GQ11: 3.1 | GR11: 22.5 | GS11: -19.4 | GT11: 2.5 | GU11: 23.9 | GV11: 7.2 | GW11: 8.4 | GX11: 7.2 | GY11: 26.5 | HA11: 104 | HB11: 15 | HC11: 89 | HD11: 243 | HE11: 232 | HF11: 11 | HG11: 113.1 | HH11: 84 | HI11: 29.1 | HJ11: 327.3 | HK11: 170.3 | HL11: 157 | HN11: 255 | HP11: 36 | HQ11: 17 | HR11: 14 | HS11: 19 | HT11: 0 | HU11: 3 | HV11: 2 | HW11: 3 | HX11: 1 | HY11: 2 | HZ11: 4 | IA11: 1 | IB11: 6 | IC11: 0 | ID11: 12 | IE11: 0 | IF11: 9 | IG11: 19 | IH11: 0 | II11: 1 | IJ11: 0 | IK11: 1 | IL11: 4 | IM11: 6 | IN11: 5 | IO11: 20 | IP11: 1 | IQ11: 6 | IR11: 7 | IS11: 0 | IT11: 3 | IU11: 2 | IV11: 0 | IW11: 4 | IX11: 1 | IY11: 3 | IZ11: 0 | JA11: 2 | JB11: 4 | JC11: 1 | JD11: 13 | JE11: 0 | JF11: 1 | JG11: 0 | JH11: 8 | JI11: 0 | JJ11: 0 | JK11: 0 | JL11: 1 | JM11: 0 | JN11: 1 | JO11: 0 | JP11: 0 | JQ11: 0 | JR11: 0 | JS11: 0 | JU11: 15 | JV11: 3 | JW11: 22 | JX11: 1144 | JY11: 5 | JZ11: 7 | KB11: 1 | KC11: 3 | KD11: 13 | KE11: 988 | KF11: 18 | KG11: 1243 | KH11: 2 | KI11: 119 | KJ11: 2 | KK11: 130 | KL11: 10 | KM11: 462 | KN11: 4 | KO11: 134 | KP11: 40 | KQ11: 565 | KR11: 12 | KS11: 369 | KT11: 16 | KU11: 503 | KW11: 20 | KY11: 816 | KZ11: 1076 | LB11: 242.84 | LC11: 81.075 | LD11: 2711.91 | LE11: 183.48 | LG11: 152486 | LH11: 59.51253781 | LI11: 2562.25 | LJ11: 152486 | LK11: 137171 | LL11: 123065 | LM11: 109581 | LN11: 96651 | LO11: 84429 | LP11: 13876 | LQ11: 11704 | LR11: 9854 | LS11: 8279 | LT11: 7052 | LU11: 5962 | LV11: 78720 | LW11: 67863 | LX11: 58518 | LY11: 50204 | LZ11: 41192 | MA11: 34191 | MB11: 59890 | MC11: 57604 | MD11: 54693 | ME11: 51098 | MF11: 48407 | MG11: 44276 | MH11: 27410 | MI11: 22777 | MJ11: 19518 | MK11: 17691 | ML11: 17207 | MM11: 15802 | MN11: 20580 | MO11: 21999 | MP11: 21963 | MQ11: 18358 | MR11: 15972 | MS11: 14607 | MT11: 11900 | MU11: 12828 | MV11: 13212 | MW11: 15049 | MX11: 15228 | MY11: 13867 | MZ11: 夕張市、岩見沢市、美唄市、三笠市、空知郡南幌町、夕張郡由仁町、夕張郡長沼町、夕張郡栗山町、樺戸郡月形町 | NC11: 岩見沢市立総合病院（標準群）
A12: 7 | B12: 中空知 | C12: 過疎地域型 | D12: 砂川市,空知郡奈井江町,滝川市,芦別市,歌志内市,樺戸郡新十津川町,雨竜郡雨竜町,空知郡上砂川町,赤平市,樺戸郡浦臼町 | F12: 北海道 | G12: 北海道 | H12: 滝川（北海道） | I12: ナカソラチ | J12: 滝川市、赤平市及び周辺部 | K12: 1.475958232 | L12: 2.766176683 | M12: 0.2456760536 | N12: 0.3163526108 | O12: 0.5637903513 | P12: 1.230031988 | Q12: 0.2374746226 | R12: 0.1616778251 | S12: 0.3089196149 | T12: 253.5846566 | U12: 1513.715208 | W12: 171.4 | X12: 1133.2 | Y12: 109.1 | AA12: 20 | AB12: 6 | AC12: 0 | AD12: 8 | AE12: 0 | AF12: 0 | AG12: 0 | AH12: 0 | AJ12: 0 | AK12: 0 | AL12: 1 | AM12: 4 | AN12: 6 | AP12: 1891 | AQ12: 34 | AR12: 695 | AS12: 168 | AT12: 924 | AU12: 70 | AW12: 1311 | AX12: 124 | AY12: 424 | AZ12: 397 | BA12: 366 | BB12: 1546 | BC12: 124 | BD12: 424 | BE12: 397 | BF12: 601 | BG12: 0 | BL12: 0 | BS12: 1415 | BT12: 139 | BU12: 460 | BV12: 433 | BW12: 383 | BX12: 1658 | BY12: 139 | BZ12: 460 | CA12: 433 | CB12: 626 | CC12: 0 | CH12: 0 | CO12: 54 | CP12: 2434 | CQ12: 1810.997771 | CR12: 1991.015165 | CS12: 1641.315915 | CU12: 173.175 | CV12: 1654.33 | CX12: 507022.848 | CY12: 250257.7643 | CZ12: 229075.0064 | DA12: 27690.07727 | DB12: 1.231027281 | DC12: 1.536075388 | DD12: 1.035812437 | DE12: 0.9962407867 | DF12: 0.2120513518 | DG12: 0.0192296158 | DH12: -0.0002536862708 | DI12: 231167.4608 | DJ12: 9364437.673 | DK12: 39864 | DT12: 16 | DU12: 2 | DV12: 0 | DW12: 0 | DX12: 2 | DY12: 665 | DZ12: 0 | EA12: 1 | EB12: 0 | EC12: 1 | ED12: 2 | EE12: 1 | EF12: 3044 | EG12: 948 | EH12: 861 | EI12: 1225 | EJ12: 6 | EK12: 60 | EL12: 4 | EM12: 137 | EN12: 120.7 | EO12: 99 | EP12: 21.7 | EQ12: 960.9 | ER12: 727.5 | ES12: 233.4 | ET12: 56.2 | EU12: 45.9 | EV12: 7 | EW12: 2197 | EX12: 0 | EY12: 0 | EZ12: 0 | FA12: 107.5902408 | FB12: 101.4980845 | FC12: 113.0378938 | FD12: 114.692858 | FE12: 106.872431 | FF12: 109.168735 | FG12: 113.548082 | FH12: 110.5158723 | FI12: 100.9943804 | FJ12: 109.9803595 | FK12: 122.3313141 | FL12: 121.4349331 | FM12: 108.3880068 | FN12: 108.887771 | FO12: 175.9959253 | FP12: 161.4038828 | FQ12: 123.723326 | FR12: 120.353592 | FS12: 103.2343925 | FT12: 100.9020098 | FU12: 105.836384 | FV12: 102.1941262 | FW12: 97.74561661 | FX12: 98.83940598 | FY12: 106.2682726 | FZ12: 106.4065508 | GA12: 105.790637 | GB12: 130.9266208 | GC12: 125.2224734 | GD12: 122.9820411 | GE12: 64.44149092 | GF12: 63.03927979 | GG12: 90.88893846 | GH12: 96.78088737 | GI12: 112.1135733 | GJ12: 102.7192969 | GK12: 11.1 | GL12: 12.5 | GM12: -1.4 | GN12: 9.6 | GO12: 24.1 | GP12: -14.5 | GQ12: 5 | GR12: 5.3 | GS12: -0.3 | GT12: 5.1 | GU12: 5.1 | GV12: 4.4 | GW12: 7.4 | GX12: 16 | GY12: 7.2 | HA12: 53 | HB12: 7 | HC12: 46 | HD12: 106 | HE12: 106 | HF12: 0 | HG12: 50.7 | HH12: 39 | HI12: 11.7 | HJ12: 172.3 | HK12: 95.6 | HL12: 76.7 | HN12: 231 | HP12: 16 | HQ12: 3 | HR12: 13 | HS12: 10 | HT12: 1 | HU12: 4 | HV12: 5 | HW12: 3 | HX12: 0 | HY12: 2 | HZ12: 4 | IA12: 0 | IB12: 2 | IC12: 1 | ID12: 8 | IE12: 1 | IF12: 13 | IG12: 12 | IH12: 1 | II12: 2 | IJ12: 2 | IK12: 0 | IL12: 2 | IM12: 6 | IN12: 6 | IO12: 7 | IP12: 2 | IQ12: 5 | IR12: 5 | IS12: 0 | IT12: 6 | IU12: 1 | IV12: 3 | IW12: 6 | IX12: 2 | IY12: 3 | IZ12: 0 | JA12: 2 | JB12: 0 | JC12: 0 | JD12: 6 | JE12: 0 | JF12: 1 | JG12: 0 | JH12: 1 | JI12: 0 | JJ12: 0 | JK12: 0 | JL12: 3 | JM12: 0 | JN12: 0 | JO12: 0 | JP12: 0 | JQ12: 1 | JR12: 0 | JS12: 0 | JU12: 6 | JV12: 0 | JW12: 15 | JX12: 371 | JY12: 0 | JZ12: 0 | KB12: 0 | KC12: 0 | KD12: 7 | KE12: 534 | KF12: 14 | KG12: 954 | KH12: 0 | KI12: 0 | KJ12: 4 | KK12: 165 | KL12: 5 | KM12: 268 | KN12: 4 | KO12: 180 | KP12: 20 | KQ12: 333 | KR12: 9 | KS12: 221 | KT12: 13 | KU12: 401 | KW12: 13 | KY12: 417 | KZ12: 682 | LB12: 146.1 | LC12: 27.075 | LD12: 1552.93 | LE12: 101.4 | LG12: 99784 | LH12: 46.15206723 | LI12: 2162.07 | LJ12: 99784 | LK12: 89175 | LL12: 79677 | LM12: 70734 | LN12: 62271 | LO12: 54325 | LP12: 8742 | LQ12: 7076 | LR12: 5913 | LS12: 4909 | LT12: 4155 | LU12: 3494 | LV12: 50071 | LW12: 43103 | LX12: 37289 | LY12: 32128 | LZ12: 26414 | MA12: 21872 | MB12: 40971 | MC12: 38996 | MD12: 36475 | ME12: 33697 | MF12: 31702 | MG12: 28959 | MH12: 18443 | MI12: 14755 | MJ12: 12333 | MK12: 11461 | ML12: 11258 | MM12: 10488 | MN12: 14627 | MO12: 15220 | MP12: 14860 | MQ12: 11870 | MR12: 10089 | MS12: 9456 | MT12: 7901 | MU12: 9021 | MV12: 9282 | MW12: 10366 | MX12: 10355 | MY12: 9015 | MZ12: 芦別市、赤平市、滝川市、砂川市、歌志内市、空知郡奈井江町、空知郡上砂川町、樺戸郡浦臼町、樺戸郡新十津川町、雨竜郡雨竜町 | NB12: 砂川市立病院（標準群・救命）
A13: 8 | B13: 北空知 | C13: 過疎地域型 | D13: 雨竜郡北竜町,深川市,雨竜郡沼田町,雨竜郡秩父別町,雨竜郡妹背牛町 | F13: 北海道 | G13: 北海道 | H13: 深川（北海道） | I13: キタソラチ | J13: 深川市及び周辺部 | K13: 1.338761633 | L13: 4.146892861 | M13: 0.2460455546 | N13: 0.3245993475 | O13: 0.7317403707 | P13: 1.725294294 | Q13: 0.2461013474 | R13: 0.1736266649 | S13: 0.3246493273 | T13: 227.0019248 | U13: 1554.184107 | W13: 66.2 | X13: 473 | Y13: 13.6 | AA13: 0 | AB13: 0 | AC13: 0 | AD13: 0 | AE13: 0 | AF13: 0 | AG13: 0 | AH13: 0 | AJ13: 0 | AK13: 0 | AL13: 1 | AM13: 4 | AN13: 0 | AP13: 606 | AQ13: 0 | AR13: 149 | AS13: 42 | AT13: 407 | AU13: 8 | AW13: 323 | AX13: 17 | AY13: 100 | AZ13: 113 | BA13: 93 | BB13: 498 | BC13: 17 | BD13: 100 | BE13: 113 | BF13: 268 | BG13: 0 | BL13: 0 | BS13: 432 | BT13: 41 | BU13: 155 | BV13: 152 | BW13: 84 | BX13: 600 | BY13: 41 | BZ13: 155 | CA13: 152 | CB13: 252 | CC13: 0 | CH13: 0 | CO13: 19 | CP13: 758 | CQ13: 606.1345167 | CR13: 664.4041614 | CS13: 542.9819409 | CU13: 65.4 | CV13: 576.38 | CX13: 442749.8761 | CY13: 208682.4207 | CZ13: 206369.7595 | DA13: 27697.69596 | DB13: 1.128801479 | DC13: 1.345420667 | DD13: 0.981135348 | DE13: 1.034011114 | DF13: 0.1365951285 | DG13: -0.01011637816 | DH13: 0.002322728349 | DI13: 225952.7554 | DJ13: 2858458.329 | DK13: 12777 | DT13: 5 | DU13: 1 | DV13: 0 | DW13: 0 | DX13: 1 | DY13: 153 | DZ13: 0 | EA13: 0 | EB13: 0 | EC13: 0 | ED13: 1 | EE13: 0 | EF13: 1039 | EG13: 199 | EH13: 407 | EI13: 429 | EJ13: 0 | EK13: 0 | EL13: 4 | EM13: 42 | EN13: 45 | EO13: 34 | EP13: 11 | EQ13: 402.4 | ER13: 276.2 | ES13: 126.2 | ET13: 7 | EU13: 5.7 | EV13: 0.9 | EW13: 391 | EX13: 0 | EY13: 0 | EZ13: 0 | FA13: 97.20184473 | FB13: 95.18437493 | FC13: 105.6798022 | FD13: 108.1780593 | FE13: 95.71872735 | FF13: 98.12675228 | FG13: 112.5189046 | FH13: 100.7683914 | FI13: 82.376 | FJ13: 103.3446275 | FK13: 116.7011121 | FL13: 118.8708225 | FM13: 110.8055215 | FN13: 121.0432905 | FO13: 177.6702739 | FP13: 178.5852483 | FQ13: 113.349127 | FR13: 145.5025688 | FS13: 100.125852 | FT13: 103.2445263 | FU13: 96.592 | FV13: 94.439 | FW13: 103.758058 | FX13: 101.1665427 | FY13: 118.8664518 | FZ13: 118.319618 | GA13: 63.56 | GB13: 0 | GC13: 139.9662761 | GD13: 119.0038031 | GE13: 29.315 | GF13: 45.12517481 | GG13: 92.77464722 | GH13: 64.00512736 | GI13: 81.978 | GJ13: 0 | GK13: 22.1 | GL13: 20 | GM13: 2.1 | GN13: 10.3 | GO13: 37.5 | GP13: -27.2 | GQ13: 16.2 | GR13: 7.8 | GS13: 8.4 | GT13: 16.2 | GU13: 7.1 | GV13: 0 | GW13: 100 | GX13: 33.7 | GY13: 21.3 | HA13: 22 | HB13: 0 | HC13: 22 | HD13: 0 | HE13: 0 | HF13: 0 | HG13: 21.2 | HH13: 19 | HI13: 2.2 | HJ13: 70.6 | HK13: 31 | HL13: 39.6 | HN13: 43 | HP13: 5 | HQ13: 3 | HR13: 3 | HS13: 10 | HT13: 0 | HU13: 2 | HV13: 0 | HW13: 2 | HX13: 0 | HY13: 1 | HZ13: 0 | IA13: 0 | IB13: 1 | IC13: 1 | ID13: 2 | IE13: 0 | IF13: 4 | IG13: 4 | IH13: 0 | II13: 0 | IJ13: 0 | IK13: 0 | IL13: 1 | IM13: 3 | IN13: 2 | IO13: 1 | IP13: 0 | IQ13: 2 | IR13: 1 | IS13: 0 | IT13: 0 | IU13: 0 | IV13: 1 | IW13: 3 | IX13: 0 | IY13: 1 | IZ13: 0 | JA13: 0 | JB13: 0 | JC13: 2 | JD13: 7 | JE13: 0 | JF13: 1 | JG13: 0 | JH13: 0 | JI13: 0 | JJ13: 0 | JK13: 0 | JL13: 1 | JM13: 0 | JN13: 0 | JO13: 0 | JP13: 0 | JQ13: 0 | JR13: 0 | JS13: 0 | JU13: 0 | JV13: 0 | JW13: 4 | JX13: 23 | JY13: 0 | JZ13: 0 | KB13: 0 | KC13: 0 | KD13: 2 | KE13: 176 | KF13: 5 | KG13: 390 | KH13: 0 | KI13: 0 | KJ13: 2 | KK13: 39 | KL13: 2 | KM13: 45 | KN13: 0 | KO13: 0 | KP13: 8 | KQ13: 108 | KR13: 1 | KS13: 100 | KT13: 1 | KU13: 100 | KW13: 2 | KY13: 93 | KZ13: 156 | LB13: 56.5 | LC13: 8.9 | LD13: 541.58 | LE13: 34.8 | LG13: 29694 | LH13: 27.8218666 | LI13: 1067.29 | LJ13: 29694 | LK13: 26651 | LL13: 23730 | LM13: 20943 | LN13: 18318 | LO13: 15871 | LP13: 2500 | LQ13: 2137 | LR13: 1761 | LS13: 1471 | LT13: 1250 | LU13: 1053 | LV13: 14366 | LW13: 12149 | LX13: 10507 | LY13: 8892 | LZ13: 7380 | MA13: 6098 | MB13: 12828 | MC13: 12365 | MD13: 11462 | ME13: 10580 | MF13: 9688 | MG13: 8720 | MH13: 5455 | MI13: 4415 | MJ13: 3684 | MK13: 3376 | ML13: 3154 | MM13: 2809 | MN13: 4578 | MO13: 4786 | MP13: 4498 | MQ13: 3634 | MR13: 3053 | MS13: 2825 | MT13: 2795 | MU13: 3164 | MV13: 3280 | MW13: 3570 | MX13: 3481 | MY13: 3086 | MZ13: 深川市、雨竜郡妹背牛町、雨竜郡秩父別町、雨竜郡北竜町、雨竜郡沼田町
A14: 9 | B14: 西胆振 | C14: 過疎地域型 | D14: 有珠郡壮瞥町,虻田郡洞爺湖町,北海道伊達市,室蘭市,虻田郡豊浦町,登別市 | F14: 北海道 | G14: 北海道 | H14: 室蘭（北海道） | I14: ニシイブリ | J14: 室蘭市、登別市及び周辺部 | K14: 1.813486774 | L14: 2.91454814 | M14: 0.120699124 | N14: 0.1174308414 | O14: 0.8803708646 | P14: 1.617182211 | Q14: 0.14341626 | R14: -0.03656158191 | S14: 0.140232415 | T14: 242.4458321 | U14: 1421.61896 | W14: 473.7 | X14: 2636.9 | Y14: 433.9 | AA14: 0 | AB14: 14 | AC14: 36 | AD14: 4 | AE14: 6 | AF14: 0 | AG14: 0 | AH14: 0 | AJ14: 0 | AK14: 0 | AL14: 1 | AM14: 4 | AN14: 24 | AP14: 3210 | AQ14: 60 | AR14: 1288 | AS14: 312 | AT14: 1473 | AU14: 77 | AW14: 2348 | AX14: 279 | AY14: 800 | AZ14: 615 | BA14: 654 | BB14: 2881 | BC14: 279 | BD14: 800 | BE14: 615 | BF14: 1187 | BG14: 0 | BL14: 0 | BS14: 2311 | BT14: 287 | BU14: 811 | BV14: 616 | BW14: 597 | BX14: 2841 | BY14: 287 | BZ14: 811 | CA14: 616 | CB14: 1127 | CC14: 0 | CH14: 0 | CO14: 72 | CP14: 3231 | CQ14: 2693.099279 | CR14: 3258.949614 | CS14: 2703.109287 | CU14: 250.5 | CV14: 2388.11 | CX14: 455945.9723 | CY14: 216299.3218 | CZ14: 214595.4288 | DA14: 25051.22165 | DB14: 1.113533672 | DC14: 1.337057613 | DD14: 0.9754960538 | DE14: 0.9043745595 | DF14: 0.1331677765 | DG14: -0.01316500263 | DH14: -0.006469101897 | DI14: 206065.5016 | DJ14: 12412724.53 | DK14: 63095 | DT14: 21 | DU14: 4 | DV14: 0 | DW14: 1 | DX14: 3 | DY14: 1241 | DZ14: 0 | EA14: 0 | EB14: 0 | EC14: 1 | ED14: 1 | EE14: 2 | EF14: 5100 | EG14: 1946 | EH14: 1632 | EI14: 1494 | EJ14: 24 | EK14: 130 | EL14: 4 | EM14: 126 | EN14: 351.1 | EO14: 269 | EP14: 82.1 | EQ14: 2330.7 | ER14: 2046.9 | ES14: 283.8 | ET14: 234.1 | EU14: 159.4 | EV14: 40.4 | EW14: 4066 | EX14: 864 | EY14: 864 | EZ14: 0 | FA14: 105.7192316 | FB14: 102.2754259 | FC14: 113.5638163 | FD14: 108.2552088 | FE14: 103.5674452 | FF14: 101.327739 | FG14: 107.6966227 | FH14: 107.2765853 | FI14: 104.5829235 | FJ14: 100.3673396 | FK14: 121.94443 | FL14: 118.318041 | FM14: 116.2022994 | FN14: 119.0942902 | FO14: 111.496313 | FP14: 103.9921838 | FQ14: 118.6377407 | FR14: 121.6212476 | FS14: 106.528447 | FT14: 105.5129167 | FU14: 95.04999787 | FV14: 92.56636296 | FW14: 105.4219436 | FX14: 106.6233233 | FY14: 95.17662281 | FZ14: 86.00019585 | GA14: 99.09728246 | GB14: 103.8624323 | GC14: 136.8793562 | GD14: 139.7872068 | GE14: 51.7166288 | GF14: 47.30665937 | GG14: 92.04288921 | GH14: 83.18242479 | GI14: 98.73421162 | GJ14: 94.07873853 | GK14: 10 | GL14: 5.9 | GM14: 4.1 | GN14: 8 | GO14: 11.6 | GP14: -3.6 | GQ14: 6.7 | GR14: 2.1 | GS14: 4.6 | GT14: 6.5 | GU14: 2.1 | GV14: 7.9 | GW14: 2.3 | GX14: 15.2 | GY14: 2.7 | HA14: 108 | HB14: 7 | HC14: 101 | HD14: 103 | HE14: 73 | HF14: 30 | HG14: 122.6 | HH14: 96 | HI14: 26.6 | HJ14: 306.2 | HK14: 221.4 | HL14: 84.8 | HN14: 340 | HP14: 28 | HQ14: 6 | HR14: 13 | HS14: 35 | HT14: 1 | HU14: 6 | HV14: 3 | HW14: 2 | HX14: 3 | HY14: 4 | HZ14: 6 | IA14: 1 | IB14: 5 | IC14: 1 | ID14: 13 | IE14: 1 | IF14: 13 | IG14: 21 | IH14: 3 | II14: 4 | IJ14: 0 | IK14: 1 | IL14: 6 | IM14: 11 | IN14: 12 | IO14: 12 | IP14: 1 | IQ14: 10 | IR14: 9 | IS14: 0 | IT14: 9 | IU14: 6 | IV14: 3 | IW14: 7 | IX14: 3 | IY14: 2 | IZ14: 1 | JA14: 4 | JB14: 2 | JC14: 1 | JD14: 21 | JE14: 0 | JF14: 1 | JG14: 0 | JH14: 1 | JI14: 0 | JJ14: 1 | JK14: 1 | JL14: 1 | JM14: 0 | JN14: 4 | JO14: 2 | JP14: 0 | JQ14: 0 | JR14: 1 | JS14: 0 | JU14: 4 | JV14: 0 | JW14: 15 | JX14: 887 | JY14: 3 | JZ14: 11 | KB14: 0 | KC14: 0 | KD14: 8 | KE14: 720 | KF14: 17 | KG14: 1117 | KH14: 3 | KI14: 248 | KJ14: 6 | KK14: 234 | KL14: 5 | KM14: 283 | KN14: 2 | KO14: 80 | KP14: 31 | KQ14: 549 | KR14: 6 | KS14: 129 | KT14: 8 | KU14: 209 | KW14: 16 | KY14: 844 | KZ14: 1037 | LB14: 196.15 | LC14: 54.35 | LD14: 2231.58 | LE14: 156.53 | LG14: 176606 | LH14: 130.155946 | LI14: 1356.88 | LJ14: 176606 | LK14: 164447 | LL14: 151005 | LM14: 137847 | LN14: 125020 | LO14: 112810 | LP14: 17220 | LQ14: 15261 | LR14: 13502 | LS14: 11927 | LT14: 10737 | LU14: 9600 | LV14: 92455 | LW14: 85444 | LX14: 77882 | LY14: 70055 | LZ14: 60287 | MA14: 52732 | MB14: 66931 | MC14: 63742 | MD14: 59621 | ME14: 55865 | MF14: 53996 | MG14: 50478 | MH14: 30951 | MI14: 23983 | MJ14: 19783 | MK14: 19460 | ML14: 21041 | MM14: 20085 | MN14: 24191 | MO14: 26046 | MP14: 24880 | MQ14: 19277 | MR14: 16152 | MS14: 16032 | MT14: 11789 | MU14: 13713 | MV14: 14958 | MW14: 17128 | MX14: 16803 | MY14: 14361 | MZ14: 室蘭市、登別市、伊達市、虻田郡豊浦町、有珠郡壮瞥町、虻田郡洞爺湖町 | NB14: 製鉄記念室蘭病院（特定群） | NC14: 市立室蘭総合病院（標準群）、日鋼記念病院（標準群）
A15: 10 | B15: 東胆振 | C15: 地方都市型 | D15: 勇払郡安平町,勇払郡厚真町,苫小牧市,勇払郡むかわ町,白老郡白老町 | F15: 北海道 | G15: 北海道 | H15: 苫小牧（北海道） | I15: ヒガシイブリ | J15: 苫小牧市及び周辺部 | K15: 1.132040575 | L15: 1.340744376 | M15: 0.1408884413 | N15: -0.1671752457 | O15: 0.6376263511 | P15: 1.005994981 | Q15: 0.2260296703 | R15: -0.04587862173 | S15: -0.05150373152 | T15: 191.7441139 | U15: 997.8742443 | W15: 399.7 | X15: 1911 | Y15: 252 | AA15: 0 | AB15: 8 | AC15: 10 | AD15: 0 | AE15: 9 | AF15: 6 | AG15: 0 | AH15: 0 | AJ15: 0 | AK15: 0 | AL15: 1 | AM15: 4 | AN15: 0 | AP15: 2145 | AQ15: 33 | AR15: 1329 | AS15: 275 | AT15: 508 | AU15: 0 | AW15: 2287 | AX15: 233 | AY15: 752 | AZ15: 773 | BA15: 529 | BB15: 2331 | BC15: 233 | BD15: 752 | BE15: 773 | BF15: 573 | BG15: 0 | BL15: 0 | BS15: 2480 | BT15: 252 | BU15: 805 | BV15: 796 | BW15: 627 | BX15: 2530 | BY15: 252 | BZ15: 805 | CA15: 796 | CB15: 677 | CC15: 0 | CH15: 0 | CO15: 84 | CP15: 3350 | CQ15: 2250.705719 | CR15: 3041.415032 | CS15: 3057.772851 | CU15: 282.355 | CV15: 2798.72 | CX15: 396675.528 | CY15: 159867.7504 | CZ15: 212274.6501 | DA15: 24533.12743 | DB15: 1.007569291 | DC15: 1.030008128 | DD15: 1.003680713 | DE15: 0.9089994563 | DF15: 0.01183037814 | DG15: 0.00197730655 | DH15: -0.006238393884 | DI15: 235567.2767 | DJ15: 12921600.66 | DK15: 55791 | DT15: 16 | DU15: 3 | DV15: 0 | DW15: 0 | DX15: 3 | DY15: 1170 | DZ15: 0 | EA15: 0 | EB15: 0 | EC15: 1 | ED15: 2 | EE15: 2 | EF15: 2626 | EG15: 1421 | EH15: 467 | EI15: 734 | EJ15: 0 | EK15: 142 | EL15: 4 | EM15: 129 | EN15: 273 | EO15: 216 | EP15: 57 | EQ15: 1488.6 | ER15: 1247.2 | ES15: 241.4 | ET15: 122.5 | EU15: 98.2 | EV15: 31.3 | EW15: 3497 | EX15: 1248 | EY15: 852 | EZ15: 396 | FA15: 103.688969 | FB15: 103.9147599 | FC15: 108.8699468 | FD15: 114.9784228 | FE15: 102.2395293 | FF15: 108.9384705 | FG15: 110.4382349 | FH15: 122.3569889 | FI15: 106.4967477 | FJ15: 99.62593714 | FK15: 114.1926534 | FL15: 120.9723521 | FM15: 120.4456213 | FN15: 128.7169783 | FO15: 86.71893714 | FP15: 103.0644406 | FQ15: 209.9740308 | FR15: 173.9980977 | FS15: 90.96536439 | FT15: 93.62173922 | FU15: 86.87482523 | FV15: 93.36620313 | FW15: 89.05482024 | FX15: 91.94231564 | FY15: 108.8642 | FZ15: 110.8996989 | GA15: 95.09342271 | GB15: 127.0109786 | GC15: 183.298977 | GD15: 185.5796153 | GE15: 49.6938307 | GF15: 56.98527733 | GG15: 95.69577716 | GH15: 87.38585375 | GI15: 104.5430625 | GJ15: 99.22 | GK15: 13.2 | GL15: 24.8 | GM15: -11.6 | GN15: 16.9 | GO15: 26.6 | GP15: -9.7 | GQ15: 7.8 | GR15: 17.9 | GS15: -10.1 | GT15: 7.9 | GU15: 19.8 | GV15: 7 | GW15: 3.5 | GX15: 10.5 | GY15: 26.2 | HA15: 103 | HB15: 16 | HC15: 87 | HD15: 285 | HE15: 285 | HF15: 0 | HG15: 126.7 | HH15: 107 | HI15: 19.7 | HJ15: 422.4 | HK15: 244.3 | HL15: 178.1 | HN15: 331 | HP15: 22 | HQ15: 5 | HR15: 15 | HS15: 22 | HT15: 4 | HU15: 5 | HV15: 3 | HW15: 3 | HX15: 1 | HY15: 2 | HZ15: 6 | IA15: 0 | IB15: 5 | IC15: 1 | ID15: 17 | IE15: 0 | IF15: 13 | IG15: 27 | IH15: 0 | II15: 2 | IJ15: 0 | IK15: 1 | IL15: 12 | IM15: 12 | IN15: 9 | IO15: 14 | IP15: 3 | IQ15: 8 | IR15: 12 | IS15: 0 | IT15: 11 | IU15: 2 | IV15: 2 | IW15: 8 | IX15: 1 | IY15: 2 | IZ15: 0 | JA15: 5 | JB15: 6 | JC15: 1 | JD15: 12 | JE15: 0 | JF15: 3 | JG15: 0 | JH15: 1 | JI15: 0 | JJ15: 1 | JK15: 3 | JL15: 5 | JM15: 0 | JN15: 3 | JO15: 0 | JP15: 2 | JQ15: 0 | JR15: 2 | JS15: 0 | JU15: 7 | JV15: 2 | JW15: 17 | JX15: 768 | JY15: 4 | JZ15: 10 | KB15: 0 | KC15: 0 | KD15: 9 | KE15: 680 | KF15: 20 | KG15: 1175 | KH15: 3 | KI15: 208 | KJ15: 4 | KK15: 259 | KL15: 4 | KM15: 187 | KN15: 3 | KO15: 169 | KP15: 41 | KQ15: 672 | KR15: 9 | KS15: 277 | KT15: 12 | KU15: 446 | KW15: 17 | KY15: 583 | KZ15: 2469 | LB15: 209.06 | LC15: 73.295 | LD15: 2400.15 | LE15: 398.57 | LG15: 205748 | LH15: 87.91372194 | LI15: 2340.34 | LJ15: 205748 | LK15: 198637 | LL15: 189859 | LM15: 180271 | LN15: 169906 | LO15: 159308 | LP15: 23654 | LQ15: 22120 | LR15: 20219 | LS15: 18467 | LT15: 17108 | LU15: 15881 | LV15: 116609 | LW15: 109654 | LX15: 103238 | LY15: 96387 | LZ15: 86649 | MA15: 78603 | MB15: 65485 | MC15: 66863 | MD15: 66402 | ME15: 65417 | MF15: 66149 | MG15: 64824 | MH15: 33659 | MI15: 28118 | MJ15: 23951 | MK15: 23687 | ML15: 26142 | MM15: 26427 | MN15: 21614 | MO15: 26051 | MP15: 27825 | MQ15: 23400 | MR15: 20312 | MS15: 20325 | MT15: 10212 | MU15: 12694 | MV15: 14626 | MW15: 18330 | MX15: 19695 | MY15: 18072 | MZ15: 苫小牧市、白老郡白老町、勇払郡厚真町、勇払郡安平町、勇払郡むかわ町 | NB15: 王子総合病院（標準群） | NC15: 苫小牧市立病院（標準群）
A16: 11 | B16: 日高 | C16: 過疎地域型 | D16: 浦河郡浦河町,様似郡様似町,幌泉郡えりも町,新冠郡新冠町,沙流郡平取町,沙流郡日高町,日高郡新ひだか町 | F16: 北海道 | G16: 北海道 | H16: 日高（北海道） | I16: ヒダカ | J16: 日高町及び周辺部 | K16: 0.5589617541 | L16: 1.519320471 | M16: -0.243304858 | N16: -0.2818912993 | O16: 0.5811164564 | P16: 0.8147389665 | Q16: -0.06743361279 | R16: -0.1924299682 | S16: -0.1005618228 | T16: 157.2039943 | U16: 626.2482168 | W16: 112.2 | X16: 476.7 | Y16: 29 | AA16: 0 | AB16: 0 | AC16: 0 | AD16: 0 | AE16: 0 | AF16: 0 | AG16: 0 | AH16: 0 | AJ16: 0 | AK16: 0 | AL16: 1 | AM16: 4 | AN16: 0 | AP16: 625 | AQ16: 0 | AR16: 291 | AS16: 12 | AT16: 292 | AU16: 30 | AW16: 387 | AX16: 20 | AY16: 103 | AZ16: 121 | BA16: 143 | BB16: 436 | BC16: 20 | BD16: 103 | BE16: 121 | BF16: 192 | BG16: 0 | BL16: 0 | BS16: 788 | BT16: 81 | BU16: 255 | BV16: 258 | BW16: 194 | BX16: 849 | BY16: 81 | BZ16: 255 | CA16: 258 | CB16: 255 | CC16: 0 | CH16: 0 | CO16: 26 | CP16: 906 | CQ16: 936.1392784 | CR16: 1045.761082 | CS16: 965.1927186 | CU16: 79.2 | CV16: 865.37 | CX16: 362885.6826 | CY16: 160778.8342 | CZ16: 179658.1051 | DA16: 22448.74327 | DB16: 1.015540539 | DC16: 1.142626008 | DD16: 0.9385913397 | DE16: 0.8904657251 | DF16: 0.05616308152 | DG16: -0.03289480576 | DH16: -0.007727736308 | DI16: 237392.8577 | DJ16: 4781163.189 | DK16: 21328 | DT16: 7 | DU16: 0 | DV16: 0 | DW16: 0 | DX16: 0 | DY16: 216 | DZ16: 0 | EA16: 0 | EB16: 0 | EC16: 0 | ED16: 1 | EE16: 0 | EF16: 789 | EG16: 405 | EH16: 162 | EI16: 218 | EJ16: 0 | EK16: 0 | EL16: 4 | EM16: 49 | EN16: 71 | EO16: 42 | EP16: 29 | EQ16: 359.2 | ER16: 285.6 | ES16: 73.6 | ET16: 15 | EU16: 12 | EV16: 2 | EW16: 247 | EX16: 132 | EY16: 132 | EZ16: 0 | FA16: 105.7307379 | FB16: 101.4306021 | FC16: 107.2497737 | FD16: 106.7292449 | FE16: 104.8071417 | FF16: 107.1428515 | FG16: 103.0367309 | FH16: 105.1004721 | FI16: 95.62234971 | FJ16: 95.152 | FK16: 117.3127483 | FL16: 114.5315889 | FM16: 116.7032996 | FN16: 116.2786023 | FO16: 107.9039644 | FP16: 102.3178746 | FQ16: 182.5394918 | FR16: 159.4918044 | FS16: 103.940507 | FT16: 105.8397341 | FU16: 119.34805 | FV16: 104.6658826 | FW16: 96.86526885 | FX16: 104.2008923 | FY16: 104.8398349 | FZ16: 98.6549264 | GA16: 81.76411591 | GB16: 103.9852968 | GC16: 129.671236 | GD16: 153.0573373 | GE16: 135.2270072 | GF16: 92.46690819 | GG16: 103.569314 | GH16: 103.8293157 | GI16: 130.9679177 | GJ16: 108.73 | GK16: 1.7 | GL16: 45.1 | GM16: -43.4 | GN16: 0 | GO16: 53.8 | GP16: -53.8 | GQ16: 3.8 | GR16: 44 | GS16: -40.2 | GT16: 3.8 | GU16: 42.6 | GV16: 0 | GW16: 100 | GX16: 3 | GY16: 25 | HA16: 42 | HB16: 5 | HC16: 37 | HD16: 47 | HE16: 38 | HF16: 9 | HG16: 41.2 | HH16: 28 | HI16: 13.2 | HJ16: 117.5 | HK16: 72.2 | HL16: 45.3 | HN16: 99 | HP16: 8 | HQ16: 0 | HR16: 3 | HS16: 6 | HT16: 2 | HU16: 0 | HV16: 0 | HW16: 0 | HX16: 0 | HY16: 2 | HZ16: 1 | IA16: 1 | IB16: 2 | IC16: 0 | ID16: 6 | IE16: 0 | IF16: 3 | IG16: 4 | IH16: 0 | II16: 0 | IJ16: 0 | IK16: 0 | IL16: 1 | IM16: 0 | IN16: 0 | IO16: 2 | IP16: 0 | IQ16: 2 | IR16: 1 | IS16: 0 | IT16: 2 | IU16: 0 | IV16: 0 | IW16: 1 | IX16: 0 | IY16: 0 | IZ16: 0 | JA16: 1 | JB16: 0 | JC16: 0 | JD16: 3 | JE16: 0 | JF16: 1 | JG16: 0 | JH16: 0 | JI16: 0 | JJ16: 0 | JK16: 0 | JL16: 0 | JM16: 0 | JN16: 0 | JO16: 0 | JP16: 0 | JQ16: 0 | JR16: 0 | JS16: 0 | JU16: 3 | JV16: 1 | JW16: 14 | JX16: 840 | JY16: 4 | JZ16: 9 | KB16: 0 | KC16: 0 | KD16: 3 | KE16: 175 | KF16: 10 | KG16: 551 | KH16: 0 | KI16: 0 | KJ16: 0 | KK16: 0 | KL16: 0 | KM16: 0 | KN16: 0 | KO16: 0 | KP16: 13 | KQ16: 180 | KR16: 2 | KS16: 103 | KT16: 2 | KU16: 103 | KW16: 12 | KY16: 415 | KZ16: 766 | LB16: 50 | LC16: 29.2 | LD16: 745.83 | LE16: 119.54 | LG16: 63372 | LH16: 13.17190277 | LI16: 4811.15 | LJ16: 63372 | LK16: 56314 | LL16: 50280 | LM16: 44542 | LN16: 39100 | LO16: 33987 | LP16: 6984 | LQ16: 5983 | LR16: 4966 | LS16: 4102 | LT16: 3438 | LU16: 2882 | LV16: 34018 | LW16: 28880 | LX16: 24994 | LY16: 21402 | LZ16: 17564 | MA16: 14337 | MB16: 22370 | MC16: 21451 | MD16: 20320 | ME16: 19038 | MF16: 18098 | MG16: 16768 | MH16: 10677 | MI16: 8867 | MJ16: 7385 | MK16: 6798 | ML16: 6747 | MM16: 6394 | MN16: 7464 | MO16: 7960 | MP16: 8177 | MQ16: 6859 | MR16: 5785 | MS16: 5393 | MT16: 4229 | MU16: 4624 | MV16: 4758 | MW16: 5381 | MX16: 5566 | MY16: 4981 | MZ16: 沙流郡日高町、沙流郡平取町、新冠郡新冠町、浦河郡浦河町、様似郡様似町、幌泉郡えりも町、日高郡新ひだか町
A17: 12 | B17: 上川中部 | C17: 地方都市型 | D17: 上川郡東川町,上川郡上川町,上川郡鷹栖町,上川郡東神楽町,上川郡愛別町,上川郡美瑛町,雨竜郡幌加内町,旭川市,上川郡比布町,上川郡当麻町 | F17: 北海道 | G17: 北海道 | H17: 旭川（北海道） | I17: カミカワチュウブ | J17: 旭川市及び周辺部 | K17: 1.901298158 | L17: 1.612877857 | M17: 0.06201098712 | N17: -0.1663003439 | O17: 1.22346412 | P17: 1.555222833 | Q17: 0.1139701579 | R17: -0.1520533298 | S17: -0.1016940447 | T17: 329.590226 | U17: 1353.422056 | W17: 1421.3 | X17: 5475 | Y17: 677.8 | AA17: 60 | AB17: 26 | AC17: 38 | AD17: 0 | AE17: 21 | AF17: 12 | AG17: 0 | AH17: 0 | AJ17: 0 | AK17: 0 | AL17: 2 | AM17: 6 | AN17: 20 | AP17: 6379 | AQ17: 1284 | AR17: 2493 | AS17: 705 | AT17: 1759 | AU17: 138 | AW17: 5762 | AX17: 689 | AY17: 1795 | AZ17: 1828 | BA17: 1450 | BB17: 5903 | BC17: 689 | BD17: 1795 | BE17: 1828 | BF17: 1591 | BG17: 0 | BL17: 0 | BS17: 5064 | BT17: 544 | BU17: 1526 | BV17: 1601 | BW17: 1393 | BX17: 5199 | BY17: 544 | BZ17: 1526 | CA17: 1601 | CB17: 1528 | CC17: 0 | CH17: 0 | CO17: 178 | CP17: 6250 | CQ17: 5108.848069 | CR17: 6642.739499 | CS17: 6352.367862 | CU17: 687.6 | CV17: 6823.07 | CX17: 429218.8211 | CY17: 186479.2942 | CZ17: 216716.9126 | DA17: 26022.6142 | DB17: 1.087786941 | DC17: 1.197056284 | DD17: 1.02315784 | DE17: 0.9642828807 | DF17: 0.07779853476 | DG17: 0.01243120707 | DH17: -0.002442800359 | DI17: 273907.9402 | DJ17: 32344446.1 | DK17: 117869 | DT17: 41 | DU17: 6 | DV17: 1 | DW17: 1 | DX17: 4 | DY17: 3292 | DZ17: 1 | EA17: 2 | EB17: 3 | EC17: 3 | ED17: 3 | EE17: 1 | EF17: 7153 | EG17: 4443 | EH17: 1626 | EI17: 1058 | EJ17: 20 | EK17: 331 | EL17: 6 | EM17: 400 | EN17: 1083.9 | EO17: 899 | EP17: 184.9 | EQ17: 4622.6 | ER17: 4020.3 | ES17: 602.3 | ET17: 384.5 | EU17: 215.3 | EV17: 78 | EW17: 10919 | EX17: 2460 | EY17: 2112 | EZ17: 348 | FA17: 99.53122331 | FB17: 96.78642562 | FC17: 104.0458417 | FD17: 106.153528 | FE17: 94.06559219 | FF17: 91.34699122 | FG17: 105.5377789 | FH17: 106.4857632 | FI17: 92.7180271 | FJ17: 106.7320299 | FK17: 114.9665839 | FL17: 121.7747089 | FM17: 109.7935956 | FN17: 101.6921267 | FO17: 102.8770376 | FP17: 105.7844009 | FQ17: 105.44842 | FR17: 100.8296402 | FS17: 94.98562301 | FT17: 84.34008303 | FU17: 84.54541813 | FV17: 72.2271685 | FW17: 99.91029826 | FX17: 87.63551053 | FY17: 103.8853689 | FZ17: 97.29503967 | GA17: 68.855 | GB17: 109.754 | GC17: 124.8008491 | GD17: 137.3802164 | GE17: 75.4469722 | GF17: 83.96661443 | GG17: 86.8655227 | GH17: 86.76590852 | GI17: 99.9728728 | GJ17: 101.526 | GK17: 13.7 | GL17: 3.8 | GM17: 9.9 | GN17: 18.6 | GO17: 3.1 | GP17: 15.5 | GQ17: 6.9 | GR17: 1.4 | GS17: 5.5 | GT17: 7 | GU17: 1.4 | GV17: 6.3 | GW17: 0 | GX17: 8.5 | GY17: 8.5 | HA17: 254 | HB17: 33 | HC17: 221 | HD17: 482 | HE17: 426 | HF17: 56 | HG17: 337.4 | HH17: 243 | HI17: 94.4 | HJ17: 852.4 | HK17: 495.6 | HL17: 356.8 | HN17: 921 | HP17: 123 | HQ17: 34 | HR17: 57 | HS17: 109 | HT17: 15 | HU17: 37 | HV17: 18 | HW17: 22 | HX17: 9 | HY17: 21 | HZ17: 28 | IA17: 11 | IB17: 16 | IC17: 6 | ID17: 68 | IE17: 1 | IF17: 28 | IG17: 88 | IH17: 4 | II17: 12 | IJ17: 3 | IK17: 4 | IL17: 23 | IM17: 30 | IN17: 25 | IO17: 71 | IP17: 7 | IQ17: 33 | IR17: 38 | IS17: 2 | IT17: 45 | IU17: 9 | IV17: 24 | IW17: 51 | IX17: 10 | IY17: 15 | IZ17: 12 | JA17: 15 | JB17: 19 | JC17: 4 | JD17: 60 | JE17: 8 | JF17: 8 | JG17: 1 | JH17: 9 | JI17: 2 | JJ17: 7 | JK17: 5 | JL17: 14 | JM17: 1 | JN17: 3 | JO17: 5 | JP17: 8 | JQ17: 1 | JR17: 6 | JS17: 1 | JU17: 32 | JV17: 5 | JW17: 48 | JX17: 4466 | JY17: 20 | JZ17: 54 | KB17: 3 | KC17: 264 | KD17: 16 | KE17: 1248 | KF17: 32 | KG17: 1872 | KH17: 4 | KI17: 146 | KJ17: 3 | KK17: 160 | KL17: 23 | KM17: 895 | KN17: 2 | KO17: 133 | KP17: 95 | KQ17: 1532 | KR17: 22 | KS17: 779 | KT17: 24 | KU17: 912 | KW17: 48 | KY17: 1619 | KZ17: 6474 | LB17: 440.42 | LC17: 247.18 | LD17: 4855.83 | LE17: 1967.24 | LG17: 381296 | LH17: 89.96861801 | LI17: 4238.1 | LJ17: 381296 | LK17: 365532 | LL17: 347364 | LM17: 327485 | LN17: 306101 | LO17: 284260 | LP17: 40725 | LQ17: 36201 | LR17: 32525 | LS17: 29143 | LT17: 26540 | LU17: 24154 | LV17: 207527 | LW17: 190591 | LX17: 176832 | LY17: 162120 | LZ17: 143452 | MA17: 127360 | MB17: 133044 | MC17: 138740 | MD17: 138007 | ME17: 136222 | MF17: 136109 | MG17: 132746 | MH17: 63689 | MI17: 54921 | MJ17: 48627 | MK17: 48287 | ML17: 51347 | MM17: 50756 | MN17: 45383 | MO17: 55197 | MP17: 56602 | MQ17: 47870 | MR17: 42985 | MS17: 43116 | MT17: 23972 | MU17: 28622 | MV17: 32778 | MW17: 40065 | MX17: 41777 | MY17: 38874 | MZ17: 旭川市、上川郡鷹栖町、上川郡東神楽町、上川郡当麻町、上川郡比布町、上川郡愛別町、上川郡上川町、上川郡東川町、上川郡美瑛町、雨竜郡幌加内町 | NA17: 旭川赤十字病院（特定群・救命）、旭川医科大学病院（大学本院群・救命） | NB17: 旭川厚生病院（標準群） | NC17: 市立旭川病院（標準群）
A18: 13 | B18: 上川北部 | C18: 過疎地域型 | D18: 中川郡美深町,士別市,中川郡音威子府村,中川郡中川町,上川郡下川町,上川郡剣淵町,名寄市,上川郡和寒町 | F18: 北海道 | G18: 北海道 | H18: 名寄（北海道） | I18: カミカワホクブ | J18: 士別市、名寄市及び周辺部 | K18: 1.407152639 | L18: 1.816545241 | M18: 0.07372123703 | N18: 0.1367501158 | O18: 0.7059990402 | P18: 1.200519287 | Q18: 0.1191615662 | R18: 0.04286576739 | S18: 0.179098446 | T18: 203.8605914 | U18: 1063.962373 | W18: 130.7 | X18: 673.5 | Y18: 51.4 | AA18: 8 | AB18: 0 | AC18: 0 | AD18: 0 | AE18: 0 | AF18: 0 | AG18: 0 | AH18: 0 | AJ18: 0 | AK18: 0 | AL18: 1 | AM18: 4 | AN18: 0 | AP18: 824 | AQ18: 11 | AR18: 320 | AS18: 128 | AT18: 353 | AU18: 12 | AW18: 656 | AX18: 63 | AY18: 229 | AZ18: 206 | BA18: 158 | BB18: 716 | BC18: 63 | BD18: 229 | BE18: 206 | BF18: 218 | BG18: 0 | BL18: 0 | BS18: 772 | BT18: 82 | BU18: 257 | BV18: 250 | BW18: 183 | BX18: 838 | BY18: 82 | BZ18: 257 | CA18: 250 | CB18: 249 | CC18: 0 | CH18: 0 | CO18: 31 | CP18: 1184 | CQ18: 1042.912706 | CR18: 1133.246931 | CS18: 971.94744 | CU18: 86.6 | CV18: 1063.38 | CX18: 422589.7567 | CY18: 173438.0257 | CZ18: 224203.0098 | DA18: 24948.72127 | DB18: 1.073644199 | DC18: 1.115491066 | DD18: 1.061562941 | DE18: 0.9267389283 | DF18: 0.04562133935 | DG18: 0.03303364259 | DH18: -0.005010782692 | DI18: 257266.4063 | DJ18: 5311206.563 | DK18: 22783 | DT18: 8 | DU18: 1 | DV18: 0 | DW18: 0 | DX18: 1 | DY18: 316 | DZ18: 0 | EA18: 1 | EB18: 0 | EC18: 0 | ED18: 1 | EE18: 1 | EF18: 961 | EG18: 591 | EH18: 311 | EI18: 55 | EJ18: 0 | EK18: 0 | EL18: 4 | EM18: 95 | EN18: 101.6 | EO18: 92 | EP18: 9.6 | EQ18: 589 | ER18: 491.3 | ES18: 97.7 | ET18: 28.8 | EU18: 15 | EV18: 7.6 | EW18: 1042 | EX18: 288 | EY18: 288 | EZ18: 0 | FA18: 95.36618078 | FB18: 93.92744359 | FC18: 105.8025511 | FD18: 109.912253 | FE18: 109.386496 | FF18: 100.0288333 | FG18: 101.8558873 | FH18: 112.9731209 | FI18: 87.59736388 | FJ18: 76.65942379 | FK18: 116.9356266 | FL18: 116.8484243 | FM18: 93.767096 | FN18: 99.22757568 | FO18: 67.62586428 | FP18: 104.6872717 | FQ18: 110.8271215 | FR18: 127.4695597 | FS18: 83.21159552 | FT18: 81.35082598 | FU18: 78.33392519 | FV18: 70.3018 | FW18: 86.5811041 | FX18: 80.742714 | FY18: 89.67262778 | FZ18: 96.03288557 | GA18: 87.48115867 | GB18: 99.127 | GC18: 134.5296015 | GD18: 118.0325904 | GE18: 108.3927277 | GF18: 92.84830712 | GG18: 101.1811145 | GH18: 94.59996274 | GI18: 131.0021756 | GJ18: 97.42298942 | GK18: 13.1 | GL18: 27.9 | GM18: -14.8 | GN18: 11.1 | GO18: 36.8 | GP18: -25.7 | GQ18: 6 | GR18: 13.2 | GS18: -7.2 | GT18: 6 | GU18: 11.8 | GV18: 0 | GW18: 100 | GX18: 30 | GY18: 35.7 | HA18: 37 | HB18: 3 | HC18: 34 | HD18: 48 | HE18: 40 | HF18: 8 | HG18: 29.1 | HH18: 23 | HI18: 6.1 | HJ18: 84.5 | HK18: 44.3 | HL18: 40.2 | HN18: 98 | HP18: 7 | HQ18: 4 | HR18: 5 | HS18: 8 | HT18: 0 | HU18: 3 | HV18: 0 | HW18: 1 | HX18: 0 | HY18: 0 | HZ18: 1 | IA18: 0 | IB18: 1 | IC18: 1 | ID18: 4 | IE18: 0 | IF18: 2 | IG18: 6 | IH18: 0 | II18: 2 | IJ18: 0 | IK18: 0 | IL18: 0 | IM18: 1 | IN18: 5 | IO18: 4 | IP18: 1 | IQ18: 2 | IR18: 5 | IS18: 0 | IT18: 4 | IU18: 0 | IV18: 0 | IW18: 2 | IX18: 1 | IY18: 2 | IZ18: 1 | JA18: 0 | JB18: 0 | JC18: 0 | JD18: 6 | JE18: 0 | JF18: 0 | JG18: 0 | JH18: 1 | JI18: 0 | JJ18: 0 | JK18: 0 | JL18: 0 | JM18: 0 | JN18: 0 | JO18: 0 | JP18: 0 | JQ18: 0 | JR18: 0 | JS18: 0 | JU18: 3 | JV18: 0 | JW18: 9 | JX18: 166 | JY18: 1 | JZ18: 1 | KB18: 0 | KC18: 0 | KD18: 3 | KE18: 249 | KF18: 10 | KG18: 626 | KH18: 0 | KI18: 0 | KJ18: 1 | KK18: 29 | KL18: 2 | KM18: 52 | KN18: 1 | KO18: 30 | KP18: 14 | KQ18: 198 | KR18: 1 | KS18: 31 | KT18: 2 | KU18: 61 | KW18: 6 | KY18: 191 | KZ18: 401 | LB18: 68.5 | LC18: 18.1 | LD18: 975.78 | LE18: 87.6 | LG18: 60763 | LH18: 14.47710129 | LI18: 4197.18 | LJ18: 60763 | LK18: 55731 | LL18: 50435 | LM18: 45335 | LN18: 40414 | LO18: 35721 | LP18: 6140 | LQ18: 5168 | LR18: 4384 | LS18: 3697 | LT18: 3148 | LU18: 2664 | LV18: 32098 | LW18: 28653 | LX18: 25461 | LY18: 22436 | LZ18: 19085 | MA18: 16097 | MB18: 22525 | MC18: 21910 | MD18: 20590 | ME18: 19202 | MF18: 18181 | MG18: 16960 | MH18: 9958 | MI18: 8282 | MJ18: 7090 | MK18: 6523 | ML18: 6478 | MM18: 6279 | MN18: 7989 | MO18: 8373 | MP18: 8154 | MQ18: 6796 | MR18: 5862 | MS18: 5427 | MT18: 4578 | MU18: 5255 | MV18: 5346 | MW18: 5883 | MX18: 5841 | MY18: 5254 | MZ18: 士別市、名寄市、上川郡和寒町、上川郡剣淵町、上川郡下川町、中川郡美深町、中川郡音威子府村、中川郡中川町 | NC18: 名寄市立総合病院（標準群・救命）
A19: 14 | B19: 富良野 | C19: 過疎地域型 | D19: 空知郡南富良野町,勇払郡占冠村,富良野市,空知郡上富良野町,空知郡中富良野町 | F19: 北海道 | G19: 北海道 | H19: 富良野（北海道） | I19: フラノ | J19: 富良野市及び周辺部 | K19: 0.8313058462 | L19: 1.272028152 | M19: 0.1197158627 | N19: 0.06890915197 | O19: 0.6590109997 | P19: 0.9336741649 | Q19: 0.1197810039 | R19: 0.02256096812 | S19: 0.06897805289 | T19: 162.4689769 | U19: 792.1224377 | W19: 80.1 | X19: 343.9 | Y19: 39.8 | AA19: 0 | AB19: 0 | AC19: 0 | AD19: 0 | AE19: 0 | AF19: 0 | AG19: 0 | AH19: 0 | AJ19: 0 | AK19: 0 | AL19: 1 | AM19: 4 | AN19: 0 | AP19: 424 | AQ19: 0 | AR19: 145 | AS19: 147 | AT19: 132 | AU19: 0 | AW19: 394 | AX19: 25 | AY19: 120 | AZ19: 132 | BA19: 117 | BB19: 401 | BC19: 25 | BD19: 120 | BE19: 132 | BF19: 124 | BG19: 0 | BL19: 0 | BS19: 553 | BT19: 52 | BU19: 169 | BV19: 176 | BW19: 156 | BX19: 562 | BY19: 52 | BZ19: 169 | CA19: 176 | CB19: 165 | CC19: 0 | CH19: 0 | CO19: 20 | CP19: 798 | CQ19: 587.9862894 | CR19: 652.9292733 | CS19: 621.9226607 | CU19: 68.05 | CV19: 737.758 | CX19: 344353.1926 | CY19: 157111.2204 | CZ19: 165616.8996 | DA19: 21625.07263 | DB19: 0.9413039488 | DC19: 1.0899892 | DD19: 0.8445790524 | DE19: 0.8450087306 | DF19: 0.03545693276 | DG19: -0.08331048522 | DH19: -0.01084249875 | DI19: 247079.957 | DJ19: 2956976.204 | DK19: 12798 | DT19: 5 | DU19: 1 | DV19: 0 | DW19: 0 | DX19: 1 | DY19: 245 | DZ19: 0 | EA19: 0 | EB19: 0 | EC19: 0 | ED19: 1 | EE19: 0 | EF19: 603 | EG19: 332 | EH19: 97 | EI19: 170 | EJ19: 0 | EK19: 0 | EL19: 4 | EM19: 56 | EN19: 54.3 | EO19: 37 | EP19: 17.3 | EQ19: 283.7 | ER19: 239.8 | ES19: 43.9 | ET19: 20 | EU19: 15.9 | EV19: 3.9 | EW19: 314 | EX19: 192 | EY19: 192 | EZ19: 0 | FA19: 94.89091687 | FB19: 100.6735875 | FC19: 107.9009225 | FD19: 109.3385844 | FE19: 92.24927467 | FF19: 79.74107851 | FG19: 117.1201629 | FH19: 113.5932249 | FI19: 89.94809665 | FJ19: 106.9819923 | FK19: 120.1532681 | FL19: 121.6385242 | FM19: 81.91241257 | FN19: 100.9927399 | FO19: 103.5175419 | FP19: 103.2907995 | FQ19: 89.37997408 | FR19: 120.9633861 | FS19: 77.03094895 | FT19: 91.0343283 | FU19: 86.09573933 | FV19: 91.46028808 | FW19: 77.6279643 | FX19: 85.29753337 | FY19: 110.178501 | FZ19: 137.4773616 | GA19: 92.057 | GB19: 93.57 | GC19: 134.9631918 | GD19: 133.2144594 | GE19: 106.4234474 | GF19: 99.68372435 | GG19: 108.0680476 | GH19: 103.0241208 | GI19: 109.1867919 | GJ19: 115.838 | GK19: 7.6 | GL19: 27 | GM19: -19.4 | GN19: 8.7 | GO19: 32 | GP19: -23.3 | GQ19: 9 | GR19: 24 | GS19: -15 | GT19: 9 | GU19: 24 | GV19: 0 | GW19: 0 | GX19: 5.6 | GY19: 21.1 | HA19: 24 | HB19: 2 | HC19: 22 | HD19: 29 | HE19: 29 | HF19: 0 | HG19: 25.8 | HH19: 18 | HI19: 7.8 | HJ19: 60.2 | HK19: 41.9 | HL19: 18.3 | HN19: 73 | HP19: 1 | HQ19: 0 | HR19: 2 | HS19: 5 | HT19: 0 | HU19: 1 | HV19: 0 | HW19: 0 | HX19: 0 | HY19: 0 | HZ19: 1 | IA19: 0 | IB19: 1 | IC19: 0 | ID19: 4 | IE19: 0 | IF19: 2 | IG19: 3 | IH19: 0 | II19: 0 | IJ19: 0 | IK19: 0 | IL19: 1 | IM19: 2 | IN19: 0 | IO19: 5 | IP19: 0 | IQ19: 1 | IR19: 1 | IS19: 0 | IT19: 2 | IU19: 2 | IV19: 0 | IW19: 0 | IX19: 0 | IY19: 1 | IZ19: 0 | JA19: 1 | JB19: 0 | JC19: 0 | JD19: 3 | JE19: 0 | JF19: 1 | JG19: 0 | JH19: 0 | JI19: 0 | JJ19: 0 | JK19: 0 | JL19: 0 | JM19: 0 | JN19: 0 | JO19: 0 | JP19: 0 | JQ19: 0 | JR19: 0 | JS19: 0 | JU19: 1 | JV19: 1 | JW19: 3 | JX19: 70 | JY19: 0 | JZ19: 0 | KB19: 0 | KC19: 0 | KD19: 2 | KE19: 129 | KF19: 7 | KG19: 440 | KH19: 2 | KI19: 68 | KJ19: 0 | KK19: 0 | KL19: 1 | KM19: 26 | KN19: 2 | KO19: 54 | KP19: 6 | KQ19: 81 | KR19: 0 | KS19: 0 | KT19: 2 | KU19: 54 | KW19: 4 | KY19: 113 | KZ19: 303 | LB19: 51.3 | LC19: 16.75 | LD19: 670.88 | LE19: 66.878 | LG19: 39894 | LH19: 18.27141948 | LI19: 2183.41 | LJ19: 39894 | LK19: 36550 | LL19: 33495 | LM19: 30462 | LN19: 27436 | LO19: 24482 | LP19: 4361 | LQ19: 3829 | LR19: 3301 | LS19: 2829 | LT19: 2453 | LU19: 2112 | LV19: 22127 | LW19: 19276 | LX19: 17046 | LY19: 14798 | LZ19: 12483 | MA19: 10496 | MB19: 13406 | MC19: 13445 | MD19: 13148 | ME19: 12835 | MF19: 12500 | MG19: 11874 | MH19: 6152 | MI19: 5384 | MJ19: 4906 | MK19: 4755 | ML19: 4740 | MM19: 4432 | MN19: 4668 | MO19: 5109 | MP19: 5240 | MQ19: 4559 | MR19: 4202 | MS19: 4103 | MT19: 2586 | MU19: 2952 | MV19: 3002 | MW19: 3521 | MX19: 3558 | MY19: 3339 | MZ19: 富良野市、空知郡上富良野町、空知郡中富良野町、空知郡南富良野町、勇払郡占冠村
A20: 15 | B20: 留萌 | C20: 過疎地域型 | D20: 留萌市,苫前郡苫前町,苫前郡羽幌町,増毛郡増毛町,苫前郡初山別村,天塩郡天塩町,天塩郡遠別町,留萌郡小平町 | F20: 北海道 | G20: 北海道 | H20: 留萌（北海道） | I20: ルモイ | J20: 留萌市及び周辺部 | K20: 0.8628285022 | L20: 2.005621146 | M20: 0.003513507935 | N20: 0.08157974838 | O20: 0.7586084148 | P20: 1.097949425 | Q20: 0.09117130283 | R20: 0.005765728507 | S20: 0.1513392556 | T20: 162.5617696 | U20: 884.9713703 | W20: 99.5 | X20: 436.4 | Y20: 38 | AA20: 0 | AB20: 0 | AC20: 0 | AD20: 0 | AE20: 0 | AF20: 0 | AG20: 0 | AH20: 0 | AJ20: 0 | AK20: 0 | AL20: 1 | AM20: 4 | AN20: 0 | AP20: 649 | AQ20: 0 | AR20: 300 | AS20: 92 | AT20: 207 | AU20: 50 | AW20: 364 | AX20: 35 | AY20: 142 | AZ20: 130 | BA20: 57 | BB20: 425 | BC20: 35 | BD20: 142 | BE20: 130 | BF20: 118 | BG20: 0 | BL20: 0 | BS20: 582 | BT20: 67 | BU20: 218 | BV20: 190 | BW20: 107 | BX20: 670 | BY20: 67 | BZ20: 218 | CA20: 190 | CB20: 195 | CC20: 0 | CH20: 0 | CO20: 31 | CP20: 827 | CQ20: 808.8575405 | CR20: 884.8685016 | CS20: 755.3080625 | CU20: 59.46 | CV20: 728.22 | CX20: 428259.4636 | CY20: 195065.9407 | CZ20: 213087.3304 | DA20: 20106.19259 | DB20: 1.077036989 | DC20: 1.24113025 | DD20: 0.9987208972 | DE20: 0.7419473545 | DF20: 0.09531021109 | DG20: -0.0006863451979 | DH20: -0.01758687648 | DI20: 251388.4936 | DJ20: 4324839.241 | DK20: 18059 | DT20: 7 | DU20: 1 | DV20: 0 | DW20: 0 | DX20: 1 | DY20: 232 | DZ20: 0 | EA20: 0 | EB20: 0 | EC20: 0 | ED20: 1 | EE20: 0 | EF20: 755 | EG20: 430 | EH20: 222 | EI20: 99 | EJ20: 0 | EK20: 0 | EL20: 4 | EM20: 59 | EN20: 63 | EO20: 42 | EP20: 21 | EQ20: 342.7 | ER20: 265.1 | ES20: 77.6 | ET20: 22 | EU20: 13 | EV20: 3 | EW20: 362 | EX20: 72 | EY20: 72 | EZ20: 0 | FA20: 105.225413 | FB20: 95.47826299 | FC20: 114.587978 | FD20: 112.4071083 | FE20: 105.6733221 | FF20: 110.8474495 | FG20: 110.4449761 | FH20: 114.2089948 | FI20: 108.8749872 | FJ20: 88.46094209 | FK20: 125.5724119 | FL20: 128.5756559 | FM20: 106.103306 | FN20: 103.727337 | FO20: 112.0800297 | FP20: 125.1882388 | FQ20: 111.6498343 | FR20: 117.5157655 | FS20: 108.0902353 | FT20: 93.07875092 | FU20: 115.6087563 | FV20: 102.4489142 | FW20: 106.0213846 | FX20: 96.62199262 | FY20: 104.2234895 | FZ20: 91.6555242 | GA20: 106.852 | GB20: 0 | GC20: 153.342432 | GD20: 157.1517621 | GE20: 82.37410487 | GF20: 75.95026636 | GG20: 106.1007038 | GH20: 76.81428323 | GI20: 116.7002372 | GJ20: 95.069 | GK20: 3 | GL20: 45.6 | GM20: -42.6 | GN20: 1.8 | GO20: 42.4 | GP20: -40.6 | GQ20: 4.1 | GR20: 64 | GS20: -59.9 | GT20: 4.1 | GU20: 62.9 | GV20: 0 | GW20: 100 | GX20: 5.2 | GY20: 41.1 | HA20: 36 | HB20: 4 | HC20: 32 | HD20: 62 | HE20: 62 | HF20: 0 | HG20: 36.5 | HH20: 25 | HI20: 11.5 | HJ20: 93.7 | HK20: 48 | HL20: 45.7 | HN20: 73 | HP20: 7 | HQ20: 2 | HR20: 6 | HS20: 8 | HT20: 0 | HU20: 2 | HV20: 0 | HW20: 0 | HX20: 0 | HY20: 0 | HZ20: 0 | IA20: 0 | IB20: 1 | IC20: 0 | ID20: 2 | IE20: 0 | IF20: 3 | IG20: 2 | IH20: 0 | II20: 0 | IJ20: 0 | IK20: 0 | IL20: 0 | IM20: 1 | IN20: 2 | IO20: 6 | IP20: 0 | IQ20: 3 | IR20: 1 | IS20: 0 | IT20: 0 | IU20: 0 | IV20: 0 | IW20: 0 | IX20: 0 | IY20: 0 | IZ20: 0 | JA20: 0 | JB20: 0 | JC20: 0 | JD20: 5 | JE20: 0 | JF20: 0 | JG20: 0 | JH20: 0 | JI20: 0 | JJ20: 0 | JK20: 0 | JL20: 0 | JM20: 0 | JN20: 0 | JO20: 0 | JP20: 0 | JQ20: 0 | JR20: 0 | JS20: 0 | JU20: 2 | JV20: 0 | JW20: 10 | JX20: 403 | JY20: 1 | JZ20: 1 | KB20: 0 | KC20: 0 | KD20: 2 | KE20: 129 | KF20: 9 | KG20: 400 | KH20: 0 | KI20: 0 | KJ20: 0 | KK20: 0 | KL20: 4 | KM20: 85 | KN20: 0 | KO20: 0 | KP20: 16 | KQ20: 213 | KR20: 2 | KS20: 48 | KT20: 2 | KU20: 48 | KW20: 3 | KY20: 233 | KZ20: 654 | LB20: 40.76 | LC20: 18.7 | LD20: 589.72 | LE20: 138.5 | LG20: 43050 | LH20: 12.49310775 | LI20: 3445.9 | LJ20: 43050 | LK20: 37857 | LL20: 33215 | LM20: 28853 | LN20: 24856 | LO20: 21173 | LP20: 3915 | LQ20: 3378 | LR20: 2769 | LS20: 2250 | LT20: 1853 | LU20: 1516 | LV20: 21895 | LW20: 18287 | LX20: 15538 | LY20: 13025 | LZ20: 10487 | MA20: 8481 | MB20: 17240 | MC20: 16192 | MD20: 14908 | ME20: 13578 | MF20: 12516 | MG20: 11176 | MH20: 7789 | MI20: 6258 | MJ20: 5003 | MK20: 4532 | ML20: 4349 | MM20: 3923 | MN20: 6152 | MO20: 6257 | MP20: 6102 | MQ20: 4907 | MR20: 3977 | MS20: 3625 | MT20: 3299 | MU20: 3677 | MV20: 3803 | MW20: 4139 | MX20: 4190 | MY20: 3628 | MZ20: 留萌市、増毛郡増毛町、留萌郡小平町、苫前郡苫前町、苫前郡羽幌町、苫前郡初山別村、天塩郡遠別町、天塩郡天塩町
A21: 16 | B21: 宗谷 | C21: 過疎地域型 | D21: 利尻郡利尻富士町,枝幸郡浜頓別町,天塩郡豊富町,稚内市,枝幸郡枝幸町,枝幸郡中頓別町,礼文郡礼文町,利尻郡利尻町,宗谷郡猿払村,天塩郡幌延町 | F21: 北海道 | G21: 北海道 | H21: 稚内（北海道） | I21: ソウヤ | J21: 稚内市及び周辺部 | K21: 1.250869424 | L21: 1.207910396 | M21: 0.09032248125 | N21: 0.00800749229 | O21: 0.495977613 | P21: 0.9279777157 | Q21: 0.09945660052 | R21: -0.0390222927 | S21: 0.02341377545 | T21: 123.0480855 | U21: 779.5564827 | W21: 93.9 | X21: 532.4 | Y21: 32.7 | AA21: 0 | AB21: 0 | AC21: 0 | AD21: 0 | AE21: 0 | AF21: 0 | AG21: 0 | AH21: 0 | AJ21: 0 | AK21: 0 | AL21: 1 | AM21: 4 | AN21: 0 | AP21: 736 | AQ21: 0 | AR21: 397 | AS21: 174 | AT21: 165 | AU21: 0 | AW21: 441 | AX21: 28 | AY21: 127 | AZ21: 185 | BA21: 101 | BB21: 444 | BC21: 28 | BD21: 127 | BE21: 185 | BF21: 104 | BG21: 0 | BL21: 0 | BS21: 741 | BT21: 78 | BU21: 241 | BV21: 270 | BW21: 152 | BX21: 745 | BY21: 78 | BZ21: 241 | CA21: 270 | CB21: 156 | CC21: 0 | CH21: 0 | CO21: 27 | CP21: 987 | CQ21: 851.0135125 | CR21: 981.8760666 | CS21: 922.8739822 | CU21: 81.37 | CV21: 930.08 | CX21: 371189.0453 | CY21: 163942.1034 | CZ21: 186406.3038 | DA21: 20840.63804 | DB21: 1.023002583 | DC21: 1.146719841 | DD21: 0.9585209918 | DE21: 0.8203765702 | DF21: 0.05781008452 | DG21: -0.02223150733 | DH21: -0.01257599415 | DI21: 232372.7559 | DJ21: 4471056.06 | DK21: 19371 | DT21: 8 | DU21: 1 | DV21: 0 | DW21: 0 | DX21: 1 | DY21: 223 | DZ21: 0 | EA21: 0 | EB21: 0 | EC21: 0 | ED21: 1 | EE21: 0 | EF21: 730 | EG21: 510 | EH21: 146 | EI21: 70 | EJ21: 0 | EK21: 0 | EL21: 4 | EM21: 0 | EN21: 63.6 | EO21: 45 | EP21: 18.6 | EQ21: 444.4 | ER21: 393.4 | ES21: 51 | ET21: 16.9 | EU21: 12.8 | EV21: 3 | EW21: 511 | EX21: 240 | EY21: 240 | EZ21: 0 | FA21: 110.4321458 | FB21: 109.1540324 | FC21: 114.6446321 | FD21: 117.2491181 | FE21: 102.9839528 | FF21: 92.24907365 | FG21: 124.2963159 | FH21: 125.4958986 | FI21: 86.35232122 | FJ21: 101.5446868 | FK21: 132.8247963 | FL21: 136.7752155 | FM21: 117.4741964 | FN21: 115.4724236 | FO21: 124.8670347 | FP21: 121.1919151 | FQ21: 129.6428781 | FR21: 130.6183748 | FS21: 110.9362799 | FT21: 100.2775328 | FU21: 130.6680933 | FV21: 108.5873169 | FW21: 107.708538 | FX21: 106.857432 | FY21: 104.2361527 | FZ21: 105.118474 | GA21: 82.10761143 | GB21: 85.357 | GC21: 153.925 | GD21: 141.8430476 | GE21: 138.4164272 | GF21: 130.3590643 | GG21: 114.0583607 | GH21: 120.0251965 | GI21: 131.2535404 | GJ21: 109.964 | GK21: 5.4 | GL21: 44 | GM21: -38.6 | GN21: 6.7 | GO21: 48.6 | GP21: -41.9 | GQ21: 4.9 | GR21: 18.5 | GS21: -13.6 | GT21: 4.9 | GU21: 18.5 | GV21: 0 | GW21: 0 | GX21: 0 | GY21: 59.9 | HA21: 42 | HB21: 4 | HC21: 38 | HD21: 76 | HE21: 61 | HF21: 15 | HG21: 30.3 | HH21: 20 | HI21: 10.3 | HJ21: 88 | HK21: 65.8 | HL21: 22.2 | HN21: 77 | HP21: 4 | HQ21: 0 | HR21: 0 | HS21: 4 | HT21: 0 | HU21: 3 | HV21: 0 | HW21: 0 | HX21: 0 | HY21: 1 | HZ21: 1 | IA21: 0 | IB21: 0 | IC21: 0 | ID21: 3 | IE21: 0 | IF21: 1 | IG21: 4 | IH21: 0 | II21: 0 | IJ21: 0 | IK21: 0 | IL21: 2 | IM21: 0 | IN21: 2 | IO21: 3 | IP21: 0 | IQ21: 0 | IR21: 1 | IS21: 0 | IT21: 4 | IU21: 0 | IV21: 0 | IW21: 0 | IX21: 0 | IY21: 1 | IZ21: 0 | JA21: 0 | JB21: 0 | JC21: 0 | JD21: 3 | JE21: 0 | JF21: 0 | JG21: 0 | JH21: 0 | JI21: 0 | JJ21: 0 | JK21: 0 | JL21: 0 | JM21: 0 | JN21: 0 | JO21: 1 | JP21: 1 | JQ21: 0 | JR21: 0 | JS21: 0 | JU21: 1 | JV21: 0 | JW21: 7 | JX21: 256 | JY21: 1 | JZ21: 7 | KB21: 0 | KC21: 0 | KD21: 2 | KE21: 140 | KF21: 13 | KG21: 641 | KH21: 0 | KI21: 0 | KJ21: 0 | KK21: 0 | KL21: 0 | KM21: 0 | KN21: 1 | KO21: 36 | KP21: 11 | KQ21: 170 | KR21: 1 | KS21: 51 | KT21: 2 | KU21: 87 | KW21: 8 | KY21: 208 | KZ21: 429 | LB21: 58.25 | LC21: 23.12 | LD21: 863.655 | LE21: 66.425 | LG21: 62140 | LH21: 13.43250996 | LI21: 4626.09 | LJ21: 62140 | LK21: 54985 | LL21: 49028 | LM21: 43374 | LN21: 38020 | LO21: 33055 | LP21: 6474 | LQ21: 5712 | LR21: 4785 | LS21: 3996 | LT21: 3350 | LU21: 2824 | LV21: 34641 | LW21: 29278 | LX21: 25554 | LY21: 22162 | LZ21: 18535 | MA21: 15449 | MB21: 21025 | MC21: 19995 | MD21: 18689 | ME21: 17216 | MF21: 16135 | MG21: 14782 | MH21: 10381 | MI21: 8553 | MJ21: 7017 | MK21: 6237 | ML21: 6142 | MM21: 5847 | MN21: 7007 | MO21: 7500 | MP21: 7658 | MQ21: 6430 | MR21: 5334 | MS21: 4783 | MT21: 3637 | MU21: 3942 | MV21: 4014 | MW21: 4549 | MX21: 4659 | MY21: 4152 | MZ21: 稚内市、宗谷郡猿払村、枝幸郡浜頓別町、枝幸郡中頓別町、枝幸郡枝幸町、天塩郡豊富町、礼文郡礼文町、利尻郡利尻町、利尻郡利尻富士町、天塩郡幌延町 | NC21: 市立稚内病院（標準群）
A22: 17 | B22: 北網 | C22: 地方都市型 | D22: 斜里郡小清水町,北見市,網走郡大空町,網走郡美幌町,斜里郡清里町,網走市,常呂郡訓子府町,常呂郡置戸町,斜里郡斜里町,網走郡津別町 | F22: 北海道 | G22: 北海道 | H22: 北見（北海道） | I22: ホクモウ | J22: 北見市、網走市及び周辺部 | K22: 1.50847338 | L22: 1.451367514 | M22: -0.07660261752 | N22: -0.3302700271 | O22: 0.6501145415 | P22: 1.166860916 | Q22: 0.09231061934 | R22: -0.1247169663 | S22: -0.12155772 | T22: 186.1748436 | U22: 1028.649496 | W22: 412.9 | X22: 2245.8 | Y22: 260.3 | AA22: 32 | AB22: 0 | AC22: 0 | AD22: 0 | AE22: 12 | AF22: 6 | AG22: 0 | AH22: 0 | AJ22: 0 | AK22: 0 | AL22: 2 | AM22: 4 | AN22: 0 | AP22: 2591 | AQ22: 341 | AR22: 1191 | AS22: 173 | AT22: 744 | AU22: 142 | AW22: 2309 | AX22: 275 | AY22: 790 | AZ22: 732 | BA22: 512 | BB22: 2446 | BC22: 275 | BD22: 790 | BE22: 732 | BF22: 649 | BG22: 0 | BL22: 0 | BS22: 2347 | BT22: 291 | BU22: 815 | BV22: 740 | BW22: 501 | BX22: 2487 | BY22: 291 | BZ22: 815 | CA22: 740 | CB22: 641 | CC22: 0 | CH22: 0 | CO22: 102 | CP22: 3318 | CQ22: 2922.759806 | CR22: 3621.588632 | CS22: 3611.415858 | CU22: 319.225 | CV22: 3256.68 | CX22: 368793.9592 | CY22: 146229.0757 | CZ22: 198420.1038 | DA22: 24144.7797 | DB22: 0.989497987 | DC22: 0.9959558172 | DD22: 0.9923766894 | DE22: 0.9307592996 | DF22: -0.001593145916 | DG22: -0.004089628403 | DH22: -0.004819238631 | DI22: 253768.6287 | DJ22: 15741661.18 | DK22: 65762 | DT22: 25 | DU22: 3 | DV22: 0 | DW22: 0 | DX22: 3 | DY22: 1259 | DZ22: 0 | EA22: 1 | EB22: 1 | EC22: 1 | ED22: 2 | EE22: 1 | EF22: 3032 | EG22: 1965 | EH22: 608 | EI22: 455 | EJ22: 0 | EK22: 0 | EL22: 4 | EM22: 272 | EN22: 295.7 | EO22: 230 | EP22: 65.7 | EQ22: 1850.6 | ER22: 1514.8 | ES22: 335.8 | ET22: 146.1 | EU22: 79.6 | EV22: 34.6 | EW22: 3889 | EX22: 1236 | EY22: 1236 | EZ22: 0 | FA22: 100.487808 | FB22: 97.34979508 | FC22: 107.985031 | FD22: 108.5236835 | FE22: 92.57767157 | FF22: 91.48140897 | FG22: 119.4455244 | FH22: 114.2917153 | FI22: 99.44950553 | FJ22: 82.99143417 | FK22: 118.1286725 | FL22: 111.4150558 | FM22: 104.2167842 | FN22: 101.0246915 | FO22: 107.1949745 | FP22: 116.6295911 | FQ22: 131.7352255 | FR22: 114.0119621 | FS22: 96.97891544 | FT22: 92.5580203 | FU22: 89.82678706 | FV22: 88.15376007 | FW22: 100.427854 | FX22: 93.34048301 | FY22: 101.3710855 | FZ22: 86.51284583 | GA22: 96.53384716 | GB22: 98.92918667 | GC22: 129.2912988 | GD22: 125.2561724 | GE22: 102.0272858 | GF22: 92.73145886 | GG22: 97.54846294 | GH22: 103.4540743 | GI22: 118.025195 | GJ22: 107.6168789 | GK22: 5.4 | GL22: 8.8 | GM22: -3.4 | GN22: 4.9 | GO22: 8.5 | GP22: -3.6 | GQ22: 1.4 | GR22: 9.7 | GS22: -8.3 | GT22: 1.4 | GU22: 9.8 | GV22: 0 | GW22: 0 | GX22: 11.6 | GY22: 8.5 | HA22: 101 | HB22: 18 | HC22: 83 | HD22: 287 | HE22: 233 | HF22: 54 | HG22: 117.2 | HH22: 88 | HI22: 29.2 | HJ22: 395.2 | HK22: 134.3 | HL22: 260.9 | HN22: 325 | HP22: 28 | HQ22: 3 | HR22: 14 | HS22: 21 | HT22: 0 | HU22: 6 | HV22: 0 | HW22: 2 | HX22: 0 | HY22: 4 | HZ22: 6 | IA22: 1 | IB22: 7 | IC22: 1 | ID22: 9 | IE22: 0 | IF22: 6 | IG22: 22 | IH22: 2 | II22: 3 | IJ22: 0 | IK22: 0 | IL22: 6 | IM22: 6 | IN22: 10 | IO22: 9 | IP22: 2 | IQ22: 9 | IR22: 7 | IS22: 0 | IT22: 10 | IU22: 4 | IV22: 3 | IW22: 5 | IX22: 1 | IY22: 1 | IZ22: 1 | JA22: 2 | JB22: 0 | JC22: 0 | JD22: 12 | JE22: 0 | JF22: 1 | JG22: 0 | JH22: 1 | JI22: 2 | JJ22: 2 | JK22: 0 | JL22: 1 | JM22: 0 | JN22: 1 | JO22: 1 | JP22: 1 | JQ22: 0 | JR22: 0 | JS22: 0 | JU22: 7 | JV22: 4 | JW22: 19 | JX22: 1299 | JY22: 8 | JZ22: 21 | KB22: 2 | KC22: 30 | KD22: 7 | KE22: 619 | KF22: 28 | KG22: 1408 | KH22: 2 | KI22: 52 | KJ22: 6 | KK22: 212 | KL22: 2 | KM22: 84 | KN22: 2 | KO22: 97 | KP22: 53 | KQ22: 816 | KR22: 14 | KS22: 314 | KT22: 16 | KU22: 411 | KW22: 23 | KY22: 1324 | KZ22: 2858 | LB22: 221.39 | LC22: 97.835 | LD22: 2788.4 | LE22: 468.28 | LG22: 208460 | LH22: 37.61267926 | LI22: 5542.28 | LJ22: 208460 | LK22: 198393 | LL22: 184973 | LM22: 171254 | LN22: 157087 | LO22: 142796 | LP22: 21985 | LQ22: 20154 | LR22: 17833 | LS22: 15749 | LT22: 14090 | LU22: 12551 | LV22: 114630 | LW22: 105025 | LX22: 94791 | LY22: 85429 | LZ22: 74180 | MA22: 64511 | MB22: 71845 | MC22: 73214 | MD22: 72349 | ME22: 70076 | MF22: 68817 | MG22: 65734 | MH22: 34621 | MI22: 29528 | MJ22: 26152 | MK22: 24588 | ML22: 24874 | MM22: 24414 | MN22: 23917 | MO22: 27827 | MP22: 29058 | MQ22: 24782 | MR22: 22229 | MS22: 21056 | MT22: 13307 | MU22: 15859 | MV22: 17139 | MW22: 20706 | MX22: 21714 | MY22: 20264 | MZ22: 北見市、網走市、網走郡美幌町、網走郡津別町、斜里郡斜里町、斜里郡清里町、斜里郡小清水町、常呂郡訓子府町、常呂郡置戸町、網走郡大空町 | NA22: 北見赤十字病院（標準群・救命）
A23: 18 | B23: 遠紋 | C23: 過疎地域型 | D23: 紋別郡湧別町,紋別市,紋別郡滝上町,常呂郡佐呂間町,紋別郡西興部村,紋別郡遠軽町,紋別郡雄武町,紋別郡興部町 | F23: 北海道 | G23: 北海道 | H23: 紋別（北海道） | I23: エンモン | J23: 紋別市及び周辺部 | K23: 1.342364336 | L23: 2.218733963 | M23: -0.1629625542 | N23: -0.1099817934 | O23: 0.6068633313 | P23: 0.9607466941 | Q23: -0.09048860047 | R23: -0.1896833525 | S23: -0.04080951542 | T23: 191.7158427 | U23: 996.1318011 | W23: 120 | X23: 575.7 | Y23: 20.8 | AA23: 0 | AB23: 0 | AC23: 0 | AD23: 0 | AE23: 0 | AF23: 0 | AG23: 0 | AH23: 0 | AJ23: 0 | AK23: 0 | AL23: 2 | AM23: 4 | AN23: 0 | AP23: 877 | AQ23: 92 | AR23: 352 | AS23: 139 | AT23: 196 | AU23: 98 | AW23: 533 | AX23: 46 | AY23: 186 | AZ23: 202 | BA23: 99 | BB23: 651 | BC23: 46 | BD23: 186 | BE23: 202 | BF23: 217 | BG23: 0 | BL23: 0 | BS23: 790 | BT23: 90 | BU23: 286 | BV23: 284 | BW23: 130 | BX23: 921 | BY23: 90 | BZ23: 286 | CA23: 284 | CB23: 261 | CC23: 0 | CH23: 0 | CO23: 30 | CP23: 1052 | CQ23: 1086.126646 | CR23: 1184.924619 | CS23: 1036.646277 | CU23: 92.9 | CV23: 1027.36 | CX23: 367205.9625 | CY23: 159111.8381 | CZ23: 185974.3675 | DA23: 22119.75695 | DB23: 0.9866396515 | DC23: 1.085027355 | DD23: 0.9314374132 | DE23: 0.854988764 | DF23: 0.03350189053 | DG23: -0.0367820091 | DH23: -0.01008022993 | DI23: 219890.1075 | DJ23: 4796761.014 | DK23: 24166 | DT23: 12 | DU23: 1 | DV23: 0 | DW23: 0 | DX23: 1 | DY23: 338 | DZ23: 0 | EA23: 0 | EB23: 0 | EC23: 0 | ED23: 2 | EE23: 0 | EF23: 1139 | EG23: 652 | EH23: 348 | EI23: 135 | EJ23: 0 | EK23: 0 | EL23: 4 | EM23: 80 | EN23: 91.3 | EO23: 68 | EP23: 23.3 | EQ23: 504.6 | ER23: 352.8 | ES23: 151.8 | ET23: 16 | EU23: 4.8 | EV23: 0 | EW23: 474 | EX23: 132 | EY23: 132 | EZ23: 0 | FA23: 103.598942 | FB23: 98.99036165 | FC23: 114.0015479 | FD23: 109.9514659 | FE23: 109.5582975 | FF23: 97.14869001 | FG23: 110.5223583 | FH23: 116.6890837 | FI23: 91.73884598 | FJ23: 84.39194461 | FK23: 123.6070927 | FL23: 129.4507675 | FM23: 104.969524 | FN23: 107.297613 | FO23: 111.5505063 | FP23: 114.9194632 | FQ23: 140.7648798 | FR23: 119.8853994 | FS23: 107.1473104 | FT23: 113.6364624 | FU23: 94.48396378 | FV23: 87.25349725 | FW23: 113.9930118 | FX23: 130.0806469 | FY23: 104.7402759 | FZ23: 92.76787786 | GA23: 103.4383509 | GB23: 120.1364869 | GC23: 131.7485401 | GD23: 111.3406533 | GE23: 100.6610054 | GF23: 75.18161864 | GG23: 101.1192124 | GH23: 110.4277958 | GI23: 113.6845707 | GJ23: 89.13293934 | GK23: 1.4 | GL23: 26 | GM23: -24.6 | GN23: 2.4 | GO23: 27.8 | GP23: -25.4 | GQ23: 0 | GR23: 10 | GS23: -10 | GT23: 0 | GU23: 10 | GV23: 0 | GW23: 0 | GX23: 0 | GY23: 34.6 | HA23: 32 | HB23: 3 | HC23: 29 | HD23: 43 | HE23: 32 | HF23: 11 | HG23: 28.7 | HH23: 24 | HI23: 4.7 | HJ23: 71.1 | HK23: 32.4 | HL23: 38.7 | HN23: 86 | HP23: 4 | HQ23: 0 | HR23: 6 | HS23: 10 | HT23: 0 | HU23: 1 | HV23: 0 | HW23: 2 | HX23: 2 | HY23: 0 | HZ23: 3 | IA23: 0 | IB23: 2 | IC23: 0 | ID23: 4 | IE23: 0 | IF23: 1 | IG23: 14 | IH23: 0 | II23: 0 | IJ23: 0 | IK23: 0 | IL23: 5 | IM23: 1 | IN23: 0 | IO23: 6 | IP23: 0 | IQ23: 1 | IR23: 0 | IS23: 0 | IT23: 3 | IU23: 2 | IV23: 0 | IW23: 3 | IX23: 0 | IY23: 5 | IZ23: 1 | JA23: 0 | JB23: 0 | JC23: 0 | JD23: 3 | JE23: 1 | JF23: 0 | JG23: 0 | JH23: 0 | JI23: 0 | JJ23: 1 | JK23: 0 | JL23: 1 | JM23: 0 | JN23: 0 | JO23: 0 | JP23: 1 | JQ23: 0 | JR23: 0 | JS23: 0 | JU23: 1 | JV23: 1 | JW23: 9 | JX23: 149 | JY23: 0 | JZ23: 0 | KB23: 0 | KC23: 0 | KD23: 3 | KE23: 226 | KF23: 13 | KG23: 531 | KH23: 1 | KI23: 56 | KJ23: 1 | KK23: 50 | KL23: 0 | KM23: 0 | KN23: 0 | KO23: 0 | KP23: 12 | KQ23: 189 | KR23: 2 | KS23: 62 | KT23: 2 | KU23: 62 | KW23: 4 | KY23: 292 | KZ23: 834 | LB23: 71.2 | LC23: 21.7 | LD23: 903 | LE23: 124.36 | LG23: 64902 | LH23: 12.6066139 | LI23: 5148.25 | LJ23: 64902 | LK23: 59055 | LL23: 53253 | LM23: 47704 | LN23: 42381 | LO23: 37352 | LP23: 6444 | LQ23: 5706 | LR23: 4854 | LS23: 4114 | LT23: 3514 | LU23: 3005 | LV23: 34114 | LW23: 29737 | LX23: 26177 | LY23: 22962 | LZ23: 19559 | MA23: 16628 | MB23: 24344 | MC23: 23612 | MD23: 22222 | ME23: 20628 | MF23: 19308 | MG23: 17719 | MH23: 11081 | MI23: 9344 | MJ23: 7986 | MK23: 7229 | ML23: 6921 | MM23: 6505 | MN23: 8410 | MO23: 8910 | MP23: 8837 | MQ23: 7409 | MR23: 6405 | MS23: 5847 | MT23: 4853 | MU23: 5358 | MV23: 5399 | MW23: 5990 | MX23: 5982 | MY23: 5367 | MZ23: 紋別市、常呂郡佐呂間町、紋別郡遠軽町、紋別郡湧別町、紋別郡滝上町、紋別郡興部町、紋別郡西興部村、紋別郡雄武町
A24: 19 | B24: 十勝 | C24: 地方都市型 | D24: 広尾郡広尾町,広尾郡大樹町,帯広市,河東郡音更町,河東郡士幌町,河東郡上士幌町,河東郡鹿追町,上川郡新得町,上川郡清水町,河西郡更別村,中川郡幕別町,中川郡池田町,中川郡豊頃町,中川郡本別町,足寄郡足寄町,足寄郡陸別町,十勝郡浦幌町,河西郡中札内村,河西郡芽室町 | F24: 北海道 | G24: 北海道 | H24: 帯広（北海道） | I24: トカチ | J24: 帯広市及び周辺部 | K24: 1.577795474 | L24: 1.160937588 | M24: 0.1151760898 | N24: -0.1758846349 | O24: 0.7253193053 | P24: 1.125081961 | Q24: 0.1803204263 | R24: -0.03623867635 | S24: -0.08931122359 | T24: 194.9257062 | U24: 958.2134257 | W24: 735.1 | X24: 3455.4 | Y24: 489.1 | AA24: 18 | AB24: 12 | AC24: 0 | AD24: 9 | AE24: 0 | AF24: 0 | AG24: 9 | AH24: 0 | AJ24: 0 | AK24: 0 | AL24: 1 | AM24: 6 | AN24: 0 | AP24: 4255 | AQ24: 267 | AR24: 1583 | AS24: 1004 | AT24: 1250 | AU24: 151 | AW24: 3903 | AX24: 363 | AY24: 1141 | AZ24: 1168 | BA24: 1231 | BB24: 4029 | BC24: 363 | BD24: 1141 | BE24: 1168 | BF24: 1357 | BG24: 0 | BL24: 0 | BS24: 3989 | BT24: 383 | BU24: 1176 | BV24: 1200 | BW24: 1230 | BX24: 4115 | BY24: 383 | BZ24: 1176 | CA24: 1200 | CB24: 1356 | CC24: 0 | CH24: 0 | CO24: 152 | CP24: 5563 | CQ24: 4156.595118 | CR24: 5254.766328 | CS24: 5523.897215 | CU24: 477.78 | CV24: 5425.1875 | CX24: 353940.9463 | CY24: 132345.0758 | CZ24: 194285.801 | DA24: 27310.06946 | DB24: 0.9649883784 | DC24: 0.9165003703 | DD24: 0.9875842627 | DE24: 1.064652459 | DF24: -0.03287388012 | DG24: -0.006659332398 | DH24: 0.004521590923 | DI24: 258087.517 | DJ24: 22878434.15 | DK24: 94298 | DT24: 33 | DU24: 8 | DV24: 0 | DW24: 1 | DX24: 7 | DY24: 1788 | DZ24: 0 | EA24: 1 | EB24: 2 | EC24: 1 | ED24: 2 | EE24: 1 | EF24: 4667 | EG24: 3166 | EH24: 1014 | EI24: 467 | EJ24: 14 | EK24: 320 | EL24: 6 | EM24: 422 | EN24: 523.1 | EO24: 403 | EP24: 120.1 | EQ24: 2847.9 | ER24: 2392.6 | ES24: 455.3 | ET24: 296.1 | EU24: 156.1 | EV24: 36.9 | EW24: 6641 | EX24: 2076 | EY24: 2076 | EZ24: 0 | FA24: 95.81002125 | FB24: 94.94386557 | FC24: 104.7510977 | FD24: 110.3928161 | FE24: 101.0280877 | FF24: 102.1206558 | FG24: 102.6258894 | FH24: 109.1115103 | FI24: 100.622894 | FJ24: 104.1017537 | FK24: 111.0039092 | FL24: 118.6960778 | FM24: 100.9773574 | FN24: 98.6859871 | FO24: 110.0906535 | FP24: 108.6093812 | FQ24: 107.4993267 | FR24: 97.63656475 | FS24: 86.68292162 | FT24: 82.66442666 | FU24: 82.77826595 | FV24: 77.03971053 | FW24: 91.48531332 | FX24: 87.61932784 | FY24: 91.67439177 | FZ24: 89.52350306 | GA24: 80.28286028 | GB24: 104.0464552 | GC24: 130.0652977 | GD24: 132.2006357 | GE24: 68.63512945 | GF24: 78.74144835 | GG24: 102.00744 | GH24: 84.66996147 | GI24: 118.3602486 | GJ24: 118.2020257 | GK24: 2.6 | GL24: 5.1 | GM24: -2.5 | GN24: 3.4 | GO24: 5.6 | GP24: -2.2 | GQ24: 0.9 | GR24: 1.6 | GS24: -0.7 | GT24: 0.9 | GU24: 1.6 | GV24: 0 | GW24: 0 | GX24: 2.1 | GY24: 11.6 | HA24: 199 | HB24: 23 | HC24: 176 | HD24: 290 | HE24: 268 | HF24: 22 | HG24: 212 | HH24: 167 | HI24: 45 | HJ24: 607.5 | HK24: 348.7 | HL24: 258.8 | HN24: 600 | HP24: 52 | HQ24: 7 | HR24: 29 | HS24: 45 | HT24: 0 | HU24: 9 | HV24: 5 | HW24: 6 | HX24: 2 | HY24: 4 | HZ24: 8 | IA24: 6 | IB24: 12 | IC24: 0 | ID24: 24 | IE24: 1 | IF24: 18 | IG24: 46 | IH24: 4 | II24: 7 | IJ24: 3 | IK24: 1 | IL24: 10 | IM24: 16 | IN24: 23 | IO24: 36 | IP24: 8 | IQ24: 15 | IR24: 15 | IS24: 0 | IT24: 18 | IU24: 1 | IV24: 6 | IW24: 22 | IX24: 2 | IY24: 8 | IZ24: 0 | JA24: 0 | JB24: 4 | JC24: 4 | JD24: 23 | JE24: 0 | JF24: 7 | JG24: 0 | JH24: 4 | JI24: 3 | JJ24: 1 | JK24: 2 | JL24: 3 | JM24: 0 | JN24: 2 | JO24: 1 | JP24: 2 | JQ24: 0 | JR24: 1 | JS24: 0 | JU24: 21 | JV24: 9 | JW24: 56 | JX24: 2768 | JY24: 8 | JZ24: 23 | KB24: 0 | KC24: 0 | KD24: 16 | KE24: 1342 | KF24: 41 | KG24: 1984 | KH24: 1 | KI24: 46 | KJ24: 0 | KK24: 0 | KL24: 11 | KM24: 777 | KN24: 4 | KO24: 221 | KP24: 79 | KQ24: 1193 | KR24: 22 | KS24: 773 | KT24: 26 | KU24: 994 | KW24: 29 | KY24: 1393 | KZ24: 3535 | LB24: 367.56 | LC24: 110.22 | LD24: 4922.9275 | LE24: 502.26 | LG24: 332648 | LH24: 30.72097997 | LI24: 10828.04 | LJ24: 332648 | LK24: 325611 | LL24: 314077 | LM24: 301722 | LN24: 288298 | LO24: 273725 | LP24: 38774 | LQ24: 37081 | LR24: 34257 | LS24: 31780 | LT24: 29963 | LU24: 28166 | LV24: 187792 | LW24: 177836 | LX24: 167232 | LY24: 156878 | LZ24: 143146 | MA24: 131897 | MB24: 106082 | MC24: 110694 | MD24: 112588 | ME24: 113064 | MF24: 115189 | MG24: 113662 | MH24: 50600 | MI24: 44971 | MJ24: 41503 | MK24: 41276 | ML24: 43365 | MM24: 43061 | MN24: 35686 | MO24: 41448 | MP24: 43959 | MQ24: 38903 | MR24: 36387 | MS24: 36583 | MT24: 19796 | MU24: 24275 | MV24: 27126 | MW24: 32885 | MX24: 35437 | MY24: 34018 | MZ24: 帯広市、河東郡音更町、河東郡士幌町、河東郡上士幌町、河東郡鹿追町、上川郡新得町、上川郡清水町、河西郡芽室町、河西郡中札内村、河西郡更別村、広尾郡大樹町、広尾郡広尾町、中川郡幕別町、中川郡池田町、中川郡豊頃町、中川郡本別町、足寄郡足寄町、足寄郡陸別町、十勝郡浦幌町 | NA24: 帯広厚生病院（特定群・救命） | NB24: 帯広協会病院（標準群）、北斗病院（標準群）
A25: 20 | B25: 釧路 | C25: 地方都市型 | D25: 白糠郡白糠町,阿寒郡鶴居村,厚岸郡浜中町,釧路市,川上郡弟子屈町,川上郡標茶町,厚岸郡厚岸町,釧路郡釧路町 | F25: 北海道 | G25: 北海道 | H25: 釧路（北海道） | I25: クシロ | J25: 釧路市及び周辺部 | K25: 1.886517977 | L25: 1.212722746 | M25: -0.01524318794 | N25: -0.2035376493 | O25: 0.7136126994 | P25: 1.355505672 | Q25: 0.06617984439 | R25: -0.1532017355 | S25: -0.1070133031 | T25: 187.2336042 | U25: 1186.75715 | W25: 484 | X25: 2786 | Y25: 276.3 | AA25: 16 | AB25: 18 | AC25: 3 | AD25: 12 | AE25: 15 | AF25: 0 | AG25: 0 | AH25: 0 | AJ25: 0 | AK25: 0 | AL25: 1 | AM25: 4 | AN25: 10 | AP25: 3639 | AQ25: 399 | AR25: 1655 | AS25: 409 | AT25: 1156 | AU25: 20 | AW25: 2866 | AX25: 355 | AY25: 1139 | AZ25: 852 | BA25: 520 | BB25: 3113 | BC25: 355 | BD25: 1139 | BE25: 852 | BF25: 767 | BG25: 0 | BL25: 0 | BS25: 2606 | BT25: 312 | BU25: 1022 | BV25: 764 | BW25: 508 | BX25: 2848 | BY25: 312 | BZ25: 1022 | CA25: 764 | CB25: 750 | CC25: 0 | CH25: 0 | CO25: 92 | CP25: 3368 | CQ25: 2820.13687 | CR25: 3482.669241 | CS25: 3343.180175 | CU25: 334.59 | CV25: 3665.35 | CX25: 399272.2124 | CY25: 164523.286 | CZ25: 208055.0586 | DA25: 26693.86773 | DB25: 1.028172513 | DC25: 1.073259408 | DD25: 0.9985400155 | DE25: 1.000536889 | DF25: 0.02891898051 | DG25: -0.0007833537902 | DH25: 3.688588481e-05 | DI25: 242784.7091 | DJ25: 15921506.31 | DK25: 68603 | DT25: 22 | DU25: 4 | DV25: 0 | DW25: 0 | DX25: 4 | DY25: 1926 | DZ25: 0 | EA25: 1 | EB25: 2 | EC25: 2 | ED25: 2 | EE25: 1 | EF25: 3903 | EG25: 2453 | EH25: 914 | EI25: 522 | EJ25: 10 | EK25: 93 | EL25: 4 | EM25: 297 | EN25: 363 | EO25: 299 | EP25: 64 | EQ25: 2411.4 | ER25: 2122.1 | ES25: 289.3 | ET25: 154.3 | EU25: 93.2 | EV25: 28.8 | EW25: 7768 | EX25: 1356 | EY25: 1356 | EZ25: 0 | FA25: 109.5661129 | FB25: 104.349585 | FC25: 120.663961 | FD25: 122.098469 | FE25: 110.257145 | FF25: 108.9371562 | FG25: 115.5433855 | FH25: 126.7432769 | FI25: 102.1236235 | FJ25: 119.2619096 | FK25: 129.8072549 | FL25: 133.2112806 | FM25: 109.1721484 | FN25: 105.2973625 | FO25: 78.46111054 | FP25: 76.22723797 | FQ25: 103.6650733 | FR25: 111.0394137 | FS25: 94.3290602 | FT25: 87.1943036 | FU25: 96.68748944 | FV25: 88.45546271 | FW25: 96.71314051 | FX25: 90.09104085 | FY25: 108.6800276 | FZ25: 97.46471446 | GA25: 98.76323457 | GB25: 107.9484845 | GC25: 168.1130578 | GD25: 156.3450174 | GE25: 95.14650216 | GF25: 95.0595764 | GG25: 102.838527 | GH25: 100.5414179 | GI25: 113.4720089 | GJ25: 88.60100441 | GK25: 10.9 | GL25: 5.4 | GM25: 5.5 | GN25: 13.2 | GO25: 6 | GP25: 7.2 | GQ25: 8.7 | GR25: 2 | GS25: 6.7 | GT25: 8.9 | GU25: 2.1 | GV25: 0 | GW25: 0 | GX25: 4.5 | GY25: 9.1 | HA25: 103 | HB25: 12 | HC25: 91 | HD25: 170 | HE25: 150 | HF25: 20 | HG25: 121 | HH25: 91 | HI25: 30 | HJ25: 374.6 | HK25: 204.3 | HL25: 170.3 | HN25: 425 | HP25: 23 | HQ25: 5 | HR25: 11 | HS25: 27 | HT25: 3 | HU25: 6 | HV25: 3 | HW25: 4 | HX25: 3 | HY25: 4 | HZ25: 7 | IA25: 1 | IB25: 2 | IC25: 0 | ID25: 11 | IE25: 0 | IF25: 11 | IG25: 28 | IH25: 2 | II25: 4 | IJ25: 3 | IK25: 0 | IL25: 10 | IM25: 12 | IN25: 17 | IO25: 23 | IP25: 2 | IQ25: 7 | IR25: 9 | IS25: 0 | IT25: 14 | IU25: 0 | IV25: 3 | IW25: 9 | IX25: 2 | IY25: 5 | IZ25: 0 | JA25: 1 | JB25: 4 | JC25: 0 | JD25: 12 | JE25: 1 | JF25: 2 | JG25: 0 | JH25: 0 | JI25: 2 | JJ25: 0 | JK25: 0 | JL25: 0 | JM25: 0 | JN25: 0 | JO25: 1 | JP25: 0 | JQ25: 1 | JR25: 0 | JS25: 0 | JU25: 8 | JV25: 3 | JW25: 23 | JX25: 2257 | JY25: 5 | JZ25: 15 | KB25: 1 | KC25: 20 | KD25: 7 | KE25: 597 | KF25: 17 | KG25: 1163 | KH25: 0 | KI25: 0 | KJ25: 2 | KK25: 100 | KL25: 14 | KM25: 707 | KN25: 0 | KO25: 0 | KP25: 51 | KQ25: 781 | KR25: 10 | KS25: 295 | KT25: 10 | KU25: 295 | KW25: 18 | KY25: 1085 | KZ25: 3055 | LB25: 216.65 | LC25: 117.94 | LD25: 3073.15 | LE25: 592.2 | LG25: 222613 | LH25: 37.11775612 | LI25: 5997.48 | LJ25: 222613 | LK25: 208707 | LL25: 193642 | LM25: 178282 | LN25: 162733 | LO25: 147313 | LP25: 22660 | LQ25: 20202 | LR25: 17894 | LS25: 15757 | LT25: 14031 | LU25: 12396 | LV25: 123180 | LW25: 111734 | LX25: 100981 | LY25: 90540 | LZ25: 78370 | MA25: 68316 | MB25: 76773 | MC25: 76771 | MD25: 74767 | ME25: 71985 | MF25: 70332 | MG25: 66601 | MH25: 38209 | MI25: 32647 | MJ25: 27744 | MK25: 26309 | ML25: 27027 | MM25: 25933 | MN25: 25774 | MO25: 29118 | MP25: 30608 | MQ25: 26190 | MR25: 22567 | MS25: 21608 | MT25: 12790 | MU25: 15006 | MV25: 16415 | MW25: 19486 | MX25: 20738 | MY25: 19060 | MZ25: 釧路市、釧路郡釧路町、厚岸郡厚岸町、厚岸郡浜中町、川上郡標茶町、川上郡弟子屈町、阿寒郡鶴居村、白糠郡白糠町 | NA25: 市立釧路総合病院（標準群・救命） | NB25: 釧路労災病院（標準群）、釧路赤十字病院（標準群） | NC25: 釧路孝仁会記念病院（標準群）
A26: 21 | B26: 根室 | C26: 過疎地域型 | D26: 根室市,野付郡別海町,標津郡中標津町,標津郡標津町,目梨郡羅臼町 | F26: 北海道 | G26: 北海道 | H26: 根室（北海道） | I26: ネムロ | J26: 根室市及び周辺部 | K26: 0.4569711261 | L26: 1.298076737 | M26: -0.2519276787 | N26: -0.6257970759 | O26: 0.394665832 | P26: 0.6649151751 | Q26: -0.1430548879 | R26: -0.4108864663 | S26: -0.4844110613 | T26: 106.5772264 | U26: 623.4055503 | W26: 86.3 | X26: 440.6 | Y26: 34 | AA26: 0 | AB26: 0 | AC26: 0 | AD26: 0 | AE26: 0 | AF26: 0 | AG26: 0 | AH26: 0 | AJ26: 0 | AK26: 0 | AL26: 1 | AM26: 4 | AN26: 0 | AP26: 497 | AQ26: 0 | AR26: 387 | AS26: 0 | AT26: 110 | AU26: 0 | AW26: 323 | AX26: 20 | AY26: 97 | AZ26: 122 | BA26: 84 | BB26: 337 | BC26: 20 | BD26: 97 | BE26: 122 | BF26: 98 | BG26: 0 | BL26: 0 | BS26: 696 | BT26: 83 | BU26: 253 | BV26: 235 | BW26: 125 | BX26: 715 | BY26: 83 | BZ26: 253 | CA26: 235 | CB26: 144 | CC26: 0 | CH26: 0 | CO26: 25 | CP26: 852 | CQ26: 828.7147937 | CR26: 1022.892688 | CS26: 1076.198019 | CU26: 56.2 | CV26: 902.87 | CX26: 318626.8727 | CY26: 138728.7798 | CZ26: 157867.5926 | DA26: 22030.5003 | DB26: 0.946921329 | DC26: 1.04983388 | DD26: 0.8762844474 | DE26: 0.9108043105 | DF26: 0.01957051192 | DG26: -0.06623746145 | DH26: -0.006411721462 | DI26: 199058.7311 | DJ26: 3936075.337 | DK26: 19817 | DT26: 7 | DU26: 0 | DV26: 0 | DW26: 0 | DX26: 0 | DY26: 314 | DZ26: 0 | EA26: 0 | EB26: 0 | EC26: 0 | ED26: 1 | EE26: 0 | EF26: 702 | EG26: 423 | EH26: 60 | EI26: 215 | EJ26: 0 | EK26: 0 | EL26: 4 | EM26: 42 | EN26: 63 | EO26: 51 | EP26: 12 | EQ26: 376.7 | ER26: 296.3 | ES26: 80.4 | ET26: 19 | EU26: 12 | EV26: 3 | EW26: 415 | EX26: 240 | EY26: 240 | EZ26: 0 | FA26: 106.0560019 | FB26: 109.0867902 | FC26: 112.6976692 | FD26: 109.6034696 | FE26: 117.7241809 | FF26: 101.9589441 | FG26: 111.9934024 | FH26: 109.0501775 | FI26: 96.50361041 | FJ26: 86.10266692 | FK26: 118.5459391 | FL26: 133.7450492 | FM26: 120.4630278 | FN26: 129.5632662 | FO26: 102.6250932 | FP26: 117.8088932 | FQ26: 140.7074297 | FR26: 156.9533453 | FS26: 106.2725607 | FT26: 112.1751369 | FU26: 104.3638845 | FV26: 116.1558672 | FW26: 108.0473306 | FX26: 108.4924816 | FY26: 89.5389048 | FZ26: 93.91608353 | GA26: 91.54202848 | GB26: 0 | GC26: 161.6767508 | GD26: 198.5030693 | GE26: 90.9664428 | GF26: 73.98800278 | GG26: 110.5599791 | GH26: 89.76890251 | GI26: 121.8102072 | GJ26: 99.2956438 | GK26: 1.8 | GL26: 39.3 | GM26: -37.5 | GN26: 2.2 | GO26: 50.1 | GP26: -47.9 | GQ26: 3 | GR26: 40.3 | GS26: -37.3 | GT26: 3 | GU26: 40.3 | GV26: 0 | GW26: 0 | GX26: 1 | GY26: 12.4 | HA26: 23 | HB26: 3 | HC26: 20 | HD26: 28 | HE26: 28 | HF26: 0 | HG26: 23.3 | HH26: 13 | HI26: 10.3 | HJ26: 63.9 | HK26: 31 | HL26: 32.9 | HN26: 72 | HP26: 6 | HQ26: 1 | HR26: 1 | HS26: 9 | HT26: 0 | HU26: 5 | HV26: 1 | HW26: 0 | HX26: 0 | HY26: 2 | HZ26: 2 | IA26: 3 | IB26: 1 | IC26: 1 | ID26: 6 | IE26: 0 | IF26: 3 | IG26: 9 | IH26: 0 | II26: 0 | IJ26: 0 | IK26: 0 | IL26: 6 | IM26: 0 | IN26: 1 | IO26: 3 | IP26: 0 | IQ26: 1 | IR26: 1 | IS26: 0 | IT26: 5 | IU26: 1 | IV26: 1 | IW26: 2 | IX26: 0 | IY26: 1 | IZ26: 1 | JA26: 1 | JB26: 0 | JC26: 0 | JD26: 6 | JE26: 0 | JF26: 2 | JG26: 0 | JH26: 0 | JI26: 0 | JJ26: 1 | JK26: 0 | JL26: 1 | JM26: 0 | JN26: 0 | JO26: 0 | JP26: 0 | JQ26: 0 | JR26: 0 | JS26: 0 | JU26: 0 | JV26: 2 | JW26: 9 | JX26: 147 | JY26: 0 | JZ26: 0 | KB26: 0 | KC26: 0 | KD26: 2 | KE26: 120 | KF26: 7 | KG26: 347 | KH26: 1 | KI26: 60 | KJ26: 0 | KK26: 0 | KL26: 1 | KM26: 40 | KN26: 1 | KO26: 54 | KP26: 13 | KQ26: 231 | KR26: 2 | KS26: 40 | KT26: 3 | KU26: 94 | KW26: 5 | KY26: 111 | KZ26: 408 | LB26: 44.4 | LC26: 11.8 | LD26: 824.11 | LE26: 78.76 | LG26: 71771 | LH26: 20.31354368 | LI26: 3533.16 | LJ26: 71771 | LK26: 67104 | LL26: 62151 | LM26: 57182 | LN26: 52154 | LO26: 47159 | LP26: 8486 | LQ26: 7737 | LR26: 6747 | LS26: 5832 | LT26: 5057 | LU26: 4374 | LV26: 41252 | LW26: 37194 | LX26: 33503 | LY26: 30006 | LZ26: 26132 | MA26: 22724 | MB26: 22033 | MC26: 22173 | MD26: 21901 | ME26: 21344 | MF26: 20965 | MG26: 20061 | MH26: 11063 | MI26: 9975 | MJ26: 8744 | MK26: 8316 | ML26: 8310 | MM26: 8008 | MN26: 7408 | MO26: 8115 | MP26: 8736 | MQ26: 7826 | MR26: 6970 | MS26: 6700 | MT26: 3562 | MU26: 4083 | MV26: 4421 | MW26: 5202 | MX26: 5685 | MY26: 5353 | MZ26: 根室市、野付郡別海町、標津郡中標津町、標津郡標津町、目梨郡羅臼町
A27: 22 | B27: 津軽地域 | C27: 地方都市型 | D27: 南津軽郡藤崎町,南津軽郡大鰐町,弘前市,平川市,南津軽郡田舎館村,北津軽郡板柳町,中津軽郡西目屋村,黒石市 | F27: 青森県 | G27: 東北 | H27: 弘前（青森） | I27: ツガルチイキ | J27: 弘前市、黒石市及び周辺部 | K27: 1.315450235 | L27: 0.6603187379 | M27: 0.06956902464 | N27: -0.04414169564 | O27: 1.199435017 | P27: 1.292494539 | Q27: 0.1064039944 | R27: -0.01337489438 | S27: -0.002805015359 | T27: 310.3137222 | U27: 1099.267339 | W27: 1006.8 | X27: 3287.7 | Y27: 278.8 | AA27: 10 | AB27: 16 | AC27: 18 | AD27: 0 | AE27: 9 | AF27: 0 | AG27: 0 | AH27: 0 | AJ27: 0 | AK27: 0 | AL27: 1 | AM27: 6 | AN27: 0 | AP27: 3611 | AQ27: 480 | AR27: 1815 | AS27: 539 | AT27: 654 | AU27: 123 | AW27: 0 | BB27: 3139 | BC27: 318 | BD27: 1110 | BE27: 1244 | BF27: 467 | BG27: 0 | BL27: 0 | BS27: 0 | BX27: 0 | CC27: 0 | CH27: 0 | CO27: 120 | CP27: 4132 | CQ27: 3708.423423 | CR27: 4205.505812 | CS27: 4161.640814 | CU27: 451.4 | CV27: 4813.759 | CX27: 359242.4848 | CY27: 141504.5523 | CZ27: 197180.7013 | DA27: 20557.23115 | DB27: 0.9495129462 | DC27: 0.9447357966 | DD27: 0.9739872721 | DE27: 0.787183508 | DF27: -0.02187848038 | DG27: -0.0139190701 | DH27: -0.01468950331 | DI27: 291403.4068 | DJ27: 26410213.58 | DK27: 85264 | DT27: 21 | DU27: 6 | DV27: 1 | DW27: 0 | DX27: 5 | DY27: 1890 | DZ27: 1 | EA27: 1 | EB27: 0 | EC27: 1 | ED27: 2 | EE27: 0 | EF27: 4207 | EG27: 2784 | EH27: 548 | EI27: 869 | EJ27: 0 | EK27: 102 | EL27: 6 | EM27: 181 | EN27: 743 | EO27: 637 | EP27: 106 | EQ27: 2441.9 | ER27: 2191.4 | ES27: 250.5 | ET27: 129.7 | EU27: 115.9 | EV27: 33.2 | EW27: 5946 | EX27: 1824 | EY27: 1128 | EZ27: 696 | FA27: 122.3072635 | FB27: 111.6670111 | FC27: 124.3631489 | FD27: 117.0848242 | FE27: 138.9589233 | FF27: 125.3314 | FG27: 150.7761133 | FH27: 132.8067718 | FI27: 135.4009051 | FJ27: 131.6990354 | FK27: 116.4210983 | FL27: 99.34777654 | FM27: 128.2730411 | FN27: 113.7138745 | FO27: 150.0318866 | FP27: 131.2979795 | FQ27: 139.3240289 | FR27: 133.4817964 | FS27: 134.7531443 | FT27: 119.7389538 | FU27: 133.4363449 | FV27: 100.9917527 | FW27: 137.0808379 | FX27: 128.6387918 | FY27: 139.0788945 | FZ27: 121.3383864 | GA27: 109.5645625 | GB27: 121.3271512 | GC27: 132.663093 | GD27: 138.8688056 | GE27: 116.4409082 | GF27: 103.7909787 | GG27: 130.4945576 | GH27: 103.2532623 | GI27: 122.2942466 | GJ27: 89.80078567 | GK27: 17.3 | GL27: 5.3 | GM27: 12 | GN27: 17.1 | GO27: 6.9 | GP27: 10.2 | GQ27: 15.6 | GR27: 1.1 | GS27: 14.5 | GT27: 15.6 | GU27: 0.6 | GV27: 0 | GW27: 100 | GX27: 18.7 | GY27: 1.9 | HA27: 218 | HB27: 45 | HC27: 173 | HD27: 643 | HE27: 596 | HF27: 47 | HG27: 263.8 | HH27: 209 | HI27: 54.8 | HJ27: 845.8 | HK27: 391.2 | HL27: 454.6 | HN27: 578 | HP27: 83 | HQ27: 16 | HR27: 30 | HS27: 46 | HT27: 14 | HU27: 14 | HV27: 8 | HW27: 21 | HX27: 7 | HY27: 11 | HZ27: 19 | IA27: 10 | IB27: 10 | IC27: 4 | ID27: 38 | IE27: 4 | IF27: 23 | IG27: 66 | IH27: 4 | II27: 10 | IJ27: 4 | IK27: 0 | IL27: 18 | IM27: 20 | IN27: 15 | IO27: 52 | IP27: 7 | IQ27: 23 | IR27: 19 | IS27: 2 | IT27: 34 | IU27: 6 | IV27: 21 | IW27: 25 | IX27: 6 | IY27: 13 | IZ27: 1 | JA27: 9 | JB27: 13 | JC27: 1 | JD27: 39 | JE27: 2 | JF27: 1 | JG27: 0 | JH27: 6 | JI27: 1 | JJ27: 3 | JK27: 2 | JL27: 5 | JM27: 5 | JN27: 2 | JO27: 3 | JP27: 3 | JQ27: 2 | JR27: 2 | JS27: 1 | JU27: 27 | JV27: 2 | JW27: 43 | JX27: 2810 | JY27: 18 | JZ27: 34 | KB27: 1 | KC27: 10 | KD27: 15 | KE27: 1407 | KF27: 24 | KG27: 1311 | KH27: 3 | KI27: 126 | KJ27: 1 | KK27: 30 | KL27: 0 | KM27: 0 | KN27: 0 | KO27: 0 | KP27: 76 | KQ27: 1248 | KR27: 40 | KS27: 834 | KT27: 40 | KU27: 834 | KW27: 33 | KY27: 897 | KZ27: 5287 | LB27: 292.6 | LC27: 158.8 | LD27: 3448.939 | LE27: 1364.82 | LG27: 275508 | LH27: 172.3831989 | LI27: 1598.23 | LJ27: 275508 | LK27: 258466 | LL27: 240814 | LM27: 222935 | LN27: 204642 | LO27: 186242 | LP27: 28434 | LQ27: 25643 | LR27: 22859 | LS27: 20223 | LT27: 17946 | LU27: 15712 | LV27: 154404 | LW27: 140807 | LX27: 127162 | LY27: 114741 | LZ27: 101097 | MA27: 88393 | MB27: 92670 | MC27: 92016 | MD27: 90793 | ME27: 87971 | MF27: 85599 | MG27: 82137 | MH27: 44619 | MI27: 39668 | MJ27: 36220 | MK27: 33772 | ML27: 32710 | MM27: 31880 | MN27: 30855 | MO27: 33968 | MP27: 35791 | MQ27: 32174 | MR27: 29819 | MS27: 28026 | MT27: 17196 | MU27: 18380 | MV27: 18782 | MW27: 22025 | MX27: 23070 | MY27: 22231 | MZ27: 弘前市、黒石市、平川市、中津軽郡西目屋村、南津軽郡藤崎町、南津軽郡大鰐町、南津軽郡田舎館村、北津軽郡板柳町 | NA27: 弘前大学医学部附属病院（大学本院群・救命） | NC27: NHO国立病院機構弘前総合医療センター（標準群）、健生病院（標準群）
A28: 23 | B28: 八戸地域 | C28: 地方都市型 | D28: 八戸市,上北郡おいらせ町,三戸郡三戸町,三戸郡五戸町,三戸郡田子町,三戸郡南部町,三戸郡階上町,三戸郡新郷村 | F28: 青森県 | G28: 東北 | H28: 八戸（青森） | I28: ハチノヘチイキ | J28: 八戸市及び周辺部 | K28: 1.163402167 | L28: 0.5457612527 | M28: -0.07861964293 | N28: -0.4205983905 | O28: 0.7660721412 | P28: 1.180070502 | Q28: -0.03891154502 | R28: -0.3054621906 | S28: -0.3683007521 | T28: 207.7569216 | U28: 970.1436858 | W28: 724.2 | X28: 3380.6 | Y28: 357.7 | AA28: 30 | AB28: 0 | AC28: 12 | AD28: 0 | AE28: 0 | AF28: 8 | AG28: 0 | AH28: 0 | AJ28: 0 | AK28: 0 | AL28: 1 | AM28: 6 | AN28: 0 | AP28: 3441 | AQ28: 116 | AR28: 1794 | AS28: 535 | AT28: 658 | AU28: 338 | AW28: 0 | BB28: 3231 | BC28: 323 | BD28: 1122 | BE28: 1082 | BF28: 704 | BG28: 0 | BL28: 0 | BS28: 0 | BX28: 0 | CC28: 0 | CH28: 0 | CO28: 107 | CP28: 3481 | CQ28: 3788.910405 | CR28: 4761.020609 | CS28: 4990.192843 | CU28: 532.07 | CV28: 4563.62 | CX28: 372149.5414 | CY28: 143918.943 | CZ28: 203939.4966 | DA28: 24291.10179 | DB28: 0.9524810375 | DC28: 0.9314788002 | DD28: 0.9736153248 | DE28: 0.9082859108 | DF28: -0.0270962253 | DG28: -0.01414505188 | DH28: -0.006277685346 | DI28: 280838.1263 | DJ28: 25947196.2 | DK28: 89969 | DT28: 27 | DU28: 4 | DV28: 0 | DW28: 0 | DX28: 4 | DY28: 1633 | DZ28: 0 | EA28: 1 | EB28: 3 | EC28: 1 | ED28: 1 | EE28: 1 | EF28: 4494 | EG28: 2608 | EH28: 493 | EI28: 1387 | EJ28: 0 | EK28: 164 | EL28: 6 | EM28: 206 | EN28: 450.2 | EO28: 375 | EP28: 75.2 | EQ28: 2494.7 | ER28: 2232.9 | ES28: 261.8 | ET28: 173.5 | EU28: 151.6 | EV28: 32.6 | EW28: 5803 | EX28: 2484 | EY28: 1560 | EZ28: 924 | FA28: 116.0961378 | FB28: 108.6619423 | FC28: 111.4036335 | FD28: 105.9046591 | FE28: 105.4139012 | FF28: 98.17260701 | FG28: 127.5686672 | FH28: 122.9977716 | FI28: 102.5758806 | FJ28: 82.10117115 | FK28: 107.3074653 | FL28: 95.32081476 | FM28: 106.683642 | FN28: 106.2721729 | FO28: 94.27818499 | FP28: 90.51538944 | FQ28: 95.55663821 | FR28: 113.0698431 | FS28: 143.0735618 | FT28: 139.3829652 | FU28: 142.1204934 | FV28: 111.9094609 | FW28: 151.9349945 | FX28: 153.3789653 | FY28: 120.3439563 | FZ28: 112.5128533 | GA28: 107.0906547 | GB28: 100.9273195 | GC28: 165.9672377 | GD28: 143.32096 | GE28: 112.8370941 | GF28: 95.19025866 | GG28: 115.6898822 | GH28: 99.06053755 | GI28: 123.6761952 | GJ28: 94.47964654 | GK28: 12.8 | GL28: 8.7 | GM28: 4.1 | GN28: 15.7 | GO28: 10.9 | GP28: 4.8 | GQ28: 6.8 | GR28: 2.4 | GS28: 4.4 | GT28: 5.9 | GU28: 2.7 | GV28: 11.5 | GW28: 0 | GX28: 10.3 | GY28: 6.9 | HA28: 197 | HB28: 26 | HC28: 171 | HD28: 357 | HE28: 357 | HF28: 0 | HG28: 274 | HH28: 200 | HI28: 74 | HJ28: 885.9 | HK28: 471.5 | HL28: 414.4 | HN28: 551 | HP28: 25 | HQ28: 7 | HR28: 15 | HS28: 25 | HT28: 1 | HU28: 5 | HV28: 8 | HW28: 8 | HX28: 4 | HY28: 1 | HZ28: 13 | IA28: 5 | IB28: 8 | IC28: 0 | ID28: 22 | IE28: 1 | IF28: 21 | IG28: 45 | IH28: 2 | II28: 7 | IJ28: 1 | IK28: 1 | IL28: 11 | IM28: 16 | IN28: 15 | IO28: 42 | IP28: 0 | IQ28: 18 | IR28: 13 | IS28: 2 | IT28: 21 | IU28: 7 | IV28: 7 | IW28: 13 | IX28: 4 | IY28: 11 | IZ28: 1 | JA28: 7 | JB28: 7 | JC28: 1 | JD28: 20 | JE28: 0 | JF28: 5 | JG28: 0 | JH28: 1 | JI28: 0 | JJ28: 0 | JK28: 1 | JL28: 5 | JM28: 0 | JN28: 2 | JO28: 0 | JP28: 0 | JQ28: 0 | JR28: 0 | JS28: 0 | JU28: 13 | JV28: 3 | JW28: 30 | JX28: 3143 | JY28: 13 | JZ28: 43 | KB28: 5 | KC28: 266 | KD28: 13 | KE28: 1080 | KF28: 25 | KG28: 1131 | KH28: 1 | KI28: 48 | KJ28: 0 | KK28: 0 | KL28: 2 | KM28: 81 | KN28: 1 | KO28: 15 | KP28: 60 | KQ28: 860 | KR28: 25 | KS28: 588 | KT28: 26 | KU28: 603 | KW28: 43 | KY28: 1620 | KZ28: 3950 | LB28: 314.85 | LC28: 217.22 | LD28: 3617.82 | LE28: 945.8 | LG28: 310282 | LH28: 230.3760627 | LI28: 1346.85 | LJ28: 310282 | LK28: 293695 | LL28: 276471 | LM28: 258044 | LN28: 238618 | LO28: 218568 | LP28: 34681 | LQ28: 30195 | LR28: 26853 | LS28: 23823 | LT28: 21349 | LU28: 18889 | LV28: 174526 | LW28: 157860 | LX28: 143611 | LY28: 128590 | LZ28: 112210 | MA28: 98636 | MB28: 101075 | MC28: 105640 | MD28: 106007 | ME28: 105631 | MF28: 105059 | MG28: 101043 | MH28: 50632 | MI28: 45697 | MJ28: 40936 | MK28: 39997 | ML28: 40528 | MM28: 37917 | MN28: 33439 | MO28: 39607 | MP28: 42575 | MQ28: 38332 | MR28: 34923 | MS28: 34526 | MT28: 17004 | MU28: 20336 | MV28: 22496 | MW28: 27302 | MX28: 29608 | MY28: 28600 | MZ28: 八戸市、上北郡おいらせ町、三戸郡三戸町、三戸郡五戸町、三戸郡田子町、三戸郡南部町、三戸郡階上町、三戸郡新郷村 | NA28: 八戸市立市民病院（標準群・救命） | NB28: 八戸赤十字病院（標準群） | NC28: 青森労災病院（標準群）
A29: 24 | B29: 青森地域 | C29: 地方都市型 | D29: 青森市,東津軽郡外ヶ浜町,東津軽郡蓬田村,東津軽郡今別町,東津軽郡平内町 | F29: 青森県 | G29: 東北 | H29: 青森（青森） | I29: アオモリチイキ | J29: 青森市及び周辺部 | K29: 1.221027861 | L29: 1.036222788 | M29: -0.02503707634 | N29: -0.2689003488 | O29: 1.013892542 | P29: 1.371355389 | Q29: -0.01742687455 | R29: -0.248964599 | S29: -0.2594796284 | T29: 225.4572022 | U29: 1201.059073 | W29: 913.1 | X29: 3742.6 | Y29: 463.2 | AA29: 6 | AB29: 12 | AC29: 38 | AD29: 0 | AE29: 0 | AF29: 9 | AG29: 24 | AH29: 0 | AJ29: 0 | AK29: 1 | AL29: 2 | AM29: 5 | AN29: 33 | AP29: 3434 | AQ29: 595 | AR29: 1303 | AS29: 736 | AT29: 687 | AU29: 113 | AW29: 0 | BB29: 3024 | BC29: 338 | BD29: 900 | BE29: 1127 | BF29: 659 | BG29: 0 | BL29: 0 | BS29: 0 | BX29: 0 | CC29: 0 | CH29: 0 | CO29: 108 | CP29: 3415 | CQ29: 3598.638855 | CR29: 4417.587787 | CS29: 4454.779445 | CU29: 403.64 | CV29: 4675.645 | CX29: 382652.6297 | CY29: 148795.3445 | CZ29: 212297.0286 | DA29: 21560.25657 | DB29: 0.9838052805 | DC29: 0.9679336384 | DD29: 1.018045229 | DE29: 0.8077159725 | DF29: -0.01267353861 | DG29: 0.009674837431 | DH29: -0.01319601835 | DI29: 297020.2316 | DJ29: 25052376.86 | DK29: 86477 | DT29: 22 | DU29: 5 | DV29: 0 | DW29: 1 | DX29: 4 | DY29: 1765 | DZ29: 0 | EA29: 1 | EB29: 2 | EC29: 1 | ED29: 1 | EE29: 0 | EF29: 4493 | EG29: 2585 | EH29: 706 | EI29: 1164 | EJ29: 33 | EK29: 188 | EL29: 5 | EM29: 188 | EN29: 608.2 | EO29: 399 | EP29: 209.2 | EQ29: 2846.4 | ER29: 2561.5 | ES29: 284.9 | ET29: 217.8 | EU29: 195.4 | EV29: 50 | EW29: 4180 | EX29: 1704 | EY29: 528 | EZ29: 1176 | FA29: 118.5705994 | FB29: 114.8548626 | FC29: 124.8366866 | FD29: 121.4997121 | FE29: 138.6500342 | FF29: 120.0928801 | FG29: 143.5121289 | FH29: 132.5711444 | FI29: 103.8248578 | FJ29: 117.163654 | FK29: 122.6422041 | FL29: 108.6412471 | FM29: 114.4837814 | FN29: 114.1325151 | FO29: 158.9994323 | FP29: 137.9670733 | FQ29: 125.517132 | FR29: 134.9367054 | FS29: 133.1351145 | FT29: 132.0756118 | FU29: 104.9577259 | FV29: 98.0731749 | FW29: 153.3540191 | FX29: 149.0801522 | FY29: 130.1939735 | FZ29: 126.5177828 | GA29: 129.2353612 | GB29: 102.9134537 | GC29: 162.4890669 | GD29: 143.8110673 | GE29: 98.74229339 | GF29: 110.8996559 | GG29: 110.2701251 | GH29: 115.3154035 | GI29: 108.8660133 | GJ29: 91.425 | GK29: 15.2 | GL29: 7 | GM29: 8.2 | GN29: 17.2 | GO29: 7.8 | GP29: 9.4 | GQ29: 6.8 | GR29: 3.3 | GS29: 3.5 | GT29: 7.3 | GU29: 3.5 | GV29: 0 | GW29: 0 | GX29: 15.6 | GY29: 8.1 | HA29: 229 | HB29: 30 | HC29: 199 | HD29: 438 | HE29: 407 | HF29: 31 | HG29: 304.9 | HH29: 233 | HI29: 71.9 | HJ29: 896.2 | HK29: 396.8 | HL29: 499.4 | HN29: 718 | HP29: 44 | HQ29: 8 | HR29: 20 | HS29: 31 | HT29: 4 | HU29: 6 | HV29: 13 | HW29: 18 | HX29: 5 | HY29: 7 | HZ29: 14 | IA29: 5 | IB29: 6 | IC29: 1 | ID29: 27 | IE29: 1 | IF29: 22 | IG29: 42 | IH29: 3 | II29: 8 | IJ29: 2 | IK29: 1 | IL29: 18 | IM29: 18 | IN29: 19 | IO29: 41 | IP29: 4 | IQ29: 17 | IR29: 15 | IS29: 0 | IT29: 16 | IU29: 5 | IV29: 11 | IW29: 10 | IX29: 3 | IY29: 3 | IZ29: 2 | JA29: 5 | JB29: 8 | JC29: 1 | JD29: 25 | JE29: 1 | JF29: 7 | JG29: 0 | JH29: 7 | JI29: 0 | JJ29: 4 | JK29: 1 | JL29: 2 | JM29: 1 | JN29: 4 | JO29: 2 | JP29: 5 | JQ29: 1 | JR29: 2 | JS29: 1 | JU29: 29 | JV29: 6 | JW29: 54 | JX29: 3605 | JY29: 13 | JZ29: 32 | KB29: 2 | KC29: 108 | KD29: 12 | KE29: 968 | KF29: 25 | KG29: 1142 | KH29: 2 | KI29: 33 | KJ29: 2 | KK29: 59 | KL29: 0 | KM29: 0 | KN29: 0 | KO29: 0 | KP29: 65 | KQ29: 1105 | KR29: 17 | KS29: 542 | KT29: 17 | KU29: 542 | KW29: 30 | KY29: 1409 | KZ29: 5801 | LB29: 266.14 | LC29: 137.5 | LD29: 3327.255 | LE29: 1348.39 | LG29: 295593 | LH29: 199.9803804 | LI29: 1478.11 | LJ29: 295593 | LK29: 274619 | LL29: 254871 | LM29: 234524 | LN29: 213563 | LO29: 192673 | LP29: 30609 | LQ29: 26052 | LR29: 22574 | LS29: 19401 | LT29: 16838 | LU29: 14554 | LV29: 167763 | LW29: 149144 | LX29: 133024 | LY29: 117388 | LZ29: 100112 | MA29: 85038 | MB29: 97221 | MC29: 99423 | MD29: 99273 | ME29: 97735 | MF29: 96613 | MG29: 93081 | MH29: 48921 | MI29: 43388 | MJ29: 39826 | MK29: 37860 | ML29: 37994 | MM29: 36439 | MN29: 32093 | MO29: 37677 | MP29: 39519 | MQ29: 35459 | MR29: 32996 | MS29: 31729 | MT29: 16207 | MU29: 18358 | MV29: 19928 | MW29: 24416 | MX29: 25623 | MY29: 24913 | MZ29: 青森市、東津軽郡平内町、東津軽郡今別町、東津軽郡蓬田村、東津軽郡外ケ浜町 | NB29: 青森市民病院（標準群）、青森県立中央病院（特定群・救命）
A30: 25 | B30: 西北五地域 | C30: 過疎地域型 | D30: 五所川原市,つがる市,西津軽郡鰺ヶ沢町,西津軽郡深浦町,北津軽郡鶴田町,北津軽郡中泊町 | F30: 青森県 | G30: 東北 | H30: 五所川原（青森） | I30: セイホクゴチイキ | J30: 五所川原市、つがる市及び周辺部 | K30: 0.6235660386 | L30: 1.48166423 | M30: 0.2273004742 | N30: 0.2408855277 | O30: 0.4944990366 | P30: 0.796483055 | Q30: 0.2506858879 | R30: 0.223479548 | S30: 0.2638597957 | T30: 137.462985 | U30: 658.4544621 | W30: 181.5 | X30: 885.9 | Y30: 79.7 | AA30: 0 | AB30: 0 | AC30: 0 | AD30: 0 | AE30: 0 | AF30: 0 | AG30: 0 | AH30: 0 | AJ30: 0 | AK30: 0 | AL30: 1 | AM30: 4 | AN30: 0 | AP30: 911 | AQ30: 0 | AR30: 521 | AS30: 119 | AT30: 188 | AU30: 83 | AW30: 0 | BG30: 804 | BH30: 43 | BI30: 270 | BJ30: 246 | BK30: 245 | BL30: 0 | BS30: 0 | BX30: 0 | CC30: 0 | CH30: 0 | CO30: 92 | CP30: 2692 | CQ30: 2059.864494 | CR30: 2134.654722 | CS30: 2023.649422 | CU30: 212.74 | CV30: 2575.16 | CX30: 331155.6452 | CY30: 119593.5459 | CZ30: 192093.9676 | DA30: 19468.13175 | DB30: 0.8783881074 | DC30: 0.8001977635 | DD30: 0.9532105376 | DE30: 0.7480355599 | DF30: -0.07920726887 | DG30: -0.02501077974 | DH30: -0.01739384398 | DI30: 305087.778 | DJ30: 13657216.6 | DK30: 44970 | DT30: 8 | DU30: 1 | DV30: 0 | DW30: 0 | DX30: 1 | DY30: 492 | DZ30: 0 | EA30: 0 | EB30: 0 | EC30: 0 | ED30: 0 | EE30: 1 | EF30: 1315 | EG30: 580 | EH30: 567 | EI30: 164 | EJ30: 0 | EK30: 0 | EL30: 4 | EM30: 74 | EN30: 108 | EO30: 86 | EP30: 22 | EQ30: 636.3 | ER30: 532.8 | ES30: 103.5 | ET30: 36 | EU30: 33.7 | EV30: 10 | EW30: 685 | EX30: 648 | EY30: 312 | EZ30: 336 | FA30: 120.8497138 | FB30: 110.0899979 | FC30: 127.7131319 | FD30: 110.5339032 | FE30: 137.0290212 | FF30: 120.7461756 | FG30: 154.6544182 | FH30: 128.0805247 | FI30: 116.4018317 | FJ30: 117.1795379 | FK30: 127.1545189 | FL30: 88.23389642 | FM30: 118.9168907 | FN30: 104.0022566 | FO30: 88.89090348 | FP30: 72.12503418 | FQ30: 162.9674808 | FR30: 132.3401251 | FS30: 126.285456 | FT30: 117.0195767 | FU30: 128.2889683 | FV30: 111.6116814 | FW30: 128.3457065 | FX30: 117.9513402 | FY30: 143.4389524 | FZ30: 134.93351 | GA30: 117.6948969 | GB30: 109.9253744 | GC30: 162.1856952 | GD30: 133.1174353 | GE30: 116.1406211 | GF30: 132.0251247 | GG30: 134.85338 | GH30: 107.2179914 | GI30: 142.4595257 | GJ30: 83.11937503 | GK30: 0.5 | GL30: 28.9 | GM30: -28.4 | GN30: 1 | GO30: 42.5 | GP30: -41.5 | GQ30: 0.4 | GR30: 8 | GS30: -7.6 | GT30: 0 | GU30: 19.2 | GV30: 0.6 | GW30: 0 | GX30: 0 | GY30: 39.2 | HA30: 78 | HB30: 5 | HC30: 73 | HD30: 69 | HE30: 69 | HF30: 0 | HG30: 73.5 | HH30: 53 | HI30: 20.5 | HJ30: 249.6 | HK30: 112.8 | HL30: 136.8 | HN30: 178 | HP30: 15 | HQ30: 1 | HR30: 5 | HS30: 9 | HT30: 2 | HU30: 0 | HV30: 0 | HW30: 3 | HX30: 2 | HY30: 0 | HZ30: 3 | IA30: 1 | IB30: 4 | IC30: 0 | ID30: 4 | IE30: 0 | IF30: 4 | IG30: 13 | IH30: 0 | II30: 1 | IJ30: 1 | IK30: 0 | IL30: 5 | IM30: 4 | IN30: 3 | IO30: 11 | IP30: 0 | IQ30: 6 | IR30: 3 | IS30: 0 | IT30: 5 | IU30: 0 | IV30: 1 | IW30: 1 | IX30: 0 | IY30: 1 | IZ30: 0 | JA30: 0 | JB30: 0 | JC30: 0 | JD30: 7 | JE30: 0 | JF30: 1 | JG30: 0 | JH30: 0 | JI30: 0 | JJ30: 0 | JK30: 0 | JL30: 0 | JM30: 0 | JN30: 1 | JO30: 0 | JP30: 0 | JQ30: 0 | JR30: 0 | JS30: 0 | JU30: 2 | JV30: 0 | JW30: 15 | JX30: 395 | JY30: 3 | JZ30: 5 | KB30: 1 | KC30: 101 | KD30: 6 | KE30: 580 | KF30: 19 | KG30: 795 | KH30: 3 | KI30: 307 | KJ30: 1 | KK30: 30 | KL30: 0 | KM30: 0 | KN30: 0 | KO30: 0 | KP30: 62 | KQ30: 879 | KR30: 6 | KS30: 136 | KT30: 6 | KU30: 136 | KW30: 7 | KY30: 147 | KZ30: 1915 | LB30: 186.82 | LC30: 25.92 | LD30: 2115.25 | LE30: 459.91 | LG30: 120470 | LH30: 68.74179743 | LI30: 1752.5 | LJ30: 120470 | LK30: 107474 | LL30: 96107 | LM30: 85397 | LN30: 75110 | LO30: 65234 | LP30: 10964 | LQ30: 8966 | LR30: 7439 | LS30: 6129 | LT30: 5084 | LU30: 4201 | LV30: 62391 | LW30: 52705 | LX30: 44552 | LY30: 37445 | LZ30: 30862 | MA30: 25151 | MB30: 47115 | MC30: 45803 | MD30: 44116 | ME30: 41823 | MF30: 39164 | MG30: 35882 | MH30: 21506 | MI30: 19525 | MJ30: 17176 | MK30: 15232 | ML30: 13730 | MM30: 12346 | MN30: 16090 | MO30: 16384 | MP30: 17311 | MQ30: 15965 | MR30: 14247 | MS30: 12753 | MT30: 9519 | MU30: 9894 | MV30: 9629 | MW30: 10626 | MX30: 11187 | MY30: 10783 | MZ30: 五所川原市、つがる市、西津軽郡鰺ヶ沢町、西津軽郡深浦町、北津軽郡鶴田町、北津軽郡中泊町 | NC30: つがる総合病院（標準群）
A31: 26 | B31: 上十三地域 | C31: 過疎地域型 | D31: 十和田市,上北郡七戸町,三沢市,上北郡野辺地町,上北郡横浜町,上北郡六ヶ所村,上北郡東北町,上北郡六戸町 | F31: 青森県 | G31: 東北 | H31: 十和田（青森） | I31: カミトウサンチイキ | J31: 十和田市、三沢市及び周辺部 | K31: 0.7432248996 | L31: 0.416131129 | M31: 0.02103772307 | N31: -0.2177274182 | O31: 0.4833491654 | P31: 0.9516540257 | Q31: 0.06534209731 | R31: -0.1180771271 | S31: -0.1626173772 | T31: 145.916057 | U31: 747.1015894 | W31: 247.3 | X31: 1475.5 | Y31: 74.2 | AA31: 0 | AB31: 0 | AC31: 0 | AD31: 0 | AE31: 0 | AF31: 0 | AG31: 0 | AH31: 0 | AJ31: 0 | AK31: 0 | AL31: 1 | AM31: 4 | AN31: 0 | AP31: 1284 | AQ31: 87 | AR31: 878 | AS31: 107 | AT31: 174 | AU31: 38 | AW31: 0 | BB31: 1176 | BC31: 96 | BD31: 506 | BE31: 371 | BF31: 203 | BG31: 0 | BL31: 0 | BS31: 0 | BX31: 0 | CC31: 0 | CH31: 0 | CO31: 70 | CP31: 2491 | CQ31: 2213.269914 | CR31: 2647.606637 | CS31: 2753.077949 | CU31: 300.005 | CV31: 2805.095 | CX31: 364459.2231 | CY31: 140231.3404 | CZ31: 202434.5094 | DA31: 21793.37329 | DB31: 0.9448561375 | DC31: 0.9201261112 | DD31: 0.9789168413 | DE31: 0.8214308293 | DF31: -0.03155871438 | DG31: -0.01130293343 | DH31: -0.01228221469 | DI31: 315497.8274 | DJ31: 16095974.94 | DK31: 49841 | DT31: 12 | DU31: 1 | DV31: 0 | DW31: 0 | DX31: 1 | DY31: 763 | DZ31: 0 | EA31: 0 | EB31: 1 | EC31: 1 | ED31: 0 | EE31: 0 | EF31: 1843 | EG31: 988 | EH31: 172 | EI31: 679 | EJ31: 0 | EK31: 0 | EL31: 4 | EM31: 179 | EN31: 151.7 | EO31: 125 | EP31: 26.7 | EQ31: 1106.5 | ER31: 928.6 | ES31: 177.9 | ET31: 39 | EU31: 31.2 | EV31: 4 | EW31: 1754 | EX31: 612 | EY31: 228 | EZ31: 384 | FA31: 114.6324007 | FB31: 104.9461662 | FC31: 109.0253162 | FD31: 100.1054256 | FE31: 119.7191105 | FF31: 99.62139734 | FG31: 132.869479 | FH31: 114.407016 | FI31: 98.50342187 | FJ31: 83.51398954 | FK31: 102.8553807 | FL31: 91.20647549 | FM31: 119.2507133 | FN31: 110.5595905 | FO31: 127.9860717 | FP31: 108.0623389 | FQ31: 101.5097354 | FR31: 108.8581511 | FS31: 131.5824696 | FT31: 125.1235426 | FU31: 134.63818 | FV31: 120.8023066 | FW31: 130.7169938 | FX31: 127.2162248 | FY31: 128.5030769 | FZ31: 117.431044 | GA31: 119.8627175 | GB31: 85.89204686 | GC31: 150.6890081 | GD31: 132.2710334 | GE31: 139.7338415 | GF31: 100.4804711 | GG31: 139.6160651 | GH31: 115.3851278 | GI31: 140.5901003 | GJ31: 129.5195722 | GK31: 14.2 | GL31: 28.7 | GM31: -14.5 | GN31: 15.6 | GO31: 39.6 | GP31: -24 | GQ31: 3.5 | GR31: 17.3 | GS31: -13.8 | GT31: 3.5 | GU31: 14.3 | GV31: 0 | GW31: 100 | GX31: 17 | GY31: 21 | HA31: 94 | HB31: 17 | HC31: 77 | HD31: 189 | HE31: 174 | HF31: 15 | HG31: 95.6 | HH31: 79 | HI31: 16.6 | HJ31: 369 | HK31: 161.7 | HL31: 207.3 | HN31: 223 | HP31: 11 | HQ31: 2 | HR31: 7 | HS31: 17 | HT31: 1 | HU31: 2 | HV31: 0 | HW31: 3 | HX31: 1 | HY31: 0 | HZ31: 5 | IA31: 2 | IB31: 3 | IC31: 1 | ID31: 8 | IE31: 0 | IF31: 13 | IG31: 20 | IH31: 0 | II31: 1 | IJ31: 0 | IK31: 0 | IL31: 10 | IM31: 8 | IN31: 3 | IO31: 14 | IP31: 0 | IQ31: 2 | IR31: 5 | IS31: 1 | IT31: 8 | IU31: 2 | IV31: 2 | IW31: 3 | IX31: 0 | IY31: 1 | IZ31: 1 | JA31: 2 | JB31: 1 | JC31: 0 | JD31: 11 | JE31: 0 | JF31: 0 | JG31: 0 | JH31: 0 | JI31: 0 | JJ31: 0 | JK31: 0 | JL31: 1 | JM31: 0 | JN31: 0 | JO31: 1 | JP31: 0 | JQ31: 0 | JR31: 0 | JS31: 0 | JU31: 9 | JV31: 1 | JW31: 20 | JX31: 973 | JY31: 4 | JZ31: 14 | KB31: 0 | KC31: 0 | KD31: 9 | KE31: 769 | KF31: 20 | KG31: 1031 | KH31: 0 | KI31: 0 | KJ31: 0 | KK31: 0 | KL31: 2 | KM31: 54 | KN31: 2 | KO31: 70 | KP31: 37 | KQ31: 567 | KR31: 17 | KS31: 494 | KT31: 19 | KU31: 564 | KW31: 19 | KY31: 1071 | KZ31: 2380 | LB31: 192.78 | LC31: 107.225 | LD31: 2228.54 | LE31: 576.555 | LG31: 167931 | LH31: 81.7628099 | LI31: 2053.88 | LJ31: 167931 | LK31: 157599 | LL31: 147416 | LM31: 137022 | LN31: 126275 | LO31: 115127 | LP31: 18465 | LQ31: 16596 | LR31: 14795 | LS31: 13113 | LT31: 11713 | LU31: 10373 | LV31: 93641 | LW31: 83408 | LX31: 75807 | LY31: 68243 | LZ31: 59743 | MA31: 52306 | MB31: 55825 | MC31: 57595 | MD31: 56814 | ME31: 55666 | MF31: 54819 | MG31: 52448 | MH31: 27641 | MI31: 24776 | MJ31: 21097 | MK31: 19484 | ML31: 19793 | MM31: 19094 | MN31: 17851 | MO31: 20756 | MP31: 22897 | MQ31: 20671 | MR31: 17891 | MS31: 16729 | MT31: 10333 | MU31: 12063 | MV31: 12820 | MW31: 15511 | MX31: 17135 | MY31: 16625 | MZ31: 十和田市、三沢市、上北郡野辺地町、上北郡七戸町、上北郡六戸町、上北郡横浜町、上北郡東北町、上北郡六ヶ所村 | NC31: 十和田市立中央病院（標準群）
A32: 27 | B32: 下北地域 | C32: 過疎地域型 | D32: むつ市,下北郡大間町,下北郡東通村,下北郡風間浦村,下北郡佐井村 | F32: 青森県 | G32: 東北 | H32: むつ（青森） | I32: シモキタチイキ | J32: むつ市及び周辺部 | K32: 0.5577390278 | L32: 0.9101985681 | M32: -0.2440310603 | N32: -0.5111897251 | O32: 0.6208305311 | P32: 0.8998351314 | Q32: 0.02408496873 | R32: -0.1639330492 | S32: -0.1854951334 | T32: 142.5133939 | U32: 699.6716343 | W32: 129 | X32: 566.6 | Y32: 47 | AA32: 0 | AB32: 4 | AC32: 0 | AD32: 0 | AE32: 0 | AF32: 0 | AG32: 0 | AH32: 0 | AJ32: 0 | AK32: 0 | AL32: 1 | AM32: 4 | AN32: 0 | AP32: 653 | AQ32: 6 | AR32: 417 | AS32: 78 | AT32: 120 | AU32: 32 | AW32: 0 | BB32: 453 | BC32: 39 | BD32: 162 | BE32: 168 | BF32: 84 | BG32: 0 | BL32: 0 | BS32: 0 | BX32: 0 | CC32: 0 | CH32: 0 | CO32: 28 | CP32: 959 | CQ32: 946.6375803 | CR32: 1129.015058 | CS32: 1149.930279 | CU32: 100.7 | CV32: 1050.985 | CX32: 363894.4115 | CY32: 139444.3049 | CZ32: 206248.2427 | DA32: 18201.86384 | DB32: 0.9365912083 | DC32: 0.9077210873 | DD32: 0.9904456431 | DE32: 0.6824170376 | DF32: -0.03648593809 | DG32: -0.005120775785 | DH32: -0.02180207787 | DI32: 295342.8114 | DJ32: 6488542.637 | DK32: 22038 | DT32: 4 | DU32: 1 | DV32: 0 | DW32: 0 | DX32: 1 | DY32: 355 | DZ32: 0 | EA32: 0 | EB32: 0 | EC32: 1 | ED32: 1 | EE32: 0 | EF32: 632 | EG32: 454 | EH32: 120 | EI32: 54 | EJ32: 0 | EK32: 0 | EL32: 4 | EM32: 54 | EN32: 83.1 | EO32: 77 | EP32: 6.1 | EQ32: 405.6 | ER32: 369.3 | ES32: 36.3 | ET32: 26 | EU32: 17 | EV32: 4 | EW32: 576 | EX32: 300 | EY32: 192 | EZ32: 108 | FA32: 122.8696651 | FB32: 114.5260724 | FC32: 127.3681365 | FD32: 112.1378957 | FE32: 129.1682353 | FF32: 110.9809867 | FG32: 155.3384033 | FH32: 123.3440586 | FI32: 106.1454482 | FJ32: 88.4866034 | FK32: 128.6347717 | FL32: 103.0653536 | FM32: 107.1801211 | FN32: 93.49504729 | FO32: 116.6901874 | FP32: 100.69187 | FQ32: 143.1653147 | FR32: 92.39802396 | FS32: 128.8535234 | FT32: 116.2574419 | FU32: 138.5184601 | FV32: 112.1846702 | FW32: 119.7374851 | FX32: 118.3644151 | FY32: 158.1637691 | FZ32: 154.2134537 | GA32: 107.98 | GB32: 165.144 | GC32: 140.1968041 | GD32: 134.1209322 | GE32: 100.4905033 | GF32: 125.408228 | GG32: 145.654125 | GH32: 110.4336512 | GI32: 113.131 | GJ32: 106.952 | GK32: 2.6 | GL32: 31.5 | GM32: -28.9 | GN32: 2.5 | GO32: 22.8 | GP32: -20.3 | GQ32: 0 | GR32: 20.9 | GS32: -20.9 | GT32: 0 | GU32: 28.1 | GV32: 0 | GW32: 0 | GX32: 11.2 | GY32: 72.9 | HA32: 46 | HB32: 7 | HC32: 39 | HD32: 99 | HE32: 99 | HF32: 0 | HG32: 45.9 | HH32: 32 | HI32: 13.9 | HJ32: 161 | HK32: 77.7 | HL32: 83.3 | HN32: 97 | HP32: 6 | HQ32: 0 | HR32: 3 | HS32: 7 | HT32: 2 | HU32: 3 | HV32: 0 | HW32: 0 | HX32: 0 | HY32: 0 | HZ32: 0 | IA32: 2 | IB32: 0 | IC32: 0 | ID32: 7 | IE32: 2 | IF32: 1 | IG32: 8 | IH32: 0 | II32: 0 | IJ32: 0 | IK32: 0 | IL32: 1 | IM32: 5 | IN32: 2 | IO32: 4 | IP32: 0 | IQ32: 3 | IR32: 1 | IS32: 0 | IT32: 6 | IU32: 0 | IV32: 0 | IW32: 2 | IX32: 1 | IY32: 2 | IZ32: 0 | JA32: 0 | JB32: 2 | JC32: 0 | JD32: 5 | JE32: 0 | JF32: 0 | JG32: 0 | JH32: 0 | JI32: 0 | JJ32: 1 | JK32: 0 | JL32: 0 | JM32: 0 | JN32: 0 | JO32: 0 | JP32: 0 | JQ32: 0 | JR32: 1 | JS32: 0 | JU32: 3 | JV32: 1 | JW32: 11 | JX32: 170 | JY32: 2 | JZ32: 5 | KB32: 1 | KC32: 40 | KD32: 4 | KE32: 259 | KF32: 11 | KG32: 480 | KH32: 0 | KI32: 0 | KJ32: 0 | KK32: 0 | KL32: 0 | KM32: 0 | KN32: 0 | KO32: 0 | KP32: 12 | KQ32: 180 | KR32: 5 | KS32: 102 | KT32: 5 | KU32: 102 | KW32: 6 | KY32: 214 | KZ32: 1125 | LB32: 81.6 | LC32: 19.1 | LD32: 876.045 | LE32: 174.94 | LG32: 68200 | LH32: 48.16112084 | LI32: 1416.08 | LJ32: 68200 | LK32: 65479 | LL32: 60714 | LM32: 55815 | LN32: 50766 | LO32: 45766 | LP32: 7106 | LQ32: 6572 | LR32: 5733 | LS32: 4959 | LT32: 4328 | LU32: 3743 | LV32: 37185 | LW32: 34581 | LX32: 31323 | LY32: 28154 | LZ32: 24549 | MA32: 21325 | MB32: 23909 | MC32: 24326 | MD32: 23658 | ME32: 22702 | MF32: 21889 | MG32: 20698 | MH32: 12066 | MI32: 10733 | MJ32: 8997 | MK32: 8233 | ML32: 8187 | MM32: 7932 | MN32: 7820 | MO32: 8999 | MP32: 9835 | MQ32: 8692 | MR32: 7400 | MS32: 6847 | MT32: 4023 | MU32: 4594 | MV32: 4826 | MW32: 5777 | MX32: 6302 | MY32: 5919 | MZ32: むつ市、下北郡大間町、下北郡東通村、下北郡風間浦村、下北郡佐井村 | NC32: むつ総合病院（標準群）
A33: 28 | B33: 盛岡 | C33: 地方都市型 | D33: 八幡平市,盛岡市,岩手郡雫石町,岩手郡葛巻町,岩手郡岩手町,岩手郡滝沢村,紫波郡矢巾町,紫波郡紫波町 | F33: 岩手県 | G33: 東北 | H33: 盛岡（岩手） | I33: モリオカ | J33: 盛岡市、八幡平市及び周辺部 | K33: 1.825075204 | L33: 1.187605216 | M33: 0.01104688503 | N33: -0.3552309038 | O33: 1.128970527 | P33: 1.326283093 | Q33: -0.03827473084 | R33: -0.2859033108 | S33: -0.4228197278 | T33: 311.6922706 | U33: 1103.539668 | W33: 1593.2 | X33: 5671.8 | Y33: 779 | AA33: 20 | AB33: 32 | AC33: 44 | AD33: 9 | AE33: 0 | AF33: 14 | AG33: 33 | AH33: 0 | AJ33: 0 | AK33: 1 | AL33: 3 | AM33: 8 | AN33: 10 | AP33: 6157 | AQ33: 1174 | AR33: 2213 | AS33: 1162 | AT33: 1505 | AU33: 103 | AW33: 0 | BB33: 4353.7 | BC33: 410.2 | BD33: 1215.3 | BE33: 1687.6 | BF33: 1040.6 | BG33: 0 | BL33: 0 | BS33: 0 | BX33: 3512.5 | BY33: 301.1 | BZ33: 986.8 | CA33: 1340.5 | CB33: 884.1 | CC33: 0 | CH33: 0 | CO33: 130 | CP33: 5867 | CQ33: 5217.330522 | CR33: 6461.664137 | CS33: 7149.669132 | CU33: 812.03 | CV33: 6808.62 | CX33: 391280.8266 | CY33: 152519.2549 | CZ33: 210826.7533 | DA33: 27934.81844 | DB33: 0.999607846 | DC33: 0.9864557484 | DD33: 1.003974125 | DE33: 1.041227615 | DF33: -0.005349869278 | DG33: 0.002131993002 | DH33: 0.002825722299 | DI33: 286717.7828 | DJ33: 32224869.8 | DK33: 117658 | DT33: 39 | DU33: 5 | DV33: 1 | DW33: 1 | DX33: 3 | DY33: 2812 | DZ33: 2 | EA33: 1 | EB33: 2 | EC33: 2 | ED33: 3 | EE33: 2 | EF33: 7176 | EG33: 4249 | EH33: 1319 | EI33: 1588 | EJ33: 12 | EK33: 673 | EL33: 8 | EM33: 439 | EN33: 1105.3 | EO33: 696 | EP33: 409.3 | EQ33: 4432.7 | ER33: 4163.3 | ES33: 269.4 | ET33: 408.3 | EU33: 294 | EV33: 76.7 | EW33: 12035 | EX33: 3756 | EY33: 1200 | EZ33: 2556 | FA33: 102.2061179 | FB33: 99.91770425 | FC33: 99.13612571 | FD33: 101.6281798 | FE33: 86.69626451 | FF33: 89.75106108 | FG33: 118.1109993 | FH33: 118.4211721 | FI33: 89.52249381 | FJ33: 83.33621215 | FK33: 88.61685839 | FL33: 89.43245617 | FM33: 108.409582 | FN33: 102.7091897 | FO33: 79.72099117 | FP33: 72.29141762 | FQ33: 83.18191659 | FR33: 97.19550583 | FS33: 142.7049592 | FT33: 132.8604276 | FU33: 170.9869227 | FV33: 156.7520078 | FW33: 130.1087025 | FX33: 124.7151296 | FY33: 95.83538437 | FZ33: 88.63377424 | GA33: 85.87291055 | GB33: 81.05453976 | GC33: 100.0477018 | GD33: 89.24311556 | GE33: 91.84863949 | GF33: 97.91811877 | GG33: 108.8285834 | GH33: 93.42961142 | GI33: 125.930599 | GJ33: 120.5237247 | GK33: 22.5 | GL33: 2.8 | GM33: 19.7 | GN33: 26.9 | GO33: 3 | GP33: 23.9 | GQ33: 19 | GR33: 0.4 | GS33: 18.6 | GT33: 21.4 | GU33: 0.5 | GV33: 9.1 | GW33: 0 | GX33: 13.4 | GY33: 4.2 | HA33: 360 | HB33: 41 | HC33: 319 | HD33: 521 | HE33: 482 | HF33: 39 | HG33: 487.9 | HH33: 383 | HI33: 104.9 | HJ33: 1239.1 | HK33: 865.3 | HL33: 373.8 | HN33: 1215 | HP33: 110 | HQ33: 30 | HR33: 65 | HS33: 82 | HT33: 12 | HU33: 34 | HV33: 39 | HW33: 26 | HX33: 7 | HY33: 16 | HZ33: 28 | IA33: 24 | IB33: 19 | IC33: 1 | ID33: 62 | IE33: 2 | IF33: 36 | IG33: 98 | IH33: 7 | II33: 11 | IJ33: 6 | IK33: 3 | IL33: 41 | IM33: 32 | IN33: 40 | IO33: 68 | IP33: 11 | IQ33: 50 | IR33: 28 | IS33: 7 | IT33: 47 | IU33: 16 | IV33: 26 | IW33: 28 | IX33: 12 | IY33: 28 | IZ33: 12 | JA33: 21 | JB33: 16 | JC33: 3 | JD33: 57 | JE33: 6 | JF33: 10 | JG33: 0 | JH33: 4 | JI33: 5 | JJ33: 4 | JK33: 6 | JL33: 7 | JM33: 1 | JN33: 6 | JO33: 2 | JP33: 8 | JQ33: 1 | JR33: 4 | JS33: 2 | JU33: 37 | JV33: 8 | JW33: 62 | JX33: 4280 | JY33: 19 | JZ33: 73 | KB33: 2 | KC33: 78 | KD33: 22 | KE33: 1968 | KF33: 41 | KG33: 2382 | KH33: 3 | KI33: 140 | KJ33: 5 | KK33: 269 | KL33: 7 | KM33: 274 | KN33: 1 | KO33: 60 | KP33: 49 | KQ33: 696 | KR33: 44 | KS33: 981 | KT33: 45 | KU33: 1041 | KW33: 56 | KY33: 2628 | KZ33: 4827 | LB33: 540.63 | LC33: 271.4 | LD33: 5621.85 | LE33: 1186.77 | LG33: 463186 | LH33: 127.1870546 | LI33: 3641.77 | LJ33: 463186 | LK33: 452639 | LL33: 436167 | LM33: 417471 | LN33: 396106 | LO33: 372824 | LP33: 53961 | LQ33: 50765 | LR33: 47021 | LS33: 43280 | LT33: 40025 | LU33: 36647 | LV33: 272396 | LW33: 259329 | LX33: 243273 | LY33: 227309 | LZ33: 206529 | MA33: 187538 | MB33: 136829 | MC33: 142545 | MD33: 145873 | ME33: 146882 | MF33: 149552 | MG33: 148639 | MH33: 67768 | MI33: 62916 | MJ33: 58953 | MK33: 57161 | ML33: 59550 | MM33: 60102 | MN33: 44334 | MO33: 52550 | MP33: 57409 | MQ33: 53631 | MR33: 50797 | MS33: 49730 | MT33: 24727 | MU33: 27079 | MV33: 29511 | MW33: 36090 | MX33: 39205 | MY33: 38807 | MZ33: 盛岡市、八幡平市、岩手郡雫石町、岩手郡葛巻町、岩手郡岩手町、滝沢市、紫波郡紫波町、紫波郡矢巾町 | NA33: 岩手県立中央病院（特定群）、岩手医科大学附属病院（大学本院群・救命） | NB33: 盛岡赤十字病院（標準群）
A34: 29 | B34: 岩手中部 | C34: 地方都市型 | D34: 花巻市,遠野市,北上市,和賀郡西和賀町 | F34: 岩手県 | G34: 東北 | H34: 花巻（岩手） | I34: イワテチュウブ | J34: 花巻市、北上市及び周辺部 | K34: 0.8553901646 | L34: 0.4937854788 | M34: -0.04770002823 | N34: -0.09688915019 | O34: 0.609686305 | P34: 0.8102127451 | Q34: 0.03050299828 | R34: -0.05072223013 | S34: -0.01501452102 | T34: 181.1270627 | U34: 697.4917761 | W34: 402.6 | X34: 1621.3 | Y34: 152.6 | AA34: 0 | AB34: 0 | AC34: 0 | AD34: 0 | AE34: 0 | AF34: 0 | AG34: 0 | AH34: 0 | AJ34: 0 | AK34: 0 | AL34: 3 | AM34: 26 | AN34: 0 | AP34: 1508 | AQ34: 50 | AR34: 818 | AS34: 386 | AT34: 225 | AU34: 29 | AW34: 0 | BB34: 1172.7 | BC34: 101.1 | BD34: 343.3 | BE34: 501.5 | BF34: 226.8 | BG34: 0 | BL34: 0 | BS34: 0 | BX34: 1429.8 | BY34: 128.7 | BZ34: 400.6 | CA34: 588.1 | CB34: 312.4 | CC34: 0 | CH34: 0 | CO34: 85 | CP34: 3151 | CQ34: 3016.105172 | CR34: 3268.796858 | CS34: 3157.710175 | CU34: 319.4 | CV34: 3545.56 | CX34: 376043.5995 | CY34: 139846.1689 | CZ34: 211404.1505 | DA34: 24793.28005 | DB34: 0.93456811 | DC34: 0.8789623345 | DD34: 0.9790697249 | DE34: 0.9067064392 | DF34: -0.04786010022 | DG34: -0.01123175397 | DH34: -0.00634003583 | DI34: 279897.7623 | DJ34: 17443893.26 | DK34: 65987 | DT34: 12 | DU34: 2 | DV34: 0 | DW34: 0 | DX34: 2 | DY34: 816 | DZ34: 0 | EA34: 0 | EB34: 1 | EC34: 1 | ED34: 2 | EE34: 1 | EF34: 2041 | EG34: 1361 | EH34: 95 | EI34: 559 | EJ34: 20 | EK34: 118 | EL34: 6 | EM34: 115 | EN34: 222.7 | EO34: 171 | EP34: 51.7 | EQ34: 1161.4 | ER34: 1086.4 | ES34: 75 | ET34: 81 | EU34: 55.6 | EV34: 16 | EW34: 2936 | EX34: 1188 | EY34: 684 | EZ34: 504 | FA34: 105.1072208 | FB34: 100.4776898 | FC34: 99.3299651 | FD34: 91.78553859 | FE34: 97.03771807 | FF34: 95.05447151 | FG34: 107.9852089 | FH34: 112.1751916 | FI34: 74.86703851 | FJ34: 64.707168 | FK34: 94.01006744 | FL34: 80.25048349 | FM34: 120.7126057 | FN34: 107.0012149 | FO34: 87.1333852 | FP34: 82.01390262 | FQ34: 91.64429619 | FR34: 85.94804923 | FS34: 145.3072565 | FT34: 152.811947 | FU34: 129.7212009 | FV34: 134.0081395 | FW34: 155.9615763 | FX34: 162.0595533 | FY34: 80.75695486 | FZ34: 74.65268138 | GA34: 98.70597089 | GB34: 76.84849843 | GC34: 115.2964122 | GD34: 94.40495165 | GE34: 126.103421 | GF34: 120.5719681 | GG34: 119.5773537 | GH34: 103.6528981 | GI34: 130.2536696 | GJ34: 126.2009322 | GK34: 19.7 | GL34: 28.2 | GM34: -8.5 | GN34: 15.8 | GO34: 25.2 | GP34: -9.4 | GQ34: 0 | GR34: 100 | GS34: -100 | GT34: 0 | GU34: 100 | GV34: 0 | GW34: 0 | GX34: 28.9 | GY34: 18.3 | HA34: 153 | HB34: 12 | HC34: 141 | HD34: 152 | HE34: 139 | HF34: 13 | HG34: 179.9 | HH34: 147 | HI34: 32.9 | HJ34: 459.9 | HK34: 341 | HL34: 118.9 | HN34: 416 | HP34: 26 | HQ34: 6 | HR34: 15 | HS34: 11 | HT34: 3 | HU34: 7 | HV34: 7 | HW34: 7 | HX34: 1 | HY34: 4 | HZ34: 7 | IA34: 4 | IB34: 4 | IC34: 1 | ID34: 13 | IE34: 0 | IF34: 10 | IG34: 20 | IH34: 0 | II34: 1 | IJ34: 1 | IK34: 1 | IL34: 5 | IM34: 5 | IN34: 11 | IO34: 18 | IP34: 1 | IQ34: 11 | IR34: 6 | IS34: 0 | IT34: 11 | IU34: 1 | IV34: 2 | IW34: 4 | IX34: 0 | IY34: 2 | IZ34: 1 | JA34: 1 | JB34: 1 | JC34: 1 | JD34: 11 | JE34: 0 | JF34: 0 | JG34: 0 | JH34: 2 | JI34: 1 | JJ34: 1 | JK34: 0 | JL34: 2 | JM34: 1 | JN34: 0 | JO34: 0 | JP34: 2 | JQ34: 0 | JR34: 0 | JS34: 0 | JU34: 20 | JV34: 3 | JW34: 34 | JX34: 984 | JY34: 8 | JZ34: 26 | KB34: 0 | KC34: 0 | KD34: 12 | KE34: 1005 | KF34: 26 | KG34: 1387 | KH34: 0 | KI34: 0 | KJ34: 3 | KK34: 130 | KL34: 2 | KM34: 94 | KN34: 1 | KO34: 22 | KP34: 41 | KQ34: 513 | KR34: 14 | KS34: 266 | KT34: 15 | KU34: 288 | KW34: 18 | KY34: 865 | KZ34: 1334 | LB34: 226.6 | LC34: 92.8 | LD34: 3224.75 | LE34: 320.81 | LG34: 216738 | LH34: 78.45293468 | LI34: 2762.65 | LJ34: 216738 | LK34: 207250 | LL34: 197090 | LM34: 186477 | LN34: 175220 | LO34: 163477 | LP34: 24549 | LQ34: 23250 | LR34: 21342 | LS34: 19425 | LT34: 17769 | LU34: 16182 | LV34: 121411 | LW34: 112224 | LX34: 105179 | LY34: 97723 | LZ34: 88281 | MA34: 79219 | MB34: 70778 | MC34: 71776 | MD34: 70569 | ME34: 69329 | MF34: 69170 | MG34: 68076 | MH34: 32860 | MI34: 30446 | MJ34: 27158 | MK34: 26020 | ML34: 27304 | MM34: 27740 | MN34: 23783 | MO34: 26130 | MP34: 27969 | MQ34: 25697 | MR34: 23179 | MS34: 22404 | MT34: 14135 | MU34: 15200 | MV34: 15442 | MW34: 17612 | MX34: 18687 | MY34: 17932 | MZ34: 花巻市、北上市、遠野市、和賀郡西和賀町 | NA34: 岩手県立中部病院（標準群） | NC34: 北上済生会病院（標準群）
A35: 30 | B35: 胆江 | C35: 過疎地域型 | D35: 奥州市,胆沢郡金ケ崎町 | F35: 岩手県 | G35: 東北 | H35: 奥州（岩手） | I35: タンコウ | J35: 奥州市、金ヶ崎町 | K35: 1.081121085 | L35: 1.066169454 | M35: -0.3524705294 | N35: -0.4001262118 | O35: 0.7051285964 | P35: 1.009826058 | Q35: -0.1163655005 | R35: -0.1829849014 | S35: -0.1557017807 | T35: 203.2161028 | U35: 757.9752665 | W35: 276 | X35: 1197.8 | Y35: 98.5 | AA35: 0 | AB35: 0 | AC35: 0 | AD35: 0 | AE35: 0 | AF35: 0 | AG35: 0 | AH35: 0 | AJ35: 0 | AK35: 0 | AL35: 3 | AM35: 4 | AN35: 24 | AP35: 1344 | AQ35: 0 | AR35: 517 | AS35: 350 | AT35: 468 | AU35: 9 | AW35: 0 | BB35: 999.7 | BC35: 63.1 | BD35: 274.6 | BE35: 280.9 | BF35: 381.1 | BG35: 0 | BL35: 0 | BS35: 0 | BX35: 961 | BY35: 76.4 | BZ35: 292.6 | CA35: 305.7 | CB35: 286.3 | CC35: 0 | CH35: 0 | CO35: 50 | CP35: 1770 | CQ35: 1944.708702 | CR35: 2060.759698 | CS35: 2013.232502 | CU35: 176.2 | CV35: 2101.07 | CX35: 367023.1194 | CY35: 140169.9308 | CZ35: 201067.7959 | DA35: 25785.39275 | DB35: 0.909186606 | DC35: 0.8772435371 | DD35: 0.9287109162 | DE35: 0.94119647 | DF35: -0.04858907763 | DG35: -0.03823354852 | DH35: -0.003990767856 | DI35: 259350.9513 | DJ35: 9994185.524 | DK35: 41707 | DT35: 9 | DU35: 1 | DV35: 0 | DW35: 0 | DX35: 1 | DY35: 633 | DZ35: 0 | EA35: 0 | EB35: 1 | EC35: 1 | ED35: 0 | EE35: 0 | EF35: 1599 | EG35: 967 | EH35: 330 | EI35: 274 | EJ35: 24 | EK35: 58 | EL35: 4 | EM35: 113 | EN35: 163.1 | EO35: 121 | EP35: 42.1 | EQ35: 866.3 | ER35: 782.7 | ES35: 83.6 | ET35: 57 | EU35: 31.5 | EV35: 10 | EW35: 1440 | EX35: 288 | EY35: 0 | EZ35: 288 | FA35: 101.520906 | FB35: 102.0551751 | FC35: 99.10696773 | FD35: 105.7287314 | FE35: 101.4699512 | FF35: 121.1565279 | FG35: 112.6440809 | FH35: 132.9163437 | FI35: 64.17380023 | FJ35: 78.753 | FK35: 99.43313664 | FL35: 94.87167632 | FM35: 112.129972 | FN35: 107.7376274 | FO35: 191.5076338 | FP35: 195.9745171 | FQ35: 82.89311277 | FR35: 84.94474039 | FS35: 138.926407 | FT35: 141.6731989 | FU35: 123.3476875 | FV35: 128.8077521 | FW35: 148.1527721 | FX35: 156.1075176 | FY35: 96.92522282 | FZ35: 103.5928009 | GA35: 89.21947374 | GB35: 94.254 | GC35: 82.14312266 | GD35: 90.41803334 | GE35: 91.18028226 | GF35: 84.85075075 | GG35: 126.0891509 | GH35: 117.8236732 | GI35: 107.1154633 | GJ35: 126.1877693 | GK35: 16.7 | GL35: 21.1 | GM35: -4.4 | GN35: 20.2 | GO35: 31.2 | GP35: -11 | GQ35: 11.3 | GR35: 1.1 | GS35: 10.2 | GT35: 11.3 | GU35: 1.1 | GV35: 0 | GW35: 0 | GX35: 16.1 | GY35: 17.8 | HA35: 101 | HB35: 7 | HC35: 94 | HD35: 98 | HE35: 86 | HF35: 12 | HG35: 112.9 | HH35: 86 | HI35: 26.9 | HJ35: 331.5 | HK35: 221.8 | HL35: 109.7 | HN35: 224 | HP35: 14 | HQ35: 6 | HR35: 7 | HS35: 13 | HT35: 3 | HU35: 2 | HV35: 0 | HW35: 2 | HX35: 1 | HY35: 1 | HZ35: 6 | IA35: 1 | IB35: 3 | IC35: 0 | ID35: 4 | IE35: 1 | IF35: 7 | IG35: 23 | IH35: 3 | II35: 2 | IJ35: 0 | IK35: 1 | IL35: 3 | IM35: 11 | IN35: 6 | IO35: 11 | IP35: 1 | IQ35: 4 | IR35: 5 | IS35: 0 | IT35: 8 | IU35: 2 | IV35: 2 | IW35: 5 | IX35: 0 | IY35: 2 | IZ35: 1 | JA35: 1 | JB35: 4 | JC35: 1 | JD35: 9 | JE35: 0 | JF35: 1 | JG35: 0 | JH35: 2 | JI35: 0 | JJ35: 0 | JK35: 1 | JL35: 3 | JM35: 0 | JN35: 1 | JO35: 1 | JP35: 0 | JQ35: 0 | JR35: 0 | JS35: 0 | JU35: 3 | JV35: 0 | JW35: 13 | JX35: 356 | JY35: 4 | JZ35: 7 | KB35: 0 | KC35: 0 | KD35: 6 | KE35: 517 | KF35: 21 | KG35: 993 | KH35: 0 | KI35: 0 | KJ35: 0 | KK35: 0 | KL35: 0 | KM35: 0 | KN35: 1 | KO35: 18 | KP35: 22 | KQ35: 242 | KR35: 12 | KS35: 254 | KT35: 13 | KU35: 272 | KW35: 11 | KY35: 510 | KZ35: 906 | LB35: 135 | LC35: 41.2 | LD35: 1879.07 | LE35: 222 | LG35: 128472 | LH35: 109.5186947 | LI35: 1173.06 | LJ35: 128472 | LK35: 121261 | LL35: 113672 | LM35: 106123 | LN35: 98280 | LO35: 90224 | LP35: 14361 | LQ35: 13490 | LR35: 12256 | LS35: 11000 | LT35: 9898 | LU35: 8829 | LV35: 69211 | LW35: 62857 | LX35: 57677 | LY35: 53180 | LZ35: 47355 | MA35: 41741 | MB35: 44900 | MC35: 44914 | MD35: 43739 | ME35: 41943 | MF35: 41027 | MG35: 39654 | MH35: 20554 | MI35: 18891 | MJ35: 16607 | MK35: 14767 | ML35: 14905 | MM35: 15414 | MN35: 14874 | MO35: 15873 | MP35: 17256 | MQ35: 15968 | MR35: 14202 | MS35: 12723 | MT35: 9472 | MU35: 10150 | MV35: 9876 | MW35: 11208 | MX35: 11920 | MY35: 11517 | MZ35: 奥州市、胆沢郡金ヶ崎町 | NB35: 岩手県立胆沢病院（標準群）
A36: 31 | B36: 両磐 | C36: 過疎地域型 | D36: 一関市,西磐井郡平泉町,東磐井郡藤沢町 | F36: 岩手県 | G36: 東北 | H36: 一関（岩手） | I36: リョウバン | J36: 一関市及び周辺部 | K36: 1.065755553 | L36: 0.5438692414 | M36: -0.0007529059467 | N36: 0.03546822625 | O36: 0.7625577331 | P36: 1.104061649 | Q36: 0.08513193122 | R36: 0.08934824811 | S36: 0.1182445578 | T36: 178.421625 | U36: 942.5198074 | W36: 276.9 | X36: 1214.9 | Y36: 86.5 | AA36: 0 | AB36: 0 | AC36: 0 | AD36: 0 | AE36: 0 | AF36: 0 | AG36: 0 | AH36: 0 | AJ36: 0 | AK36: 0 | AL36: 2 | AM36: 4 | AN36: 10 | AP36: 1293 | AQ36: 0 | AR36: 656 | AS36: 259 | AT36: 320 | AU36: 58 | AW36: 0 | BB36: 754.6 | BC36: 57.3 | BD36: 217.2 | BE36: 262.4 | BF36: 217.7 | BG36: 0 | BL36: 0 | BS36: 0 | BX36: 871.1 | BY36: 77.4 | BZ36: 259 | CA36: 297.7 | CB36: 237 | CC36: 0 | CH36: 0 | CO36: 60 | CP36: 2206 | CQ36: 2048.389606 | CR36: 2038.949272 | CS36: 1974.250435 | CU36: 225.6 | CV36: 2279.75 | CX36: 375227.4532 | CY36: 152979.2907 | CZ36: 201042.9759 | DA36: 21205.18648 | DB36: 0.9288141529 | DC36: 0.9564459901 | DD36: 0.9280007907 | DE36: 0.7739404764 | DF36: -0.01724386271 | DG36: -0.03861024023 | DH36: -0.01533174412 | DI36: 302784.9384 | DJ36: 11646211.17 | DK36: 42174 | DT36: 10 | DU36: 1 | DV36: 0 | DW36: 0 | DX36: 1 | DY36: 590 | DZ36: 0 | EA36: 0 | EB36: 1 | EC36: 1 | ED36: 1 | EE36: 1 | EF36: 1527 | EG36: 1094 | EH36: 60 | EI36: 359 | EJ36: 10 | EK36: 0 | EL36: 4 | EM36: 218 | EN36: 168.2 | EO36: 125 | EP36: 43.2 | EQ36: 951.4 | ER36: 887.8 | ES36: 63.6 | ET36: 47.5 | EU36: 28 | EV36: 11 | EW36: 1522 | EX36: 888 | EY36: 600 | EZ36: 288 | FA36: 106.8097165 | FB36: 102.830417 | FC36: 100.2650851 | FD36: 99.685837 | FE36: 109.2861204 | FF36: 102.7870191 | FG36: 104.2201769 | FH36: 119.2709149 | FI36: 61.6112377 | FJ36: 76.751 | FK36: 97.99024857 | FL36: 74.16337136 | FM36: 125.0374797 | FN36: 116.2428806 | FO36: 88.79817895 | FP36: 99.56394417 | FQ36: 90.99697138 | FR36: 97.43962805 | FS36: 142.8729098 | FT36: 139.0987421 | FU36: 167.2939768 | FV36: 171.5379892 | FW36: 134.9627717 | FX36: 132.9370814 | FY36: 96.54689027 | FZ36: 86.52019709 | GA36: 95.0391207 | GB36: 59.766 | GC36: 100.8048511 | GD36: 101.8451881 | GE36: 73.103 | GF36: 80.2962669 | GG36: 136.1342986 | GH36: 111.7517146 | GI36: 146.4784462 | GJ36: 127.841 | GK36: 12.9 | GL36: 26.4 | GM36: -13.5 | GN36: 15.1 | GO36: 19.8 | GP36: -4.7 | GQ36: 0 | GR36: 52.3 | GS36: -52.3 | GT36: 0 | GU36: 52.3 | GV36: 0 | GW36: 0 | GX36: 5.4 | GY36: 39.3 | HA36: 88 | HB36: 8 | HC36: 80 | HD36: 107 | HE36: 107 | HF36: 0 | HG36: 108.7 | HH36: 71 | HI36: 37.7 | HJ36: 263.5 | HK36: 176.4 | HL36: 87.1 | HN36: 217 | HP36: 14 | HQ36: 0 | HR36: 10 | HS36: 13 | HT36: 0 | HU36: 4 | HV36: 9 | HW36: 2 | HX36: 0 | HY36: 0 | HZ36: 7 | IA36: 2 | IB36: 1 | IC36: 0 | ID36: 7 | IE36: 0 | IF36: 8 | IG36: 13 | IH36: 0 | II36: 0 | IJ36: 1 | IK36: 1 | IL36: 6 | IM36: 7 | IN36: 5 | IO36: 7 | IP36: 1 | IQ36: 3 | IR36: 5 | IS36: 0 | IT36: 12 | IU36: 1 | IV36: 3 | IW36: 4 | IX36: 0 | IY36: 6 | IZ36: 0 | JA36: 2 | JB36: 0 | JC36: 0 | JD36: 10 | JE36: 0 | JF36: 0 | JG36: 0 | JH36: 0 | JI36: 0 | JJ36: 1 | JK36: 0 | JL36: 1 | JM36: 0 | JN36: 0 | JO36: 0 | JP36: 0 | JQ36: 1 | JR36: 1 | JS36: 0 | JU36: 6 | JV36: 4 | JW36: 17 | JX36: 455 | JY36: 6 | JZ36: 11 | KB36: 0 | KC36: 0 | KD36: 8 | KE36: 672 | KF36: 20 | KG36: 1006 | KH36: 0 | KI36: 0 | KJ36: 4 | KK36: 96 | KL36: 1 | KM36: 90 | KN36: 0 | KO36: 0 | KP36: 27 | KQ36: 342 | KR36: 13 | KS36: 296 | KT36: 13 | KU36: 296 | KW36: 14 | KY36: 558 | KZ36: 2864 | LB36: 156.8 | LC36: 68.8 | LD36: 2021.75 | LE36: 258 | LG36: 119184 | LH36: 90.30390738 | LI36: 1319.81 | LJ36: 119184 | LK36: 114307 | LL36: 106481 | LM36: 98796 | LN36: 90789 | LO36: 82496 | LP36: 12391 | LQ36: 11070 | LR36: 9839 | LS36: 8613 | LT36: 7546 | LU36: 6589 | LV36: 62486 | LW36: 57808 | LX36: 52203 | LY36: 47619 | LZ36: 42038 | MA36: 36514 | MB36: 44307 | MC36: 45429 | MD36: 44439 | ME36: 42564 | MF36: 41205 | MG36: 39393 | MH36: 20553 | MI36: 19634 | MJ36: 17005 | MK36: 14911 | ML36: 14493 | MM36: 14772 | MN36: 14181 | MO36: 15735 | MP36: 17705 | MQ36: 16671 | MR36: 14632 | MS36: 12929 | MT36: 9573 | MU36: 10060 | MV36: 9729 | MW36: 10982 | MX36: 12080 | MY36: 11692 | MZ36: 一関市、西磐井郡平泉町 | NB36: 岩手県立磐井病院（標準群）
A37: 32 | B37: 気仙 | C37: 過疎地域型 | D37: 大船渡市,陸前高田市,気仙郡住田町 | F37: 岩手県 | G37: 東北 | H37: 大船渡（岩手） | I37: ケセン | J37: 大船渡市、陸前高田市、住田町 | K37: 1.03344866 | L37: 0.2284335797 | M37: -0.2721285999 | N37: -0.3021083069 | O37: 0.6809327603 | P37: 0.9318420978 | Q37: -0.1617424567 | R37: -0.3154748162 | S37: -0.1891207411 | T37: 184.9005859 | U37: 672.6859412 | W37: 120.4 | X37: 499.3 | Y37: 18 | AA37: 20 | AB37: 0 | AC37: 0 | AD37: 0 | AE37: 0 | AF37: 0 | AG37: 0 | AH37: 0 | AJ37: 0 | AK37: 0 | AL37: 1 | AM37: 4 | AN37: 10 | AP37: 547 | AQ37: 20 | AR37: 244 | AS37: 120 | AT37: 98 | AU37: 65 | AW37: 0 | BB37: 296.1 | BC37: 33.2 | BD37: 125.2 | BE37: 73.3 | BF37: 64.4 | BG37: 0 | BL37: 0 | BS37: 0 | BX37: 432.6 | BY37: 42.3 | BZ37: 150.4 | CA37: 123.3 | CB37: 116.6 | CC37: 0 | CH37: 0 | CO37: 23 | CP37: 999 | CQ37: 1004.907225 | CR37: 1137.885716 | CS37: 1028.589441 | CU37: 87.82 | CV37: 1001.08 | CX37: 409743.9348 | CY37: 173281.3494 | CZ37: 213336.6111 | DA37: 23125.97424 | DB37: 1.026862268 | DC37: 1.095879696 | DD37: 0.9978731354 | DE37: 0.8529440811 | DF37: 0.03799402053 | DG37: -0.001139539983 | DH37: -0.009992212226 | DI37: 286886.7032 | DJ37: 5896034.742 | DK37: 22248 | DT37: 3 | DU37: 1 | DV37: 0 | DW37: 0 | DX37: 1 | DY37: 282 | DZ37: 0 | EA37: 1 | EB37: 0 | EC37: 1 | ED37: 1 | EE37: 0 | EF37: 702 | EG37: 430 | EH37: 60 | EI37: 198 | EJ37: 10 | EK37: 0 | EL37: 4 | EM37: 71 | EN37: 74.4 | EO37: 54 | EP37: 20.4 | EQ37: 338.7 | ER37: 309.8 | ES37: 28.9 | ET37: 8 | EU37: 7 | EV37: 3 | EW37: 684 | EX37: 528 | EY37: 528 | EZ37: 0 | FA37: 104.0424625 | FB37: 98.48569029 | FC37: 109.1213143 | FD37: 103.6672245 | FE37: 98.83327107 | FF37: 95.41087653 | FG37: 113.7459426 | FH37: 118.0125961 | FI37: 71.20641293 | FJ37: 81.73110307 | FK37: 125.60071 | FL37: 87.34191762 | FM37: 119.82232 | FN37: 111.0964945 | FO37: 64.57007945 | FP37: 76.10713735 | FQ37: 74.39879903 | FR37: 85.40986862 | FS37: 114.8809717 | FT37: 124.2361529 | FU37: 113.7352653 | FV37: 129.4424957 | FW37: 120.7683049 | FX37: 124.2897561 | FY37: 88.54616711 | FZ37: 70.68646207 | GA37: 103.8174504 | GB37: 63.15 | GC37: 132.5271985 | GD37: 95.68215471 | GE37: 104.4747199 | GF37: 94.45118224 | GG37: 120.320692 | GH37: 106.2754408 | GI37: 98.97412971 | GJ37: 143.6085052 | GK37: 12.4 | GL37: 46.7 | GM37: -34.3 | GN37: 15.3 | GO37: 48.5 | GP37: -33.2 | GQ37: 18.9 | GR37: 46.9 | GS37: -28 | GT37: 18.9 | GU37: 45.7 | GV37: 0 | GW37: 100 | GX37: 4.7 | GY37: 43.9 | HA37: 38 | HB37: 4 | HC37: 34 | HD37: 59 | HE37: 59 | HF37: 0 | HG37: 46 | HH37: 33 | HI37: 13 | HJ37: 160.6 | HK37: 112.9 | HL37: 47.7 | HN37: 102 | HP37: 3 | HQ37: 1 | HR37: 1 | HS37: 3 | HT37: 0 | HU37: 1 | HV37: 0 | HW37: 1 | HX37: 0 | HY37: 0 | HZ37: 2 | IA37: 1 | IB37: 1 | IC37: 0 | ID37: 6 | IE37: 0 | IF37: 3 | IG37: 6 | IH37: 0 | II37: 0 | IJ37: 0 | IK37: 0 | IL37: 1 | IM37: 2 | IN37: 3 | IO37: 3 | IP37: 0 | IQ37: 2 | IR37: 1 | IS37: 0 | IT37: 3 | IU37: 0 | IV37: 0 | IW37: 0 | IX37: 1 | IY37: 2 | IZ37: 1 | JA37: 1 | JB37: 2 | JC37: 0 | JD37: 2 | JE37: 1 | JF37: 0 | JG37: 0 | JH37: 0 | JI37: 0 | JJ37: 0 | JK37: 0 | JL37: 0 | JM37: 0 | JN37: 0 | JO37: 0 | JP37: 1 | JQ37: 0 | JR37: 1 | JS37: 1 | JU37: 3 | JV37: 1 | JW37: 7 | JX37: 101 | JY37: 2 | JZ37: 3 | KB37: 0 | KC37: 0 | KD37: 2 | KE37: 342 | KF37: 11 | KG37: 558 | KH37: 0 | KI37: 0 | KJ37: 0 | KK37: 0 | KL37: 0 | KM37: 0 | KN37: 0 | KO37: 0 | KP37: 10 | KQ37: 99 | KR37: 1 | KS37: 19 | KT37: 1 | KU37: 19 | KW37: 5 | KY37: 152 | KZ37: 479 | LB37: 70.22 | LC37: 17.6 | LD37: 902.88 | LE37: 98.2 | LG37: 58035 | LH37: 65.25992646 | LI37: 889.29 | LJ37: 58035 | LK37: 54139 | LL37: 49444 | LM37: 44753 | LN37: 40113 | LO37: 35550 | LP37: 5411 | LQ37: 4685 | LR37: 3967 | LS37: 3319 | LT37: 2773 | LU37: 2291 | LV37: 29836 | LW37: 26715 | LX37: 23311 | LY37: 20171 | LZ37: 16929 | MA37: 14185 | MB37: 22788 | MC37: 22739 | MD37: 22166 | ME37: 21263 | MF37: 20411 | MG37: 19074 | MH37: 9947 | MI37: 9183 | MJ37: 8297 | MK37: 7838 | ML37: 7444 | MM37: 6852 | MN37: 8044 | MO37: 8491 | MP37: 8581 | MQ37: 7716 | MR37: 7055 | MS37: 6705 | MT37: 4797 | MU37: 5065 | MV37: 5288 | MW37: 5709 | MX37: 5912 | MY37: 5517 | MZ37: 大船渡市、陸前高田市、気仙郡住田町 | NC37: 岩手県立大船渡病院（標準群・救命）
A38: 33 | B38: 釜石 | C38: 過疎地域型 | D38: 釜石市,上閉伊郡大槌町 | F38: 岩手県 | G38: 東北 | H38: 釜石（岩手） | I38: カマイシ | J38: 釜石市、大槌町 | K38: 1.734262286 | L38: 0.7544094514 | M38: -0.05054444061 | N38: 0.04391589591 | O38: 0.695572898 | P38: 1.317113774 | Q38: 0.04186731557 | R38: -0.04096627184 | S38: 0.1280183933 | T38: 207.9843959 | U38: 1038.649904 | W38: 91.3 | X38: 523.9 | Y38: 44 | AA38: 0 | AB38: 0 | AC38: 0 | AD38: 0 | AE38: 0 | AF38: 0 | AG38: 0 | AH38: 0 | AJ38: 0 | AK38: 0 | AL38: 0 | AM38: 0 | AN38: 0 | AP38: 796 | AQ38: 0 | AR38: 288 | AS38: 169 | AT38: 334 | AU38: 5 | AW38: 0 | BB38: 480.2 | BC38: 23.6 | BD38: 101.7 | BE38: 149.7 | BF38: 205.2 | BG38: 0 | BL38: 0 | BS38: 0 | BX38: 467.2 | BY38: 33.2 | BZ38: 116.7 | CA38: 179.1 | CB38: 138.2 | CC38: 0 | CH38: 0 | CO38: 20 | CP38: 794 | CQ38: 752.1341573 | CR38: 817.1585234 | CS38: 684.5055612 | CU38: 56.6 | CV38: 810.7 | CX38: 472747.0568 | CY38: 214397.3662 | CZ38: 232495.8277 | DA38: 25853.86292 | DB38: 1.166844249 | DC38: 1.336488665 | DD38: 1.069951239 | DE38: 0.9423343443 | DF38: 0.1332320351 | DG38: 0.0375172197 | DH38: -0.003905006065 | DI38: 279089.0694 | DJ38: 4597251.052 | DK38: 17069 | DT38: 6 | DU38: 1 | DV38: 0 | DW38: 0 | DX38: 1 | DY38: 292 | DZ38: 0 | EA38: 0 | EB38: 0 | EC38: 1 | ED38: 0 | EE38: 0 | EF38: 979 | EG38: 673 | EH38: 102 | EI38: 204 | EJ38: 0 | EK38: 0 | EL38: 0 | EM38: 63 | EN38: 62.4 | EO38: 36 | EP38: 26.4 | EQ38: 460.2 | ER38: 413.2 | ES38: 47 | ET38: 28 | EU38: 14 | EV38: 2 | EW38: 215 | EX38: 108 | EY38: 108 | EZ38: 0 | FA38: 117.2160982 | FB38: 114.8154263 | FC38: 106.1817001 | FD38: 105.942872 | FE38: 107.1601539 | FF38: 109.6376872 | FG38: 121.6847339 | FH38: 112.0081019 | FI38: 87.68593118 | FJ38: 93.8162534 | FK38: 89.97501248 | FL38: 73.73546595 | FM38: 123.4195407 | FN38: 112.5631213 | FO38: 95.26590028 | FP38: 82.55224327 | FQ38: 85.73601819 | FR38: 83.90812417 | FS38: 158.9246459 | FT38: 153.0482966 | FU38: 189.1569598 | FV38: 183.9462139 | FW38: 146.5822145 | FX38: 146.582236 | FY38: 114.3415972 | FZ38: 96.30998845 | GA38: 97.04076582 | GB38: 72.052 | GC38: 120.9443937 | GD38: 117.7303739 | GE38: 172.0709462 | GF38: 156.8679927 | GG38: 114.9915908 | GH38: 107.6468255 | GI38: 109.0476561 | GJ38: 107.857 | GK38: 22.6 | GL38: 20.5 | GM38: 2.1 | GN38: 23 | GO38: 18.6 | GP38: 4.4 | GQ38: 48 | GR38: 35.4 | GS38: 12.6 | GT38: 48 | GU38: 34.1 | GV38: 0 | GW38: 100 | GX38: 7.9 | GY38: 18.5 | HA38: 24 | HB38: 2 | HC38: 22 | HD38: 21 | HE38: 21 | HF38: 0 | HG38: 28.9 | HH38: 22 | HI38: 6.9 | HJ38: 63.7 | HK38: 35.7 | HL38: 28 | HN38: 88 | HP38: 2 | HQ38: 2 | HR38: 0 | HS38: 0 | HT38: 0 | HU38: 0 | HV38: 1 | HW38: 0 | HX38: 0 | HY38: 0 | HZ38: 0 | IA38: 0 | IB38: 0 | IC38: 0 | ID38: 2 | IE38: 0 | IF38: 4 | IG38: 6 | IH38: 0 | II38: 0 | IJ38: 0 | IK38: 0 | IL38: 0 | IM38: 1 | IN38: 2 | IO38: 3 | IP38: 0 | IQ38: 3 | IR38: 1 | IS38: 1 | IT38: 1 | IU38: 0 | IV38: 0 | IW38: 0 | IX38: 0 | IY38: 0 | IZ38: 0 | JA38: 0 | JB38: 0 | JC38: 0 | JD38: 0 | JE38: 0 | JF38: 0 | JG38: 0 | JH38: 0 | JI38: 0 | JJ38: 0 | JK38: 0 | JL38: 0 | JM38: 0 | JN38: 0 | JO38: 0 | JP38: 0 | JQ38: 0 | JR38: 0 | JS38: 0 | JU38: 3 | JV38: 1 | JW38: 5 | JX38: 535 | JY38: 2 | JZ38: 5 | KB38: 0 | KC38: 0 | KD38: 3 | KE38: 288 | KF38: 7 | KG38: 380 | KH38: 0 | KI38: 0 | KJ38: 0 | KK38: 0 | KL38: 0 | KM38: 0 | KN38: 0 | KO38: 0 | KP38: 10 | KQ38: 126 | KR38: 0 | KS38: 0 | KT38: 0 | KU38: 0 | KW38: 4 | KY38: 186 | KZ38: 384 | LB38: 45.6 | LC38: 11 | LD38: 739 | LE38: 71.7 | LG38: 43082 | LH38: 67.23473321 | LI38: 640.77 | LJ38: 43082 | LK38: 41242 | LL38: 37468 | LM38: 33812 | LN38: 30360 | LO38: 27129 | LP38: 4082 | LQ38: 3776 | LR38: 3272 | LS38: 2877 | LT38: 2551 | LU38: 2230 | LV38: 21958 | LW38: 20927 | LX38: 18804 | LY38: 16606 | LZ38: 14366 | MA38: 12627 | MB38: 17042 | MC38: 16539 | MD38: 15392 | ME38: 14329 | MF38: 13443 | MG38: 12272 | MH38: 7633 | MI38: 6943 | MJ38: 5779 | MK38: 5448 | ML38: 5297 | MM38: 4768 | MN38: 6144 | MO38: 6154 | MP38: 6203 | MQ38: 5370 | MR38: 4548 | MS38: 4323 | MT38: 3265 | MU38: 3442 | MV38: 3410 | MW38: 3511 | MX38: 3598 | MY38: 3181 | MZ38: 釜石市、上閉伊郡大槌町
A39: 34 | B39: 宮古 | C39: 過疎地域型 | D39: 下閉伊郡田野畑村,下閉伊郡山田町,下閉伊郡岩泉町,宮古市 | F39: 岩手県 | G39: 東北 | H39: 宮古（岩手） | I39: ミヤコ | J39: 宮古市及び周辺部 | K39: 0.8590553456 | L39: 1.035229061 | M39: -0.2365781574 | N39: -0.1716366694 | O39: 0.6000136017 | P39: 0.9994867937 | Q39: -0.07950483327 | R39: -0.1896022498 | S39: -0.02281237931 | T39: 149.9718728 | U39: 899.5918563 | W39: 139.8 | X39: 705.7 | Y39: 93 | AA39: 0 | AB39: 0 | AC39: 0 | AD39: 0 | AE39: 0 | AF39: 0 | AG39: 0 | AH39: 0 | AJ39: 0 | AK39: 0 | AL39: 1 | AM39: 4 | AN39: 5 | AP39: 650 | AQ39: 0 | AR39: 289 | AS39: 256 | AT39: 70 | AU39: 35 | AW39: 0 | BB39: 393.5 | BC39: 29.3 | BD39: 107.3 | BE39: 170.7 | BF39: 86.2 | BG39: 0 | BL39: 0 | BS39: 0 | BX39: 578.3 | BY39: 51.8 | BZ39: 158.6 | CA39: 225.1 | CB39: 142.8 | CC39: 0 | CH39: 0 | CO39: 44 | CP39: 1267 | CQ39: 1309.439363 | CR39: 1442.987529 | CS39: 1240.671416 | CU39: 113.7 | CV39: 1555 | CX39: 407226.6666 | CY39: 173010.843 | CZ39: 212562.6424 | DA39: 21653.18117 | DB39: 1.020464099 | DC39: 1.093890549 | DD39: 0.9942505207 | DE39: 0.7987920869 | DF39: 0.0372119862 | DG39: -0.003080215808 | DH39: -0.01366767154 | DI39: 294039.1333 | DJ39: 8310643.842 | DK39: 29696 | DT39: 6 | DU39: 1 | DV39: 0 | DW39: 0 | DX39: 1 | DY39: 283 | DZ39: 0 | EA39: 0 | EB39: 1 | EC39: 1 | ED39: 1 | EE39: 0 | EF39: 1196 | EG39: 462 | EH39: 148 | EI39: 572 | EJ39: 10 | EK39: 78 | EL39: 4 | EM39: 36 | EN39: 90.8 | EO39: 62 | EP39: 28.8 | EQ39: 545.6 | ER39: 468.7 | ES39: 76.9 | ET39: 47 | EU39: 39 | EV39: 7 | EW39: 270 | EX39: 516 | EY39: 360 | EZ39: 156 | FA39: 108.7094871 | FB39: 108.8626808 | FC39: 100.5072876 | FD39: 103.5974993 | FE39: 96.16782847 | FF39: 88.00048249 | FG39: 128.0212898 | FH39: 145.1092332 | FI39: 75.66426158 | FJ39: 83.62791525 | FK39: 94.20303735 | FL39: 79.87505386 | FM39: 138.9360268 | FN39: 133.7650235 | FO39: 81.9041699 | FP39: 75.04695455 | FQ39: 80.97500546 | FR39: 97.40446304 | FS39: 136.5297142 | FT39: 147.3457724 | FU39: 139.4096077 | FV39: 170.5841604 | FW39: 136.9873967 | FX39: 135.8706055 | FY39: 105.2286493 | FZ39: 95.77717665 | GA39: 91.88250417 | GB39: 65.504 | GC39: 114.1530843 | GD39: 92.65912912 | GE39: 94.24922117 | GF39: 98.57452894 | GG39: 125.3038116 | GH39: 99.36113093 | GI39: 126.1601233 | GJ39: 128.5710422 | GK39: 4.4 | GL39: 24.9 | GM39: -20.5 | GN39: 1.2 | GO39: 39.5 | GP39: -38.3 | GQ39: 13.2 | GR39: 27.8 | GS39: -14.6 | GT39: 13.2 | GU39: 22.8 | GV39: 0 | GW39: 100 | GX39: 4 | GY39: 10.6 | HA39: 45 | HB39: 6 | HC39: 39 | HD39: 71 | HE39: 65 | HF39: 6 | HG39: 49 | HH39: 36 | HI39: 13 | HJ39: 160.1 | HK39: 111.6 | HL39: 48.5 | HN39: 113 | HP39: 5 | HQ39: 0 | HR39: 4 | HS39: 3 | HT39: 1 | HU39: 1 | HV39: 1 | HW39: 1 | HX39: 0 | HY39: 0 | HZ39: 0 | IA39: 0 | IB39: 2 | IC39: 0 | ID39: 3 | IE39: 0 | IF39: 6 | IG39: 4 | IH39: 0 | II39: 0 | IJ39: 0 | IK39: 0 | IL39: 4 | IM39: 3 | IN39: 1 | IO39: 5 | IP39: 1 | IQ39: 3 | IR39: 1 | IS39: 0 | IT39: 2 | IU39: 1 | IV39: 2 | IW39: 1 | IX39: 0 | IY39: 1 | IZ39: 0 | JA39: 0 | JB39: 0 | JC39: 0 | JD39: 2 | JE39: 0 | JF39: 1 | JG39: 0 | JH39: 0 | JI39: 0 | JJ39: 0 | JK39: 0 | JL39: 0 | JM39: 0 | JN39: 0 | JO39: 0 | JP39: 0 | JQ39: 0 | JR39: 0 | JS39: 0 | JU39: 4 | JV39: 0 | JW39: 8 | JX39: 44 | JY39: 3 | JZ39: 6 | KB39: 0 | KC39: 0 | KD39: 4 | KE39: 361 | KF39: 11 | KG39: 617 | KH39: 0 | KI39: 0 | KJ39: 0 | KK39: 0 | KL39: 1 | KM39: 21 | KN39: 0 | KO39: 0 | KP39: 28 | KQ39: 268 | KR39: 1 | KS39: 20 | KT39: 1 | KU39: 20 | KW39: 9 | KY39: 231 | KZ39: 853 | LB39: 80.2 | LC39: 33.5 | LD39: 1401.6 | LE39: 153.4 | LG39: 76474 | LH39: 28.63647768 | LI39: 2670.51 | LJ39: 76474 | LK39: 73042 | LL39: 66643 | LM39: 60388 | LN39: 54278 | LO39: 48371 | LP39: 7436 | LQ39: 6538 | LR39: 5670 | LS39: 4883 | LT39: 4210 | LU39: 3576 | LV39: 39000 | LW39: 37053 | LX39: 33083 | LY39: 29131 | LZ39: 25078 | MA39: 21755 | MB39: 30038 | MC39: 29451 | MD39: 27890 | ME39: 26374 | MF39: 24990 | MG39: 23040 | MH39: 13705 | MI39: 11992 | MJ39: 10378 | MK39: 9743 | ML39: 9524 | MM39: 8662 | MN39: 10616 | MO39: 11112 | MP39: 11095 | MQ39: 9583 | MR39: 8385 | MS39: 7912 | MT39: 5717 | MU39: 6347 | MV39: 6417 | MW39: 7048 | MX39: 7081 | MY39: 6466 | MZ39: 宮古市、下閉伊郡山田町、下閉伊郡岩泉町、下閉伊郡田野畑村
A40: 35 | B40: 久慈 | C40: 過疎地域型 | D40: 久慈市,下閉伊郡普代村,九戸郡野田村,九戸郡洋野町 | F40: 岩手県 | G40: 東北 | H40: 久慈（岩手） | I40: クジ | J40: 久慈市及び周辺部 | K40: 0.5797281421 | L40: 0.4078178788 | M40: 0.02571019309 | N40: -0.05927842471 | O40: 0.5727356254 | P40: 0.8977405169 | Q40: 0.1116210061 | R40: 0.04198826574 | S40: 0.03412650473 | T40: 168.4438263 | U40: 702.7936606 | W40: 95.2 | X40: 452.2 | Y40: 33 | AA40: 20 | AB40: 0 | AC40: 0 | AD40: 0 | AE40: 0 | AF40: 0 | AG40: 0 | AH40: 0 | AJ40: 0 | AK40: 0 | AL40: 0 | AM40: 0 | AN40: 0 | AP40: 507 | AQ40: 20 | AR40: 166 | AS40: 139 | AT40: 65 | AU40: 117 | AW40: 0 | BB40: 300 | BC40: 32.4 | BD40: 110.4 | BE40: 118.9 | BF40: 38.3 | BG40: 0 | BL40: 0 | BS40: 0 | BX40: 371.5 | BY40: 39.8 | BZ40: 129.1 | CA40: 142 | CB40: 60.6 | CC40: 0 | CH40: 0 | CO40: 26 | CP40: 1032 | CQ40: 836.8530123 | CR40: 902.4470537 | CS40: 909.8528325 | CU40: 102.2 | CV40: 1003.5 | CX40: 374644.9946 | CY40: 164521.5403 | CZ40: 189079.1126 | DA40: 21044.34168 | DB40: 0.9828128428 | DC40: 1.091030719 | DD40: 0.9263614522 | DE40: 0.8003888442 | DF40: 0.03601012675 | DG40: -0.03942931063 | DH40: -0.0137679733 | DI40: 277802.9764 | DJ40: 4972231.079 | DK40: 18650 | DT40: 4 | DU40: 1 | DV40: 0 | DW40: 0 | DX40: 1 | DY40: 228 | DZ40: 0 | EA40: 1 | EB40: 0 | EC40: 1 | ED40: 1 | EE40: 0 | EF40: 666 | EG40: 367 | EH40: 85 | EI40: 210 | EJ40: 0 | EK40: 0 | EL40: 4 | EM40: 59 | EN40: 68.9 | EO40: 52 | EP40: 16.9 | EQ40: 351.9 | ER40: 312.7 | ES40: 39.2 | ET40: 13 | EU40: 18 | EV40: 2 | EW40: 477 | EX40: 180 | EY40: 180 | EZ40: 0 | FA40: 111.2609749 | FB40: 103.2680716 | FC40: 104.3739472 | FD40: 101.811286 | FE40: 95.56574088 | FF40: 91.16419959 | FG40: 121.3701891 | FH40: 127.7796476 | FI40: 76.36571201 | FJ40: 70.41685275 | FK40: 98.47167458 | FL40: 90.77655088 | FM40: 131.2492875 | FN40: 124.5339506 | FO40: 159.2950076 | FP40: 115.6818956 | FQ40: 102.162128 | FR40: 103.3832737 | FS40: 159.072376 | FT40: 149.2050901 | FU40: 161.483059 | FV40: 137.0108506 | FW40: 154.7650013 | FX40: 157.6816999 | FY40: 75.13745031 | FZ40: 71.68679559 | GA40: 92.2144108 | GB40: 110.825 | GC40: 107.9598721 | GD40: 100.7373082 | GE40: 84.96433676 | GF40: 74.95547039 | GG40: 138.5191209 | GH40: 103.4099951 | GI40: 138.1980046 | GJ40: 134.227 | GK40: 7.2 | GL40: 31.5 | GM40: -24.3 | GN40: 3.2 | GO40: 36.1 | GP40: -32.9 | GQ40: 0 | GR40: 25.9 | GS40: -25.9 | GT40: 0 | GU40: 39.8 | GV40: 0 | GW40: 0 | GX40: 13.1 | GY40: 25.6 | HA40: 32 | HB40: 4 | HC40: 28 | HD40: 55 | HE40: 55 | HF40: 0 | HG40: 26.3 | HH40: 21 | HI40: 5.3 | HJ40: 100.3 | HK40: 58.5 | HL40: 41.8 | HN40: 57 | HP40: 4 | HQ40: 1 | HR40: 3 | HS40: 2 | HT40: 0 | HU40: 0 | HV40: 1 | HW40: 0 | HX40: 0 | HY40: 0 | HZ40: 1 | IA40: 1 | IB40: 1 | IC40: 0 | ID40: 2 | IE40: 0 | IF40: 6 | IG40: 10 | IH40: 0 | II40: 0 | IJ40: 0 | IK40: 0 | IL40: 2 | IM40: 2 | IN40: 2 | IO40: 3 | IP40: 1 | IQ40: 2 | IR40: 1 | IS40: 0 | IT40: 1 | IU40: 1 | IV40: 0 | IW40: 0 | IX40: 0 | IY40: 1 | IZ40: 0 | JA40: 0 | JB40: 0 | JC40: 0 | JD40: 2 | JE40: 0 | JF40: 0 | JG40: 0 | JH40: 0 | JI40: 0 | JJ40: 0 | JK40: 0 | JL40: 0 | JM40: 0 | JN40: 0 | JO40: 0 | JP40: 0 | JQ40: 0 | JR40: 0 | JS40: 0 | JU40: 2 | JV40: 0 | JW40: 4 | JX40: 56 | JY40: 0 | JZ40: 0 | KB40: 1 | KC40: 19 | KD40: 5 | KE40: 406 | KF40: 9 | KG40: 455 | KH40: 0 | KI40: 0 | KJ40: 0 | KK40: 0 | KL40: 0 | KM40: 0 | KN40: 0 | KO40: 0 | KP40: 11 | KQ40: 152 | KR40: 3 | KS40: 65 | KT40: 3 | KU40: 65 | KW40: 2 | KY40: 165 | KZ40: 239 | LB40: 92.9 | LC40: 9.3 | LD40: 949 | LE40: 54.5 | LG40: 54557 | LH40: 50.66209791 | LI40: 1076.88 | LJ40: 54557 | LK40: 51654 | LL40: 47691 | LM40: 43770 | LN40: 39828 | LO40: 35819 | LP40: 5739 | LQ40: 5330 | LR40: 4610 | LS40: 3990 | LT40: 3469 | LU40: 2973 | LV40: 28788 | LW40: 26073 | LX40: 23212 | LY40: 20459 | LZ40: 17748 | MA40: 15377 | MB40: 20030 | MC40: 20251 | MD40: 19869 | ME40: 19321 | MF40: 18611 | MG40: 17469 | MH40: 9379 | MI40: 8846 | MJ40: 7816 | MK40: 7109 | ML40: 6745 | MM40: 6227 | MN40: 6677 | MO40: 6983 | MP40: 7667 | MQ40: 7333 | MR40: 6542 | MS40: 6002 | MT40: 3974 | MU40: 4422 | MV40: 4386 | MW40: 4879 | MX40: 5324 | MY40: 5240 | MZ40: 久慈市、下閉伊郡普代村、九戸郡野田村、九戸郡洋野町
A41: 36 | B41: 二戸 | C41: 過疎地域型 | D41: 二戸市,二戸郡一戸町,九戸郡軽米町,九戸郡九戸村 | F41: 岩手県 | G41: 東北 | H41: 二戸（岩手） | I41: ニノヘ | J41: 二戸市及び周辺部 | K41: 0.9361022788 | L41: 0.3908584588 | M41: -0.1117303293 | N41: -0.02027644177 | O41: 0.7707138627 | P41: 1.007723411 | Q41: 0.04763955213 | R41: 0.0573298628 | S41: 0.1259832503 | T41: 197.069675 | U41: 835.4618987 | W41: 119.3 | X41: 472.7 | Y41: 24 | AA41: 0 | AB41: 0 | AC41: 0 | AD41: 0 | AE41: 0 | AF41: 0 | AG41: 0 | AH41: 0 | AJ41: 0 | AK41: 0 | AL41: 2 | AM41: 4 | AN41: 5 | AP41: 489 | AQ41: 0 | AR41: 283 | AS41: 50 | AT41: 45 | AU41: 111 | AW41: 0 | BB41: 238.9 | BC41: 23.4 | BD41: 104.2 | BE41: 81 | BF41: 30.3 | BG41: 0 | BL41: 0 | BS41: 0 | BX41: 382.2 | BY41: 31.1 | BZ41: 121.6 | CA41: 136.6 | CB41: 92.9 | CC41: 0 | CH41: 0 | CO41: 28 | CP41: 1004 | CQ41: 943.7892038 | CR41: 934.186106 | CS41: 866.150599 | CU41: 77.5 | CV41: 1057.7 | CX41: 346736.9144 | CY41: 132564.0489 | CZ41: 193058.7025 | DA41: 21114.16295 | DB41: 0.881928059 | DC41: 0.8519676036 | DD41: 0.9164133734 | DE41: 0.7851293085 | DF41: -0.05858582216 | DG41: -0.04478863669 | DH41: -0.01469748214 | DI41: 306620.4693 | DJ41: 6051435.388 | DK41: 19885 | DT41: 3 | DU41: 1 | DV41: 0 | DW41: 0 | DX41: 1 | DY41: 243 | DZ41: 0 | EA41: 0 | EB41: 0 | EC41: 1 | ED41: 1 | EE41: 0 | EF41: 550 | EG41: 349 | EH41: 45 | EI41: 147 | EJ41: 5 | EK41: 0 | EL41: 4 | EM41: 83 | EN41: 84.2 | EO41: 58 | EP41: 26.2 | EQ41: 345.3 | ER41: 328.2 | ES41: 17.1 | ET41: 11 | EU41: 10 | EV41: 3 | EW41: 347 | EX41: 456 | EY41: 456 | EZ41: 0 | FA41: 116.6493915 | FB41: 108.0978594 | FC41: 103.6236626 | FD41: 98.49125516 | FE41: 98.25645432 | FF41: 89.3242837 | FG41: 126.9445349 | FH41: 115.8155014 | FI41: 82.33786507 | FJ41: 73.33532386 | FK41: 91.7809091 | FL41: 84.3014339 | FM41: 137.6432258 | FN41: 120.5542817 | FO41: 97.46357208 | FP41: 86.79948411 | FQ41: 78.60015673 | FR41: 88.46563584 | FS41: 147.1440838 | FT41: 142.8975079 | FU41: 160.3333538 | FV41: 167.2654875 | FW41: 143.9013225 | FX41: 133.2977901 | FY41: 120.7182947 | FZ41: 96.25171956 | GA41: 120.576845 | GB41: 0 | GC41: 112.5006771 | GD41: 96.28875146 | GE41: 149.45553 | GF41: 126.722618 | GG41: 154.3174059 | GH41: 107.4802051 | GI41: 151.4857147 | GJ41: 185.8560627 | GK41: 11 | GL41: 40.5 | GM41: -29.5 | GN41: 8.9 | GO41: 37.9 | GP41: -29 | GQ41: 0 | GR41: 69.6 | GS41: -69.6 | GT41: 0 | GU41: 68.2 | GV41: 0 | GW41: 100 | GX41: 17.9 | GY41: 26.7 | HA41: 36 | HB41: 7 | HC41: 29 | HD41: 103 | HE41: 87 | HF41: 16 | HG41: 35.1 | HH41: 26 | HI41: 9.1 | HJ41: 127.4 | HK41: 81.4 | HL41: 46 | HN41: 104 | HP41: 4 | HQ41: 2 | HR41: 3 | HS41: 7 | HT41: 0 | HU41: 0 | HV41: 1 | HW41: 1 | HX41: 0 | HY41: 0 | HZ41: 1 | IA41: 2 | IB41: 1 | IC41: 0 | ID41: 2 | IE41: 0 | IF41: 3 | IG41: 5 | IH41: 0 | II41: 0 | IJ41: 0 | IK41: 0 | IL41: 4 | IM41: 3 | IN41: 3 | IO41: 2 | IP41: 0 | IQ41: 3 | IR41: 1 | IS41: 0 | IT41: 2 | IU41: 0 | IV41: 3 | IW41: 1 | IX41: 0 | IY41: 0 | IZ41: 0 | JA41: 0 | JB41: 0 | JC41: 0 | JD41: 7 | JE41: 0 | JF41: 1 | JG41: 0 | JH41: 0 | JI41: 0 | JJ41: 0 | JK41: 0 | JL41: 1 | JM41: 0 | JN41: 0 | JO41: 0 | JP41: 0 | JQ41: 0 | JR41: 0 | JS41: 0 | JU41: 0 | JV41: 0 | JW41: 6 | JX41: 616 | JY41: 2 | JZ41: 3 | KB41: 0 | KC41: 0 | KD41: 3 | KE41: 300 | KF41: 15 | KG41: 562 | KH41: 0 | KI41: 0 | KJ41: 2 | KK41: 70 | KL41: 0 | KM41: 0 | KN41: 0 | KO41: 0 | KP41: 8 | KQ41: 72 | KR41: 0 | KS41: 0 | KT41: 0 | KU41: 0 | KW41: 3 | KY41: 171 | KZ41: 499 | LB41: 71.2 | LC41: 6.3 | LD41: 968.5 | LE41: 89.2 | LG41: 50806 | LH41: 46.17509929 | LI41: 1100.29 | LJ41: 50806 | LK41: 46104 | LL41: 41485 | LM41: 37083 | LN41: 32814 | LO41: 28628 | LP41: 4805 | LQ41: 4345 | LR41: 3717 | LS41: 3172 | LT41: 2699 | LU41: 2266 | LV41: 25698 | LW41: 22156 | LX41: 19261 | LY41: 16437 | LZ41: 13919 | MA41: 11587 | MB41: 20303 | MC41: 19603 | MD41: 18507 | ME41: 17474 | MF41: 16196 | MG41: 14775 | MH41: 9291 | MI41: 8531 | MJ41: 7022 | MK41: 6269 | ML41: 5777 | MM41: 5214 | MN41: 6766 | MO41: 6790 | MP41: 7415 | MQ41: 6877 | MR41: 5723 | MS41: 5162 | MT41: 4246 | MU41: 4282 | MV41: 4070 | MW41: 4328 | MX41: 4696 | MY41: 4399 | MZ41: 二戸市、九戸郡軽米町、九戸郡九戸村、二戸郡一戸町
A42: 37 | B42: 仙南 | C42: 過疎地域型 | D42: 角田市,柴田郡村田町,刈田郡七ヶ宿町,白石市,刈田郡蔵王町,柴田郡川崎町,伊具郡丸森町,柴田郡大河原町,柴田郡柴田町 | F42: 宮城県 | G42: 東北 | H42: 白石（宮城） | I42: センナン | J42: 白石市、角田市及び周辺部 | K42: 0.8100577661 | L42: 0.5197460381 | M42: -0.1202710554 | N42: -0.3273493466 | O42: 0.5729581329 | P42: 0.6925464664 | Q42: -0.0009176956485 | R42: -0.1465945803 | S42: -0.1859339246 | T42: 171.8250158 | U42: 590.0234668 | W42: 290.7 | X42: 1064.8 | Y42: 130 | AA42: 12 | AB42: 0 | AC42: 0 | AD42: 0 | AE42: 0 | AF42: 0 | AG42: 0 | AH42: 0 | AJ42: 0 | AK42: 0 | AL42: 1 | AM42: 4 | AN42: 0 | AP42: 1253 | AQ42: 26 | AR42: 522 | AS42: 388 | AT42: 317 | AU42: 0 | AW42: 0 | BB42: 1240 | BC42: 93 | BD42: 357 | BE42: 456 | BF42: 334 | BG42: 0 | BL42: 0 | BS42: 0 | BX42: 0 | CC42: 0 | CH42: 0 | CO42: 63 | CP42: 2440 | CQ42: 2350.154749 | CR42: 2692.204075 | CS42: 2784.572855 | CU42: 200.315 | CV42: 2367.615 | CX42: 406741.3752 | CY42: 165687.9028 | CZ42: 217932.3716 | DA42: 23121.10074 | DB42: 1.020706779 | DC42: 1.053012682 | DD42: 1.018616149 | DE42: 0.8502300581 | DF42: 0.02093242869 | DG42: 0.009995020534 | DH42: -0.01022066984 | DI42: 240095.6543 | DJ42: 12318987.97 | DK42: 51107 | DT42: 13 | DU42: 2 | DV42: 0 | DW42: 0 | DX42: 2 | DY42: 503 | DZ42: 0 | EA42: 1 | EB42: 1 | EC42: 1 | ED42: 0 | EE42: 1 | EF42: 1862 | EG42: 901 | EH42: 352 | EI42: 601 | EJ42: 4 | EK42: 85 | EL42: 4 | EM42: 186 | EN42: 191.3 | EO42: 161 | EP42: 30.3 | EQ42: 830.6 | ER42: 698.8 | ES42: 131.8 | ET42: 58 | EU42: 49 | EV42: 23 | EW42: 1027 | EX42: 552 | EY42: 36 | EZ42: 516 | FA42: 97.29611291 | FB42: 101.0620857 | FC42: 95.95934205 | FD42: 95.83470963 | FE42: 94.47062894 | FF42: 93.68233595 | FG42: 92.67632079 | FH42: 101.4067043 | FI42: 81.40395256 | FJ42: 86.78550941 | FK42: 99.77926364 | FL42: 91.82003904 | FM42: 96.54127551 | FN42: 92.8423402 | FO42: 78.45599812 | FP42: 94.04607018 | FQ42: 89.09804678 | FR42: 83.00719943 | FS42: 122.5932512 | FT42: 129.3466066 | FU42: 123.7841329 | FV42: 130.9798221 | FW42: 118.1739643 | FX42: 125.1859189 | FY42: 77.51531483 | FZ42: 75.24310169 | GA42: 81.78589839 | GB42: 97.37791968 | GC42: 91.77443912 | GD42: 90.35473528 | GE42: 115.8993554 | GF42: 119.1612219 | GG42: 101.0191921 | GH42: 100.8619492 | GI42: 105.1862366 | GJ42: 108.2743093 | GK42: 12.9 | GL42: 35 | GM42: -22.1 | GN42: 7.9 | GO42: 43.2 | GP42: -35.3 | GQ42: 12.3 | GR42: 6.1 | GS42: 6.2 | GT42: 12.5 | GU42: 5.5 | GV42: 0 | GW42: 41.6 | GX42: 19.1 | GY42: 35.1 | HA42: 103 | HB42: 7 | HC42: 96 | HD42: 60 | HE42: 60 | HF42: 0 | HG42: 99.4 | HH42: 88 | HI42: 11.4 | HJ42: 234.2 | HK42: 110.1 | HL42: 124.1 | HN42: 283 | HP42: 30 | HQ42: 7 | HR42: 9 | HS42: 21 | HT42: 1 | HU42: 0 | HV42: 7 | HW42: 6 | HX42: 1 | HY42: 2 | HZ42: 5 | IA42: 2 | IB42: 0 | IC42: 1 | ID42: 8 | IE42: 0 | IF42: 10 | IG42: 19 | IH42: 0 | II42: 0 | IJ42: 0 | IK42: 0 | IL42: 7 | IM42: 8 | IN42: 2 | IO42: 10 | IP42: 2 | IQ42: 5 | IR42: 6 | IS42: 0 | IT42: 5 | IU42: 0 | IV42: 0 | IW42: 1 | IX42: 2 | IY42: 4 | IZ42: 0 | JA42: 0 | JB42: 0 | JC42: 0 | JD42: 13 | JE42: 0 | JF42: 1 | JG42: 0 | JH42: 0 | JI42: 0 | JJ42: 0 | JK42: 0 | JL42: 1 | JM42: 1 | JN42: 0 | JO42: 0 | JP42: 0 | JQ42: 0 | JR42: 0 | JS42: 0 | JU42: 5 | JV42: 4 | JW42: 18 | JX42: 807 | JY42: 3 | JZ42: 13 | KB42: 0 | KC42: 0 | KD42: 10 | KE42: 901 | KF42: 23 | KG42: 1105 | KH42: 1 | KI42: 20 | KJ42: 0 | KK42: 0 | KL42: 1 | KM42: 18 | KN42: 2 | KO42: 33 | KP42: 26 | KQ42: 363 | KR42: 5 | KS42: 137 | KT42: 7 | KU42: 170 | KW42: 10 | KY42: 336 | KZ42: 791 | LB42: 162.94 | LC42: 37.375 | LD42: 2186.61 | LE42: 181.005 | LG42: 166529 | LH42: 107.3411113 | LI42: 1551.4 | LJ42: 166529 | LK42: 160359 | LL42: 150751 | LM42: 140624 | LN42: 129625 | LO42: 118043 | LP42: 17762 | LQ42: 16158 | LR42: 14518 | LS42: 12798 | LT42: 11253 | LU42: 9825 | LV42: 92109 | LW42: 84765 | LX42: 77754 | LY42: 71197 | LZ42: 62843 | MA42: 54861 | MB42: 56658 | MC42: 59436 | MD42: 58479 | ME42: 56629 | MF42: 55529 | MG42: 53357 | MH42: 28322 | MI42: 26316 | MJ42: 22036 | MK42: 19431 | ML42: 20030 | MM42: 20547 | MN42: 17555 | MO42: 21428 | MP42: 24470 | MQ42: 22511 | MR42: 19071 | MS42: 16935 | MT42: 10781 | MU42: 11692 | MV42: 11973 | MW42: 14687 | MX42: 16428 | MY42: 15875 | MZ42: 白石市、角田市、刈田郡蔵王町、刈田郡七ヶ宿町、柴田郡大河原町、柴田郡村田町、柴田郡柴田町、柴田郡川崎町、伊具郡丸森町 | NB42: みやぎ県南中核病院（標準群・救命）
A43: 38 | B43: 仙台 | C43: 大都市型 | D43: 塩竈市,黒川郡大和町,亘理郡山元町,仙台市若林区,仙台市太白区,仙台市宮城野区,仙台市泉区,名取市,宮城郡七ヶ浜町,岩沼市,亘理郡亘理町,宮城郡松島町,宮城郡利府町,黒川郡大郷町,黒川郡富谷町,黒川郡大衡村,多賀城市,仙台市青葉区 | F43: 宮城県 | G43: 東北 | H43: 仙台（宮城） | I43: センダイ | J43: 仙台市、塩竈市及び周辺部 | K43: 1.226410998 | L43: 0.4261395017 | M43: -0.03445109654 | N43: -0.7746008247 | O43: 0.964984781 | P43: 0.9913537444 | Q43: -0.05780143259 | R43: -0.5282600808 | S43: -0.8146583255 | T43: 246.3080802 | U43: 799.7692133 | W43: 4528.8 | X43: 14099 | Y43: 1473.5 | AA43: 60 | AB43: 86 | AC43: 125 | AD43: 12 | AE43: 9 | AF43: 62 | AG43: 57 | AH43: 0 | AJ43: 0 | AK43: 1 | AL43: 7 | AM43: 10 | AN43: 0 | AP43: 12986 | AQ43: 1975 | AR43: 7329 | AS43: 1516 | AT43: 2043 | AU43: 123 | AW43: 0 | BB43: 13201 | BC43: 1798 | BD43: 4999 | BE43: 3899 | BF43: 2505 | BG43: 0 | BL43: 0 | BS43: 0 | BX43: 0 | CC43: 0 | CH43: 0 | CO43: 347 | CP43: 16299 | CQ43: 13404.45975 | CR43: 19366.11174 | CS43: 22995.3503 | CU43: 1888.42 | CV43: 17132.1965 | CX43: 372445.2271 | CY43: 140317.3045 | CZ43: 206911.5017 | DA43: 25216.42087 | DB43: 1.003739406 | DC43: 0.9604109799 | DD43: 1.039435609 | DE43: 0.9737955417 | DF43: -0.01558789352 | DG43: 0.02115602916 | DH43: -0.001828729244 | DI43: 245291.8747 | DJ43: 77956760.27 | DK43: 317205 | DT43: 77 | DU43: 23 | DV43: 2 | DW43: 1 | DX43: 20 | DY43: 8197 | DZ43: 4 | EA43: 3 | EB43: 10 | EC43: 5 | ED43: 6 | EE43: 3 | EF43: 16167 | EG43: 11072 | EH43: 1262 | EI43: 3823 | EJ43: 0 | EK43: 631 | EL43: 10 | EM43: 781 | EN43: 3001.4 | EO43: 2533 | EP43: 468.4 | EQ43: 10779.1 | ER43: 10164.9 | ES43: 614.2 | ET43: 782 | EU43: 516.5 | EV43: 175 | EW43: 32533 | EX43: 11988 | EY43: 7740 | EZ43: 4248 | FA43: 91.70220161 | FB43: 95.96677097 | FC43: 95.16238996 | FD43: 97.726177 | FE43: 93.51493301 | FF43: 93.70803189 | FG43: 89.72541878 | FH43: 104.0842613 | FI43: 82.47638269 | FJ43: 86.5706657 | FK43: 97.38547549 | FL43: 94.70123028 | FM43: 91.50421809 | FN43: 88.86614163 | FO43: 64.50535309 | FP43: 74.4415021 | FQ43: 71.15232107 | FR43: 72.24678008 | FS43: 104.437728 | FT43: 107.9689046 | FU43: 124.6371726 | FV43: 132.2901323 | FW43: 97.93404129 | FX43: 103.2796102 | FY43: 74.25073242 | FZ43: 71.26267426 | GA43: 79.30989844 | GB43: 86.58869312 | GC43: 84.54399139 | GD43: 80.72928051 | GE43: 116.5321486 | GF43: 119.3608801 | GG43: 79.91328743 | GH43: 84.96054239 | GI43: 94.59505568 | GJ43: 99.89514928 | GK43: 15.7 | GL43: 4.6 | GM43: 11.1 | GN43: 16.9 | GO43: 3.4 | GP43: 13.5 | GQ43: 5.4 | GR43: 7.8 | GS43: -2.4 | GT43: 5.4 | GU43: 7.6 | GV43: 0 | GW43: 34.5 | GX43: 15.3 | GY43: 6.2 | HA43: 1207 | HB43: 76 | HC43: 1131 | HD43: 960 | HE43: 893 | HF43: 67 | HG43: 1527.4 | HH43: 1234 | HI43: 293.4 | HJ43: 3319.9 | HK43: 2195.9 | HL43: 1124 | HN43: 4204 | HP43: 477 | HQ43: 109 | HR43: 148 | HS43: 302 | HT43: 77 | HU43: 62 | HV43: 76 | HW43: 77 | HX43: 31 | HY43: 47 | HZ43: 74 | IA43: 52 | IB43: 49 | IC43: 22 | ID43: 208 | IE43: 13 | IF43: 139 | IG43: 370 | IH43: 24 | II43: 39 | IJ43: 23 | IK43: 9 | IL43: 122 | IM43: 87 | IN43: 86 | IO43: 215 | IP43: 39 | IQ43: 133 | IR43: 108 | IS43: 17 | IT43: 180 | IU43: 51 | IV43: 91 | IW43: 127 | IX43: 28 | IY43: 51 | IZ43: 27 | JA43: 54 | JB43: 53 | JC43: 13 | JD43: 196 | JE43: 24 | JF43: 20 | JG43: 4 | JH43: 41 | JI43: 22 | JJ43: 17 | JK43: 10 | JL43: 15 | JM43: 5 | JN43: 15 | JO43: 23 | JP43: 20 | JQ43: 16 | JR43: 19 | JS43: 5 | JU43: 102 | JV43: 13 | JW43: 135 | JX43: 14136 | JY43: 42 | JZ43: 154 | KB43: 1 | KC43: 19 | KD43: 49 | KE43: 4733 | KF43: 96 | KG43: 6088 | KH43: 2 | KI43: 87 | KJ43: 7 | KK43: 252 | KL43: 38 | KM43: 2254 | KN43: 6 | KO43: 299 | KP43: 148 | KQ43: 2567 | KR43: 82 | KS43: 2418 | KT43: 88 | KU43: 2717 | KW43: 136 | KY43: 5888 | KZ43: 8820 | LB43: 1162.3 | LC43: 726.12 | LD43: 14663.2465 | LE43: 2468.95 | LG43: 1540389 | LH43: 934.2145482 | LI43: 1648.86 | LJ43: 1540389 | LK43: 1510293 | LL43: 1475155 | LM43: 1426974 | LN43: 1365284 | LO43: 1293406 | LP43: 187798 | LQ43: 174466 | LR43: 162170 | LS43: 149660 | LT43: 138908 | LU43: 127730 | LV43: 967944 | LW43: 904543 | LX43: 860670 | LY43: 806393 | LZ43: 730626 | MA43: 662839 | MB43: 384647 | MC43: 431284 | MD43: 452315 | ME43: 470921 | MF43: 495750 | MG43: 502837 | MH43: 196522 | MI43: 188334 | MJ43: 178384 | MK43: 184949 | ML43: 205023 | MM43: 207280 | MN43: 125957 | MO43: 162321 | MP43: 179495 | MQ43: 166947 | MR43: 159206 | MS43: 165668 | MT43: 62168 | MU43: 80629 | MV43: 94436 | MW43: 119025 | MX43: 131521 | MY43: 129889 | MZ43: 仙台市青葉区、仙台市宮城野区、仙台市若林区、仙台市太白区、仙台市泉区、塩竈市、名取市、多賀城市、岩沼市、富谷市、亘理郡亘理町、亘理郡山元町、宮城郡松島町、宮城郡七ヶ浜町、宮城郡利府町、黒川郡大和町、黒川郡大郷町、黒川郡大衡村 | NA43: 仙台市立病院（標準群・救命）、東北公済病院（標準群）、NHO仙台医療センター（特定群・救命）、東北大学病院（大学本院群・救命）、東北医科薬科大学病院（大学本院群） | NB43: 仙台赤十字病院（標準群）、仙台オープン病院（標準群）、宮城県立こども病院（標準群）、東北労災病院（標準群）、仙台厚生病院（標準群）、宮城県立がんセンター（標準群） | NC43: JCHO仙台病院（標準群）、仙台徳洲会病院（標準群）、中嶋病院（標準群）、総合南東北病院（標準群）、坂総合病院（標準群）
A44: 39 | B44: 大崎・栗原 | C44: 地方都市型 | D44: 加美郡色麻町,加美郡加美町,遠田郡涌谷町,遠田郡美里町,大崎市,栗原市 | F44: 宮城県 | G44: 東北 | H44: 大崎（宮城） | I44: オオサキクリハラ | J44: 大崎市及び周辺部 | K44: 0.5403952988 | L44: 0.9039642243 | M44: -0.1675964133 | N44: -0.1948486847 | O44: 0.9165321581 | P44: 0.9230913119 | Q44: -0.1433451083 | R44: -0.1538367206 | S44: -0.1700313423 | T44: 190.5197993 | U44: 696.1793472 | W44: 726 | X44: 2215.8 | Y44: 149 | AA44: 26 | AB44: 6 | AC44: 0 | AD44: 0 | AE44: 6 | AF44: 0 | AG44: 0 | AH44: 0 | AJ44: 0 | AK44: 0 | AL44: 2 | AM44: 7 | AN44: 28 | AP44: 2520 | AQ44: 44 | AR44: 1275 | AS44: 313 | AT44: 776 | AU44: 112 | AW44: 0 | BB44: 1902 | BC44: 182 | BD44: 567 | BE44: 669 | BF44: 484 | BG44: 0 | BL44: 0 | BS44: 0 | BX44: 0 | CC44: 0 | CH44: 0 | CO44: 100 | CP44: 3813 | CQ44: 3866.793156 | CR44: 3902.275789 | CS44: 3957.046 | CU44: 374.743 | CV44: 4416.64 | CX44: 391542.182 | CY44: 147899.2357 | CZ44: 223304.0633 | DA44: 20338.88297 | DB44: 0.999929236 | DC44: 0.9563879168 | DD44: 1.06300142 | DE44: 0.757304719 | DF44: -0.01722381654 | DG44: 0.03379899831 | DH44: -0.01664594579 | DI44: 293737.4707 | DJ44: 23029122.11 | DK44: 81764 | DT44: 25 | DU44: 2 | DV44: 0 | DW44: 1 | DX44: 1 | DY44: 1162 | DZ44: 0 | EA44: 1 | EB44: 1 | EC44: 1 | ED44: 1 | EE44: 0 | EF44: 3165 | EG44: 1527 | EH44: 911 | EI44: 692 | EJ44: 28 | EK44: 0 | EL44: 7 | EM44: 223 | EN44: 517.6 | EO44: 265 | EP44: 252.6 | EQ44: 1709.5 | ER44: 1399.9 | ES44: 309.6 | ET44: 87 | EU44: 45 | EV44: 17 | EW44: 3182 | EX44: 1824 | EY44: 624 | EZ44: 1200 | FA44: 105.5121935 | FB44: 104.6723967 | FC44: 104.030345 | FD44: 98.04689364 | FE44: 108.1350425 | FF44: 95.18931316 | FG44: 101.2133004 | FH44: 106.8867849 | FI44: 85.91443893 | FJ44: 91.1622476 | FK44: 107.474412 | FL44: 86.82980763 | FM44: 113.1579777 | FN44: 112.6775614 | FO44: 91.21906107 | FP44: 88.70493493 | FQ44: 121.0058782 | FR44: 119.1724457 | FS44: 133.9693109 | FT44: 126.8491663 | FU44: 133.0964655 | FV44: 129.0875313 | FW44: 125.9467736 | FX44: 120.4640084 | FY44: 86.63639519 | FZ44: 86.89553801 | GA44: 93.4200828 | GB44: 100.3336766 | GC44: 98.72936307 | GD44: 99.29396102 | GE44: 137.6984359 | GF44: 124.8137341 | GG44: 112.7376369 | GH44: 104.8293463 | GI44: 116.0788831 | GJ44: 98.56800976 | GK44: 17.6 | GL44: 23.7 | GM44: -6.1 | GN44: 10 | GO44: 25.7 | GP44: -15.7 | GQ44: 16.4 | GR44: 4.6 | GS44: 11.8 | GT44: 17.3 | GU44: 4.8 | GV44: 0 | GW44: 0 | GX44: 30.7 | GY44: 34.5 | HA44: 165 | HB44: 15 | HC44: 150 | HD44: 218 | HE44: 208 | HF44: 10 | HG44: 208.4 | HH44: 157 | HI44: 51.4 | HJ44: 506.3 | HK44: 188.8 | HL44: 317.5 | HN44: 454 | HP44: 45 | HQ44: 8 | HR44: 13 | HS44: 24 | HT44: 4 | HU44: 3 | HV44: 3 | HW44: 6 | HX44: 2 | HY44: 4 | HZ44: 7 | IA44: 2 | IB44: 12 | IC44: 3 | ID44: 10 | IE44: 0 | IF44: 15 | IG44: 33 | IH44: 3 | II44: 3 | IJ44: 1 | IK44: 0 | IL44: 7 | IM44: 5 | IN44: 6 | IO44: 27 | IP44: 2 | IQ44: 14 | IR44: 6 | IS44: 0 | IT44: 13 | IU44: 2 | IV44: 6 | IW44: 8 | IX44: 3 | IY44: 8 | IZ44: 1 | JA44: 3 | JB44: 4 | JC44: 2 | JD44: 19 | JE44: 1 | JF44: 3 | JG44: 0 | JH44: 3 | JI44: 0 | JJ44: 0 | JK44: 1 | JL44: 2 | JM44: 0 | JN44: 2 | JO44: 2 | JP44: 0 | JQ44: 0 | JR44: 0 | JS44: 0 | JU44: 20 | JV44: 4 | JW44: 39 | JX44: 2806 | JY44: 8 | JZ44: 26 | KB44: 2 | KC44: 48 | KD44: 15 | KE44: 1306 | KF44: 29 | KG44: 1491 | KH44: 1 | KI44: 44 | KJ44: 3 | KK44: 75 | KL44: 1 | KM44: 30 | KN44: 2 | KO44: 89 | KP44: 47 | KQ44: 730 | KR44: 21 | KS44: 446 | KT44: 23 | KU44: 535 | KW44: 23 | KY44: 1254 | KZ44: 1772 | LB44: 280.693 | LC44: 94.05 | LD44: 4095.65 | LE44: 320.99 | LG44: 259990 | LH44: 111.6373536 | LI44: 2328.88 | LJ44: 259990 | LK44: 248243 | LL44: 233650 | LM44: 218854 | LN44: 202956 | LO44: 186301 | LP44: 28506 | LQ44: 26910 | LR44: 24636 | LS44: 22179 | LT44: 19969 | LU44: 17917 | LV44: 141459 | LW44: 130493 | LX44: 120634 | LY44: 112566 | LZ44: 101707 | MA44: 90332 | MB44: 90025 | MC44: 90840 | MD44: 88380 | ME44: 84109 | MF44: 81280 | MG44: 78052 | MH44: 44139 | MI44: 41549 | MJ44: 34390 | MK44: 29184 | ML44: 29173 | MM44: 31053 | MN44: 27310 | MO44: 30967 | MP44: 36880 | MQ44: 34661 | MR44: 28997 | MS44: 24793 | MT44: 18576 | MU44: 18324 | MV44: 17110 | MW44: 20264 | MX44: 23110 | MY44: 22206 | MZ44: 栗原市、大崎市、加美郡色麻町、加美郡加美町、遠田郡涌谷町、遠田郡美里町 | NA44: 大崎市民病院（特定群・救命）
A45: 40 | B45: 石巻・登米・気仙沼 | C45: 地方都市型 | D45: 登米市,牡鹿郡女川町,東松島市,石巻市,本吉郡南三陸町,気仙沼市 | F45: 宮城県 | G45: 東北 | H45: 石巻（宮城） | I45: イシノマキトメケセンヌマ | J45: 石巻市、登米市、気仙沼市及び周辺部 | K45: 0.5823646095 | L45: 0.5612770954 | M45: -0.1785214743 | N45: -0.2940623988 | O45: 0.6845795095 | P45: 0.9483572825 | Q45: -0.1173611096 | R45: -0.2602640095 | S45: -0.2269059406 | T45: 160.2238545 | U45: 707.5480937 | W45: 698.9 | X45: 2934 | Y45: 390.6 | AA45: 24 | AB45: 10 | AC45: 6 | AD45: 0 | AE45: 6 | AF45: 0 | AG45: 0 | AH45: 0 | AJ45: 0 | AK45: 0 | AL45: 3 | AM45: 8 | AN45: 0 | AP45: 2743 | AQ45: 46 | AR45: 1313 | AS45: 546 | AT45: 785 | AU45: 53 | AW45: 0 | BB45: 2438 | BC45: 192 | BD45: 681 | BE45: 981 | BF45: 584 | BG45: 0 | BL45: 0 | BS45: 0 | BX45: 0 | CC45: 0 | CH45: 0 | CO45: 129 | CP45: 4530 | CQ45: 4743.19791 | CR45: 5349.82072 | CS45: 5208.215718 | CU45: 463.68 | CV45: 5256.17 | CX45: 393261.9402 | CY45: 154122.9351 | CZ45: 218773.9989 | DA45: 20365.00612 | DB45: 1.019423105 | DC45: 1.01110053 | DD45: 1.057820257 | DE45: 0.7678422921 | DF45: 0.00438620763 | DG45: 0.03099819451 | DH45: -0.01596129698 | DI45: 263881.2995 | DJ45: 27086667.51 | DK45: 106654 | DT45: 21 | DU45: 2 | DV45: 0 | DW45: 1 | DX45: 1 | DY45: 1286 | DZ45: 0 | EA45: 1 | EB45: 1 | EC45: 1 | ED45: 2 | EE45: 2 | EF45: 3665 | EG45: 1994 | EH45: 640 | EI45: 1023 | EJ45: 0 | EK45: 242 | EL45: 8 | EM45: 259 | EN45: 464.3 | EO45: 344 | EP45: 120.3 | EQ45: 2243 | ER45: 1950.6 | ES45: 292.4 | ET45: 210.6 | EU45: 141.3 | EV45: 38.7 | EW45: 4396 | EX45: 1140 | EY45: 1116 | EZ45: 24 | FA45: 102.4495525 | FB45: 101.0254471 | FC45: 101.9118147 | FD45: 98.39895185 | FE45: 100.6138088 | FF45: 84.00172263 | FG45: 93.24081241 | FH45: 105.131271 | FI45: 85.56173731 | FJ45: 80.5824716 | FK45: 110.8626219 | FL45: 93.48716434 | FM45: 117.5100752 | FN45: 110.5352316 | FO45: 97.66021093 | FP45: 104.2845275 | FQ45: 121.1625617 | FR45: 107.2970056 | FS45: 122.0433032 | FT45: 115.0712961 | FU45: 135.2873891 | FV45: 124.7374679 | FW45: 119.5681749 | FX45: 116.8003809 | FY45: 92.78325219 | FZ45: 91.63608496 | GA45: 81.36070236 | GB45: 91.75640947 | GC45: 108.1926149 | GD45: 92.46726045 | GE45: 117.5070948 | GF45: 125.6335566 | GG45: 97.80164831 | GH45: 95.63790256 | GI45: 114.1460355 | GJ45: 96.64806265 | GK45: 12.7 | GL45: 21.7 | GM45: -9 | GN45: 4.9 | GO45: 22.4 | GP45: -17.5 | GQ45: 5.8 | GR45: 18 | GS45: -12.2 | GT45: 5.8 | GU45: 18 | GV45: 0 | GW45: 0 | GX45: 29.4 | GY45: 22.6 | HA45: 211 | HB45: 14 | HC45: 197 | HD45: 196 | HE45: 182 | HF45: 14 | HG45: 234.6 | HH45: 186 | HI45: 48.6 | HJ45: 691 | HK45: 319.4 | HL45: 371.6 | HN45: 561 | HP45: 46 | HQ45: 9 | HR45: 20 | HS45: 31 | HT45: 4 | HU45: 6 | HV45: 9 | HW45: 2 | HX45: 1 | HY45: 3 | HZ45: 13 | IA45: 4 | IB45: 4 | IC45: 1 | ID45: 17 | IE45: 0 | IF45: 16 | IG45: 46 | IH45: 3 | II45: 1 | IJ45: 2 | IK45: 0 | IL45: 17 | IM45: 13 | IN45: 8 | IO45: 25 | IP45: 3 | IQ45: 9 | IR45: 8 | IS45: 1 | IT45: 14 | IU45: 2 | IV45: 7 | IW45: 10 | IX45: 1 | IY45: 5 | IZ45: 1 | JA45: 3 | JB45: 5 | JC45: 2 | JD45: 25 | JE45: 1 | JF45: 2 | JG45: 0 | JH45: 1 | JI45: 0 | JJ45: 1 | JK45: 1 | JL45: 2 | JM45: 0 | JN45: 1 | JO45: 1 | JP45: 1 | JQ45: 1 | JR45: 0 | JS45: 0 | JU45: 18 | JV45: 2 | JW45: 39 | JX45: 2476 | JY45: 14 | JZ45: 66 | KB45: 0 | KC45: 0 | KD45: 18 | KE45: 1751 | KF45: 41 | KG45: 1771 | KH45: 0 | KI45: 0 | KJ45: 3 | KK45: 99 | KL45: 0 | KM45: 0 | KN45: 1 | KO45: 48 | KP45: 66 | KQ45: 861 | KR45: 20 | KS45: 431 | KT45: 21 | KU45: 479 | KW45: 25 | KY45: 1968 | KZ45: 2150 | LB45: 351.92 | LC45: 111.76 | LD45: 4829.36 | LE45: 426.81 | LG45: 335088 | LH45: 191.1337242 | LI45: 1753.16 | LJ45: 335088 | LK45: 308576 | LL45: 284045 | LM45: 259767 | LN45: 235393 | LO45: 211271 | LP45: 34865 | LQ45: 31406 | LR45: 27543 | LS45: 23927 | LT45: 20892 | LU45: 18158 | LV45: 183913 | LW45: 162917 | LX45: 146329 | LY45: 131131 | LZ45: 114058 | MA45: 97964 | MB45: 116310 | MC45: 114253 | MD45: 110173 | ME45: 104709 | MF45: 100443 | MG45: 95149 | MH45: 55588 | MI45: 49974 | MJ45: 43141 | MK45: 38715 | ML45: 38031 | MM45: 37693 | MN45: 38560 | MO45: 41466 | MP45: 44398 | MQ45: 40167 | MR45: 35037 | MS45: 31607 | MT45: 22162 | MU45: 22813 | MV45: 22634 | MW45: 25827 | MX45: 27375 | MY45: 25849 | MZ45: 石巻市、気仙沼市、登米市、東松島市、牡鹿郡女川町、本吉郡南三陸町 | NA45: 石巻赤十字病院（特定群・救命）
A46: 41 | B46: 大館・鹿角 | C46: 過疎地域型 | D46: 鹿角郡小坂町,大館市,鹿角市 | F46: 秋田県 | G46: 東北 | H46: 大館（秋田） | I46: オオダテカヅノ | J46: 大館市、鹿角市、小坂町 | K46: 1.11488259 | L46: 1.558480008 | M46: 0.1379533067 | N46: 0.1969107864 | O46: 0.6650073482 | P46: 1.080216629 | Q46: 0.1339299343 | R46: 0.09653811935 | S46: 0.1931625822 | T46: 175.5890181 | U46: 1039.154743 | W46: 208.9 | X46: 1028.3 | Y46: 91.8 | AA46: 0 | AB46: 0 | AC46: 0 | AD46: 0 | AE46: 0 | AF46: 0 | AG46: 0 | AH46: 0 | AJ46: 0 | AK46: 0 | AL46: 2 | AM46: 4 | AN46: 6 | AP46: 1212 | AQ46: 0 | AR46: 676 | AS46: 231 | AT46: 223 | AU46: 82 | AW46: 0 | BB46: 0 | BG46: 942 | BH46: 67 | BI46: 300 | BJ46: 296 | BK46: 279 | BL46: 0 | BS46: 0 | BX46: 0 | CC46: 0 | CH46: 0 | CO46: 52 | CP46: 2050 | CQ46: 1826.541769 | CR46: 1905.401106 | CS46: 1701.620114 | CU46: 234.8 | CV46: 2308.77 | CX46: 408703.3807 | CY46: 167424.9624 | CZ46: 217523.8558 | DA46: 23754.56256 | DB46: 0.9744273435 | DC46: 1.00757481 | DD46: 0.9662811013 | DE46: 0.8439000375 | DF46: 0.003000930269 | DG46: -0.01809747647 | DH46: -0.01047611029 | DI46: 322794.1504 | DJ46: 12190224.81 | DK46: 39849 | DT46: 9 | DU46: 2 | DV46: 0 | DW46: 0 | DX46: 2 | DY46: 561 | DZ46: 0 | EA46: 0 | EB46: 0 | EC46: 1 | ED46: 1 | EE46: 0 | EF46: 1507 | EG46: 848 | EH46: 325 | EI46: 324 | EJ46: 6 | EK46: 155 | EL46: 4 | EM46: 159 | EN46: 144.7 | EO46: 108 | EP46: 36.7 | EQ46: 812.4 | ER46: 696.8 | ES46: 115.6 | ET46: 49 | EU46: 34.8 | EV46: 8 | EW46: 1791 | EX46: 480 | EY46: 480 | EZ46: 0 | FA46: 109.3189928 | FB46: 104.5531646 | FC46: 114.0117565 | FD46: 104.6842878 | FE46: 137.8849054 | FF46: 144.9993114 | FG46: 140.2133779 | FH46: 110.0821841 | FI46: 79.27357356 | FJ46: 69.4849788 | FK46: 99.42035453 | FL46: 93.75751651 | FM46: 102.8445293 | FN46: 107.9232454 | FO46: 72.18135999 | FP46: 68.40422672 | FQ46: 139.6954892 | FR46: 126.6201051 | FS46: 134.5369815 | FT46: 159.7605893 | FU46: 130.1710886 | FV46: 130.4449433 | FW46: 140.1529366 | FX46: 179.2157579 | FY46: 120.0005166 | FZ46: 116.3871062 | GA46: 98.70353232 | GB46: 68.88765142 | GC46: 104.8848135 | GD46: 96.89771543 | GE46: 66.82708327 | GF46: 65.98666782 | GG46: 125.3847282 | GH46: 108.8320097 | GI46: 141.2720176 | GJ46: 102.8695494 | GK46: 7.3 | GL46: 24 | GM46: -16.7 | GN46: 4.6 | GO46: 22.2 | GP46: -17.6 | GQ46: 7 | GR46: 7.6 | GS46: -0.6 | GT46: 7 | GU46: 7.6 | GV46: 0 | GW46: 0 | GX46: 11.7 | GY46: 35.5 | HA46: 64 | HB46: 3 | HC46: 61 | HD46: 37 | HE46: 34 | HF46: 3 | HG46: 64.2 | HH46: 51 | HI46: 13.2 | HJ46: 215.9 | HK46: 83.6 | HL46: 132.3 | HN46: 219 | HP46: 5 | HQ46: 1 | HR46: 4 | HS46: 10 | HT46: 0 | HU46: 1 | HV46: 0 | HW46: 1 | HX46: 1 | HY46: 1 | HZ46: 1 | IA46: 1 | IB46: 0 | IC46: 1 | ID46: 5 | IE46: 0 | IF46: 8 | IG46: 9 | IH46: 1 | II46: 0 | IJ46: 0 | IK46: 1 | IL46: 4 | IM46: 5 | IN46: 8 | IO46: 13 | IP46: 1 | IQ46: 3 | IR46: 5 | IS46: 0 | IT46: 5 | IU46: 2 | IV46: 1 | IW46: 1 | IX46: 0 | IY46: 2 | IZ46: 0 | JA46: 1 | JB46: 0 | JC46: 0 | JD46: 7 | JE46: 0 | JF46: 0 | JG46: 0 | JH46: 0 | JI46: 0 | JJ46: 0 | JK46: 0 | JL46: 0 | JM46: 0 | JN46: 1 | JO46: 0 | JP46: 0 | JQ46: 0 | JR46: 0 | JS46: 0 | JU46: 5 | JV46: 2 | JW46: 9 | JX46: 172 | JY46: 4 | JZ46: 8 | KB46: 0 | KC46: 0 | KD46: 6 | KE46: 412 | KF46: 13 | KG46: 900 | KH46: 3 | KI46: 214 | KJ46: 4 | KK46: 114 | KL46: 2 | KM46: 59 | KN46: 0 | KO46: 0 | KP46: 24 | KQ46: 351 | KR46: 8 | KS46: 166 | KT46: 8 | KU46: 166 | KW46: 10 | KY46: 349 | KZ46: 964 | LB46: 199.1 | LC46: 35.7 | LD46: 2101.9 | LE46: 206.87 | LG46: 103105 | LH46: 56.57525076 | LI46: 1822.44 | LJ46: 103105 | LK46: 94458 | LL46: 85858 | LM46: 77589 | LN46: 69554 | LO46: 61825 | LP46: 9722 | LQ46: 8443 | LR46: 7311 | LS46: 6253 | LT46: 5372 | LU46: 4598 | LV46: 52204 | LW46: 46220 | LX46: 40784 | LY46: 36279 | LZ46: 31235 | MA46: 26541 | MB46: 41179 | MC46: 39795 | MD46: 37763 | ME46: 35057 | MF46: 32947 | MG46: 30686 | MH46: 18462 | MI46: 15920 | MJ46: 13768 | MK46: 12065 | ML46: 11392 | MM46: 11198 | MN46: 14160 | MO46: 14556 | MP46: 14828 | MQ46: 12900 | MR46: 11289 | MS46: 9964 | MT46: 8557 | MU46: 9319 | MV46: 9167 | MW46: 10092 | MX46: 10266 | MY46: 9524 | MZ46: 大館市、鹿角市、鹿角郡小坂町 | NC46: 大館市立総合病院（標準群）
A47: 42 | B47: 北秋田 | C47: 過疎地域型 | D47: 北秋田市,北秋田郡上小阿仁村 | F47: 秋田県 | G47: 東北 | H47: 北秋田（秋田） | I47: キタアキタ | J47: 北秋田市、上小阿仁村 | K47: 0.70194604 | L47: 0.689011597 | M47: -0.08339295509 | N47: 0.1119896916 | O47: 0.5616024366 | P47: 0.8792824858 | Q47: 0.009675438003 | R47: 0.03156363665 | S47: 0.1882738248 | T47: 135.1733499 | U47: 724.223743 | W47: 55.2 | X47: 261.9 | Y47: 11.6 | AA47: 0 | AB47: 0 | AC47: 0 | AD47: 0 | AE47: 0 | AF47: 0 | AG47: 0 | AH47: 0 | AJ47: 0 | AK47: 0 | AL47: 1 | AM47: 4 | AN47: 4 | AP47: 276 | AQ47: 0 | AR47: 170 | AS47: 58 | AT47: 0 | AU47: 48 | AW47: 0 | BB47: 135 | BC47: 13 | BD47: 50 | BE47: 57 | BF47: 15 | BG47: 0 | BL47: 0 | BS47: 0 | BX47: 0 | CC47: 0 | CH47: 0 | CO47: 21 | CP47: 768 | CQ47: 692.2368688 | CR47: 676.937018 | CS47: 567.3965965 | CU47: 68.8 | CV47: 817.7 | CX47: 397991.5509 | CY47: 174655.2135 | CZ47: 202475.1542 | DA47: 20861.18317 | DB47: 0.9262957794 | DC47: 1.024701207 | DD47: 0.8781066155 | DE47: 0.7285784714 | DF47: 0.009798922368 | DG47: -0.06541546878 | DH47: -0.01808767422 | DI47: 344296.9948 | DJ47: 4652451.609 | DK47: 14591 | DT47: 2 | DU47: 1 | DV47: 0 | DW47: 0 | DX47: 1 | DY47: 170 | DZ47: 0 | EA47: 0 | EB47: 0 | EC47: 1 | ED47: 0 | EE47: 0 | EF47: 464 | EG47: 224 | EH47: 48 | EI47: 184 | EJ47: 4 | EK47: 0 | EL47: 4 | EM47: 48 | EN47: 28.1 | EO47: 20 | EP47: 8.1 | EQ47: 175 | ER47: 150.5 | ES47: 24.5 | ET47: 6.6 | EU47: 4 | EV47: 1 | EW47: 691 | EX47: 12 | EY47: 12 | EZ47: 0 | FA47: 112.3972748 | FB47: 106.2453015 | FC47: 109.9503494 | FD47: 104.5535944 | FE47: 137.5670908 | FF47: 147.933 | FG47: 128.308 | FH47: 106.356 | FI47: 65.847 | FJ47: 64.386 | FK47: 99.19639764 | FL47: 95.871 | FM47: 107.4103607 | FN47: 99.54261284 | FO47: 74.486 | FP47: 62.416 | FQ47: 158.6996409 | FR47: 123.1941159 | FS47: 136.364483 | FT47: 127.7870105 | FU47: 132.057 | FV47: 131.135 | FW47: 139.0635337 | FX47: 123.1472418 | FY47: 120.2139851 | FZ47: 120.0309561 | GA47: 68.487 | GB47: 69.35 | GC47: 105.783 | GD47: 81.972 | GE47: 84.514 | GF47: 109.8936787 | GG47: 129.5947605 | GH47: 98.133 | GI47: 122.894 | GJ47: 136.734 | GK47: 26.6 | GL47: 44.1 | GM47: -17.5 | GN47: 0 | GO47: 35.1 | GP47: -35.1 | GQ47: 0 | GR47: 33.4 | GS47: -33.4 | GT47: 0 | GU47: 33.4 | GV47: 0 | GW47: 0 | GX47: 62.3 | GY47: 62.7 | HA47: 32 | HB47: 1 | HC47: 31 | HD47: 4 | HE47: 4 | HF47: 0 | HG47: 27.1 | HH47: 17 | HI47: 10.1 | HJ47: 86.9 | HK47: 42.9 | HL47: 44 | HN47: 52 | HP47: 4 | HQ47: 0 | HR47: 1 | HS47: 3 | HT47: 0 | HU47: 0 | HV47: 0 | HW47: 0 | HX47: 0 | HY47: 0 | HZ47: 0 | IA47: 0 | IB47: 1 | IC47: 0 | ID47: 1 | IE47: 0 | IF47: 0 | IG47: 4 | IH47: 1 | II47: 0 | IJ47: 0 | IK47: 0 | IL47: 1 | IM47: 1 | IN47: 0 | IO47: 4 | IP47: 0 | IQ47: 1 | IR47: 1 | IS47: 0 | IT47: 1 | IU47: 0 | IV47: 0 | IW47: 0 | IX47: 0 | IY47: 0 | IZ47: 0 | JA47: 0 | JB47: 0 | JC47: 0 | JD47: 1 | JE47: 0 | JF47: 2 | JG47: 0 | JH47: 0 | JI47: 0 | JJ47: 0 | JK47: 0 | JL47: 0 | JM47: 0 | JN47: 0 | JO47: 0 | JP47: 0 | JQ47: 0 | JR47: 0 | JS47: 0 | JU47: 1 | JV47: 0 | JW47: 8 | JX47: 44 | JY47: 2 | JZ47: 2 | KB47: 0 | KC47: 0 | KD47: 2 | KE47: 180 | KF47: 8 | KG47: 463 | KH47: 0 | KI47: 0 | KJ47: 0 | KK47: 0 | KL47: 0 | KM47: 0 | KN47: 0 | KO47: 0 | KP47: 11 | KQ47: 125 | KR47: 0 | KS47: 0 | KT47: 0 | KU47: 0 | KW47: 4 | KY47: 186 | KZ47: 371 | LB47: 51.5 | LC47: 17.3 | LD47: 751.9 | LE47: 65.8 | LG47: 32261 | LH47: 22.88858302 | LI47: 1409.48 | LJ47: 32261 | LK47: 28704 | LL47: 25442 | LM47: 22397 | LN47: 19504 | LO47: 16781 | LP47: 2555 | LQ47: 2148 | LR47: 1793 | LS47: 1494 | LT47: 1251 | LU47: 1047 | LV47: 15149 | LW47: 12707 | LX47: 10713 | LY47: 9169 | LZ47: 7718 | MA47: 6340 | MB47: 14557 | MC47: 13849 | MD47: 12936 | ME47: 11734 | MF47: 10535 | MG47: 9394 | MH47: 6329 | MI47: 5504 | MJ47: 4627 | MK47: 3857 | ML47: 3267 | MM47: 3038 | MN47: 4984 | MO47: 4970 | MP47: 5120 | MQ47: 4477 | MR47: 3809 | MS47: 3190 | MT47: 3244 | MU47: 3375 | MV47: 3189 | MW47: 3400 | MX47: 3459 | MY47: 3166 | MZ47: 北秋田市、北秋田郡上小阿仁村
A48: 43 | B48: 能代・山本 | C48: 過疎地域型 | D48: 能代市,山本郡藤里町,山本郡三種町,山本郡八峰町 | F48: 秋田県 | G48: 東北 | H48: 能代（秋田） | I48: ノシロヤマモト | J48: 能代市及び周辺部 | K48: 1.440926472 | L48: 1.292831249 | M48: 0.07457036173 | N48: 0.1506517855 | O48: 0.8247844641 | P48: 1.24804723 | Q48: 0.1265177141 | R48: 0.08530589449 | S48: 0.198328442 | T48: 210.8618512 | U48: 1001.864437 | W48: 187.7 | X48: 860.7 | Y48: 70 | AA48: 0 | AB48: 0 | AC48: 0 | AD48: 0 | AE48: 0 | AF48: 0 | AG48: 0 | AH48: 0 | AJ48: 0 | AK48: 0 | AL48: 1 | AM48: 4 | AN48: 0 | AP48: 1039 | AQ48: 0 | AR48: 636 | AS48: 90 | AT48: 313 | AU48: 0 | AW48: 0 | BB48: 0 | BG48: 773 | BH48: 72 | BI48: 300 | BJ48: 246 | BK48: 155 | BL48: 0 | BS48: 0 | BX48: 0 | CC48: 0 | CH48: 0 | CO48: 51 | CP48: 1600 | CQ48: 1433.384431 | CR48: 1501.013027 | CS48: 1315.543027 | CU48: 141.7 | CV48: 1924.8 | CX48: 422743.2122 | CY48: 175909.7453 | CZ48: 219689.7963 | DA48: 27143.67063 | DB48: 1.018251126 | DC48: 1.069297282 | DD48: 0.9864541031 | DE48: 0.9711601335 | DF48: 0.02745907426 | DG48: -0.007266395371 | DH48: -0.00194155292 | DI48: 323937.6736 | DJ48: 9802161.242 | DK48: 31434 | DT48: 6 | DU48: 3 | DV48: 0 | DW48: 0 | DX48: 3 | DY48: 574 | DZ48: 0 | EA48: 0 | EB48: 1 | EC48: 1 | ED48: 0 | EE48: 0 | EF48: 1238 | EG48: 717 | EH48: 247 | EI48: 270 | EJ48: 0 | EK48: 0 | EL48: 4 | EM48: 84 | EN48: 113.6 | EO48: 88 | EP48: 25.6 | EQ48: 672.4 | ER48: 577.9 | ES48: 94.5 | ET48: 37 | EU48: 26 | EV48: 7 | EW48: 1203 | EX48: 432 | EY48: 432 | EZ48: 0 | FA48: 117.8787927 | FB48: 106.966062 | FC48: 123.0355594 | FD48: 106.6511546 | FE48: 160.1788389 | FF48: 141.3134462 | FG48: 118.5101005 | FH48: 111.5926921 | FI48: 85.11795087 | FJ48: 67.60605107 | FK48: 107.4509309 | FL48: 92.59432588 | FM48: 102.3222892 | FN48: 98.84749883 | FO48: 117.7363378 | FP48: 86.95906179 | FQ48: 136.1245548 | FR48: 118.1972657 | FS48: 139.786985 | FT48: 130.9218959 | FU48: 143.8045207 | FV48: 126.2561626 | FW48: 137.33209 | FX48: 137.8921447 | FY48: 129.6065952 | FZ48: 116.4668154 | GA48: 99.06195005 | GB48: 70.896 | GC48: 98.28632773 | GD48: 96.1847172 | GE48: 121.8481923 | GF48: 112.214844 | GG48: 142.4669437 | GH48: 118.3585595 | GI48: 160.5344858 | GJ48: 130.8965273 | GK48: 9.3 | GL48: 18.6 | GM48: -9.3 | GN48: 9.1 | GO48: 12.4 | GP48: -3.3 | GQ48: 7.3 | GR48: 8.5 | GS48: -1.2 | GT48: 7.3 | GU48: 8.5 | GV48: 0 | GW48: 0 | GX48: 12.6 | GY48: 40.7 | HA48: 74 | HB48: 9 | HC48: 65 | HD48: 138 | HE48: 102 | HF48: 36 | HG48: 74.1 | HH48: 62 | HI48: 12.1 | HJ48: 188.3 | HK48: 81.9 | HL48: 106.4 | HN48: 143 | HP48: 4 | HQ48: 2 | HR48: 5 | HS48: 8 | HT48: 1 | HU48: 3 | HV48: 1 | HW48: 0 | HX48: 0 | HY48: 1 | HZ48: 2 | IA48: 0 | IB48: 2 | IC48: 0 | ID48: 4 | IE48: 0 | IF48: 6 | IG48: 11 | IH48: 1 | II48: 0 | IJ48: 0 | IK48: 0 | IL48: 1 | IM48: 5 | IN48: 2 | IO48: 10 | IP48: 1 | IQ48: 4 | IR48: 5 | IS48: 0 | IT48: 7 | IU48: 0 | IV48: 2 | IW48: 0 | IX48: 1 | IY48: 0 | IZ48: 0 | JA48: 1 | JB48: 1 | JC48: 0 | JD48: 2 | JE48: 0 | JF48: 3 | JG48: 0 | JH48: 0 | JI48: 2 | JJ48: 1 | JK48: 0 | JL48: 0 | JM48: 0 | JN48: 0 | JO48: 0 | JP48: 1 | JQ48: 0 | JR48: 0 | JS48: 0 | JU48: 5 | JV48: 1 | JW48: 19 | JX48: 725 | JY48: 4 | JZ48: 5 | KB48: 0 | KC48: 0 | KD48: 4 | KE48: 375 | KF48: 10 | KG48: 577 | KH48: 1 | KI48: 93 | KJ48: 1 | KK48: 15 | KL48: 2 | KM48: 57 | KN48: 2 | KO48: 70 | KP48: 31 | KQ48: 413 | KR48: 10 | KS48: 210 | KT48: 12 | KU48: 280 | KW48: 7 | KY48: 375 | KZ48: 913 | LB48: 111.2 | LC48: 30.5 | LD48: 1726.3 | LE48: 198.5 | LG48: 74695 | LH48: 62.70567495 | LI48: 1191.2 | LJ48: 74695 | LK48: 66892 | LL48: 59422 | LM48: 52362 | LN48: 45522 | LO48: 39062 | LP48: 6040 | LQ48: 4553 | LR48: 3735 | LS48: 3016 | LT48: 2441 | LU48: 1969 | LV48: 36496 | LW48: 30937 | LX48: 26227 | LY48: 22088 | LZ48: 17937 | MA48: 14344 | MB48: 32159 | MC48: 31402 | MD48: 29460 | ME48: 27258 | MF48: 25144 | MG48: 22749 | MH48: 14429 | MI48: 12532 | MJ48: 10364 | MK48: 8947 | ML48: 8390 | MM48: 7726 | MN48: 10767 | MO48: 11712 | MP48: 11965 | MQ48: 10359 | MR48: 8656 | MS48: 7547 | MT48: 6963 | MU48: 7158 | MV48: 7131 | MW48: 7952 | MX48: 8098 | MY48: 7476 | MZ48: 能代市、山本郡藤里町、山本郡三種町、山本郡八峰町 | NC48: 能代厚生医療センター（標準群）
A49: 44 | B49: 秋田周辺 | C49: 地方都市型 | D49: 潟上市,秋田市,南秋田郡五城目町,南秋田郡八郎潟町,南秋田郡大潟村,南秋田郡井川町,男鹿市 | F49: 秋田県 | G49: 東北 | H49: 秋田（秋田） | I49: アキタシュウヘン | J49: 秋田市、男鹿市及び周辺部 | K49: 1.579373308 | L49: 1.013752475 | M49: 0.02512799582 | N49: -0.2452016411 | O49: 1.218753015 | P49: 1.308047187 | Q49: 0.02840857753 | R49: -0.1993670027 | S49: -0.241011362 | T49: 320.9111288 | U49: 1153.354296 | W49: 1434.2 | X49: 4664.6 | Y49: 385.2 | AA49: 30 | AB49: 30 | AC49: 34 | AD49: 8 | AE49: 6 | AF49: 30 | AG49: 12 | AH49: 0 | AJ49: 0 | AK49: 1 | AL49: 2 | AM49: 4 | AN49: 22 | AP49: 4355 | AQ49: 620 | AR49: 2162 | AS49: 438 | AT49: 1059 | AU49: 76 | AW49: 0 | BB49: 4021 | BC49: 480 | BD49: 1408 | BE49: 1120 | BF49: 1013 | BG49: 0 | BL49: 0 | BS49: 0 | BX49: 0 | CC49: 0 | CH49: 0 | CO49: 128 | CP49: 5751 | CQ49: 5018.269697 | CR49: 6194.730569 | CS49: 6409.823685 | CU49: 625.6 | CV49: 6654.4 | CX49: 436406.043 | CY49: 179676.9597 | CZ49: 227489.9828 | DA49: 29239.10054 | DB49: 1.074846502 | DC49: 1.119606418 | DD49: 1.043575456 | DE49: 1.061545274 | DF49: 0.04727561482 | DG49: 0.02339570049 | DH49: 0.004175186613 | DI49: 283606.3552 | DJ49: 33620911.17 | DK49: 114419 | DT49: 26 | DU49: 6 | DV49: 1 | DW49: 0 | DX49: 5 | DY49: 2506 | DZ49: 1 | EA49: 1 | EB49: 1 | EC49: 3 | ED49: 2 | EE49: 2 | EF49: 6034 | EG49: 3246 | EH49: 924 | EI49: 1838 | EJ49: 22 | EK49: 200 | EL49: 4 | EM49: 297 | EN49: 1021.1 | EO49: 880 | EP49: 141.1 | EQ49: 3691.9 | ER49: 3473.7 | ES49: 218.2 | ET49: 187.7 | EU49: 158.7 | EV49: 38.8 | EW49: 9017 | EX49: 2400 | EY49: 1632 | EZ49: 768 | FA49: 103.1821954 | FB49: 102.5498039 | FC49: 108.8217764 | FD49: 106.3147845 | FE49: 137.1983952 | FF49: 143.7673003 | FG49: 115.1659947 | FH49: 107.868871 | FI49: 87.96819828 | FJ49: 76.92798261 | FK49: 94.33924729 | FL49: 94.89759488 | FM49: 82.71874056 | FN49: 86.55108817 | FO49: 49.90281579 | FP49: 57.83299564 | FQ49: 125.1816086 | FR49: 103.2358691 | FS49: 123.1277315 | FT49: 117.2316928 | FU49: 120.8888149 | FV49: 105.9652934 | FW49: 117.0134912 | FX49: 112.8023081 | FY49: 91.64009645 | FZ49: 92.20412795 | GA49: 87.35944025 | GB49: 74.81599067 | GC49: 108.1518678 | GD49: 100.5732661 | GE49: 104.3046129 | GF49: 101.7903393 | GG49: 108.1970907 | GH49: 98.47849557 | GI49: 118.1919568 | GJ49: 111.6607822 | GK49: 12 | GL49: 6.1 | GM49: 5.9 | GN49: 9.8 | GO49: 5.7 | GP49: 4.1 | GQ49: 8.2 | GR49: 3.8 | GS49: 4.4 | GT49: 8.2 | GU49: 3.8 | GV49: 0 | GW49: 0 | GX49: 17.4 | GY49: 8.1 | HA49: 336 | HB49: 18 | HC49: 318 | HD49: 262 | HE49: 262 | HF49: 0 | HG49: 413.1 | HH49: 319 | HI49: 94.1 | HJ49: 972.7 | HK49: 693.8 | HL49: 278.9 | HN49: 988 | HP49: 127 | HQ49: 23 | HR49: 53 | HS49: 95 | HT49: 30 | HU49: 27 | HV49: 15 | HW49: 33 | HX49: 6 | HY49: 29 | HZ49: 31 | IA49: 22 | IB49: 18 | IC49: 7 | ID49: 65 | IE49: 0 | IF49: 61 | IG49: 97 | IH49: 10 | II49: 9 | IJ49: 9 | IK49: 1 | IL49: 36 | IM49: 38 | IN49: 35 | IO49: 64 | IP49: 6 | IQ49: 38 | IR49: 23 | IS49: 5 | IT49: 54 | IU49: 12 | IV49: 25 | IW49: 27 | IX49: 11 | IY49: 11 | IZ49: 17 | JA49: 17 | JB49: 22 | JC49: 6 | JD49: 67 | JE49: 9 | JF49: 7 | JG49: 0 | JH49: 1 | JI49: 9 | JJ49: 3 | JK49: 7 | JL49: 6 | JM49: 1 | JN49: 5 | JO49: 6 | JP49: 15 | JQ49: 7 | JR49: 3 | JS49: 0 | JU49: 36 | JV49: 6 | JW49: 65 | JX49: 2695 | JY49: 11 | JZ49: 20 | KB49: 0 | KC49: 0 | KD49: 20 | KE49: 2008 | KF49: 35 | KG49: 1988 | KH49: 0 | KI49: 0 | KJ49: 1 | KK49: 80 | KL49: 11 | KM49: 523 | KN49: 16 | KO49: 540 | KP49: 45 | KQ49: 612 | KR49: 15 | KS49: 243 | KT49: 31 | KU49: 783 | KW49: 38 | KY49: 1413 | KZ49: 3473 | LB49: 457.1 | LC49: 168.5 | LD49: 5906 | LE49: 748.4 | LG49: 386244 | LH49: 227.8913893 | LI49: 1694.86 | LJ49: 386244 | LK49: 363130 | LL49: 341225 | LM49: 318191 | LN49: 293590 | LO49: 268184 | LP49: 39629 | LQ49: 33806 | LR49: 29894 | LS49: 26244 | LT49: 23261 | LU49: 20510 | LV49: 216582 | LW49: 193409 | LX49: 175296 | LY49: 157730 | LZ49: 136937 | MA49: 118229 | MB49: 130033 | MC49: 135915 | MD49: 136035 | ME49: 134217 | MF49: 133392 | MG49: 129445 | MH49: 63666 | MI49: 57274 | MJ49: 50922 | MK49: 47838 | ML49: 48995 | MM49: 48497 | MN49: 42303 | MO49: 50848 | MP49: 55173 | MQ49: 49394 | MR49: 44554 | MS49: 42354 | MT49: 24064 | MU49: 27793 | MV49: 29940 | MW49: 36985 | MX49: 39843 | MY49: 38594 | MZ49: 秋田市、男鹿市、潟上市、南秋田郡五城目町、南秋田郡八郎潟町、南秋田郡井川町、南秋田郡大潟村 | NA49: 秋田大学医学部附属病院（大学本院群） | NB49: 秋田厚生医療センター（標準群）、秋田赤十字病院（標準群・救命）、中通総合病院（標準群） | NC49: 市立秋田総合病院（標準群）
A50: 45 | B50: 由利本荘・にかほ | C50: 過疎地域型 | D50: 由利本荘市,にかほ市 | F50: 秋田県 | G50: 東北 | H50: 由利本荘（秋田） | I50: ユリホンジョウニカホ | J50: 由利本荘市、にかほ市 | K50: 1.854816372 | L50: 0.2927617083 | M50: 0.03360847794 | N50: -0.02420555845 | O50: 0.8090003232 | P50: 1.320470029 | Q50: 0.02772607856 | R50: -0.05576211532 | S50: -0.03043987033 | T50: 211.8457223 | U50: 1135.31669 | W50: 241.9 | X50: 1196.5 | Y50: 75 | AA50: 0 | AB50: 0 | AC50: 0 | AD50: 0 | AE50: 0 | AF50: 0 | AG50: 0 | AH50: 0 | AJ50: 0 | AK50: 0 | AL50: 2 | AM50: 4 | AN50: 6 | AP50: 1449 | AQ50: 0 | AR50: 550 | AS50: 256 | AT50: 448 | AU50: 195 | AW50: 0 | BB50: 1149 | BC50: 77 | BD50: 374 | BE50: 246 | BF50: 452 | BG50: 0 | BL50: 0 | BS50: 0 | BX50: 0 | CC50: 0 | CH50: 0 | CO50: 45 | CP50: 1739 | CQ50: 1578.000575 | CR50: 1713.501913 | CS50: 1672.40391 | CU50: 167.2 | CV50: 1998 | CX50: 427271.2071 | CY50: 185812.2074 | CZ50: 217472.9246 | DA50: 23986.07502 | DB50: 1.02848473 | DC50: 1.130035739 | DD50: 0.9751639415 | DE50: 0.856781908 | DF50: 0.05146820419 | DG50: -0.01333228089 | DH50: -0.009651193089 | DI50: 310632.0186 | DJ50: 10048169.6 | DK50: 33835 | DT50: 8 | DU50: 2 | DV50: 0 | DW50: 0 | DX50: 2 | DY50: 539 | DZ50: 0 | EA50: 0 | EB50: 0 | EC50: 1 | ED50: 0 | EE50: 0 | EF50: 1787 | EG50: 1391 | EH50: 50 | EI50: 336 | EJ50: 6 | EK50: 0 | EL50: 4 | EM50: 222 | EN50: 168.1 | EO50: 132 | EP50: 36.1 | EQ50: 975.5 | ER50: 834.9 | ES50: 140.6 | ET50: 38 | EU50: 28 | EV50: 9 | EW50: 1275 | EX50: 540 | EY50: 348 | EZ50: 192 | FA50: 109.6354705 | FB50: 106.5151815 | FC50: 104.2882397 | FD50: 96.91377628 | FE50: 125.144152 | FF50: 132.6666691 | FG50: 110.993325 | FH50: 115.6512825 | FI50: 71.76724561 | FJ50: 59.39290998 | FK50: 97.15822983 | FL50: 81.17097948 | FM50: 101.4287121 | FN50: 105.4687612 | FO50: 43.04473071 | FP50: 53.14827712 | FQ50: 160.1204934 | FR50: 128.2765694 | FS50: 149.4620524 | FT50: 134.4484899 | FU50: 149.6296992 | FV50: 113.8562946 | FW50: 145.5862755 | FX50: 142.6235469 | FY50: 90.25045486 | FZ50: 91.26971979 | GA50: 88.535 | GB50: 79.78593153 | GC50: 105.9825905 | GD50: 107.2908702 | GE50: 86.53552286 | GF50: 74.00463582 | GG50: 155.6373641 | GH50: 143.9324277 | GI50: 152.1808222 | GJ50: 182.1825559 | GK50: 15.5 | GL50: 10.6 | GM50: 4.9 | GN50: 17.5 | GO50: 7.7 | GP50: 9.8 | GQ50: 0 | GR50: 18.2 | GS50: -18.2 | GT50: 0 | GU50: 18.2 | GV50: 0 | GW50: 0 | GX50: 11.3 | GY50: 17.4 | HA50: 77 | HB50: 7 | HC50: 70 | HD50: 84 | HE50: 84 | HF50: 0 | HG50: 73.8 | HH50: 58 | HI50: 15.8 | HJ50: 221 | HK50: 137.9 | HL50: 83.1 | HN50: 191 | HP50: 18 | HQ50: 2 | HR50: 3 | HS50: 15 | HT50: 5 | HU50: 3 | HV50: 9 | HW50: 2 | HX50: 0 | HY50: 5 | HZ50: 3 | IA50: 2 | IB50: 4 | IC50: 0 | ID50: 8 | IE50: 0 | IF50: 2 | IG50: 10 | IH50: 2 | II50: 0 | IJ50: 0 | IK50: 1 | IL50: 2 | IM50: 4 | IN50: 4 | IO50: 14 | IP50: 0 | IQ50: 5 | IR50: 4 | IS50: 0 | IT50: 9 | IU50: 1 | IV50: 2 | IW50: 4 | IX50: 2 | IY50: 1 | IZ50: 0 | JA50: 7 | JB50: 2 | JC50: 2 | JD50: 9 | JE50: 0 | JF50: 1 | JG50: 0 | JH50: 0 | JI50: 0 | JJ50: 0 | JK50: 0 | JL50: 1 | JM50: 0 | JN50: 2 | JO50: 0 | JP50: 0 | JQ50: 0 | JR50: 1 | JS50: 0 | JU50: 4 | JV50: 2 | JW50: 28 | JX50: 488 | JY50: 6 | JZ50: 7 | KB50: 0 | KC50: 0 | KD50: 5 | KE50: 500 | KF50: 17 | KG50: 963 | KH50: 0 | KI50: 0 | KJ50: 1 | KK50: 30 | KL50: 0 | KM50: 0 | KN50: 1 | KO50: 39 | KP50: 21 | KQ50: 207 | KR50: 6 | KS50: 85 | KT50: 7 | KU50: 124 | KW50: 9 | KY50: 281 | KZ50: 726 | LB50: 135.9 | LC50: 31.3 | LD50: 1862 | LE50: 136 | LG50: 98142 | LH50: 67.65054594 | LI50: 1450.72 | LJ50: 98142 | LK50: 89344 | LL50: 81319 | LM50: 73468 | LN50: 65650 | LO50: 57989 | LP50: 9714 | LQ50: 8315 | LR50: 7172 | LS50: 6076 | LT50: 5129 | LU50: 4318 | LV50: 51416 | LW50: 44330 | LX50: 38951 | LY50: 34337 | LZ50: 29288 | MA50: 24480 | MB50: 37012 | MC50: 36699 | MD50: 35196 | ME50: 33055 | MF50: 31233 | MG50: 29191 | MH50: 17658 | MI50: 15666 | MJ50: 12938 | MK50: 11054 | ML50: 10606 | MM50: 10560 | MN50: 11869 | MO50: 13020 | MP50: 14446 | MQ50: 12902 | MR50: 10794 | MS50: 9313 | MT50: 7485 | MU50: 8013 | MV50: 7812 | MW50: 9099 | MX50: 9833 | MY50: 9318 | MZ50: 由利本荘市、にかほ市 | NC50: 由利組合総合病院（標準群）
A51: 46 | B51: 大仙・仙北 | C51: 過疎地域型 | D51: 大仙市,仙北市,仙北郡美郷町 | F51: 秋田県 | G51: 東北 | H51: 大仙（秋田） | I51: ダイセンセンボク | J51: 大仙市、仙北市、美郷町 | K51: 1.126527806 | L51: 0.5306034251 | M51: 0.07177775122 | N51: 0.130513662 | O51: 0.6994539679 | P51: 1.038573421 | Q51: 0.1267292127 | R51: 0.1274166729 | S51: 0.181987913 | T51: 167.7398534 | U51: 855.6038788 | W51: 257.6 | X51: 1159.1 | Y51: 132.7 | AA51: 0 | AB51: 0 | AC51: 0 | AD51: 0 | AE51: 0 | AF51: 0 | AG51: 0 | AH51: 0 | AJ51: 0 | AK51: 0 | AL51: 1 | AM51: 4 | AN51: 0 | AP51: 1019 | AQ51: 0 | AR51: 534 | AS51: 222 | AT51: 263 | AU51: 0 | AW51: 0 | BB51: 847 | BC51: 65 | BD51: 308 | BE51: 250 | BF51: 224 | BG51: 0 | BL51: 0 | BS51: 0 | BX51: 0 | CC51: 0 | CH51: 0 | CO51: 77 | CP51: 2539 | CQ51: 2170.951177 | CR51: 2169.242151 | CS51: 2033.578048 | CU51: 201.7 | CV51: 2966.6 | CX51: 391250.6823 | CY51: 158800.9793 | CZ51: 207928.3802 | DA51: 24521.32279 | DB51: 0.9616988815 | DC51: 0.9858100078 | DD51: 0.9529292669 | DE51: 0.8901676249 | DF51: -0.00561857411 | DG51: -0.02524573798 | DH51: -0.007436806428 | DI51: 323447.1563 | DJ51: 14219117.66 | DK51: 45809 | DT51: 8 | DU51: 1 | DV51: 0 | DW51: 0 | DX51: 1 | DY51: 422 | DZ51: 0 | EA51: 0 | EB51: 0 | EC51: 1 | ED51: 0 | EE51: 0 | EF51: 1456 | EG51: 773 | EH51: 203 | EI51: 476 | EJ51: 0 | EK51: 28 | EL51: 4 | EM51: 144 | EN51: 144.9 | EO51: 118 | EP51: 26.9 | EQ51: 870.6 | ER51: 821.2 | ES51: 49.4 | ET51: 66.2 | EU51: 54.5 | EV51: 12 | EW51: 2024 | EX51: 480 | EY51: 168 | EZ51: 312 | FA51: 113.8582918 | FB51: 109.336923 | FC51: 109.9819812 | FD51: 99.23990855 | FE51: 146.6078687 | FF51: 123.9819191 | FG51: 114.9448425 | FH51: 104.2533975 | FI51: 76.37236033 | FJ51: 60.10472177 | FK51: 94.56133631 | FL51: 85.63939479 | FM51: 108.8236378 | FN51: 108.3672207 | FO51: 42.84381121 | FP51: 56.99860593 | FQ51: 218.9626063 | FR51: 166.4968608 | FS51: 132.1108688 | FT51: 115.0340293 | FU51: 158.1155874 | FV51: 117.1079547 | FW51: 121.371927 | FX51: 113.6796102 | FY51: 119.9920077 | FZ51: 103.1078595 | GA51: 103.1809393 | GB51: 82.21363236 | GC51: 112.0264793 | GD51: 101.4449071 | GE51: 152.2254935 | GF51: 133.8721272 | GG51: 141.5471075 | GH51: 130.0804033 | GI51: 150.1311061 | GJ51: 133.6786144 | GK51: 25.8 | GL51: 30.2 | GM51: -4.4 | GN51: 6.8 | GO51: 28.9 | GP51: -22.1 | GQ51: 42.9 | GR51: 21 | GS51: 21.9 | GT51: 42.9 | GU51: 21 | GV51: 0 | GW51: 0 | GX51: 43.3 | GY51: 36.1 | HA51: 100 | HB51: 6 | HC51: 94 | HD51: 61 | HE51: 43 | HF51: 18 | HG51: 112.7 | HH51: 85 | HI51: 27.7 | HJ51: 288.5 | HK51: 181.1 | HL51: 107.4 | HN51: 221 | HP51: 17 | HQ51: 1 | HR51: 9 | HS51: 13 | HT51: 2 | HU51: 2 | HV51: 3 | HW51: 1 | HX51: 0 | HY51: 1 | HZ51: 3 | IA51: 1 | IB51: 1 | IC51: 2 | ID51: 6 | IE51: 0 | IF51: 14 | IG51: 11 | IH51: 2 | II51: 0 | IJ51: 0 | IK51: 1 | IL51: 3 | IM51: 6 | IN51: 8 | IO51: 11 | IP51: 0 | IQ51: 5 | IR51: 4 | IS51: 0 | IT51: 9 | IU51: 5 | IV51: 1 | IW51: 5 | IX51: 0 | IY51: 0 | IZ51: 4 | JA51: 2 | JB51: 2 | JC51: 0 | JD51: 10 | JE51: 1 | JF51: 1 | JG51: 0 | JH51: 0 | JI51: 0 | JJ51: 1 | JK51: 0 | JL51: 3 | JM51: 0 | JN51: 1 | JO51: 0 | JP51: 1 | JQ51: 0 | JR51: 0 | JS51: 0 | JU51: 9 | JV51: 0 | JW51: 34 | JX51: 663 | JY51: 6 | JZ51: 7 | KB51: 0 | KC51: 0 | KD51: 7 | KE51: 674 | KF51: 19 | KG51: 1053 | KH51: 0 | KI51: 0 | KJ51: 2 | KK51: 30 | KL51: 5 | KM51: 173 | KN51: 2 | KO51: 81 | KP51: 42 | KQ51: 528 | KR51: 6 | KS51: 135 | KT51: 8 | KU51: 216 | KW51: 10 | KY51: 164 | KZ51: 1034 | LB51: 164.3 | LC51: 37.4 | LD51: 2687.9 | LE51: 278.7 | LG51: 120880 | LH51: 56.78663203 | LI51: 2128.67 | LJ51: 120880 | LK51: 111033 | LL51: 101358 | LM51: 92031 | LN51: 82614 | LO51: 73363 | LP51: 11554 | LQ51: 10571 | LR51: 9319 | LS51: 8076 | LT51: 6967 | LU51: 5983 | LV51: 61407 | LW51: 54044 | LX51: 47881 | LY51: 42978 | LZ51: 37390 | MA51: 31732 | MB51: 47919 | MC51: 46418 | MD51: 44158 | ME51: 40977 | MF51: 38257 | MG51: 35648 | MH51: 22205 | MI51: 20121 | MJ51: 16787 | MK51: 13930 | ML51: 13038 | MM51: 13316 | MN51: 15293 | MO51: 16163 | MP51: 18060 | MQ51: 16468 | MR51: 13887 | MS51: 11606 | MT51: 10421 | MU51: 10134 | MV51: 9311 | MW51: 10579 | MX51: 11332 | MY51: 10726 | MZ51: 大仙市、仙北市、仙北郡美郷町 | NB51: 大曲厚生医療センター（標準群）
A52: 47 | B52: 横手 | C52: 過疎地域型 | D52: 横手市 | F52: 秋田県 | G52: 東北 | H52: 横手（秋田） | I52: ヨコテ | J52: 横手市 | K52: 1.355992035 | L52: 0.3828430626 | M52: -0.07462794743 | N52: -0.05612001202 | O52: 0.9775112377 | P52: 1.21470364 | Q52: -0.2608758452 | R52: -0.276563152 | S52: -0.2391602284 | T52: 246.3315203 | U52: 1124.712091 | W52: 254.8 | X52: 959.5 | Y52: 64 | AA52: 0 | AB52: 0 | AC52: 10 | AD52: 0 | AE52: 0 | AF52: 0 | AG52: 0 | AH52: 0 | AJ52: 0 | AK52: 0 | AL52: 2 | AM52: 4 | AN52: 6 | AP52: 951 | AQ52: 10 | AR52: 590 | AS52: 210 | AT52: 50 | AU52: 91 | AW52: 0 | BB52: 865 | BC52: 97 | BD52: 360 | BE52: 192 | BF52: 216 | BG52: 0 | BL52: 0 | BS52: 0 | BX52: 0 | CC52: 0 | CH52: 0 | CO52: 31 | CP52: 1126 | CQ52: 1497.920504 | CR52: 1516.557025 | CS52: 1472.122351 | CU52: 146.8 | CV52: 1872.3 | CX52: 377423.2259 | CY52: 150589.4159 | CZ52: 201423.0967 | DA52: 25410.71323 | DB52: 0.9222216638 | DC52: 0.9295393379 | DD52: 0.9173702216 | DE52: 0.9178767936 | DF52: -0.02789202803 | DG52: -0.04433103957 | DH52: -0.00555526858 | DI52: 310160.2761 | DJ52: 9239597.147 | DK52: 31689 | DT52: 4 | DU52: 2 | DV52: 0 | DW52: 0 | DX52: 2 | DY52: 578 | DZ52: 0 | EA52: 0 | EB52: 0 | EC52: 1 | ED52: 1 | EE52: 0 | EF52: 1227 | EG52: 883 | EH52: 50 | EI52: 284 | EJ52: 6 | EK52: 0 | EL52: 4 | EM52: 188 | EN52: 174.1 | EO52: 136 | EP52: 38.1 | EQ52: 795.7 | ER52: 750.7 | ES52: 45 | ET52: 34 | EU52: 23 | EV52: 7 | EW52: 1911 | EX52: 576 | EY52: 576 | EZ52: 0 | FA52: 107.012 | FB52: 103.931 | FC52: 104.87 | FD52: 100.372 | FE52: 127.074 | FF52: 122.736 | FG52: 101.274 | FH52: 93.896 | FI52: 68.239 | FJ52: 55.586 | FK52: 105.972 | FL52: 83.87 | FM52: 93.023 | FN52: 89.904 | FO52: 36.118 | FP52: 48.506 | FQ52: 133.396 | FR52: 108.524 | FS52: 137.147 | FT52: 118.967 | FU52: 155.629 | FV52: 152.941 | FW52: 127.416 | FX52: 108.357 | FY52: 92.136 | FZ52: 71.906 | GA52: 107.692 | GB52: 59.454 | GC52: 92.978 | GD52: 88.075 | GE52: 126.142 | GF52: 136.392 | GG52: 133.315 | GH52: 124.487 | GI52: 134.296 | GJ52: 142.691 | GK52: 32.2 | GL52: 23.4 | GM52: 8.8 | GN52: 31 | GO52: 12.2 | GP52: 18.8 | GQ52: 8.4 | GR52: 56.8 | GS52: -48.4 | GT52: 8.4 | GU52: 56.8 | GV52: 0 | GW52: 0 | GX52: 39 | GY52: 35.2 | HA52: 79 | HB52: 2 | HC52: 77 | HD52: 18 | HE52: 18 | HF52: 0 | HG52: 80.7 | HH52: 68 | HI52: 12.7 | HJ52: 163.8 | HK52: 107.4 | HL52: 56.4 | HN52: 178 | HP52: 14 | HQ52: 0 | HR52: 6 | HS52: 17 | HT52: 0 | HU52: 3 | HV52: 1 | HW52: 5 | HX52: 0 | HY52: 2 | HZ52: 2 | IA52: 1 | IB52: 2 | IC52: 0 | ID52: 4 | IE52: 0 | IF52: 10 | IG52: 16 | IH52: 1 | II52: 2 | IJ52: 1 | IK52: 1 | IL52: 7 | IM52: 4 | IN52: 4 | IO52: 13 | IP52: 1 | IQ52: 8 | IR52: 6 | IS52: 0 | IT52: 8 | IU52: 1 | IV52: 2 | IW52: 1 | IX52: 4 | IY52: 2 | IZ52: 1 | JA52: 2 | JB52: 2 | JC52: 0 | JD52: 10 | JE52: 1 | JF52: 2 | JG52: 0 | JH52: 0 | JI52: 1 | JJ52: 1 | JK52: 0 | JL52: 1 | JM52: 0 | JN52: 0 | JO52: 0 | JP52: 0 | JQ52: 0 | JR52: 0 | JS52: 0 | JU52: 11 | JV52: 1 | JW52: 27 | JX52: 770 | JY52: 12 | JZ52: 21 | KB52: 0 | KC52: 0 | KD52: 4 | KE52: 450 | KF52: 9 | KG52: 383 | KH52: 0 | KI52: 0 | KJ52: 2 | KK52: 50 | KL52: 0 | KM52: 0 | KN52: 0 | KO52: 0 | KP52: 16 | KQ52: 243 | KR52: 6 | KS52: 164 | KT52: 6 | KU52: 164 | KW52: 8 | KY52: 282 | KZ52: 1018 | LB52: 120 | LC52: 26.8 | LD52: 1656.8 | LE52: 215.5 | LG52: 85555 | LH52: 123.4916282 | LI52: 692.8 | LJ52: 85555 | LK52: 78905 | LL52: 72255 | LM52: 65720 | LN52: 58986 | LO52: 52235 | LP52: 8532 | LQ52: 7301 | LR52: 6336 | LS52: 5392 | LT52: 4579 | LU52: 3872 | LV52: 43594 | LW52: 37674 | LX52: 33292 | LY52: 29524 | LZ52: 25394 | MA52: 21355 | MB52: 33429 | MC52: 33930 | MD52: 32627 | ME52: 30804 | MF52: 29013 | MG52: 27008 | MH52: 15540 | MI52: 14568 | MJ52: 11991 | MK52: 10001 | ML52: 9475 | MM52: 9434 | MN52: 10662 | MO52: 11819 | MP52: 13442 | MQ52: 12526 | MR52: 10424 | MS52: 8774 | MT52: 7227 | MU52: 7543 | MV52: 7194 | MW52: 8277 | MX52: 9114 | MY52: 8800 | MZ52: 横手市 | NC52: 平鹿総合病院（標準群）
A53: 48 | B53: 湯沢・雄勝 | C53: 過疎地域型 | D53: 雄勝郡羽後町,湯沢市,雄勝郡東成瀬村 | F53: 秋田県 | G53: 東北 | H53: 湯沢（秋田） | I53: ユザワオガチ | J53: 湯沢市、羽後町、東成瀬村 | K53: 0.8432581348 | L53: 0.6817237292 | M53: -0.1080364172 | N53: -0.04614832797 | O53: 0.4988840518 | P53: 0.7555131814 | Q53: 0.01770017468 | R53: 0.0639949912 | S53: 0.07256539236 | T53: 144.4719727 | U53: 710.4366677 | W53: 89.1 | X53: 408.9 | Y53: 35 | AA53: 0 | AB53: 0 | AC53: 0 | AD53: 0 | AE53: 0 | AF53: 0 | AG53: 0 | AH53: 0 | AJ53: 0 | AK53: 0 | AL53: 1 | AM53: 4 | AN53: 0 | AP53: 550 | AQ53: 0 | AR53: 240 | AS53: 127 | AT53: 38 | AU53: 145 | AW53: 0 | BB53: 411 | BC53: 31 | BD53: 155 | BE53: 137 | BF53: 88 | BG53: 0 | BL53: 0 | BS53: 0 | BX53: 0 | CC53: 0 | CH53: 0 | CO53: 32 | CP53: 1148 | CQ53: 1091.335106 | CR53: 1039.901565 | CS53: 1030.379849 | CU53: 104.8 | CV53: 1133.8 | CX53: 362302.1514 | CY53: 160805.0688 | CZ53: 178636.6566 | DA53: 22860.42603 | DB53: 0.8930216691 | DC53: 0.9981457857 | DD53: 0.8225301553 | DE53: 0.8337014329 | DF53: -0.0007363033305 | DG53: -0.09500236271 | DH53: -0.0112396649 | DI53: 274428.8114 | DJ53: 6152163.876 | DK53: 22887 | DT53: 3 | DU53: 1 | DV53: 0 | DW53: 0 | DX53: 1 | DY53: 226 | DZ53: 0 | EA53: 0 | EB53: 0 | EC53: 1 | ED53: 0 | EE53: 0 | EF53: 649 | EG53: 420 | EH53: 55 | EI53: 170 | EJ53: 0 | EK53: 0 | EL53: 4 | EM53: 108 | EN53: 53.3 | EO53: 38 | EP53: 15.3 | EQ53: 303 | ER53: 276.4 | ES53: 26.6 | ET53: 20 | EU53: 12 | EV53: 3 | EW53: 406 | EX53: 300 | EY53: 84 | EZ53: 216 | FA53: 107.8235706 | FB53: 110.8686969 | FC53: 107.4938849 | FD53: 104.6702499 | FE53: 133.293457 | FF53: 139.8963667 | FG53: 121.9675931 | FH53: 123.9962056 | FI53: 77.53884076 | FJ53: 58.24004041 | FK53: 93.4201834 | FL53: 91.4766787 | FM53: 116.5905819 | FN53: 104.070079 | FO53: 49.6433728 | FP53: 63.52433309 | FQ53: 206.0801969 | FR53: 136.9716095 | FS53: 127.8520973 | FT53: 155.6622398 | FU53: 129.8766404 | FV53: 171.2979722 | FW53: 127.4116809 | FX53: 158.8068742 | FY53: 94.36044162 | FZ53: 82.75588342 | GA53: 93.41493654 | GB53: 76.40933469 | GC53: 84.75796492 | GD53: 85.85986706 | GE53: 141.5917918 | GF53: 143.2645254 | GG53: 131.4439468 | GH53: 114.462828 | GI53: 150.5239216 | GJ53: 116.562702 | GK53: 15.3 | GL53: 43.9 | GM53: -28.6 | GN53: 9.6 | GO53: 43.4 | GP53: -33.8 | GQ53: 4.1 | GR53: 31 | GS53: -26.9 | GT53: 4.1 | GU53: 31 | GV53: 0 | GW53: 0 | GX53: 29.8 | GY53: 49.3 | HA53: 43 | HB53: 6 | HC53: 37 | HD53: 82 | HE53: 62 | HF53: 20 | HG53: 35.8 | HH53: 29 | HI53: 6.8 | HJ53: 105.9 | HK53: 62.6 | HL53: 43.3 | HN53: 74 | HP53: 5 | HQ53: 0 | HR53: 1 | HS53: 3 | HT53: 1 | HU53: 1 | HV53: 0 | HW53: 1 | HX53: 0 | HY53: 0 | HZ53: 1 | IA53: 0 | IB53: 3 | IC53: 0 | ID53: 2 | IE53: 0 | IF53: 0 | IG53: 4 | IH53: 0 | II53: 1 | IJ53: 0 | IK53: 0 | IL53: 2 | IM53: 3 | IN53: 2 | IO53: 8 | IP53: 0 | IQ53: 2 | IR53: 3 | IS53: 0 | IT53: 3 | IU53: 1 | IV53: 0 | IW53: 1 | IX53: 1 | IY53: 1 | IZ53: 0 | JA53: 0 | JB53: 0 | JC53: 0 | JD53: 5 | JE53: 0 | JF53: 0 | JG53: 0 | JH53: 0 | JI53: 0 | JJ53: 0 | JK53: 0 | JL53: 1 | JM53: 0 | JN53: 0 | JO53: 0 | JP53: 0 | JQ53: 0 | JR53: 0 | JS53: 0 | JU53: 2 | JV53: 0 | JW53: 12 | JX53: 319 | JY53: 3 | JZ53: 7 | KB53: 0 | KC53: 0 | KD53: 4 | KE53: 382 | KF53: 11 | KG53: 512 | KH53: 2 | KI53: 33 | KJ53: 0 | KK53: 0 | KL53: 1 | KM53: 20 | KN53: 2 | KO53: 66 | KP53: 12 | KQ53: 135 | KR53: 3 | KS53: 93 | KT53: 5 | KU53: 159 | KW53: 2 | KY53: 111 | KZ53: 398 | LB53: 97 | LC53: 7.8 | LD53: 1055.4 | LE53: 78.4 | LG53: 58620 | LH53: 47.83822161 | LI53: 1225.38 | LJ53: 58620 | LK53: 52819 | LL53: 47416 | LM53: 42256 | LN53: 37197 | LO53: 32210 | LP53: 5109 | LQ53: 4341 | LR53: 3624 | LS53: 2993 | LT53: 2463 | LU53: 1998 | LV53: 30112 | LW53: 25236 | LX53: 21537 | LY53: 18606 | LZ53: 15634 | MA53: 12911 | MB53: 23399 | MC53: 23242 | MD53: 22255 | ME53: 20657 | MF53: 19100 | MG53: 17301 | MH53: 10821 | MI53: 10565 | MJ53: 8975 | MK53: 7167 | ML53: 6328 | MM53: 5994 | MN53: 7519 | MO53: 7740 | MP53: 8709 | MQ53: 8551 | MR53: 7325 | MS53: 5907 | MT53: 5059 | MU53: 4937 | MV53: 4571 | MW53: 4939 | MX53: 5447 | MY53: 5400 | MZ53: 湯沢市、雄勝郡羽後町、雄勝郡東成瀬村
A54: 49 | B54: 村山 | C54: 地方都市型 | D54: 村山市,北村山郡大石田町,尾花沢市,山形市,西村山郡大江町,寒河江市,上山市,東根市,東村山郡山辺町,東村山郡中山町,西村山郡西川町,西村山郡朝日町,西村山郡河北町,天童市 | F54: 山形県 | G54: 東北 | H54: 山形（山形) | I54: ムラヤマ | J54: 山形市、寒河江市及び周辺部 | K54: 1.388353103 | L54: 0.6620995747 | M54: -0.0888912813 | N54: -0.2925963142 | O54: 1.05584243 | P54: 1.207462364 | Q54: 0.005455357204 | R54: -0.132079296 | S54: -0.1805997179 | T54: 288.0980292 | U54: 966.0414682 | W54: 1710.9 | X54: 5929.2 | Y54: 678.5 | AA54: 26 | AB54: 14 | AC54: 33 | AD54: 0 | AE54: 14 | AF54: 21 | AG54: 15 | AH54: 0 | AJ54: 0 | AK54: 1 | AL54: 2 | AM54: 8 | AN54: 0 | AP54: 5651 | AQ54: 417 | AR54: 2856 | AS54: 908 | AT54: 1306 | AU54: 164 | AW54: 0 | BB54: 4873 | BC54: 523 | BD54: 1687 | BE54: 1431 | BF54: 1232 | BG54: 0 | BL54: 0 | BS54: 0 | BX54: 0 | CC54: 0 | CH54: 0 | CO54: 157 | CP54: 7436 | CQ54: 7179.617776 | CR54: 8172.480438 | CS54: 8522.749364 | CU54: 725.81 | CV54: 7352.26 | CX54: 401184.854 | CY54: 161347.972 | CZ54: 212943.3931 | DA54: 26893.48895 | DB54: 1.011653015 | DC54: 1.030251571 | DD54: 1.000384564 | DE54: 0.9926766759 | DF54: 0.01194689962 | DG54: 0.0002064204392 | DH54: -0.0005003047593 | DI54: 271841.0552 | DJ54: 39780246.11 | DK54: 155045 | DT54: 33 | DU54: 6 | DV54: 1 | DW54: 1 | DX54: 4 | DY54: 3128 | DZ54: 1 | EA54: 1 | EB54: 3 | EC54: 3 | ED54: 3 | EE54: 2 | EF54: 7660 | EG54: 4563 | EH54: 858 | EI54: 2201 | EJ54: 30 | EK54: 312 | EL54: 8 | EM54: 378 | EN54: 1119.3 | EO54: 966 | EP54: 153.3 | EQ54: 4621.3 | ER54: 4385.9 | ES54: 235.4 | ET54: 318.3 | EU54: 286.9 | EV54: 73.3 | EW54: 7621 | EX54: 4224 | EY54: 2352 | EZ54: 1872 | FA54: 94.56313934 | FB54: 96.69141681 | FC54: 96.71258639 | FD54: 97.75688206 | FE54: 114.878298 | FF54: 120.1543059 | FG54: 88.88349371 | FH54: 104.8885324 | FI54: 68.48964951 | FJ54: 78.283418 | FK54: 98.14845456 | FL54: 84.49726531 | FM54: 97.89807129 | FN54: 92.66376374 | FO54: 168.788941 | FP54: 152.6892131 | FQ54: 92.94477744 | FR54: 85.8913711 | FS54: 104.3400433 | FT54: 121.0657151 | FU54: 103.9144072 | FV54: 100.5359688 | FW54: 109.3407634 | FX54: 136.4664036 | FY54: 97.36294147 | FZ54: 92.54197119 | GA54: 70.46640659 | GB54: 90.3087002 | GC54: 114.0373631 | GD54: 94.45581684 | GE54: 115.7481753 | GF54: 115.0764644 | GG54: 96.20060065 | GH54: 96.56210761 | GI54: 103.6714767 | GJ54: 104.9022028 | GK54: 9.4 | GL54: 2.1 | GM54: 7.3 | GN54: 12 | GO54: 2.6 | GP54: 9.4 | GQ54: 3.6 | GR54: 0.9 | GS54: 2.7 | GT54: 3.6 | GU54: 0.9 | GV54: 0 | GW54: 0 | GX54: 6.8 | GY54: 1.8 | HA54: 483 | HB54: 27 | HC54: 456 | HD54: 294 | HE54: 279 | HF54: 15 | HG54: 591.6 | HH54: 468 | HI54: 123.6 | HJ54: 1307.9 | HK54: 921.6 | HL54: 386.3 | HN54: 1200 | HP54: 145 | HQ54: 34 | HR54: 65 | HS54: 88 | HT54: 20 | HU54: 17 | HV54: 24 | HW54: 23 | HX54: 15 | HY54: 18 | HZ54: 31 | IA54: 8 | IB54: 13 | IC54: 6 | ID54: 68 | IE54: 1 | IF54: 55 | IG54: 90 | IH54: 5 | II54: 13 | IJ54: 6 | IK54: 4 | IL54: 28 | IM54: 42 | IN54: 39 | IO54: 105 | IP54: 6 | IQ54: 54 | IR54: 42 | IS54: 2 | IT54: 54 | IU54: 17 | IV54: 39 | IW54: 33 | IX54: 5 | IY54: 16 | IZ54: 9 | JA54: 8 | JB54: 16 | JC54: 3 | JD54: 75 | JE54: 6 | JF54: 9 | JG54: 0 | JH54: 8 | JI54: 4 | JJ54: 1 | JK54: 3 | JL54: 7 | JM54: 2 | JN54: 4 | JO54: 6 | JP54: 10 | JQ54: 1 | JR54: 5 | JS54: 1 | JU54: 36 | JV54: 2 | JW54: 103 | JX54: 4535 | JY54: 23 | JZ54: 78 | KB54: 0 | KC54: 0 | KD54: 16 | KE54: 1482 | KF54: 66 | KG54: 4028 | KH54: 1 | KI54: 18 | KJ54: 1 | KK54: 50 | KL54: 18 | KM54: 819 | KN54: 1 | KO54: 19 | KP54: 54 | KQ54: 1020 | KR54: 36 | KS54: 778 | KT54: 37 | KU54: 797 | KW54: 42 | KY54: 2620 | KZ54: 2394 | LB54: 481.71 | LC54: 244.1 | LD54: 6862.92 | LE54: 489.34 | LG54: 531855 | LH54: 203.0453655 | LI54: 2619.39 | LJ54: 531855 | LK54: 517219 | LL54: 495937 | LM54: 472851 | LN54: 447323 | LO54: 419765 | LP54: 62302 | LQ54: 58836 | LR54: 54546 | LS54: 50111 | LT54: 46191 | LU54: 42211 | LV54: 298608 | LW54: 281026 | LX54: 264169 | LY54: 247713 | LZ54: 226231 | MA54: 204953 | MB54: 170945 | MC54: 177357 | MD54: 177222 | ME54: 175027 | MF54: 174901 | MG54: 172601 | MH54: 80624 | MI54: 74565 | MJ54: 66611 | MK54: 62183 | ML54: 63962 | MM54: 65840 | MN54: 55046 | MO54: 63959 | MP54: 70199 | MQ54: 64942 | MR54: 58688 | MS54: 55254 | MT54: 35275 | MU54: 38833 | MV54: 40412 | MW54: 47902 | MX54: 52251 | MY54: 51507 | MZ54: 山形市、寒河江市、上山市、村山市、天童市、東根市、尾花沢市、東村山郡山辺町、東村山郡中山町、西村山郡河北町、西村山郡西川町、西村山郡朝日町、西村山郡大江町、北村山郡大石田町 | NA54: 山形県立中央病院（特定群・救命）、山形大学医学部附属病院（大学本院群） | NB54: 山形市立病院済生館（標準群） | NC54: 山形済生病院（標準群）
A55: 50 | B55: 最上 | C55: 過疎地域型 | D55: 最上郡真室川町,最上郡舟形町,最上郡最上町,最上郡大蔵村,最上郡鮭川村,最上郡戸沢村,最上郡金山町,新庄市 | F55: 山形県 | G55: 東北 | H55: 新庄（山形) | I55: モガミ | J55: 新庄市及び周辺部 | K55: 1.225444117 | L55: 0.5472989495 | M55: 0.1495135287 | N55: 0.1282238121 | O55: 0.6340263738 | P55: 0.9624278328 | Q55: 0.209838265 | R55: 0.2106466973 | S55: 0.1900586213 | T55: 174.2769294 | U55: 820.224289 | W55: 137 | X55: 630.2 | Y55: 55 | AA55: 0 | AB55: 4 | AC55: 0 | AD55: 0 | AE55: 0 | AF55: 0 | AG55: 0 | AH55: 0 | AJ55: 0 | AK55: 0 | AL55: 1 | AM55: 2 | AN55: 0 | AP55: 858 | AQ55: 5 | AR55: 482 | AS55: 158 | AT55: 108 | AU55: 105 | AW55: 0 | BG55: 574 | BH55: 43 | BI55: 210 | BJ55: 236 | BK55: 85 | BL55: 0 | BS55: 0 | BX55: 0 | CC55: 0 | CH55: 0 | CO55: 28 | CP55: 1507 | CQ55: 1193.14422 | CR55: 1191.923487 | CS55: 1223.011482 | CU55: 120.41 | CV55: 1263.52 | CX55: 351911.6333 | CY55: 141813.4752 | CZ55: 188134.6285 | DA55: 21963.52965 | DB55: 0.90032179 | DC55: 0.9166335154 | DD55: 0.8984472795 | DE55: 0.820691466 | DF55: -0.03299722311 | DG55: -0.05440412652 | DH55: -0.01227686032 | DI55: 296571.2204 | DJ55: 7117497.288 | DK55: 24755 | DT55: 5 | DU55: 1 | DV55: 0 | DW55: 0 | DX55: 1 | DY55: 421 | DZ55: 0 | EA55: 0 | EB55: 0 | EC55: 1 | ED55: 0 | EE55: 0 | EF55: 1019 | EG55: 745 | EH55: 92 | EI55: 180 | EJ55: 0 | EK55: 44 | EL55: 2 | EM55: 40 | EN55: 80.3 | EO55: 64 | EP55: 16.3 | EQ55: 477.1 | ER55: 431.1 | ES55: 46 | ET55: 28 | EU55: 22 | EV55: 5 | EW55: 347 | EX55: 372 | EY55: 372 | EZ55: 0 | FA55: 109.1174388 | FB55: 111.5356234 | FC55: 103.6136669 | FD55: 102.8715487 | FE55: 147.8016948 | FF55: 135.7975663 | FG55: 95.28664233 | FH55: 120.3393052 | FI55: 69.3990903 | FJ55: 75.21238601 | FK55: 100.8355772 | FL55: 86.19845757 | FM55: 106.7687518 | FN55: 105.6855617 | FO55: 175.0289839 | FP55: 170.81421 | FQ55: 112.8753242 | FR55: 104.5850339 | FS55: 141.1275904 | FT55: 149.8624682 | FU55: 146.3737033 | FV55: 123.4897691 | FW55: 158.1310741 | FX55: 165.8504117 | FY55: 90.06351454 | FZ55: 94.01436996 | GA55: 81.825 | GB55: 95.361 | GC55: 100.9802822 | GD55: 99.67495911 | GE55: 201.6354481 | GF55: 157.0228482 | GG55: 135.0519808 | GH55: 117.7533093 | GI55: 145.9324281 | GJ55: 127.4942085 | GK55: 3.4 | GL55: 22.8 | GM55: -19.4 | GN55: 2.5 | GO55: 22.4 | GP55: -19.9 | GQ55: 6.7 | GR55: 11.6 | GS55: -4.9 | GT55: 6.7 | GU55: 11.6 | GV55: 0 | GW55: 0 | GX55: 5.2 | GY55: 28.1 | HA55: 52 | HB55: 3 | HC55: 49 | HD55: 44 | HE55: 44 | HF55: 0 | HG55: 56.7 | HH55: 37 | HI55: 19.7 | HJ55: 153.1 | HK55: 69.1 | HL55: 84 | HN55: 105 | HP55: 8 | HQ55: 1 | HR55: 5 | HS55: 5 | HT55: 0 | HU55: 1 | HV55: 0 | HW55: 2 | HX55: 1 | HY55: 1 | HZ55: 1 | IA55: 0 | IB55: 3 | IC55: 0 | ID55: 5 | IE55: 0 | IF55: 0 | IG55: 8 | IH55: 1 | II55: 0 | IJ55: 1 | IK55: 1 | IL55: 1 | IM55: 3 | IN55: 2 | IO55: 6 | IP55: 1 | IQ55: 1 | IR55: 5 | IS55: 0 | IT55: 3 | IU55: 0 | IV55: 2 | IW55: 0 | IX55: 0 | IY55: 1 | IZ55: 2 | JA55: 0 | JB55: 1 | JC55: 0 | JD55: 3 | JE55: 0 | JF55: 1 | JG55: 0 | JH55: 0 | JI55: 0 | JJ55: 0 | JK55: 0 | JL55: 0 | JM55: 0 | JN55: 0 | JO55: 0 | JP55: 0 | JQ55: 0 | JR55: 0 | JS55: 0 | JU55: 4 | JV55: 0 | JW55: 10 | JX55: 216 | JY55: 4 | JZ55: 6 | KB55: 0 | KC55: 0 | KD55: 5 | KE55: 410 | KF55: 14 | KG55: 909 | KH55: 0 | KI55: 0 | KJ55: 0 | KK55: 0 | KL55: 2 | KM55: 70 | KN55: 1 | KO55: 37 | KP55: 6 | KQ55: 81 | KR55: 1 | KS55: 26 | KT55: 2 | KU55: 63 | KW55: 7 | KY55: 228 | KZ55: 414 | LB55: 101.11 | LC55: 19.3 | LD55: 1177.25 | LE55: 86.27 | LG55: 70922 | LH55: 39.33053465 | LI55: 1803.23 | LJ55: 70922 | LK55: 65057 | LL55: 59037 | LM55: 53229 | LN55: 47453 | LO55: 41767 | LP55: 7507 | LQ55: 6603 | LR55: 5691 | LS55: 4859 | LT55: 4135 | LU55: 3489 | LV55: 37296 | LW55: 32233 | LX55: 28176 | LY55: 24992 | LZ55: 21558 | MA55: 18295 | MB55: 26119 | MC55: 26221 | MD55: 25170 | ME55: 23378 | MF55: 21760 | MG55: 19983 | MH55: 12378 | MI55: 11853 | MJ55: 9949 | MK55: 7944 | ML55: 7174 | MM55: 7065 | MN55: 8184 | MO55: 8731 | MP55: 9945 | MQ55: 9579 | MR55: 8116 | MS55: 6519 | MT55: 5557 | MU55: 5637 | MV55: 5276 | MW55: 5855 | MX55: 6470 | MY55: 6399 | MZ55: 新庄市、最上郡金山町、最上郡最上町、最上郡舟形町、最上郡真室川町、最上郡大蔵村、最上郡鮭川村、最上郡戸沢村 | NC55: 山形県立新庄病院（標準群）
A56: 51 | B56: 置賜 | C56: 地方都市型 | D56: 東置賜郡高畠町,東置賜郡川西町,西置賜郡白鷹町,西置賜郡飯豊町,西置賜郡小国町,南陽市,長井市,米沢市 | F56: 山形県 | G56: 東北 | H56: 米沢（山形) | I56: オキタマ | J56: 米沢市、長井市及び周辺部 | K56: 1.213711754 | L56: 0.6690345682 | M56: 0.08444420444 | N56: 0.05327739516 | O56: 0.8655736949 | P56: 0.9512843347 | Q56: 0.06787697128 | R56: 0.03446691489 | S56: 0.03614619004 | T56: 198.2070971 | U56: 826.7015804 | W56: 532.3 | X56: 1772.8 | Y56: 224.4 | AA56: 12 | AB56: 5 | AC56: 13 | AD56: 0 | AE56: 0 | AF56: 0 | AG56: 0 | AH56: 0 | AJ56: 0 | AK56: 0 | AL56: 1 | AM56: 4 | AN56: 0 | AP56: 2041 | AQ56: 30 | AR56: 832 | AS56: 658 | AT56: 495 | AU56: 26 | AW56: 0 | BG56: 1749 | BH56: 159 | BI56: 610 | BJ56: 573 | BK56: 407 | BL56: 0 | BS56: 0 | BX56: 0 | CC56: 0 | CH56: 0 | CO56: 73 | CP56: 3315 | CQ56: 3026.603474 | CR56: 3135.085927 | CS56: 3129.633321 | CU56: 313.22 | CV56: 3242.96 | CX56: 405178.2482 | CY56: 160310.3025 | CZ56: 219530.3891 | DA56: 25337.55657 | DB56: 1.014293645 | DC56: 1.014649754 | DD56: 1.02449814 | DE56: 0.9318094391 | DF56: 0.005794196169 | DG56: 0.01314117423 | DH56: -0.004641725677 | DI56: 288005.7968 | DJ56: 18330273.02 | DK56: 64285 | DT56: 15 | DU56: 3 | DV56: 0 | DW56: 0 | DX56: 3 | DY56: 1022 | DZ56: 0 | EA56: 1 | EB56: 2 | EC56: 1 | ED56: 0 | EE56: 2 | EF56: 2435 | EG56: 1597 | EH56: 374 | EI56: 460 | EJ56: 0 | EK56: 120 | EL56: 4 | EM56: 326 | EN56: 383.7 | EO56: 212 | EP56: 171.7 | EQ56: 1411.3 | ER56: 1313.7 | ES56: 97.6 | ET56: 117.3 | EU56: 87 | EV56: 20.1 | EW56: 1731 | EX56: 1212 | EY56: 504 | EZ56: 708 | FA56: 106.2194423 | FB56: 104.5011474 | FC56: 100.1582568 | FD56: 99.40201134 | FE56: 121.4812678 | FF56: 121.5465832 | FG56: 91.949056 | FH56: 118.4665825 | FI56: 70.99595134 | FJ56: 77.36116452 | FK56: 100.3092697 | FL56: 86.97907224 | FM56: 108.7840082 | FN56: 103.7062361 | FO56: 164.5769864 | FP56: 161.4992698 | FQ56: 117.4169448 | FR56: 95.38121187 | FS56: 138.5586313 | FT56: 146.1765708 | FU56: 106.9611249 | FV56: 112.2437393 | FW56: 155.6757303 | FX56: 164.8817614 | FY56: 96.76323674 | FZ56: 88.85793562 | GA56: 79.29844898 | GB56: 98.66707606 | GC56: 118.7354384 | GD56: 95.35463401 | GE56: 122.368868 | GF56: 102.6502668 | GG56: 127.7533873 | GH56: 118.9596924 | GI56: 113.782629 | GJ56: 116.3678912 | GK56: 6.5 | GL56: 14.4 | GM56: -7.9 | GN56: 7.6 | GO56: 15.4 | GP56: -7.8 | GQ56: 0.7 | GR56: 7.6 | GS56: -6.9 | GT56: 0.7 | GU56: 8.1 | GV56: 0 | GW56: 0 | GX56: 7.8 | GY56: 16.3 | HA56: 150 | HB56: 8 | HC56: 142 | HD56: 63 | HE56: 63 | HF56: 0 | HG56: 148.6 | HH56: 113 | HI56: 35.6 | HJ56: 361.5 | HK56: 243.2 | HL56: 118.3 | HN56: 348 | HP56: 30 | HQ56: 5 | HR56: 19 | HS56: 28 | HT56: 3 | HU56: 7 | HV56: 6 | HW56: 5 | HX56: 1 | HY56: 3 | HZ56: 3 | IA56: 4 | IB56: 5 | IC56: 0 | ID56: 15 | IE56: 0 | IF56: 12 | IG56: 30 | IH56: 3 | II56: 1 | IJ56: 2 | IK56: 3 | IL56: 8 | IM56: 11 | IN56: 9 | IO56: 24 | IP56: 2 | IQ56: 9 | IR56: 9 | IS56: 0 | IT56: 13 | IU56: 3 | IV56: 7 | IW56: 9 | IX56: 2 | IY56: 5 | IZ56: 0 | JA56: 2 | JB56: 4 | JC56: 1 | JD56: 19 | JE56: 0 | JF56: 2 | JG56: 0 | JH56: 1 | JI56: 0 | JJ56: 0 | JK56: 1 | JL56: 2 | JM56: 1 | JN56: 2 | JO56: 0 | JP56: 0 | JQ56: 2 | JR56: 0 | JS56: 1 | JU56: 18 | JV56: 5 | JW56: 41 | JX56: 1355 | JY56: 15 | JZ56: 29 | KB56: 1 | KC56: 20 | KD56: 10 | KE56: 1037 | KF56: 20 | KG56: 1429 | KH56: 1 | KI56: 18 | KJ56: 1 | KK56: 20 | KL56: 6 | KM56: 242 | KN56: 0 | KO56: 0 | KP56: 34 | KQ56: 549 | KR56: 4 | KS56: 121 | KT56: 4 | KU56: 121 | KW56: 17 | KY56: 904 | KZ56: 1372 | LB56: 237.62 | LC56: 75.6 | LD56: 2982.77 | LE56: 260.19 | LG56: 201846 | LH56: 80.89241917 | LI56: 2495.24 | LJ56: 201846 | LK56: 188265 | LL56: 174596 | LM56: 160944 | LN56: 147177 | LO56: 133266 | LP56: 22337 | LQ56: 20766 | LR56: 18642 | LS56: 16579 | LT56: 14722 | LU56: 12941 | LV56: 110594 | LW56: 99367 | LX56: 89814 | LY56: 81040 | LZ56: 71412 | MA56: 62396 | MB56: 68915 | MC56: 68132 | MD56: 66140 | ME56: 63325 | MF56: 61043 | MG56: 57929 | MH56: 32250 | MI56: 29630 | MJ56: 25691 | MK56: 23055 | ML56: 22467 | MM56: 22001 | MN56: 22069 | MO56: 23654 | MP56: 26041 | MQ56: 24169 | MR56: 21153 | MS56: 19111 | MT56: 14596 | MU56: 14848 | MV56: 14408 | MW56: 16101 | MX56: 17423 | MY56: 16817 | MZ56: 米沢市、長井市、南陽市、東置賜郡高畠町、東置賜郡川西町、西置賜郡小国町、西置賜郡白鷹町、西置賜郡飯豊町 | NC56: 公立置賜総合病院（標準群・救命）、米沢市立病院（標準群）
A57: 52 | B57: 庄内 | C57: 地方都市型 | D57: 飽海郡遊佐町,東田川郡庄内町,鶴岡市,東田川郡三川町,酒田市 | F57: 山形県 | G57: 東北 | H57: 鶴岡（山形) | I57: ショウナイ | J57: 鶴岡市、酒田市及び周辺部 | K57: 1.101001427 | L57: 0.8652683743 | M57: -0.1524533339 | N57: -0.1847223965 | O57: 0.7449056627 | P57: 1.117547208 | Q57: -0.07464949791 | R57: -0.1446885435 | S57: -0.1047400282 | T57: 197.3881149 | U57: 927.432007 | W57: 597.8 | X57: 2717.8 | Y57: 383.8 | AA57: 16 | AB57: 8 | AC57: 6 | AD57: 0 | AE57: 6 | AF57: 6 | AG57: 0 | AH57: 0 | AJ57: 0 | AK57: 0 | AL57: 1 | AM57: 4 | AN57: 0 | AP57: 2638 | AQ57: 173 | AR57: 1333 | AS57: 579 | AT57: 435 | AU57: 118 | AW57: 0 | BB57: 2071 | BC57: 208 | BD57: 614 | BE57: 698 | BF57: 551 | BG57: 0 | BL57: 0 | BS57: 0 | BX57: 0 | CC57: 0 | CH57: 0 | CO57: 100 | CP57: 3954 | CQ57: 4063.249752 | CR57: 4328.067383 | CS57: 4177.022047 | CU57: 430.635 | CV57: 4757.395 | CX57: 376607.6761 | CY57: 152005.6324 | CZ57: 202374.701 | DA57: 22227.34273 | DB57: 0.9292321725 | DC57: 0.9479661528 | DD57: 0.930614508 | DE57: 0.8089620512 | DF57: -0.02058675313 | DG57: -0.03722975202 | DH57: -0.01295132237 | DI57: 314392.7156 | DJ57: 27585223.93 | DK57: 88838 | DT57: 14 | DU57: 3 | DV57: 0 | DW57: 1 | DX57: 2 | DY57: 1401 | DZ57: 0 | EA57: 1 | EB57: 2 | EC57: 1 | ED57: 1 | EE57: 1 | EF57: 3095 | EG57: 1697 | EH57: 744 | EI57: 650 | EJ57: 0 | EK57: 304 | EL57: 4 | EM57: 176 | EN57: 327.4 | EO57: 277 | EP57: 50.4 | EQ57: 1999.3 | ER57: 1797.5 | ES57: 201.8 | ET57: 196 | EU57: 149.8 | EV57: 38 | EW57: 3688 | EX57: 1680 | EY57: 1320 | EZ57: 360 | FA57: 107.6003521 | FB57: 107.5402585 | FC57: 108.0265845 | FD57: 104.0558409 | FE57: 126.6972052 | FF57: 135.13792 | FG57: 102.2450344 | FH57: 113.5866047 | FI57: 93.62705003 | FJ57: 84.78831914 | FK57: 107.1587133 | FL57: 85.83288538 | FM57: 98.80899522 | FN57: 96.16584681 | FO57: 137.449393 | FP57: 142.0009351 | FQ57: 104.490651 | FR57: 91.96400593 | FS57: 112.9605781 | FT57: 130.4342932 | FU57: 98.34432326 | FV57: 121.0656646 | FW57: 123.8505501 | FX57: 135.6629315 | FY57: 106.0367648 | FZ57: 96.91683908 | GA57: 83.40836813 | GB57: 90.44043489 | GC57: 104.68691 | GD57: 99.52303157 | GE57: 146.3409766 | GF57: 121.6211957 | GG57: 113.6282028 | GH57: 111.8332719 | GI57: 125.6536585 | GJ57: 118.4683572 | GK57: 2.1 | GL57: 5.8 | GM57: -3.7 | GN57: 2.9 | GO57: 8.2 | GP57: -5.3 | GQ57: 0.6 | GR57: 1.3 | GS57: -0.7 | GT57: 0.6 | GU57: 0.4 | GV57: 0 | GW57: 100 | GX57: 1.9 | GY57: 5.3 | HA57: 225 | HB57: 18 | HC57: 207 | HD57: 194 | HE57: 160 | HF57: 34 | HG57: 270.4 | HH57: 204 | HI57: 66.4 | HJ57: 718.5 | HK57: 333.5 | HL57: 385 | HN57: 476 | HP57: 39 | HQ57: 5 | HR57: 19 | HS57: 28 | HT57: 5 | HU57: 8 | HV57: 3 | HW57: 4 | HX57: 1 | HY57: 4 | HZ57: 8 | IA57: 3 | IB57: 7 | IC57: 0 | ID57: 16 | IE57: 1 | IF57: 16 | IG57: 35 | IH57: 2 | II57: 5 | IJ57: 3 | IK57: 1 | IL57: 10 | IM57: 10 | IN57: 10 | IO57: 29 | IP57: 4 | IQ57: 17 | IR57: 12 | IS57: 1 | IT57: 15 | IU57: 5 | IV57: 8 | IW57: 8 | IX57: 4 | IY57: 7 | IZ57: 1 | JA57: 2 | JB57: 4 | JC57: 1 | JD57: 24 | JE57: 1 | JF57: 2 | JG57: 0 | JH57: 1 | JI57: 1 | JJ57: 1 | JK57: 0 | JL57: 3 | JM57: 0 | JN57: 2 | JO57: 0 | JP57: 2 | JQ57: 0 | JR57: 2 | JS57: 2 | JU57: 34 | JV57: 2 | JW57: 67 | JX57: 2903 | JY57: 25 | JZ57: 57 | KB57: 3 | KC57: 22 | KD57: 15 | KE57: 1167 | KF57: 31 | KG57: 1919 | KH57: 1 | KI57: 25 | KJ57: 1 | KK57: 50 | KL57: 2 | KM57: 51 | KN57: 0 | KO57: 0 | KP57: 47 | KQ57: 720 | KR57: 20 | KS57: 494 | KT57: 20 | KU57: 494 | KW57: 25 | KY57: 1064 | KZ57: 2313 | LB57: 319.785 | LC57: 110.85 | LD57: 4247.655 | LE57: 509.74 | LG57: 263404 | LH57: 109.510743 | LI57: 2405.28 | LJ57: 263404 | LK57: 245369 | LL57: 227744 | LM57: 210051 | LN57: 191891 | LO57: 173692 | LP57: 28125 | LQ57: 25041 | LR57: 22268 | LS57: 19650 | LT57: 17420 | LU57: 15311 | LV57: 140080 | LW57: 126178 | LX57: 114103 | LY57: 103124 | LZ57: 90318 | MA57: 78618 | MB57: 95199 | MC57: 94150 | MD57: 91373 | ME57: 87277 | MF57: 84153 | MG57: 79763 | MH57: 44679 | MI57: 40164 | MJ57: 34837 | MK57: 31355 | ML57: 30943 | MM57: 30446 | MN57: 30945 | MO57: 34006 | MP57: 36795 | MQ57: 33298 | MR57: 29196 | MS57: 26461 | MT57: 19575 | MU57: 19980 | MV57: 19741 | MW57: 22624 | MX57: 24014 | MY57: 22856 | MZ57: 鶴岡市、酒田市、東田川郡三川町、東田川郡庄内町、飽海郡遊佐町 | NA57: 日本海総合病院（特定群・救命） | NC57: 鶴岡市立荘内病院（標準群）
A58: 53 | B58: 県北 | C58: 地方都市型 | D58: 福島県伊達市,伊達郡桑折町,福島市,本宮市,伊達郡国見町,伊達郡川俣町,安達郡大玉村,二本松市 | F58: 福島県 | G58: 東北 | H58: 福島(福島） | I58: ケンホク | J58: 福島市、二本松市及び周辺部 | K58: 1.183255647 | L58: 0.3069749152 | M58: 注）福島県の「介護ベット準備レベル」は分析対象外：国立社会保障・人口問題研究所の市町村別将来推計人口（平成25年3月）において、福島県の市町村別推計が算出されていないため。 | N58: 0 | O58: 1.088381088 | P58: 1.016607192 | Q58: 0.03614281854 | R58: -0.1434406272 | S58: 1 | T58: 268.1057278 | U58: 811.9720556 | W58: 1544.9 | X58: 4372.9 | Y58: 514.3 | AA58: 21 | AB58: 14 | AC58: 24 | AD58: 0 | AE58: 6 | AF58: 12 | AG58: 21 | AH58: 0 | AJ58: 0 | AK58: 1 | AL58: 2 | AM58: 8 | AN58: 12 | AP58: 4422 | AQ58: 440 | AR58: 2693 | AS58: 656 | AT58: 506 | AU58: 127 | AW58: 0 | BB58: 0 | BG58: 0 | BL58: 0 | BS58: 0 | BX58: 0 | CC58: 0 | CH58: 0 | CO58: 145 | CP58: 7122 | CQ58: 5811.094947 | CR58: 6893.803541 | CS58: 0 | CU58: 750.87 | CV58: 6881.623 | CX58: 359813.7954 | CY58: 142121.056 | CZ58: 194810.3558 | DA58: 22882.38357 | DB58: 0.9085817998 | DC58: 0.9083226548 | DD58: 0.9167401579 | DE58: 0.8459850151 | DF58: -0.03622150828 | DG58: -0.04467736892 | DH58: -0.01051932301 | DI58: 280758.5598 | DJ58: 34109055.43 | DK58: 131267 | DT58: 31 | DU58: 9 | DV58: 1 | DW58: 0 | DX58: 8 | DY58: 2772 | DZ58: 1 | EA58: 1 | EB58: 3 | EC58: 1 | ED58: 2 | EE58: 2 | EF58: 5888 | EG58: 3975 | EH58: 359 | EI58: 1520 | EJ58: 26 | EK58: 399 | EL58: 8 | EM58: 436 | EN58: 1051 | EO58: 769 | EP58: 282 | EQ58: 3393.7 | ER58: 3036.4 | ES58: 357.3 | ET58: 303.6 | EU58: 146.3 | EV58: 64.4 | EW58: 7020 | EX58: 1992 | EY58: 1140 | EZ58: 852 | FA58: 97.3132445 | FB58: 100.8319207 | FC58: 92.37593877 | FD58: 93.51284564 | FE58: 99.43940459 | FF58: 101.9393327 | FG58: 95.08459548 | FH58: 97.37796943 | FI58: 67.35762215 | FJ58: 80.77209783 | FK58: 90.96615697 | FL58: 90.26171079 | FM58: 113.213044 | FN58: 111.1602216 | FO58: 205.6056627 | FP58: 202.9174812 | FQ58: 96.80710016 | FR58: 103.1530375 | FS58: 107.5725239 | FT58: 119.1274798 | FU58: 96.05440359 | FV58: 106.3897279 | FW58: 117.5829826 | FX58: 131.1458691 | FY58: 84.77016602 | FZ58: 88.49127283 | GA58: 84.17305419 | GB58: 86.28257707 | GC58: 97.23677129 | GD58: 94.57480515 | GE58: 113.0521176 | GF58: 113.337012 | GG58: 101.7780089 | GH58: 101.5501785 | GI58: 91.63429772 | GJ58: 102.3572355 | GK58: 11.2 | GL58: 8.5 | GM58: 2.7 | GN58: 12.5 | GO58: 8.8 | GP58: 3.7 | GQ58: 3.4 | GR58: 5.7 | GS58: -2.3 | GT58: 3.3 | GU58: 6.6 | GV58: 4.2 | GW58: 0 | GX58: 9.6 | GY58: 8.8 | HA58: 366 | HB58: 21 | HC58: 345 | HD58: 280 | HE58: 277 | HF58: 3 | HG58: 493.9 | HH58: 366 | HI58: 127.9 | HJ58: 979.2 | HK58: 541 | HL58: 438.2 | HN58: 1036 | HP58: 129 | HQ58: 28 | HR58: 52 | HS58: 86 | HT58: 27 | HU58: 19 | HV58: 23 | HW58: 19 | HX58: 12 | HY58: 22 | HZ58: 21 | IA58: 20 | IB58: 21 | IC58: 5 | ID58: 68 | IE58: 1 | IF58: 42 | IG58: 113 | IH58: 10 | II58: 11 | IJ58: 11 | IK58: 9 | IL58: 34 | IM58: 26 | IN58: 34 | IO58: 66 | IP58: 5 | IQ58: 40 | IR58: 33 | IS58: 4 | IT58: 59 | IU58: 12 | IV58: 27 | IW58: 33 | IX58: 11 | IY58: 14 | IZ58: 11 | JA58: 11 | JB58: 17 | JC58: 7 | JD58: 59 | JE58: 4 | JF58: 7 | JG58: 0 | JH58: 14 | JI58: 7 | JJ58: 6 | JK58: 3 | JL58: 6 | JM58: 0 | JN58: 5 | JO58: 4 | JP58: 10 | JQ58: 6 | JR58: 3 | JS58: 3 | JU58: 62 | JV58: 3 | JW58: 79 | JX58: 5185 | JY58: 30 | JZ58: 81 | KB58: 1 | KC58: 50 | KD58: 21 | KE58: 1953 | KF58: 47 | KG58: 3144 | KH58: 0 | KI58: 0 | KJ58: 3 | KK58: 130 | KL58: 12 | KM58: 809 | KN58: 2 | KO58: 100 | KP58: 59 | KQ58: 936 | KR58: 38 | KS58: 1130 | KT58: 40 | KU58: 1230 | KW58: 48 | KY58: 3094 | KZ58: 4521 | LB58: 509.55 | LC58: 241.32 | LD58: 5943.26 | LE58: 938.363 | LG58: 465894 | LH58: 265.7180011 | LI58: 1753.34 | LJ58: 465894 | LP58: 51143 | LV58: 265241 | MB58: 149510 | MH58: 73067 | MN58: 48214 | MT58: 28229 | MZ58: 福島市、二本松市、伊達市、本宮市、伊達郡桑折町、伊達郡国見町、伊達郡川俣町、安達郡大玉村 | NA58: 福島県立医科大学附属病院（大学本院群・救命） | NB58: 福島赤十字病院（標準群）、大原綜合病院（標準群） | NC58: 公立藤田総合病院（標準群）
A59: 54 | B59: 県中 | C59: 地方都市型 | D59: 田村郡小野町,岩瀬郡天栄村,石川郡平田村,須賀川市,田村市,岩瀬郡鏡石町,石川郡玉川村,郡山市,石川郡浅川町,田村郡三春町,石川郡石川町,石川郡古殿町 | F59: 福島県 | G59: 東北 | H59: 郡山(福島） | I59: ケンチュウ | J59: 郡山市、須賀川市及び周辺部 | K59: 1.325488973 | L59: 0.8062282596 | M59: 0 | N59: 0 | O59: 0.7963969088 | P59: 0.9846148058 | Q59: -0.01354754419 | R59: -0.2136096455 | S59: 1 | T59: 210.6436047 | U59: 896.8388798 | W59: 1260.7 | X59: 4723.3 | Y59: 669.7 | AA59: 40 | AB59: 25 | AC59: 8 | AD59: 0 | AE59: 9 | AF59: 12 | AG59: 3 | AH59: 0 | AJ59: 0 | AK59: 0 | AL59: 2 | AM59: 6 | AN59: 0 | AP59: 5507 | AQ59: 99 | AR59: 3470 | AS59: 643 | AT59: 953 | AU59: 342 | AW59: 0 | BB59: 0 | BG59: 0 | BL59: 0 | BS59: 0 | BX59: 0 | CC59: 0 | CH59: 0 | CO59: 158 | CP59: 6431 | CQ59: 5639.378536 | CR59: 6752.524067 | CS59: 0 | CU59: 711.35 | CV59: 6593.405 | CX59: 357771.9003 | CY59: 141791.8643 | CZ59: 193907.3598 | DA59: 22072.67624 | DB59: 0.9431674388 | DC59: 0.9466069732 | DD59: 0.9537400907 | DE59: 0.8415678031 | DF59: -0.02108379212 | DG59: -0.02479428578 | DH59: -0.01095448329 | DI59: 252839.7667 | DJ59: 31854391.3 | DK59: 128554 | DT59: 32 | DU59: 5 | DV59: 0 | DW59: 1 | DX59: 4 | DY59: 3081 | DZ59: 1 | EA59: 1 | EB59: 3 | EC59: 2 | ED59: 1 | EE59: 2 | EF59: 6987 | EG59: 4529 | EH59: 740 | EI59: 1712 | EJ59: 0 | EK59: 259 | EL59: 6 | EM59: 351 | EN59: 766.8 | EO59: 641 | EP59: 125.8 | EQ59: 3739.5 | ER59: 3288.3 | ES59: 451.2 | ET59: 375.4 | EU59: 218.8 | EV59: 75.5 | EW59: 9859 | EX59: 5064 | EY59: 2832 | EZ59: 2232 | FA59: 99.54836748 | FB59: 102.818477 | FC59: 95.2774955 | FD59: 95.72456191 | FE59: 95.97698173 | FF59: 105.3797793 | FG59: 105.430633 | FH59: 98.95393155 | FI59: 88.83503076 | FJ59: 95.41214344 | FK59: 92.99274312 | FL59: 93.2497301 | FM59: 105.9821888 | FN59: 107.8920506 | FO59: 200.0643522 | FP59: 206.9179338 | FQ59: 82.94590531 | FR59: 90.81168245 | FS59: 112.5239942 | FT59: 120.2573478 | FU59: 102.2832814 | FV59: 116.8447518 | FW59: 122.1251486 | FX59: 124.2856788 | FY59: 83.13014619 | FZ59: 83.49865692 | GA59: 93.99731188 | GB59: 109.1142773 | GC59: 97.25665916 | GD59: 104.8909072 | GE59: 110.19226 | GF59: 108.0795916 | GG59: 106.4414498 | GH59: 105.3336648 | GI59: 112.3317826 | GJ59: 108.0313771 | GK59: 17.4 | GL59: 7.8 | GM59: 9.6 | GN59: 18.7 | GO59: 7.9 | GP59: 10.8 | GQ59: 12.5 | GR59: 3.6 | GS59: 8.9 | GT59: 12.6 | GU59: 3.6 | GV59: 0 | GW59: 0 | GX59: 16.5 | GY59: 9.4 | HA59: 359 | HB59: 24 | HC59: 335 | HD59: 329 | HE59: 298 | HF59: 31 | HG59: 493.9 | HH59: 363 | HI59: 130.9 | HJ59: 983.8 | HK59: 562.9 | HL59: 420.9 | HN59: 1109 | HP59: 78 | HQ59: 16 | HR59: 51 | HS59: 44 | HT59: 11 | HU59: 15 | HV59: 18 | HW59: 10 | HX59: 3 | HY59: 8 | HZ59: 11 | IA59: 10 | IB59: 13 | IC59: 6 | ID59: 44 | IE59: 2 | IF59: 42 | IG59: 82 | IH59: 4 | II59: 14 | IJ59: 5 | IK59: 1 | IL59: 22 | IM59: 24 | IN59: 23 | IO59: 54 | IP59: 7 | IQ59: 32 | IR59: 20 | IS59: 3 | IT59: 33 | IU59: 4 | IV59: 19 | IW59: 29 | IX59: 5 | IY59: 16 | IZ59: 4 | JA59: 12 | JB59: 6 | JC59: 2 | JD59: 56 | JE59: 2 | JF59: 8 | JG59: 0 | JH59: 2 | JI59: 7 | JJ59: 2 | JK59: 0 | JL59: 5 | JM59: 1 | JN59: 1 | JO59: 0 | JP59: 4 | JQ59: 1 | JR59: 3 | JS59: 3 | JU59: 54 | JV59: 7 | JW59: 94 | JX59: 4606 | JY59: 30 | JZ59: 66 | KB59: 2 | KC59: 16 | KD59: 19 | KE59: 1529 | KF59: 46 | KG59: 2813 | KH59: 3 | KI59: 150 | KJ59: 0 | KK59: 0 | KL59: 11 | KM59: 586 | KN59: 5 | KO59: 294 | KP59: 72 | KQ59: 1043 | KR59: 35 | KS59: 775 | KT59: 40 | KU59: 1069 | KW59: 42 | KY59: 2637 | KZ59: 4174 | LB59: 509.78 | LC59: 201.57 | LD59: 6061.285 | LE59: 532.12 | LG59: 519577 | LH59: 215.9290013 | LI59: 2406.24 | LJ59: 519577 | LP59: 61555 | LV59: 307637 | MB59: 150385 | MH59: 76531 | MN59: 46742 | MT59: 27112 | MZ59: 郡山市、須賀川市、田村市、岩瀬郡鏡石町、岩瀬郡天栄村、石川郡石川町、石川郡玉川村、石川郡平田村、石川郡浅川町、石川郡古殿町、田村郡三春町、田村郡小野町 | NA59: 総合南東北病院（特定群） | NB59: 星総合病院（標準群）、寿泉堂綜合病院（標準群）、太田西ノ内病院（標準群・救命） | NC59: 公立岩瀬病院（標準群）
A60: 55 | B60: 県南 | C60: 過疎地域型 | D60: 西白河郡西郷村,東白川郡塙町,西白河郡矢吹町,西白河郡泉崎村,東白川郡棚倉町,東白川郡鮫川村,白河市,西白河郡中島村,東白川郡矢祭町 | F60: 福島県 | G60: 東北 | H60: 白河(福島） | I60: ケンナン | J60: 白河市及び周辺部 | K60: 0.8472107159 | L60: 0.4645979415 | M60: 0 | N60: 0 | O60: 0.6752712427 | P60: 0.8665155966 | Q60: 0.07824763982 | R60: -0.04242249712 | S60: 1 | T60: 170.7402402 | U60: 790.934098 | W60: 285.5 | X60: 1110.2 | Y60: 45.5 | AA60: 0 | AB60: 0 | AC60: 0 | AD60: 0 | AE60: 0 | AF60: 0 | AG60: 0 | AH60: 0 | AJ60: 0 | AK60: 0 | AL60: 1 | AM60: 4 | AN60: 10 | AP60: 1092 | AQ60: 0 | AR60: 781 | AS60: 111 | AT60: 133 | AU60: 67 | AW60: 0 | BB60: 0 | BG60: 0 | BL60: 0 | BS60: 0 | BX60: 0 | CC60: 0 | CH60: 0 | CO60: 42 | CP60: 2184 | CQ60: 1684.041562 | CR60: 1904.505902 | CS60: 0 | CU60: 210.37 | CV60: 1955.26 | CX60: 345069.9382 | CY60: 136538.1492 | CZ60: 185137.1935 | DA60: 23394.59555 | DB60: 0.8953404292 | DC60: 0.897045243 | DD60: 0.8958161472 | DE60: 0.8818531159 | DF60: -0.04065997912 | DG60: -0.05586711865 | DH60: -0.008132472991 | DI60: 251108.3501 | DJ60: 9140196.148 | DK60: 36852 | DT60: 8 | DU60: 2 | DV60: 0 | DW60: 0 | DX60: 2 | DY60: 685 | DZ60: 0 | EA60: 0 | EB60: 0 | EC60: 1 | ED60: 0 | EE60: 0 | EF60: 1518 | EG60: 907 | EH60: 125 | EI60: 470 | EJ60: 12 | EK60: 42 | EL60: 4 | EM60: 79 | EN60: 165.3 | EO60: 123 | EP60: 42.3 | EQ60: 877.1 | ER60: 746.9 | ES60: 130.2 | ET60: 21.8 | EU60: 19.1 | EV60: 4.6 | EW60: 1231 | EX60: 864 | EY60: 792 | EZ60: 72 | FA60: 102.5243387 | FB60: 104.5785102 | FC60: 99.54500597 | FD60: 95.47235491 | FE60: 113.2762383 | FF60: 98.99922401 | FG60: 101.8308917 | FH60: 100.1042428 | FI60: 95.01801184 | FJ60: 74.70647657 | FK60: 93.45925917 | FL60: 93.62725845 | FM60: 120.6846988 | FN60: 123.6327905 | FO60: 204.424194 | FP60: 206.6991435 | FQ60: 99.3114268 | FR60: 120.1377389 | FS60: 119.9034536 | FT60: 146.6278075 | FU60: 104.6336552 | FV60: 116.0334293 | FW60: 132.5996551 | FX60: 167.9536183 | FY60: 91.81301409 | FZ60: 96.18550851 | GA60: 95.32551216 | GB60: 107.9890227 | GC60: 93.02555328 | GD60: 88.66090305 | GE60: 78.79326607 | GF60: 85.56365822 | GG60: 123.0495658 | GH60: 144.3552281 | GI60: 128.6439211 | GJ60: 114.3700538 | GK60: 21.8 | GL60: 32 | GM60: -10.2 | GN60: 16.2 | GO60: 35.5 | GP60: -19.3 | GQ60: 16.9 | GR60: 18.7 | GS60: -1.8 | GT60: 16.9 | GU60: 18.7 | GV60: 0 | GW60: 0 | GX60: 35.5 | GY60: 28.8 | HA60: 89 | HB60: 4 | HC60: 85 | HD60: 55 | HE60: 55 | HF60: 0 | HG60: 120.2 | HH60: 80 | HI60: 40.2 | HJ60: 233.1 | HK60: 76 | HL60: 157.1 | HN60: 208 | HP60: 16 | HQ60: 1 | HR60: 11 | HS60: 8 | HT60: 2 | HU60: 4 | HV60: 0 | HW60: 3 | HX60: 3 | HY60: 3 | HZ60: 3 | IA60: 0 | IB60: 2 | IC60: 0 | ID60: 9 | IE60: 0 | IF60: 11 | IG60: 11 | IH60: 1 | II60: 0 | IJ60: 0 | IK60: 0 | IL60: 5 | IM60: 5 | IN60: 5 | IO60: 16 | IP60: 2 | IQ60: 6 | IR60: 6 | IS60: 0 | IT60: 6 | IU60: 0 | IV60: 4 | IW60: 3 | IX60: 1 | IY60: 1 | IZ60: 1 | JA60: 1 | JB60: 2 | JC60: 1 | JD60: 11 | JE60: 0 | JF60: 2 | JG60: 0 | JH60: 1 | JI60: 0 | JJ60: 0 | JK60: 0 | JL60: 1 | JM60: 0 | JN60: 0 | JO60: 3 | JP60: 0 | JQ60: 1 | JR60: 1 | JS60: 0 | JU60: 9 | JV60: 0 | JW60: 20 | JX60: 407 | JY60: 4 | JZ60: 8 | KB60: 0 | KC60: 0 | KD60: 9 | KE60: 716 | KF60: 16 | KG60: 1128 | KH60: 0 | KI60: 0 | KJ60: 2 | KK60: 60 | KL60: 1 | KM60: 37 | KN60: 0 | KO60: 0 | KP60: 14 | KQ60: 243 | KR60: 9 | KS60: 200 | KT60: 9 | KU60: 200 | KW60: 10 | KY60: 378 | KZ60: 812 | LB60: 174.2 | LC60: 36.17 | LD60: 1798.05 | LE60: 157.21 | LG60: 138770 | LH60: 112.5393324 | LI60: 1233.08 | LJ60: 138770 | LP60: 16771 | LV60: 79358 | MB60: 42641 | MH60: 21482 | MN60: 12938 | MT60: 8221 | MZ60: 白河市、西白河郡西郷村、西白河郡泉崎村、西白河郡中島村、西白河郡矢吹町、東白川郡棚倉町、東白川郡矢祭町、東白川郡塙町、東白川郡鮫川村 | NB60: 白河厚生総合病院（標準群）
A61: 56 | B61: 会津・南会津 | C61: 地方都市型 | D61: 耶麻郡西会津町,大沼郡金山町,耶麻郡猪苗代町,会津若松市,耶麻郡北塩原村,耶麻郡磐梯町,河沼郡湯川村,大沼郡三島町,大沼郡昭和村,大沼郡会津美里町,河沼郡柳津町,河沼郡会津坂下町,喜多方市,南会津郡下郷町,南会津郡只見町,南会津郡南会津町,南会津郡檜枝岐村 | F61: 福島県 | G61: 東北 | H61: 会津若松(福島） | I61: アイヅミナミアイヅ | J61: 会津若松市、喜多方市及び周辺部 | K61: 1.546419026 | L61: 1.251024119 | M61: 0 | N61: 0 | O61: 0.7791981815 | P61: 1.102777714 | W61: 608.7 | X61: 2610.6 | Y61: 292.2 | AA61: 0 | AB61: 52 | AC61: 38 | AD61: 12 | AE61: 6 | AF61: 0 | AG61: 0 | AH61: 0 | AJ61: 0 | AK61: 0 | AL61: 2 | AM61: 8 | AN61: 14 | AP61: 2913 | AQ61: 108 | AR61: 1964 | AS61: 271 | AT61: 527 | AU61: 43 | AW61: 0 | BB61: 0 | BG61: 0 | BL61: 0 | BS61: 0 | BX61: 0 | CC61: 0 | CH61: 0 | CO61: 111 | CP61: 4965 | CU61: 538.63 | CV61: 4297.03 | CX61: 372403.2745 | CY61: 162195.4655 | CZ61: 187254.1398 | DA61: 22953.66913 | DB61: 0.9506851873 | DC61: 1.047271642 | DD61: 0.8915455383 | DE61: 0.8560508733 | DF61: 0.01868974106 | DG61: -0.05815118326 | DH61: -0.009853370503 | DI61: 293230.7923 | DT61: 18 | DU61: 3 | DV61: 0 | DW61: 0 | DX61: 3 | DY61: 1827 | DZ61: 1 | EA61: 1 | EB61: 1 | EC61: 1 | ED61: 1 | EE61: 1 | EF61: 3842 | EG61: 2303 | EH61: 492 | EI61: 1025 | EJ61: 14 | EK61: 114 | EL61: 8 | EM61: 142 | EN61: 390.3 | EO61: 312 | EP61: 78.3 | EQ61: 2040.2 | ER61: 1657.9 | ES61: 382.3 | ET61: 154.5 | EU61: 107.7 | EV61: 30 | EW61: 4583 | EX61: 1644 | EY61: 1152 | EZ61: 492 | FA61: 106.2312992 | FB61: 102.3448127 | FC61: 100.6200141 | FD61: 96.87990367 | FE61: 106.5603552 | FF61: 111.1081896 | FG61: 106.2090585 | FH61: 108.558311 | FI61: 95.49393818 | FJ61: 84.37393167 | FK61: 94.62190309 | FL61: 93.52919302 | FM61: 114.3107332 | FN61: 103.6035105 | FO61: 201.9696946 | FP61: 180.0794296 | FQ61: 111.743501 | FR61: 96.85750914 | FS61: 114.6161156 | FT61: 119.8087958 | FU61: 106.6731443 | FV61: 122.898743 | FW61: 122.1594103 | FX61: 125.7966052 | FY61: 104.0742293 | FZ61: 106.1511324 | GA61: 100.5243605 | GB61: 89.18911996 | GC61: 103.1246893 | GD61: 86.65237 | GE61: 122.2949845 | GF61: 109.4003115 | GG61: 123.5201962 | GH61: 117.1261515 | GI61: 111.3055292 | GJ61: 114.4335896 | GK61: 2.9 | GL61: 6.9 | GM61: -4 | GN61: 4 | GO61: 9.6 | GP61: -5.6 | GQ61: 0 | GR61: 4.7 | GS61: -4.7 | GT61: 0 | GU61: 4.6 | GV61: 0 | GW61: 8.1 | GX61: 2.4 | GY61: 2.5 | HA61: 177 | HB61: 9 | HC61: 168 | HD61: 118 | HE61: 109 | HF61: 9 | HG61: 218.4 | HH61: 147 | HI61: 71.4 | HJ61: 570.4 | HK61: 340.6 | HL61: 229.8 | HN61: 446 | HP61: 42 | HQ61: 4 | HR61: 13 | HS61: 30 | HT61: 4 | HU61: 4 | HV61: 8 | HW61: 5 | HX61: 2 | HY61: 4 | HZ61: 4 | IA61: 5 | IB61: 5 | IC61: 1 | ID61: 14 | IE61: 0 | IF61: 11 | IG61: 40 | IH61: 2 | II61: 4 | IJ61: 2 | IK61: 4 | IL61: 12 | IM61: 10 | IN61: 12 | IO61: 20 | IP61: 4 | IQ61: 12 | IR61: 14 | IS61: 0 | IT61: 14 | IU61: 3 | IV61: 8 | IW61: 8 | IX61: 2 | IY61: 7 | IZ61: 0 | JA61: 1 | JB61: 4 | JC61: 0 | JD61: 22 | JE61: 1 | JF61: 5 | JG61: 0 | JH61: 1 | JI61: 5 | JJ61: 6 | JK61: 1 | JL61: 2 | JM61: 1 | JN61: 2 | JO61: 0 | JP61: 1 | JQ61: 0 | JR61: 0 | JS61: 1 | JU61: 15 | JV61: 0 | JW61: 45 | JX61: 797 | JY61: 9 | JZ61: 14 | KB61: 1 | KC61: 26 | KD61: 19 | KE61: 1592 | KF61: 34 | KG61: 2269 | KH61: 2 | KI61: 139 | KJ61: 0 | KK61: 0 | KL61: 12 | KM61: 400 | KN61: 2 | KO61: 55 | KP61: 41 | KQ61: 484 | KR61: 8 | KS61: 176 | KT61: 10 | KU61: 231 | KW61: 17 | KY61: 720 | KZ61: 2090 | LB61: 462.68 | LC61: 75.95 | LD61: 3906.9 | LE61: 390.13 | LG61: 256403 | LH61: 47.30412098 | LI61: 5420.31 | LJ61: 256403 | LP61: 27974 | LV61: 136127 | MB61: 92302 | MH61: 42384 | MN61: 29592 | MT61: 20326 | MZ61: 会津若松市、喜多方市、耶麻郡北塩原村、耶麻郡西会津町、耶麻郡磐梯町、耶麻郡猪苗代町、河沼郡会津坂下町、河沼郡湯川村、河沼郡柳津町、大沼郡三島町、大沼郡金山町、大沼郡昭和村、大沼郡会津美里町、南会津郡下郷町、南会津郡檜枝岐村、南会津郡只見町、南会津郡南会津町 | NA61: 竹田綜合病院（標準群） | NB61: 会津中央病院（標準群・救命） | NC61: 会津医療センター附属病院（標準群）
A62: 57 | B62: 相双 | C62: 過疎地域型 | D62: 南相馬市,双葉郡川内村,相馬市,双葉郡大熊町,双葉郡楢葉町,双葉郡浪江町,双葉郡広野町,双葉郡葛尾村,相馬郡新地町,双葉郡双葉町,相馬郡飯舘村,双葉郡富岡町 | F62: 福島県 | G62: 東北 | H62: 相馬(福島） | I62: ソウソウ | J62: 相馬市、南相馬市及び周辺部 | K62: 0.7004600315 | L62: 0.8908259178 | M62: 0 | N62: 0 | O62: 0.6261023915 | P62: 0.7842249901 | Q62: -0.6790064514 | R62: -0.8927286796 | S62: 1 | T62: 130.8605086 | U62: 435.413487 | W62: 228.1 | X62: 865.8 | Y62: 55 | AA62: 0 | AB62: 0 | AC62: 0 | AD62: 0 | AE62: 0 | AF62: 0 | AG62: 0 | AH62: 0 | AJ62: 0 | AK62: 0 | AL62: 1 | AM62: 0 | AN62: 0 | AP62: 1106 | AQ62: 0 | AR62: 786 | AS62: 50 | AT62: 208 | AU62: 62 | AW62: 0 | BB62: 0 | BG62: 0 | BL62: 0 | BS62: 0 | BX62: 0 | CC62: 0 | CH62: 0 | CO62: 31 | CP62: 1471 | CQ62: 2362.362077 | CR62: 2663.069252 | CS62: 0 | CU62: 182.66 | CV62: 1514.44 | CX62: 418562.5405 | CY62: 148339.9499 | CZ62: 242643.2765 | DA62: 27579.31407 | DB62: 1.101607948 | DC62: 0.987636269 | DD62: 1.192167307 | DE62: 1.051529082 | DF62: -0.004887393974 | DG62: 0.1029383636 | DH62: 0.003556978827 | DI62: 308015.766 | DJ62: 15477221.02 | DK62: 51512 | DT62: 10 | DU62: 0 | DV62: 0 | DW62: 0 | DX62: 0 | DY62: 713 | DZ62: 0 | EA62: 0 | EB62: 0 | EC62: 0 | ED62: 0 | EE62: 0 | EF62: 1485 | EG62: 900 | EH62: 282 | EI62: 303 | EJ62: 0 | EK62: 0 | EL62: 0 | EM62: 165 | EN62: 126.7 | EO62: 84 | EP62: 42.7 | EQ62: 703.9 | ER62: 560.5 | ES62: 143.4 | ET62: 39 | EU62: 14 | EV62: 2 | EW62: 782 | EX62: 336 | EY62: 336 | EZ62: 0 | FA62: 160.8297773 | FB62: 164.8986827 | FC62: 153.030802 | FD62: 153.0297564 | FE62: 152.6359561 | FF62: 160.2358275 | FG62: 153.9390729 | FH62: 173.3236274 | FI62: 107.4014397 | FJ62: 111.7939495 | FK62: 150.4242396 | FL62: 146.9768011 | FM62: 177.9338716 | FN62: 168.602391 | FO62: 320.1403404 | FP62: 303.6671966 | FQ62: 170.7708146 | FR62: 158.6162181 | FS62: 176.4367445 | FT62: 212.551347 | FU62: 158.6836371 | FV62: 156.0594404 | FW62: 183.8903199 | FX62: 234.4255064 | FY62: 154.1123678 | FZ62: 150.717515 | GA62: 142.772434 | GB62: 112.630645 | GC62: 137.6463403 | GD62: 116.7799659 | GE62: 186.9863834 | GF62: 168.2585926 | GG62: 170.0137243 | GH62: 157.5095805 | GI62: 137.5965623 | GJ62: 154.8084372 | GK62: 5.3 | GL62: 48.4 | GM62: -43.1 | GN62: 4.3 | GO62: 40.1 | GP62: -35.8 | GQ62: 6.3 | GR62: 30.2 | GS62: -23.9 | GT62: 6.3 | GU62: 30.2 | GV62: 0 | GW62: 0 | GX62: 11.4 | GY62: 81.9 | HA62: 86 | HB62: 8 | HC62: 78 | HD62: 87 | HE62: 87 | HF62: 0 | HG62: 101.4 | HH62: 65 | HI62: 36.4 | HJ62: 161.9 | HK62: 73.9 | HL62: 88 | HN62: 188 | HP62: 11 | HQ62: 2 | HR62: 8 | HS62: 10 | HT62: 3 | HU62: 2 | HV62: 0 | HW62: 1 | HX62: 0 | HY62: 2 | HZ62: 2 | IA62: 1 | IB62: 2 | IC62: 0 | ID62: 6 | IE62: 0 | IF62: 10 | IG62: 16 | IH62: 1 | II62: 0 | IJ62: 0 | IK62: 0 | IL62: 3 | IM62: 4 | IN62: 3 | IO62: 8 | IP62: 1 | IQ62: 4 | IR62: 2 | IS62: 0 | IT62: 2 | IU62: 0 | IV62: 0 | IW62: 2 | IX62: 0 | IY62: 3 | IZ62: 0 | JA62: 0 | JB62: 1 | JC62: 0 | JD62: 15 | JE62: 0 | JF62: 0 | JG62: 0 | JH62: 0 | JI62: 0 | JJ62: 1 | JK62: 0 | JL62: 0 | JM62: 0 | JN62: 0 | JO62: 0 | JP62: 0 | JQ62: 0 | JR62: 0 | JS62: 0 | JU62: 5 | JV62: 1 | JW62: 18 | JX62: 172 | JY62: 2 | JZ62: 2 | KB62: 1 | KC62: 10 | KD62: 5 | KE62: 398 | KF62: 11 | KG62: 836 | KH62: 1 | KI62: 53 | KJ62: 0 | KK62: 0 | KL62: 0 | KM62: 0 | KN62: 0 | KO62: 0 | KP62: 13 | KQ62: 174 | KR62: 1 | KS62: 20 | KT62: 1 | KU62: 20 | KW62: 11 | KY62: 455 | KZ62: 860 | LB62: 133.86 | LC62: 48.8 | LD62: 1386.21 | LE62: 128.23 | LG62: 119577 | LH62: 68.76549103 | LI62: 1738.91 | LJ62: 119577 | LP62: 11290 | LV62: 67281 | MB62: 41006 | MH62: 20773 | MN62: 12655 | MT62: 7578 | MZ62: 相馬市、南相馬市、双葉郡広野町、双葉郡楢葉町、双葉郡富岡町、双葉郡川内村、双葉郡大熊町、双葉郡双葉町、双葉郡浪江町、双葉郡葛尾村、相馬郡新地町、相馬郡飯舘村
... 77 more rows

Sheet 全国

Sheet 北海道

Sheet 東北

Sheet 関東

Sheet 中部

Sheet 近畿

Sheet 中国

Sheet 四国

Sheet 九州・沖縄
